Workbook

Sheet Dashboard
C2: Level 3 Life Cycle Model Dashboard
H4: INPUT CELL | K4: DROP DOWN MENU
B5: Step 1. | C5: Harvest Policy Inputs
C8: 1. For the Baseline and Scenario Natural populations, select from the 4 harvest policies: Harvest Rate, MSY Rate, Escapement Goal, or MSY Escapement
C9: 2. If Harvest Rate is selected, enter the desired harvest rate in Row 5. If Escapement Goal is selected, enter the desired escapement level in Row 7.
C10: 3. If MSY Harvest Rate or MSY Escapement is selected, these values will be calculated by the model.
B13: Step 2. | C13: Fish Passage Survival
C16: 1. Select the life stage when juvenile fish passage occurs.
C17: 2. Enter juvenile fish passage survival rates for each population.
C18: 3. Enter adult fish passage survival rates for two dams: one is located downstream of the terminal fishery and the other is upstream of the terminal fishery.
B21: Step 3. | C21: Randomization Options
C24: 1. Choose from the randomization options: None (no random variation) or PDO (Pacific Decadal Oscillation variation).
C25: 2. Choose a synchronization option: None, Freshwater, Marine, or Both (Marine and Freshwater). This synchronizes random variation with the Baseline scenario.
B28: Step 4. | C28: Life Stage Survival Inputs
C31: 1. For the Baseline-Natural Population, select life stages from Dropdowns in cells B23:B31 (Spawning and Incubation are automatically entered for the first 2 stages).
C32: These stages are automatically applied to the Scenario-Natural Population.
C33: 2. Enter Productivity and Capacity values for each life stage for the Baseline and Scenario Natural populations and a Range (+ or -) for Productivity.
C34: 3. Enter Early Marine Survival rates for the Baseline and Scenario Natural and Hatchery populations, and enter an upper bound for the survival rate.
C35: 4. For the Baseline and Scenario Hatchery Populations, enter the life stage survival rates, number of smolts released, pNOB (%), and stray rate (%).
C36: Select the age at release (Yearling or Sub-yearling) in the dropdowns.
B39: Step 5. | C39: Advanced Model Set-up
C42: 1. Advanced model set-up options are found to the right of the main screen beginning in column AH. Editing these values is optional.
C43: The default values may be used or any of the values in the yellow cells may be edited.
C44: 2. Life Stage Survival Inputs: fill in the yellow cells (Age 2 - Age 6) with values for productivity, min and max productivity, and capacity.
C45: 3. Age Specific Survival Inputs: fill in the yellow cells with the maturity schedule, fecundity, and percent females for each age class.
C46: 4. Harvest Inputs: fill in the yellow cells with percent harvest vulnerability for each age class. Enter harvest allocation (ocean, lower river, and terminal fisheries sum to 1.0).
C47: Enter Harvest Rate variability (standard deviation applied to random variation in harvest rates).
C48: 5. PDO Inputs: Enter the PDO start year (1954-2013) and amplitude of the PDO cycle (%).
B51: Step 6. | C51: Early Marine Survival (Set PDO Inputs)
C54: 1. Set Randomization to PDO (Step 3)
C55: 2. PDO Inputs: Enter the PDO start year (1954-2013) and amplitude of the PDO cycle (%).
B58: Step 7. | C58: Run Model

Sheet Sheet1 (hidden)

Sheet Level 3
CE1: =C3 -> Baseline-Natural | CF1: =E3 -> Baseline-Hatchery | CG1: =G3 -> Scenario-Natural | CH1: =I3 -> Scenario-Hatchery
B2: Harvest Policy Inputs | N2: =CONCATENATE("Median Results After 100-years from ",$L$11," model runs") -> Median Results After 100-years from 1 model runs | T2: Adult Recruitment | AH2: Life Stage Survival Parameters | BD2: =CONCATENATE("Model Outputs Based on 100-year outcomes from ",$L$11," model runs") -> Model Outputs Based on 100-year outcomes from 1 model runs | BW2: =CONCATENATE("Model Outputs Based on 100-year outcomes from ",AG10," model runs") -> Model Outputs Based on 100-year outcomes from model runs | CE2: ='L3 BaselineNatural'!K35 -> 2232.732298 | CF2: ='L3 BaselineHatchery'!K35 ->  | CG2: ='L3 ScenarioNatural'!K35 -> 2232.732298 | CH2: ='L3 ScenarioHatchery'!K35 -> 
B3: Parameter | C3: Baseline-Natural | E3: Baseline-Hatchery | G3: Scenario-Natural | I3: Scenario-Hatchery | N3: Life Stage | O3: =$C$3 -> Baseline-Natural | P3: =$E$3 -> Baseline-Hatchery | Q3: =$G$3 -> Scenario-Natural | R3: =$I$3 -> Scenario-Hatchery | T3: Metric | U3: =$C$3 -> Baseline-Natural | V3: =$E$3 -> Baseline-Hatchery | W3: =$G$3 -> Scenario-Natural | X3: =$I$3 -> Scenario-Hatchery | AH3: Age | AI3: =$C$3 -> Baseline-Natural | AM3: =$E$3 -> Baseline-Hatchery | AW3: LISTS | BD3: Model | BE3: Parameter | BF3: 5th Percentile | BG3: 10th Percentile | BH3: 25th Percentile | BI3: 30th Percentile | BJ3: 40th Percentile | BK3: 50th Percentile | BL3: 60th Percentile | BM3: 75th Percentile | BN3: 80th Percentile | BO3: 90th Percentile | BP3: 95th Percentile | BQ3: =CONCATENATE("Frequency < ",$P$43) -> Frequency < 2500 | BS3: Median | BT3: Upper whisker | BU3: Lower whisker | BW3: Model | BX3: Parameter | BY3: Mean | BZ3: SD | CB3: 95% CI | CE3: ='L3 BaselineNatural'!K36 -> 2177.993301 | CF3: ='L3 BaselineHatchery'!K36 ->  | CG3: ='L3 ScenarioNatural'!K36 -> 2177.993301 | CH3: ='L3 ScenarioHatchery'!K36 -> 
B4: Harvest Policy | C4: Harvest Rate | E4: Harvest Rate Multiplier | G4: Harvest Rate | I4: Harvest Rate Multiplier | N4: Smolt Production | O4: =IFERROR(BK4,"-") -> 125891.9102 | P4: =IFERROR(BK11, "-") -> - | Q4: =IFERROR(BK18,"-") -> 125891.9102 | R4: =IFERROR(BK25, "-") -> - | AI4: Productivity | AJ4: Min | AK4: Max | AL4: Capacity | AM4: Productivity | AN4: Min | AO4: Max | AP4: Capacity | AW4: Species | AX4: =AI21 -> Baseline-Natural | AY4: =AL21 -> Baseline-Hatchery | AZ4: =AI42 -> Scenario-Natural | BA4: =AL42 -> Scenario-Hatchery | BB4: Edit/Add LIfe Stage Names | BD4: Model | BE4: Smolt Production | BF4: ='L3 Results'!$F$5 -> 123034.841 | BG4: ='L3 Results'!$J$5 -> 123175.7992 | BH4: ='L3 Results'!$N$5 -> 123768.097 | BI4: ='L3 Results'!$R$5 -> 124043.8109 | BJ4: ='L3 Results'!$V$5 -> 124777.4457 | BK4: ='L3 Results'!$Z$5 -> 125891.9102 | BL4: ='L3 Results'!$AD$5 -> 127696.1525 | BM4: ='L3 Results'!$AH$5 -> 133400.5527 | BN4: ='L3 Results'!$AL$5 -> 137211.6893 | BO4: ='L3 Results'!$AP$5 -> 153440.0113 | BP4: ='L3 Results'!AT$5 -> 170013.0979 | BQ4: ='L3 Results'!$DB$5/100 -> 0 | BS4: =BK4 -> 125891.9102 | BT4: =BK4-BG4 -> 2716.111007 | BU4: =BO4-BK4 -> 27548.1011 | BW4: =$C$3 -> Baseline-Natural | BX4: Smolt Production | BY4: ='L3 Results'!$B$5 -> 132488.5972 | BZ4: =STDEV('L3 Results'!$B$6:$B$1005) ->  | CB4: =CONCATENATE("(",TEXT(MAX(0,BY4-1.96*BZ4/SQRT($L$11)),"#,##0"),", ", TEXT(BY4+1.96*BZ4/SQRT($L$11),"#,##0"),")") ->  | CE4: ='L3 BaselineNatural'!K37 -> 2141.92003 | CF4: ='L3 BaselineHatchery'!K37 ->  | CG4: ='L3 ScenarioNatural'!K37 -> 2141.92003 | CH4: ='L3 ScenarioHatchery'!K37 -> 
B5: Harvest Rate | C5: 0 | E5: 3 | G5: 0 | I5: 3 | N5: Adult Recruitment | O5: =IFERROR(BK5, "-") -> 1290.386633 | P5: =IFERROR(BK12, "-") -> - | Q5: =IFERROR(BK19, "-") -> 1290.386633 | R5: =IFERROR(BK26, "-") -> - | T5: 5th Percentile | U5: =IF($T$2="Adult Recruitment",$BF$5,IF($T$2="Pre-terminal Harvest",$BF$8+$BF$9,IF($T$2="Terminal Harvest",$BF$10,IF($T$2="Smolt Production",$BF$4,IF($T$2="Return to Subbasin",$BF$7,IF($T$2="NOR Spawners",($BF$7-$BF$10-$BF$9)*$C$12*$C$13,$J$30*($BF$14-$BF$17-$BF$16)*$E$12*$E$13)))))) -> 1256.900718 | V5: =IFERROR(IF($T$2 = "Adult Recruitment",$BF$12, IF($T$2 = "Pre-terminal Harvest", $BF$15+$BF$16, IF($T$2 = "Terminal Harvest", $BF$17, IF($T$2 = "Smolt Production", $BF$11, IF($T$2 = "Return to Subbasin", $BF$14,IF($T$2="NOR Spawners","NOB","HOB")))))),"-") -> - | W5: =IF($T$2 = "Adult Recruitment",$BF$19, IF($T$2 = "Pre-terminal Harvest", $BF$22+$BF$23, IF($T$2 = "Terminal Harvest", $BF$24, IF($T$2 = "Smolt Production", $BF$18, IF($T$2 = "Return to Subbasin", $BF$21,IF($T$2="NOR Spawners",($BF$21-$BF$24-$BF$23)*$G$12*$G$13,$J$45*($BF$28-$BF$31-$BF$30)*$I$12*$I$13)))))) -> 1256.900718 | X5: =IFERROR(IF($T$2 = "Adult Recruitment",$BF$26, IF($T$2 = "Pre-terminal Harvest", $BF$29+$BF$30, IF($T$2 = "Terminal Harvest", $BF$31, IF($T$2 = "Smolt Production", $BF$25, IF($T$2 = "Return to Subbasin", $BF$28,IF($T$2="NOR Spawners","NOB","HOB")))))),"-") -> - | AH5: Early Marine Survival | AI5: =C32 -> 0.05 | AJ5: =D32 -> 0.05 | AK5: =E32 -> 0.05 | AL5: 1000000000000 | AM5: 0.03 | AN5: =H32 -> 0.03 | AO5: =I32 -> 0.03 | AP5: 1000000000000 | AW5: Coho | AY5: =C15 -> None | BA5: =G15 -> None | BB5: Spawning | BD5: Model | BE5: Adult Recruitment | BF5: ='L3 Results'!$G$5 -> 1256.900718 | BG5: ='L3 Results'!$K$5 -> 1258.509275 | BH5: ='L3 Results'!$O$5 -> 1265.312422 | BI5: ='L3 Results'!$S$5 -> 1268.509141 | BJ5: ='L3 Results'!$W$5 -> 1277.109573 | BK5: ='L3 Results'!$AA$5 -> 1290.386633 | BL5: ='L3 Results'!$AE$5 -> 1312.525452 | BM5: ='L3 Results'!$AI$5 -> 1389.745512 | BN5: ='L3 Results'!$AM$5 -> 1443.258894 | BO5: ='L3 Results'!$AQ$5 -> 1651.329798 | BP5: ='L3 Results'!AU$5 -> 1845.467289 | BQ5: ='L3 Results'!$DC$5/100 -> 0 | BS5: 1290.386633 | BT5: 31.87735831 | BU5: 360.9431647 | BX5: Spawning Escapement | BY5: ='L3 Results'!$E$5 -> 1384.076758 | BZ5: =STDEV('L3 Results'!$E$6:$E$1005) ->  | CB5: =CONCATENATE("(",TEXT(MAX(0,BY5-1.96*BZ5/SQRT($L$11)),"#,##0"),", ", TEXT(BY5+1.96*BZ5/SQRT($L$11),"#,##0"),")") ->  | CE5: ='L3 BaselineNatural'!K38 -> 2060.091438 | CF5: ='L3 BaselineHatchery'!K38 ->  | CG5: ='L3 ScenarioNatural'!K38 -> 2060.091438 | CH5: ='L3 ScenarioHatchery'!K38 -> 
B6: MSY Harvest Rate | C6: =IF(C$4 = "MSY Harvest Rate", 'L3 BaselineNatural'!$F$6,"-") -> - | G6: =IF(G$4 = "MSY Harvest Rate", 'L3 ScenarioNatural'!$F$6,"-") -> - | N6: Pre-terminal Harvest | O6: =IFERROR(BK8+BK9,"-") -> 0 | P6: =IFERROR(BK15+BK16,"-") -> - | Q6: =IFERROR(BK22+BK23,"-") -> 0 | R6: =IFERROR(BK29+BK30,"-") -> - | T6: 25th Percentile | U6: =IF($T$2 = "Adult Recruitment",$BH$5, IF($T$2 = "Pre-terminal Harvest", $BH$8+$BH$9, IF($T$2 = "Terminal Harvest", $BH$10, IF($T$2 = "Smolt Production", $BH$4, IF($T$2 = "Return to Subbasin", $BH$7,IF($T$2="NOR Spawners",($BH$7-$BH$10-$BH$9)*$C$12*$C$13,$J$30*($BH$14-$BH$17-$BH$16)*$E$12*$E$13)))))) -> 1265.312422 | V6: =IFERROR(IF($T$2 = "Adult Recruitment",$BH$12, IF($T$2 = "Pre-terminal Harvest", $BH$15+$BH$16, IF($T$2 = "Terminal Harvest", $BH$17, IF($T$2 = "Smolt Production", $BH$11, IF($T$2 = "Return to Subbasin", $BH$14,IF($T$2="NOR Spawners","NOB","HOB")))))),"-") -> - | W6: =IF($T$2 = "Adult Recruitment",$BH$19, IF($T$2 = "Pre-terminal Harvest", $BH$22+$BH$23, IF($T$2 = "Terminal Harvest", $BH$24, IF($T$2 = "Smolt Production", $BH$18, IF($T$2 = "Return to Subbasin", $BH$21,IF($T$2="NOR Spawners",($BH$21-$BH$24-$BH$23)*$G$12*$G$13,$J$45*($BH$28-$BH$31-$BH$30)*$I$12*$I$13)))))) -> 1265.312422 | X6: =IFERROR(IF($T$2 = "Adult Recruitment",$BH$26, IF($T$2 = "Pre-terminal Harvest", $BH$29+$BH$30, IF($T$2 = "Terminal Harvest", $BH$31, IF($T$2 = "Smolt Production", $BH$25, IF($T$2 = "Return to Subbasin", $BH$28,IF($T$2="NOR Spawners","NOB","HOB")))))),"-") -> - | AH6: Age 2 Ocean Survival | AI6: 0.4 | AJ6: 0.39 | AK6: 0.41 | AL6: 1000000000000 | AM6: 0.4 | AN6: 0.39 | AO6: 0.41 | AP6: 1000000000000 | AW6: Fall Chinook | AX6: None | BB6: Incubation | BE6: Catch | BF6: ='L3 Results'!$H$5 -> 0 | BG6: ='L3 Results'!$L$5 -> 0 | BH6: ='L3 Results'!$P$5 -> 0 | BI6: ='L3 Results'!$T$5 -> 0 | BJ6: ='L3 Results'!$X$5 -> 0 | BK6: ='L3 Results'!$AB$5 -> 0 | BL6: ='L3 Results'!$AF$5 -> 0 | BM6: ='L3 Results'!$AJ$5 -> 0 | BN6: ='L3 Results'!$AN$5 -> 0 | BO6: ='L3 Results'!$AR$5 -> 0 | BP6: ='L3 Results'!AV$5 -> 0 | BQ6: ='L3 Results'!$DD$5/100 -> 1 | BS6: 0 | BT6: 0 | BU6: 0 | BW6: =$E$3 -> Baseline-Hatchery | BX6: Smolt Production | BY6: ='L3 Results 1'!$B$5 ->  | BZ6: =STDEV('L3 Results 1'!$B$6:$B$1005) ->  | CB6: =CONCATENATE("(",TEXT(MAX(0,BY6-1.96*BZ6/SQRT($L$11)),"#,##0"),", ", TEXT(BY6+1.96*BZ6/SQRT($L$11),"#,##0"),")") ->  | CE6: ='L3 BaselineNatural'!K39 -> 1962.457336 | CF6: ='L3 BaselineHatchery'!K39 ->  | CG6: ='L3 ScenarioNatural'!K39 -> 1962.457336 | CH6: ='L3 ScenarioHatchery'!K39 -> 
B7: Escapement Goal | C7: 500 | G7: 500 | N7: Return to Subbasin | O7: =IFERROR(BK7, "-") -> 1290.386633 | P7: =IFERROR(BK14,"-") -> - | Q7: =IFERROR(BK21, "-") -> 1290.386633 | R7: =IFERROR(BK28, "-") -> - | T7: 50th Percentile | U7: =IF($T$2 = "Adult Recruitment",$BK$5, IF($T$2 = "Pre-terminal Harvest", $BK$8+$BK$9, IF($T$2 = "Terminal Harvest", $BK$10, IF($T$2 = "Smolt Production", $BK$4, IF($T$2 = "Return to Subbasin", $BK$7,IF($T$2="NOR Spawners",($BK$7-$BK$10-$BK$9)*$C$12*$C$13,$J$30*($BK$14-$BK$17-$BK$16)*$E$12*$E$13)))))) -> 1290.386633 | V7: =IFERROR(IF($T$2 = "Adult Recruitment",$BK$12, IF($T$2 = "Pre-terminal Harvest", $BK$15+$BK$16, IF($T$2 = "Terminal Harvest", $BK$17, IF($T$2 = "Smolt Production", $BK$11, IF($T$2 = "Return to Subbasin", $BK$14,IF($T$2="NOR Spawners",P9,P10)))))),"-") -> - | W7: =IF($T$2 = "Adult Recruitment",$BK$19, IF($T$2 = "Pre-terminal Harvest", $BK$22+$BK$23, IF($T$2 = "Terminal Harvest", $BK$24, IF($T$2 = "Smolt Production", $BK$18, IF($T$2 = "Return to Subbasin", $BK$21,IF($T$2="NOR Spawners",($BK$21-$BK$24-$BK$23)*$G$12*$G$13,$J$45*($BK$28-$BK$31-$BK$30)*$I$12*$I$13)))))) -> 1290.386633 | X7: =IFERROR(IF($T$2 = "Adult Recruitment",$BK$26, IF($T$2 = "Pre-terminal Harvest", $BK$29+$BK$30, IF($T$2 = "Terminal Harvest", $BK$31, IF($T$2 = "Smolt Production", $BK$25, IF($T$2 = "Return to Subbasin", $BK$28,IF($T$2="NOR Spawners",R9,R10)))))),"-") -> - | AH7: Age 3 Ocean Survival | AI7: 0.6 | AJ7: 0.59 | AK7: 0.61 | AL7: 1000000000000 | AM7: 0.6 | AN7: 0.59 | AO7: 0.61 | AP7: 1000000000000 | AW7: Fall Chum | AX7: PDO | BB7: Fry Colonization | BE7: Return to Basin | BF7: ='L3 Results'!$I$5 -> 1256.900718 | BG7: ='L3 Results'!$M$5 -> 1258.509275 | BH7: ='L3 Results'!$Q$5 -> 1265.312422 | BI7: ='L3 Results'!$U$5 -> 1268.509141 | BJ7: ='L3 Results'!$Y$5 -> 1277.109573 | BK7: ='L3 Results'!$AC$5 -> 1290.386633 | BL7: ='L3 Results'!$AG$5 -> 1312.525452 | BM7: ='L3 Results'!$AK$5 -> 1389.745512 | BN7: ='L3 Results'!$AO$5 -> 1443.258894 | BO7: ='L3 Results'!$AS$5 -> 1651.329798 | BP7: ='L3 Results'!AW$5 -> 1845.467289 | BQ7: ='L3 Results'!$DE$5/100 -> 1 | BS7: 1290.386633 | BT7: 31.87735831 | BU7: 360.9431647 | BX7: Spawning Escapement | BY7: ='L3 Results 1'!$E$5 ->  | BZ7: =STDEV('L3 Results 1'!$E$6:$E$1005) ->  | CE7: ='L3 BaselineNatural'!K40 -> 1839.309918 | CF7: ='L3 BaselineHatchery'!K40 ->  | CG7: ='L3 ScenarioNatural'!K40 -> 1839.309918 | CH7: ='L3 ScenarioHatchery'!K40 -> 
B8: MSY Escapement | C8: =IF(C$4 = "MSY Escapement", 'L3 BaselineNatural'!$F$5,"-") -> - | G8: =IF(G$4 = "MSY Escapement", 'L3 ScenarioNatural'!$F$5,"-") -> - | N8: Terminal Harvest | O8: =BK10 -> 0 | P8: =IFERROR(BK17,"-") -> - | Q8: =BK24 -> 0 | R8: =IFERROR(BK31, "-") -> - | T8: 75th Percentile | U8: =IF($T$2 = "Adult Recruitment",$BM$5, IF($T$2 = "Pre-terminal Harvest", $BM$8+$BM$9, IF($T$2 = "Terminal Harvest", $BM$10, IF($T$2 = "Smolt Production", $BM$4, IF($T$2 = "Return to Subbasin", $BM$7,IF($T$2="NOR Spawners",($BM$7-$BM$10-$BM$9)*$C$12*$C$13,$J$30*($BM$14-$BM$17-$BM$16)*$E$12*$E$13)))))) -> 1389.745512 | V8: =IFERROR(IF($T$2 = "Adult Recruitment",$BM$12, IF($T$2 = "Pre-terminal Harvest", $BM$15+$BM$16, IF($T$2 = "Terminal Harvest", $BM$17, IF($T$2 = "Smolt Production", $BM$11, IF($T$2 = "Return to Subbasin", $BM$14,IF($T$2="NOR Spawners","NOB","HOB")))))),"-") -> - | W8: =IF($T$2 = "Adult Recruitment",$BM$19, IF($T$2 = "Pre-terminal Harvest", $BM$22+$BM$23, IF($T$2 = "Terminal Harvest", $BM$24, IF($T$2 = "Smolt Production", $BM$18, IF($T$2 = "Return to Subbasin", $BM$21,IF($T$2="NOR Spawners",($BM$21-$BM$24-$BM$23)*$G$12*$G$13,$J$45*($BM$28-$BM$31-$BM$30)*$I$12*$I$13)))))) -> 1389.745512 | X8: =IFERROR(IF($T$2 = "Adult Recruitment",$BM$26, IF($T$2 = "Pre-terminal Harvest", $BM$29+$BM$30, IF($T$2 = "Terminal Harvest", $BM$31, IF($T$2 = "Smolt Production", $BM$25, IF($T$2 = "Return to Subbasin", $BM$28,IF($T$2="NOR Spawners","NOB","HOB")))))),"-") -> - | AH8: Age 4 Ocean Survival | AI8: 0.7 | AJ8: 0.69 | AK8: 0.71 | AL8: 1000000000000 | AM8: 0.7 | AN8: 0.69 | AO8: 0.71 | AP8: 1000000000000 | AW8: Sockeye | BB8: Rearing | BE8: Ocean Catch | BF8: ='L3 Results'!$DP$5 -> 0 | BG8: ='L3 Results'!$DQ$5 -> - | BH8: ='L3 Results'!$DR$5 -> 0 | BI8: ='L3 Results'!$DS$5 -> - | BJ8: ='L3 Results'!$DT$5 -> - | BK8: ='L3 Results'!$DU$5 -> 0 | BL8: ='L3 Results'!$DV$5 -> - | BM8: ='L3 Results'!$DW$5 -> 0 | BN8: ='L3 Results'!$DX$5 -> - | BO8: ='L3 Results'!$DY$5 -> - | BP8: ='L3 Results'!$DZ$5 -> 0 | BW8: =$G$3 -> Scenario-Natural | BX8: Smolt Production | BY8: ='L3 Results 2'!$B$5 -> 132488.5972 | BZ8: =STDEV('L3 Results 2'!$B$6:$B$1005) ->  | CE8: ='L3 BaselineNatural'!K41 -> 1791.203343 | CF8: ='L3 BaselineHatchery'!K41 ->  | CG8: ='L3 ScenarioNatural'!K41 -> 1791.203343 | CH8: ='L3 ScenarioHatchery'!K41 -> 
B9: Fish Passage Survival | L9: Enter No. | N9: NOR Spawners | O9: =BI34 -> 1290.386633 | P9: =IFERROR(BM34,"-") -> 0 | Q9: =BI36 -> 1290.386633 | R9: =IFERROR(BM36,"-") -> 0 | T9: 95th Percentile | U9: =IF($T$2 = "Adult Recruitment",$BP$5, IF($T$2 = "Pre-terminal Harvest", $BP$8+$BP$9, IF($T$2 = "Terminal Harvest", $BP$10, IF($T$2 = "Smolt Production", $BP$4, IF($T$2 = "Return to Subbasin", $BP$7,IF($T$2="NOR Spawners",($BP$7-$BP$10-$BP$9)*$C$12*$C$13,$J$30*($BP$14-$BP$17-$BP$16)*$E$12*$E$13)))))) -> 1845.467289 | V9: =IFERROR(IF($T$2 = "Adult Recruitment",$BP$12, IF($T$2 = "Pre-terminal Harvest", $BP$15+$BP$16, IF($T$2 = "Terminal Harvest", $BP$17, IF($T$2 = "Smolt Production", $BP$11, IF($T$2 = "Return to Subbasin", $BP$14,IF($T$2="NOR Spawners","NOB","HOB")))))),"-") -> - | W9: =IF($T$2 = "Adult Recruitment",$BP$19, IF($T$2 = "Pre-terminal Harvest", $BP$22+$BP$23, IF($T$2 = "Terminal Harvest", $BP$24, IF($T$2 = "Smolt Production", $BP$18, IF($T$2 = "Return to Subbasin", $BP$21,IF($T$2="NOR Spawners",($BP$21-$BP$24-$BP$23)*$G$12*$G$13,$J$45*($BP$28-$BP$31-$BP$30)*$I$12*$I$13)))))) -> 1845.467289 | X9: =IFERROR(IF($T$2 = "Adult Recruitment",$BP$26, IF($T$2 = "Pre-terminal Harvest", $BP$29+$BP$30, IF($T$2 = "Terminal Harvest", $BP$31, IF($T$2 = "Smolt Production", $BP$25, IF($T$2 = "Return to Subbasin", $BP$28,IF($T$2="NOR Spawners","NOB","HOB")))))),"-") -> - | AH9: Age 5 Ocean Survival | AI9: 0.8 | AJ9: 0.79 | AK9: 0.81 | AL9: 1000000000000 | AM9: 0.8 | AN9: 0.79 | AO9: 0.81 | AP9: 1000000000000 | AW9: Spring Chinook | BB9: Reservoir Rearing | BE9: Lower River Catch | BF9: ='L3 Results'!$EB$5 -> 0 | BG9: ='L3 Results'!$EC$5 -> - | BH9: ='L3 Results'!$ED$5 -> 0 | BI9: ='L3 Results'!$EE$5 -> - | BJ9: ='L3 Results'!$EF$5 -> - | BK9: ='L3 Results'!$EG$5 -> 0 | BL9: ='L3 Results'!$EH$5 -> - | BM9: ='L3 Results'!$EI$5 -> 0 | BN9: ='L3 Results'!$EJ$5 -> - | BO9: ='L3 Results'!$EK$5 -> - | BP9: ='L3 Results'!$EL$5 -> 0 | BX9: Spawning Escapement | BY9: ='L3 Results 2'!$E$5 -> 1384.076758 | BZ9: =STDEV('L3 Results 2'!$E$6:$E$1005) ->  | CE9: ='L3 BaselineNatural'!K42 -> 1770.242948 | CF9: ='L3 BaselineHatchery'!K42 ->  | CG9: ='L3 ScenarioNatural'!K42 -> 1770.242948 | CH9: ='L3 ScenarioHatchery'!K42 -> 
B10: Juvenile Life Stage | C10: to estuary | L10: Model Runs | N10: HOR Spawners | O10: =BJ34 -> 0 | P10: =IFERROR(MAX(0,'L3 BaselineHatchery'!$AB$12-P9),"-") -> - | Q10: =BJ36 -> 0 | R10: =IFERROR(MAX(0,'L3 ScenarioHatchery'!$AB$12-R9),"-") -> - | W10: =+W7/U7 -> 1 | AH10: Age 6 Ocean Survival | AI10: 0.9 | AJ10: 0.89 | AK10: 0.91 | AL10: 1000000000000 | AM10: 0.9 | AN10: 0.89 | AO10: 0.91 | AP10: 1000000000000 | AW10: Summer Chinook | AX10: MSY Harvest Rate | AZ10: Sub-yearling | BB10: Dam | BE10: Terminal Catch | BF10: ='L3 Results'!$EN$5 -> 0 | BG10: ='L3 Results'!$EO$5 -> - | BH10: ='L3 Results'!$EP$5 -> 0 | BI10: ='L3 Results'!$EQ$5 -> - | BJ10: ='L3 Results'!$ER$5 -> - | BK10: ='L3 Results'!$ES$5 -> 0 | BL10: ='L3 Results'!$ET$5 -> - | BM10: ='L3 Results'!$EU$5 -> 0 | BN10: ='L3 Results'!$EV$5 -> - | BO10: ='L3 Results'!$EX$5 -> 0 | BP10: ='L3 Results'!$EX$5 -> 0 | BW10: =$I$3 -> Scenario-Hatchery | BX10: Smolt Production | BY10: ='L3 Results 3'!$B$5 ->  | BZ10: =STDEV('L3 Results 3'!$B$6:$B$1005) ->  | CE10: ='L3 BaselineNatural'!K43 -> 1743.193295 | CF10: ='L3 BaselineHatchery'!K43 ->  | CG10: ='L3 ScenarioNatural'!K43 -> 1743.193295 | CH10: ='L3 ScenarioHatchery'!K43 -> 
B11: Juvenile Survival | C11: 1 | E11: 1 | G11: 1 | I11: 1 | L11: 1 | N11: pHOS or pNOB | O11: =BL34 -> 0 | P11: =IF(J27>0,BK34,0) -> 0 | Q11: =BL36 -> 0 | R11: =IF(J42>0,BK36,0) -> 0 | T11: Smolt to Adult Survival | AI11: =$G$3 -> Scenario-Natural | AM11: =$I$3 -> Scenario-Hatchery | AW11: Summer Chum | AX11: MSY Escapement | AZ11: Yearling | BB11: Lower Lewis River | BD11: =$E$3 -> Baseline-Hatchery | BE11: Smolt Production | BF11: ='L3 Results 1'!$F$5 ->  | BG11: ='L3 Results 1'!$J$5 ->  | BH11: ='L3 Results 1'!N$5 ->  | BI11: ='L3 Results 1'!$R$5 ->  | BJ11: ='L3 Results 1'!$V$5 ->  | BK11: ='L3 Results 1'!$Z$5 ->  | BL11: ='L3 Results 1'!$AD$5 ->  | BM11: ='L3 Results 1'!$AH$5 ->  | BN11: ='L3 Results 1'!$AL$5 ->  | BO11: ='L3 Results 1'!$AP$5 ->  | BP11: ='L3 Results 1'!AT$5 ->  | BQ11: ='L3 Results 1'!$DB$5/100 -> 0 | BX11: Spawning Escapement | BY11: ='L3 Results 3'!$E$5 ->  | BZ11: =STDEV('L3 Results 3'!$E$6:$E$1005) ->  | CE11: ='L3 BaselineNatural'!K44 -> 1696.729555 | CF11: ='L3 BaselineHatchery'!K44 ->  | CG11: ='L3 ScenarioNatural'!K44 -> 1696.729555 | CH11: ='L3 ScenarioHatchery'!K44 -> 
B12: Adult Passage Downstream of Terminal Fishery | C12: 1 | E12: 1 | G12: 1 | I12: 1 | N12: PNI | O12: =IFERROR(P11/(O11+P11),"-") -> - | Q12: =IFERROR(R11/(R11+Q11),"-") -> - | T12: Metric | U12: =$C$3 -> Baseline-Natural | V12: =$E$3 -> Baseline-Hatchery | W12: =$G$3 -> Scenario-Natural | X12: =$I$3 -> Scenario-Hatchery | AI12: Productivity | AJ12: Min | AK12: Max | AL12: Capacity | AM12: Productivity | AN12: Min | AO12: Max | AP12: Capacity | AW12: Summer Steelhead | AX12: Harvest Rate | BB12: Migration | BE12: Adult Runsize | BF12: ='L3 Results 1'!$G$5 ->  | BG12: ='L3 Results 1'!$K$5 ->  | BH12: ='L3 Results 1'!$O$5 ->  | BI12: ='L3 Results 1'!$S$5 ->  | BJ12: ='L3 Results 1'!$W$5 ->  | BK12: ='L3 Results 1'!$AA$5 ->  | BL12: ='L3 Results 1'!$AE$5 ->  | BM12: ='L3 Results 1'!$AI$5 ->  | BN12: ='L3 Results 1'!$AM$5 ->  | BO12: ='L3 Results 1'!$AQ$5 ->  | BP12: ='L3 Results 1'!AU$5 ->  | BQ12: ='L3 Results 1'!$DC$5/100 -> 0 | BY12: p | BZ12: Lower bound | CA12: Upper bound | CB12: CI | CE12: ='L3 BaselineNatural'!K45 -> 1646.28538 | CF12: ='L3 BaselineHatchery'!K45 ->  | CG12: ='L3 ScenarioNatural'!K45 -> 1646.28538 | CH12: ='L3 ScenarioHatchery'!K45 -> 
B13: Adult Passage Upstream of Terminal Fishery | C13: 1 | E13: 1 | G13: 1 | I13: 1 | N13: Fitness | O13: ='L3 BaselineNatural'!EA134 -> 0.9999896524 | Q13: ='L3 ScenarioNatural'!EA134 -> 0.9999896524 | AH13: Early Marine Survival | AI13: =C47 -> 0.05 | AJ13: =D47 -> 0.05 | AK13: =E47 -> 0.05 | AL13: 1000000000000 | AM13: 0.03 | AN13: =H47 -> 0.03 | AO13: =I47 -> 0.03 | AP13: 1000000000000 | AW13: Winter Chinook | AX13: Escapement Goal | BB13: Spring Rearing | BE13: Catch | BF13: ='L3 Results 1'!$H$5 ->  | BG13: ='L3 Results 1'!$L$5 ->  | BH13: ='L3 Results 1'!$P$5 ->  | BI13: ='L3 Results 1'!$T$5 ->  | BJ13: ='L3 Results 1'!$X$5 ->  | BK13: ='L3 Results 1'!$AB$5 ->  | BL13: ='L3 Results 1'!$AF$5 ->  | BM13: ='L3 Results 1'!$AJ$5 ->  | BN13: ='L3 Results 1'!$AN$5 ->  | BO13: ='L3 Results 1'!$AR$5 ->  | BP13: ='L3 Results 1'!AV$5 ->  | BQ13: ='L3 Results 1'!$DD$5/100 -> 0 | BW13: =$C$3 -> Baseline-Natural | BX13: Spawning Escapement | BY13: ='L3 Results'!$DA$5 -> 1 | BZ13: =IF(BY13=1,"-",IF(BY13=0,"-",BY13*$L$11/(BY13*$L$11+($L$11-BY13*$L$11+1)*FINV(0.025,2*($L$11-BY13*$L$11+1),2*BY13*$L$11)))) -> - | CA13: =IF(BY13=1,"-",IF(BY13=0,"-",(BY13*$L$11+1)*FINV(0.025,2*(BY13*$L$11+1),2*($L$11-BY13*$L$11))/($L$11-BY13*$L$11+(BY13*$L$11+1)*FINV(0.025,2*(BY13*$L$11+1),2*($L$11-BY13*$L$11))))) -> - | CB13: =CONCATENATE("(",TEXT(BZ13,"#,##0.00"),", ", TEXT(CA13,"#,##0.00"),")") -> (-, -) | CE13: ='L3 BaselineNatural'!K46 -> 1603.158143 | CF13: ='L3 BaselineHatchery'!K46 ->  | CG13: ='L3 ScenarioNatural'!K46 -> 1603.158143 | CH13: ='L3 ScenarioHatchery'!K46 -> 
B14: Randomization Options | N14: Life History Segment Survival | T14: 5th Percentile | U14: =IF($T$11 = "Smolt to Adult Survival", $BF$80, $BF$81) -> 0.01020790911 | V14: =IFERROR(IF($T$11 = "Smolt to Adult Survival", $BF$84, $BF$85),"-") -> - | W14: =IF($T$11 = "Smolt to Adult Survival", $BF$88, $BF$89) -> 0.01020790911 | X14: =IFERROR(IF($T$11 = "Smolt to Adult Survival", $BF$92, $BF$93),"-") -> - | AH14: Age 2 Ocean Survival | AI14: 0.4 | AJ14: 0.39 | AK14: 0.41 | AL14: 1000000000000 | AM14: 0.4 | AN14: 0.39 | AO14: 0.41 | AP14: 1000000000000 | AW14: Winter Steelhead | AX14: =IF(C4=AX10,"MR",IF(C4=AX11,"ME",IF(C4=AX12,"FR","FE"))) -> FR | AZ14: =IF(G4=AX10,"MR",IF(G4=AX11,"ME",IF(G4=AX12,"FR","FE"))) -> FR | BB14: Spring 1+ Migrant | BE14: Return to Basin | BF14: ='L3 Results 1'!$I$5 ->  | BG14: ='L3 Results 1'!$M$5 ->  | BH14: ='L3 Results 1'!$Q$5 ->  | BI14: ='L3 Results 1'!$U$5 ->  | BJ14: ='L3 Results 1'!$Y$5 ->  | BK14: ='L3 Results 1'!$AC$5 ->  | BL14: ='L3 Results 1'!$AG$5 ->  | BM14: ='L3 Results 1'!$AK$5 ->  | BN14: ='L3 Results 1'!$AO$5 ->  | BO14: ='L3 Results 1'!$AS$5 ->  | BP14: ='L3 Results 1'!AW$5 ->  | BQ14: ='L3 Results 1'!$DE$5/100 -> 0 | BW14: =$E$3 -> Baseline-Hatchery | BX14: Spawning Escapement | BY14: ='L3 Results 1'!$DA$5 -> 0 | BZ14: =IF(BY14=1,"-",IF(BY14=0,"-",BY14*$L$11/(BY14*$L$11+($L$11-BY14*$L$11+1)*FINV(0.025,2*($L$11-BY14*$L$11+1),2*BY14*$L$11)))) -> - | CA14: =IF(BY14=1,"-",IF(BY14=0,"-",(BY14*$L$11+1)*FINV(0.025,2*(BY14*$L$11+1),2*($L$11-BY14*$L$11))/($L$11-BY14*$L$11+(BY14*$L$11+1)*FINV(0.025,2*(BY14*$L$11+1),2*($L$11-BY14*$L$11))))) -> - | CB14: =CONCATENATE("(",TEXT(BZ14,"#,##0.00"),", ", TEXT(CA14,"#,##0.00"),")") -> (-, -) | CE14: ='L3 BaselineNatural'!K47 -> 1580.699577 | CF14: ='L3 BaselineHatchery'!K47 ->  | CG14: ='L3 ScenarioNatural'!K47 -> 1580.699577 | CH14: ='L3 ScenarioHatchery'!K47 -> 
B15: Randomization | C15: None | G15: None | N15: Smolt to Adult Survival | O15: =BK80 -> 0.01020790911 | P15: =BK84 ->  | Q15: =BK88 -> 0.01020790911 | R15: =BK92 ->  | T15: 25th Percentile | U15: =IF($T$11 = "Smolt to Adult Survival", $BH$80, $BH$81) -> 0.01020790911 | V15: =IFERROR(IF($T$11 = "Smolt to Adult Survival", $BH$84, $BH$85),"-") -> - | W15: =IF($T$11 = "Smolt to Adult Survival", $BH$88, $BH$89) -> 0.01020790911 | X15: =IFERROR(IF($T$11 = "Smolt to Adult Survival", $BH$92, $BH$93),"-") -> - | AH15: Age 3 Ocean Survival | AI15: 0.6 | AJ15: 0.59 | AK15: 0.61 | AL15: 1000000000000 | AM15: 0.6 | AN15: 0.59 | AO15: 0.61 | AP15: 1000000000000 | BB15: Adult Migrant-Black Box | BE15: Ocean Catch | BF15: ='L3 Results 1'!$DP$5 -> - | BG15: ='L3 Results 1'!$DQ$5 -> - | BH15: ='L3 Results 1'!$DR$5 -> - | BI15: ='L3 Results 1'!$DS$5 -> - | BJ15: ='L3 Results 1'!$DT$5 -> - | BK15: ='L3 Results 1'!$DU$5 -> - | BL15: ='L3 Results 1'!$DV$5 -> - | BM15: ='L3 Results 1'!$DW$5 -> - | BN15: ='L3 Results 1'!$DX$5 -> - | BO15: ='L3 Results 1'!$DY$5 -> - | BP15: ='L3 Results 1'!$DZ$5 -> - | BW15: =$G$3 -> Scenario-Natural | BX15: Spawning Escapement | BY15: ='L3 Results 2'!$DA$5 -> 1 | BZ15: =IF(BY15=1,"-",IF(BY15=0,"-",BY15*$L$11/(BY15*$L$11+($L$11-BY15*$L$11+1)*FINV(0.025,2*($L$11-BY15*$L$11+1),2*BY15*$L$11)))) -> - | CA15: =IF(BY15=1,"-",IF(BY15=0,"-",(BY15*$L$11+1)*FINV(0.025,2*(BY15*$L$11+1),2*($L$11-BY15*$L$11))/($L$11-BY15*$L$11+(BY15*$L$11+1)*FINV(0.025,2*(BY15*$L$11+1),2*($L$11-BY15*$L$11))))) -> - | CB15: =CONCATENATE("(",TEXT(BZ15,"#,##0.00"),", ", TEXT(CA15,"#,##0.00"),")") -> (-, -) | CE15: ='L3 BaselineNatural'!K48 -> 1566.188707 | CF15: ='L3 BaselineHatchery'!K48 ->  | CG15: ='L3 ScenarioNatural'!K48 -> 1566.188707 | CH15: ='L3 ScenarioHatchery'!K48 -> 
F16: Synchronize with Baseline | G16: None | N16: Smolts per Spawner | O16: =O4/(O9+O10) -> 97.56138742 | P16: =IFERROR(P4/(P9+P10),"-") -> - | Q16: =Q4/(Q9+Q10) -> 97.56138742 | R16: =IFERROR(R4/(R9+R10),"-") -> - | T16: 50th Percentile | U16: =IF($T$11 = "Smolt to Adult Survival", $BK$80, $BK$81) -> 0.01020790911 | V16: =IFERROR(IF($T$11 = "Smolt to Adult Survival", $BK$84, $BK$85),"-") -> - | W16: =IF($T$11 = "Smolt to Adult Survival", $BK$88, $BK$89) -> 0.01020790911 | X16: =IFERROR(IF($T$11 = "Smolt to Adult Survival", $BK$92, $BK$93),"-") -> - | Z16: Comparison of Average Outcomes for each Scenario based on 100-year Simulation | AH16: Age 4 Ocean Survival | AI16: 0.7 | AJ16: 0.69 | AK16: 0.71 | AL16: 1000000000000 | AM16: 0.7 | AN16: 0.69 | AO16: 0.71 | AP16: 1000000000000 | AX16: Freshwater | BB16: END | BC16: END | BE16: Lower River Catch | BF16: ='L3 Results 1'!$EB$5 -> - | BG16: ='L3 Results 1'!$EC$5 -> - | BH16: ='L3 Results 1'!$ED$5 -> - | BI16: ='L3 Results 1'!$EE$5 -> - | BJ16: ='L3 Results 1'!$EF$5 -> - | BK16: ='L3 Results 1'!$EG$5 -> - | BL16: ='L3 Results 1'!$EH$5 -> - | BM16: ='L3 Results 1'!$EI$5 -> - | BN16: ='L3 Results 1'!$EJ$5 -> - | BO16: ='L3 Results 1'!$EK$5 -> - | BP16: ='L3 Results 1'!$EL$5 -> - | BW16: =$I$3 -> Scenario-Hatchery | BX16: Spawning Escapement | BY16: ='L3 Results 3'!$DA$5 -> 0 | BZ16: =IF(BY16=1,"-",IF(BY16=0,"-",BY16*$L$11/(BY16*$L$11+($L$11-BY16*$L$11+1)*FINV(0.025,2*($L$11-BY16*$L$11+1),2*BY16*$L$11)))) -> - | CA16: =IF(BY16=1,"-",IF(BY16=0,"-",(BY16*$L$11+1)*FINV(0.025,2*(BY16*$L$11+1),2*($L$11-BY16*$L$11))/($L$11-BY16*$L$11+(BY16*$L$11+1)*FINV(0.025,2*(BY16*$L$11+1),2*($L$11-BY16*$L$11))))) -> - | CB16: =CONCATENATE("(",TEXT(BZ16,"#,##0.00"),", ", TEXT(CA16,"#,##0.00"),")") -> (-, -) | CE16: ='L3 BaselineNatural'!K49 -> 1546.741212 | CF16: ='L3 BaselineHatchery'!K49 ->  | CG16: ='L3 ScenarioNatural'!K49 -> 1546.741212 | CH16: ='L3 ScenarioHatchery'!K49 -> 
N17: Recruits per Spawner | O17: =O5/(O9+O10) -> 1 | P17: =IFERROR(P5/(P9+P10),"-") -> - | Q17: =Q5/(Q9+Q10) -> 1 | R17: =IFERROR(R5/(R9+R10),"-") -> - | T17: 75th Percentile | U17: =IF($T$11 = "Smolt to Adult Survival", $BM$80, $BM$81) -> 0.01020790911 | V17: =IFERROR(IF($T$11 = "Smolt to Adult Survival", $BM$84, $BM$85),"-") -> - | W17: =IF($T$11 = "Smolt to Adult Survival", $BM$88, $BM$89) -> 0.01020790911 | X17: =IFERROR(IF($T$11 = "Smolt to Adult Survival", $BM$92, $BM$93),"-") -> - | Z17: Life Stage | AA17: =$C$3 -> Baseline-Natural | AB17: =$E$3 -> Baseline-Hatchery | AH17: Age 5 Ocean Survival | AI17: 0.8 | AJ17: 0.79 | AK17: 0.81 | AL17: 1000000000000 | AM17: 0.8 | AN17: 0.79 | AO17: 0.81 | AP17: 1000000000000 | AX17: Ocean | BE17: Terminal Catch | BF17: ='L3 Results 1'!$EN$5 -> - | BG17: ='L3 Results 1'!$EO$5 -> - | BH17: ='L3 Results 1'!$EP$5 -> - | BI17: ='L3 Results 1'!$EQ$5 -> - | BJ17: ='L3 Results 1'!$ER$5 -> - | BK17: ='L3 Results 1'!$ES$5 -> - | BL17: ='L3 Results 1'!$ET$5 -> - | BM17: ='L3 Results 1'!$EU$5 -> - | BN17: ='L3 Results 1'!$EV$5 -> - | BO17: ='L3 Results 1'!$EX$5 -> - | BP17: ='L3 Results 1'!$EX$5 -> - | CE17: ='L3 BaselineNatural'!K50 -> 1520.553983 | CF17: ='L3 BaselineHatchery'!K50 ->  | CG17: ='L3 ScenarioNatural'!K50 -> 1520.553983 | CH17: ='L3 ScenarioHatchery'!K50 -> 
B18: Life History Segment Inputs | N18: Exploitation Rate | O18: =(O8+O6)/O5 -> 0 | P18: =IFERROR((P8+P6)/P5,"-") -> - | Q18: =(Q8+Q6)/Q5 -> 0 | R18: =IFERROR((R8+R6)/R5,"-") -> - | T18: 95th Percentile | U18: =IF($T$11 = "Smolt to Adult Survival", $BP$80, $BP$81) -> 0.01020790911 | V18: =IFERROR(IF($T$11 = "Smolt to Adult Survival", $BP$84, $BP$85),"-") -> - | W18: =IF($T$11 = "Smolt to Adult Survival", $BP$88, $BP$89) -> 0.01020790911 | X18: =IFERROR(IF($T$11 = "Smolt to Adult Survival", $BP$92, $BP$93),"-") -> - | Z18: Smolt Production | AH18: Age 6 Ocean Survival | AI18: 0.9 | AJ18: 0.89 | AK18: 0.91 | AL18: 1000000000000 | AM18: 0.9 | AN18: 0.89 | AO18: 0.91 | AP18: 1000000000000 | AX18: Freshwater | BD18: =$G$3 -> Scenario-Natural | BE18: Smolt Production | BF18: ='L3 Results 2'!$F$5 -> 123034.841 | BG18: ='L3 Results 2'!$J$5 -> 123175.7992 | BH18: ='L3 Results 2'!$N$5 -> 123768.097 | BI18: ='L3 Results 2'!$R$5 -> 124043.8109 | BJ18: ='L3 Results 2'!$V$5 -> 124777.4457 | BK18: ='L3 Results 2'!$Z$5 -> 125891.9102 | BL18: ='L3 Results 2'!$AD$5 -> 127696.1525 | BM18: ='L3 Results 2'!$AH$5 -> 133400.5527 | BN18: ='L3 Results 2'!$AL$5 -> 137211.6893 | BO18: ='L3 Results 2'!$AP$5 -> 153440.0113 | BP18: ='L3 Results 2'!AT$5 -> 170013.0979 | BQ18: ='L3 Results 2'!$DB$5/100 -> 0 | BS18: 125891.9102 | BT18: 2716.111007 | BU18: 27548.1011 | CE18: ='L3 BaselineNatural'!K51 -> 1495.305746 | CF18: ='L3 BaselineHatchery'!K51 ->  | CG18: ='L3 ScenarioNatural'!K51 -> 1495.305746 | CH18: ='L3 ScenarioHatchery'!K51 -> 
B19: Life History Segment | C19: =$C$3 -> Baseline-Natural | G19: =$E$3 -> Baseline-Hatchery | AB19: =IF($BF$44 <2, 0, $BY6) ->  | AX19: Both | BB19: =N4 -> Smolt Production | BC19: =N15 -> Smolt to Adult Survival | BE19: Adult Recruitment | BF19: ='L3 Results 2'!$G$5 -> 1256.900718 | BG19: ='L3 Results 2'!$K$5 -> 1258.509275 | BH19: ='L3 Results 2'!$O$5 -> 1265.312422 | BI19: ='L3 Results 2'!$S$5 -> 1268.509141 | BJ19: ='L3 Results 2'!$W$5 -> 1277.109573 | BK19: ='L3 Results 2'!$AA$5 -> 1290.386633 | BL19: ='L3 Results 2'!$AE$5 -> 1312.525452 | BM19: ='L3 Results 2'!$AI$5 -> 1389.745512 | BN19: ='L3 Results 2'!$AM$5 -> 1443.258894 | BO19: ='L3 Results 2'!$AQ$5 -> 1651.329798 | BP19: ='L3 Results 2'!AU$5 -> 1845.467289 | BQ19: ='L3 Results 2'!$DC$5/100 -> 0 | BS19: 1290.386633 | BT19: 31.87735831 | BU19: 360.9431647 | CE19: ='L3 BaselineNatural'!K52 -> 1476.404477 | CF19: ='L3 BaselineHatchery'!K52 ->  | CG19: ='L3 ScenarioNatural'!K52 -> 1476.404477 | CH19: ='L3 ScenarioHatchery'!K52 -> 
C20: Productivity | D20: Range (+ or -) | F20: Capacity | G20: In Hatchery Survival | Z20: Mean | AA20: =IF($BF$33 <2, 0, $BY4) -> 132488.5972 | AB20: =IF($BF$44<2, "-", $CB6) ->  | AH20: Age Specific Survival and Harvest Parameters | AX20: None | BB20: Catch | BC20: Early Marine Survival | BE20: Catch | BF20: ='L3 Results 2'!$H$5 -> 0 | BG20: ='L3 Results 2'!$L$5 -> 0 | BH20: ='L3 Results 2'!$P$5 -> 0 | BI20: ='L3 Results 2'!$T$5 -> 0 | BJ20: ='L3 Results 2'!$X$5 -> 0 | BK20: ='L3 Results 2'!$AB$5 -> 0 | BL20: ='L3 Results 2'!$AF$5 -> 0 | BM20: ='L3 Results 2'!$AJ$5 -> 0 | BN20: ='L3 Results 2'!$AN$5 -> 0 | BO20: ='L3 Results 2'!$AR$5 -> 0 | BP20: ='L3 Results 2'!AV$5 -> 0 | BQ20: ='L3 Results 2'!$DD$5/100 -> 1 | BS20: 0 | BT20: 0 | BU20: 0 | CE20: ='L3 BaselineNatural'!K53 -> 1464.355122 | CF20: ='L3 BaselineHatchery'!K53 ->  | CG20: ='L3 ScenarioNatural'!K53 -> 1464.355122 | CH20: ='L3 ScenarioHatchery'!K53 -> 
B21: Spawning | C21: 0.5 | D21: 0 | F21: 5000 | G21: Life Stage | J21: Survival | Z21: 95% CI | AA21: =IF($BF$33<2, "-", $CB4) ->  | AH21: Age | AI21: =$C$3 -> Baseline-Natural | AL21: =$E$3 -> Baseline-Hatchery | BB21: Spawning Escapement | BE21: Return to Basin | BF21: ='L3 Results 2'!$I$5 -> 1256.900718 | BG21: ='L3 Results 2'!$M$5 -> 1258.509275 | BH21: ='L3 Results 2'!$Q$5 -> 1265.312422 | BI21: ='L3 Results 2'!$U$5 -> 1268.509141 | BJ21: ='L3 Results 2'!$Y$5 -> 1277.109573 | BK21: ='L3 Results 2'!$AC$5 -> 1290.386633 | BL21: ='L3 Results 2'!$AG$5 -> 1312.525452 | BM21: ='L3 Results 2'!$AK$5 -> 1389.745512 | BN21: ='L3 Results 2'!$AO$5 -> 1443.258894 | BO21: ='L3 Results 2'!$AS$5 -> 1651.329798 | BP21: ='L3 Results 2'!AW$5 -> 1845.467289 | BQ21: ='L3 Results 2'!$DE$5/100 -> 1 | BS21: 1290.386633 | BT21: 31.87735831 | BU21: 360.9431647 | CE21: ='L3 BaselineNatural'!K54 -> 1453.764497 | CF21: ='L3 BaselineHatchery'!K54 ->  | CG21: ='L3 ScenarioNatural'!K54 -> 1453.764497 | CH21: ='L3 ScenarioHatchery'!K54 -> 
B22: Incubation | C22: 0.5 | D22: 0 | F22: 1000000000 | G22: Prespawning | J22: 0.9 | Z22: Spawning Escapement | AB22: =$BY7 ->  | AI22: Maturity schedule | AJ22: Fecundity | AK22: % Females | AL22: Maturity schedule | AM22: Fecundity | AN22: % Females | BB22: Smolt Production | BE22: Ocean Catch | BF22: ='L3 Results 2'!$DP$5 -> 0 | BG22: ='L3 Results 2'!$DQ$5 -> - | BH22: ='L3 Results 2'!$DR$5 -> 0 | BI22: ='L3 Results 2'!$DS$5 -> - | BJ22: ='L3 Results 2'!$DT$5 -> - | BK22: ='L3 Results 2'!$DU$5 -> 0 | BL22: ='L3 Results 2'!$DV$5 -> - | BM22: ='L3 Results 2'!$DW$5 -> 0 | BN22: ='L3 Results 2'!$DX$5 -> - | BO22: ='L3 Results 2'!$DY$5 -> - | BP22: ='L3 Results 2'!$DZ$5 -> 0 | CE22: ='L3 BaselineNatural'!K55 -> 1440.632493 | CF22: ='L3 BaselineHatchery'!K55 ->  | CG22: ='L3 ScenarioNatural'!K55 -> 1440.632493 | CH22: ='L3 ScenarioHatchery'!K55 -> 
B23: Fry Colonization | C23: 0.75 | D23: 0 | F23: 1000000000 | G23: Eggs/spawner | J23: 1700 | Z23: Mean | AA23: =$BY5 -> 1384.076758 | AB23: =$CB7 ->  | AN23: None | AX23: =CONCATENATE("Frequency of ",N7," being less than ",P43," adults") -> Frequency of Return to Subbasin being less than 2500 adults | BB23: Smolts per Spawner | BC23: =N17 -> Recruits per Spawner | BE23: Lower River Catch | BF23: ='L3 Results 2'!$EB$5 -> 0 | BG23: ='L3 Results 2'!$EC$5 -> - | BH23: ='L3 Results 2'!$ED$5 -> 0 | BI23: ='L3 Results 2'!$EE$5 -> - | BJ23: ='L3 Results 2'!$EF$5 -> - | BK23: ='L3 Results 2'!$EG$5 -> 0 | BL23: ='L3 Results 2'!$EH$5 -> - | BM23: ='L3 Results 2'!$EI$5 -> 0 | BN23: ='L3 Results 2'!$EJ$5 -> - | BO23: ='L3 Results 2'!$EK$5 -> - | BP23: ='L3 Results 2'!$EL$5 -> 0 | CE23: ='L3 BaselineNatural'!K56 -> 1425.791275 | CF23: ='L3 BaselineHatchery'!K56 ->  | CG23: ='L3 ScenarioNatural'!K56 -> 1425.791275 | CH23: ='L3 ScenarioHatchery'!K56 -> 
B24: Rearing | C24: 0.5 | D24: 0 | F24: 3000000 | G24: Incubation | J24: 0.975 | Z24: 95% CI | AA24: =$CB5 ->  | AH24: Age 1 | AI24: 0 | AJ24: 0 | AK24: 0 | AL24: 0 | AM24: 0 | AN24: 0 | BC24: =#REF! ->  | BE24: Terminal Catch | BF24: ='L3 Results 2'!$EN$5 -> 0 | BG24: ='L3 Results 2'!$EO$5 -> - | BH24: ='L3 Results 2'!$EP$5 -> 0 | BI24: ='L3 Results 2'!$EQ$5 -> - | BJ24: ='L3 Results 2'!$ER$5 -> - | BK24: ='L3 Results 2'!$ES$5 -> 0 | BL24: ='L3 Results 2'!$ET$5 -> - | BM24: ='L3 Results 2'!$EU$5 -> 0 | BN24: ='L3 Results 2'!$EV$5 -> - | BO24: ='L3 Results 2'!$EX$5 -> 0 | BP24: ='L3 Results 2'!$EX$5 -> 0 | CE24: ='L3 BaselineNatural'!K57 -> 1412.677965 | CF24: ='L3 BaselineHatchery'!K57 ->  | CG24: ='L3 ScenarioNatural'!K57 -> 1412.677965 | CH24: ='L3 ScenarioHatchery'!K57 -> 
B25: Migration | C25: 0.9 | D25: 0 | F25: 100000000000 | G25: Fry to Smolt | J25: 0.8 | Z25: =CONCATENATE("* Grand mean of 100-year simulations based on ",$L$11," model runs and 95% confidence intervals.") -> * Grand mean of 100-year simulations based on 1 model runs and 95% confidence intervals. | AH25: Age 2 | AI25: 0.11 | AJ25: 0 | AK25: 0 | AL25: 0.11 | AM25: 0 | AN25: 0 | AX25: Before Terminal Fishery | BD25: =$I$3 -> Scenario-Hatchery | BE25: Smolt Production | BF25: ='L3 Results 3'!$F$5 ->  | BG25: ='L3 Results 3'!$J$5 ->  | BH25: ='L3 Results 3'!$N$5 ->  | BI25: ='L3 Results 3'!$R$5 ->  | BJ25: ='L3 Results 3'!$V$5 ->  | BK25: ='L3 Results 3'!$Z$5 ->  | BL25: ='L3 Results 3'!$AD$5 ->  | BM25: ='L3 Results 3'!$AH$5 ->  | BN25: ='L3 Results 3'!$AL$5 ->  | BO25: ='L3 Results 3'!$AP$5 ->  | BP25: ='L3 Results 3'!AT$5 ->  | BQ25: ='L3 Results 3'!$DB$5/100 -> 0 | CE25: ='L3 BaselineNatural'!K58 -> 1402.916008 | CF25: ='L3 BaselineHatchery'!K58 ->  | CG25: ='L3 ScenarioNatural'!K58 -> 1402.916008 | CH25: ='L3 ScenarioHatchery'!K58 -> 
B26: END | G26: Hatchery Program | K26: Age at Release | AH26: Age 3 | AI26: 0.26 | AJ26: 3400 | AK26: 0.5 | AL26: 0.26 | AM26: 3400 | AN26: 0.5 | AX26: After Terminal Fishery | BE26: Adult Recruitment | BF26: ='L3 Results 3'!$G$5 ->  | BG26: ='L3 Results 3'!$K$5 ->  | BH26: ='L3 Results 3'!$O$5 ->  | BI26: ='L3 Results 3'!$S$5 ->  | BJ26: ='L3 Results 3'!$W$5 ->  | BK26: ='L3 Results 3'!$AA$5 ->  | BL26: ='L3 Results 3'!$AE$5 ->  | BM26: ='L3 Results 3'!$AI$5 ->  | BN26: ='L3 Results 3'!$AM$5 ->  | BO26: ='L3 Results 3'!$AQ$5 ->  | BP26: ='L3 Results 3'!AU$5 ->  | BQ26: ='L3 Results 3'!$DC$5/100 -> 0 | CE26: ='L3 BaselineNatural'!K59 -> 1395.407652 | CF26: ='L3 BaselineHatchery'!K59 ->  | CG26: ='L3 ScenarioNatural'!K59 -> 1395.407652 | CH26: ='L3 ScenarioHatchery'!K59 -> 
B27: END | G27: Number of Smolts Released | K27: Yearling | Z27: =CONCATENATE("Probability of Observing Fewer than ",$P$43, " Spawners at least once in 100-year Simulation") -> Probability of Observing Fewer than 2500 Spawners at least once in 100-year Simulation | AB27: =$E$3 -> Baseline-Hatchery | AH27: Age 4 | AI27: 0.73 | AJ27: 3400 | AK27: 0.5 | AL27: 0.73 | AM27: 3400 | AN27: 0.5 | BE27: Catch | BF27: ='L3 Results 3'!$H$5 ->  | BG27: ='L3 Results 3'!$L$5 ->  | BH27: ='L3 Results 3'!$P$5 ->  | BI27: ='L3 Results 3'!$T$5 ->  | BJ27: ='L3 Results 3'!$X$5 ->  | BK27: ='L3 Results 3'!$AB$5 ->  | BL27: ='L3 Results 3'!$AF$5 ->  | BM27: ='L3 Results 3'!$AJ$5 ->  | BN27: ='L3 Results 3'!$AN$5 ->  | BO27: ='L3 Results 3'!$AR$5 ->  | BP27: ='L3 Results 3'!AV$5 ->  | BQ27: ='L3 Results 3'!$DD$5/100 -> 0 | CE27: ='L3 BaselineNatural'!K60 -> 1387.858132 | CF27: ='L3 BaselineHatchery'!K60 ->  | CG27: ='L3 ScenarioNatural'!K60 -> 1387.858132 | CH27: ='L3 ScenarioHatchery'!K60 -> 
B28: END | G28: Broodstock Needed | J28: =J27/(J23*J22*J24*J25) -> 0 | Z28: Life Stage | AA28: =$C$3 -> Baseline-Natural | AH28: Age 5 | AI28: 0.98 | AJ28: 4000 | AK28: 0.5 | AL28: 0.98 | AM28: 4000 | AN28: 0.5 | BE28: Return to Basin | BF28: ='L3 Results 3'!$I$5 ->  | BG28: ='L3 Results 3'!$M$5 ->  | BH28: ='L3 Results 3'!$Q$5 ->  | BI28: ='L3 Results 3'!$U$5 ->  | BJ28: ='L3 Results 3'!$Y$5 ->  | BK28: ='L3 Results 3'!$AC$5 ->  | BL28: ='L3 Results 3'!$AG$5 ->  | BM28: ='L3 Results 3'!$AK$5 ->  | BN28: ='L3 Results 3'!$AO$5 ->  | BO28: ='L3 Results 3'!$AS$5 ->  | BP28: ='L3 Results 3'!AW$5 ->  | BQ28: ='L3 Results 3'!$DE$5/100 -> 0 | CE28: ='L3 BaselineNatural'!K61 -> 1379.320362 | CF28: ='L3 BaselineHatchery'!K61 ->  | CG28: ='L3 ScenarioNatural'!K61 -> 1379.320362 | CH28: ='L3 ScenarioHatchery'!K61 -> 
B29: END | G29: pNOB Target | J29: 1 | K29: 1 | L29: Max % NORs | Z29: =CONCATENATE("Probability of Spawning Escapement < ",P43) -> Probability of Spawning Escapement < 2500 | AB29: =$BY14 -> 0 | AH29: Age 6 | AI29: 1 | AJ29: 4000 | AK29: 0.5 | AL29: 1 | AM29: 4000 | AN29: 0.5 | BE29: Ocean Catch | BF29: ='L3 Results 3'!$DP$5 -> - | BG29: ='L3 Results 3'!$DQ$5 -> - | BH29: ='L3 Results 3'!$DR$5 -> - | BI29: ='L3 Results 3'!$DS$5 -> - | BJ29: ='L3 Results 3'!$DT$5 -> - | BK29: ='L3 Results 3'!$DU$5 -> - | BL29: ='L3 Results 3'!$DV$5 -> - | BM29: ='L3 Results 3'!$DW$5 -> - | BN29: ='L3 Results 3'!$DX$5 -> - | BO29: ='L3 Results 3'!$DY$5 -> - | BP29: ='L3 Results 3'!$DZ$5 -> - | CE29: ='L3 BaselineNatural'!K62 -> 1370.728434 | CF29: ='L3 BaselineHatchery'!K62 ->  | CG29: ='L3 ScenarioNatural'!K62 -> 1370.728434 | CH29: ='L3 ScenarioHatchery'!K62 -> 
B30: END | G30: Stray Rate of HOR Adults | J30: 0.3 | AA30: =$BY13 -> 1 | AB30: =$CB14 -> (-, -) | AH30: Age | AI30: Harvest Vulnerability | AL30: Harvest Vulnerability | BE30: Lower River Catch | BF30: ='L3 Results 3'!$EB$5 -> - | BG30: ='L3 Results 3'!$EC$5 -> - | BH30: ='L3 Results 3'!$ED$5 -> - | BI30: ='L3 Results 3'!$EE$5 -> - | BJ30: ='L3 Results 3'!$EF$5 -> - | BK30: ='L3 Results 3'!$EG$5 -> - | BL30: ='L3 Results 3'!$EH$5 -> - | BM30: ='L3 Results 3'!$EI$5 -> - | BN30: ='L3 Results 3'!$EJ$5 -> - | BO30: ='L3 Results 3'!$EK$5 -> - | BP30: ='L3 Results 3'!$EL$5 -> - | CE30: ='L3 BaselineNatural'!K63 -> 1363.430382 | CF30: ='L3 BaselineHatchery'!K63 ->  | CG30: ='L3 ScenarioNatural'!K63 -> 1363.430382 | CH30: ='L3 ScenarioHatchery'!K63 -> 
B31: END | G31: Early Marine Survival for HORs | Z31: 95% CI | AA31: =$CB13 -> (-, -) | AI31: Ocean | AJ31: Lower River | AK31: Terminal | AL31: Ocean | AM31: Lower River | AN31: Terminal | BE31: Terminal Catch | BF31: ='L3 Results 3'!$EN$5 -> - | BG31: ='L3 Results 3'!$EO$5 -> - | BH31: ='L3 Results 3'!$EP$5 -> - | BI31: ='L3 Results 3'!$EQ$5 -> - | BJ31: ='L3 Results 3'!$ER$5 -> - | BK31: ='L3 Results 3'!$ES$5 -> - | BL31: ='L3 Results 3'!$ET$5 -> - | BM31: ='L3 Results 3'!$EU$5 -> - | BN31: ='L3 Results 3'!$EV$5 -> - | BO31: ='L3 Results 3'!$EX$5 -> - | BP31: ='L3 Results 3'!$EX$5 -> - | CE31: ='L3 BaselineNatural'!K64 -> 1357.653442 | CF31: ='L3 BaselineHatchery'!K64 ->  | CG31: ='L3 ScenarioNatural'!K64 -> 1357.653442 | CH31: ='L3 ScenarioHatchery'!K64 -> 
B32: Early Marine Survival | C32: 0.05 | D32: =MIN('L3 BaselineNatural'!$O$35:$O$134) -> 0.05 | E32: =MAX('L3 BaselineNatural'!$O$35:$O$134) -> 0.05 | F32: =10^12 -> 1000000000000 | G32: 0.03 | H32: =MIN('L3 BaselineHatchery'!$O$35:$O$134) -> 0.03 | I32: =MAX('L3 BaselineHatchery'!$O$35:$O$134) -> 0.03 | J32: =F32 -> 1000000000000 | Z32: =CONCATENATE("* Proportion of 100-year sequences with at least one 4-year running average < ", $P$43," and 95% confidence intervals.") -> * Proportion of 100-year sequences with at least one 4-year running average < 2500 and 95% confidence intervals. | AH32: Age 1 | AI32: 0 | AJ32: 0 | AK32: 0 | AL32: 0 | AM32: 0 | AN32: 0 | BF32: MEDIAN | CE32: ='L3 BaselineNatural'!K65 -> 1352.562117 | CF32: ='L3 BaselineHatchery'!K65 ->  | CG32: ='L3 ScenarioNatural'!K65 -> 1352.562117 | CH32: ='L3 ScenarioHatchery'!K65 -> 
B33: Cumulative B&H | C33: =PRODUCT('L3 BaselineNatural'!$DX$11:$DX$21)*BK80*'L3 BaselineNatural'!$AI$8*PRODUCT(C12:C13) -> 1.17882149 | F33: =(C33/'L3 BaselineNatural'!ET22) -> 8222.189191 | X33: PDO Inputs | AH33: Age 2 | AI33: 1 | AJ33: 1 | AK33: 1 | AL33: 1 | AM33: 1 | AN33: 1 | BD33: =$C$3 -> Baseline-Natural | BE33: =B21 -> Spawning | BF33: ='L3 Results'!$AX$5 -> 572.8759562 | BI33: NORs Spawners | BJ33: HORs Spawners | BK33: pNOB | BL33: pHOS | BM33: NOB | CE33: ='L3 BaselineNatural'!K66 -> 1347.296496 | CF33: ='L3 BaselineHatchery'!K66 ->  | CG33: ='L3 ScenarioNatural'!K66 -> 1347.296496 | CH33: ='L3 ScenarioHatchery'!K66 -> 
B34: Life Stage | C34: =$G$3 -> Scenario-Natural | G34: =$I$3 -> Scenario-Hatchery | Y34: Begin Year | AH34: Age 3 | AI34: 1 | AJ34: 1 | AK34: 1 | AL34: 1 | AM34: 1 | AN34: 1 | BE34: Incubation | BF34: ='L3 Results'!$AY$5 -> 391884.2751 | BH34: Baseline | BI34: ='L3 Results'!DJ5 -> 1290.386633 | BJ34: ='L3 Results'!DK5 -> 0 | BK34: ='L3 Results'!DL5 -> 1 | BL34: ='L3 Results'!DM5 -> 0 | BM34: ='L3 Results'!DN5 -> 0 | CE34: ='L3 BaselineNatural'!K67 -> 1341.793367 | CF34: ='L3 BaselineHatchery'!K67 ->  | CG34: ='L3 ScenarioNatural'!K67 -> 1341.793367 | CH34: ='L3 ScenarioHatchery'!K67 -> 
C35: Productivity | D35: Range (+ or -) | F35: Capacity | G35: In Hatchery Survival | Y35: 1954-2013 | Z35: Amplitude | AH35: Age 4 | AI35: 1 | AJ35: 1 | AK35: 1 | AL35: 1 | AM35: 1 | AN35: 1 | BE35: Fry Colonization | BF35: ='L3 Results'!$AZ$5 -> 293826.8467 | BH35: Hatchery 1 | BJ35: ='L3 Results 1'!DJ5 ->  | CE35: ='L3 BaselineNatural'!K68 -> 1336.612493 | CF35: ='L3 BaselineHatchery'!K68 ->  | CG35: ='L3 ScenarioNatural'!K68 -> 1336.612493 | CH35: ='L3 ScenarioHatchery'!K68 -> 
B36: =B21 -> Spawning | C36: 0.5 | D36: 0 | F36: 5000 | G36: Life Stage | J36: Survival | X36: Baseline | Y36: 1992 | Z36: 0.6 | AH36: Age 5 | AI36: 1 | AJ36: 1 | AK36: 1 | AL36: 1 | AM36: 1 | AN36: 1 | BE36: Rearing | BF36: ='L3 Results'!$BA$5 -> 140054.7783 | BH36: Scenario | BI36: ='L3 Results 2'!DJ5 -> 1290.386633 | BJ36: ='L3 Results 2'!DK5 -> 0 | BK36: ='L3 Results 2'!DL5 -> 1 | BL36: ='L3 Results 2'!DM5 -> 0 | BM36: ='L3 Results 2'!DN5 -> 0 | CE36: ='L3 BaselineNatural'!K69 -> 1332.192081 | CF36: ='L3 BaselineHatchery'!K69 ->  | CG36: ='L3 ScenarioNatural'!K69 -> 1332.192081 | CH36: ='L3 ScenarioHatchery'!K69 -> 
B37: Incubation | C37: 0.5 | D37: 0 | F37: 1000000000 | G37: Prespawning | J37: 0.9 | X37: Scenario | Y37: 1992 | Z37: 0.6 | AH37: Age 6 | AI37: 1 | AJ37: 1 | AK37: 1 | AL37: 1 | AM37: 1 | AN37: 1 | BE37: Migration | BF37: ='L3 Results'!$BB$5 -> 125891.9102 | BH37: Hatchery 2 | BJ37: ='L3 Results 3'!DJ5 ->  | CE37: ='L3 BaselineNatural'!K70 -> 1328.409681 | CF37: ='L3 BaselineHatchery'!K70 ->  | CG37: ='L3 ScenarioNatural'!K70 -> 1328.409681 | CH37: ='L3 ScenarioHatchery'!K70 -> 
B38: Fry Colonization | C38: 0.75 | D38: 0 | F38: 1000000000 | G38: Eggs/spawner | J38: 1700 | AI38: Harvest Allocation | AL38: Harvest Allocation | BE38: END | BF38: ='L3 Results'!$BC$5 ->  | CE38: ='L3 BaselineNatural'!K71 -> 1324.826364 | CF38: ='L3 BaselineHatchery'!K71 ->  | CG38: ='L3 ScenarioNatural'!K71 -> 1324.826364 | CH38: ='L3 ScenarioHatchery'!K71 -> 
B39: Rearing | C39: 0.5 | D39: 0 | F39: 3000000 | G39: Incubation | J39: 0.975 | AI39: Ocean | AJ39: Lower River | AK39: Terminal | AL39: Ocean | AM39: Lower River | AN39: Terminal | BE39: END | BF39: ='L3 Results'!$BD$5 ->  | CE39: ='L3 BaselineNatural'!K72 -> 1321.178236 | CF39: ='L3 BaselineHatchery'!K72 ->  | CG39: ='L3 ScenarioNatural'!K72 -> 1321.178236 | CH39: ='L3 ScenarioHatchery'!K72 -> 
B40: Migration | C40: 0.9 | D40: 0 | F40: 100000000000 | G40: Fry to Smolt | J40: 0.8 | N40: * Median and range (10th-90th percentile). | P40: =CONCATENATE("* Frequency of observing <",$P$43," adult returns during 100 years.") -> * Frequency of observing <2500 adult returns during 100 years. | AI40: 0 | AJ40: =1-AI40-AK40 -> 0 | AK40: 1 | AL40: 0 | AM40: =1-AL40-AN40 -> 0 | AN40: 1 | BE40: END | BF40: ='L3 Results'!$BE$5 ->  | CE40: ='L3 BaselineNatural'!K73 -> 1317.572712 | CF40: ='L3 BaselineHatchery'!K73 ->  | CG40: ='L3 ScenarioNatural'!K73 -> 1317.572712 | CH40: ='L3 ScenarioHatchery'!K73 -> 
B41: END | G41: Hatchery Program | K41: Age at Release | AH41: HR Variability | AI41: 0.2 | AL41: 0.2 | BE41: END | BF41: ='L3 Results'!$BF$5 ->  | CE41: ='L3 BaselineNatural'!K74 -> 1314.268601 | CF41: ='L3 BaselineHatchery'!K74 ->  | CG41: ='L3 ScenarioNatural'!K74 -> 1314.268601 | CH41: ='L3 ScenarioHatchery'!K74 -> 
B42: END | G42: Number of Smolts Released | K42: Yearling | P42: ↑ | AH42: Age | AI42: =$G$3 -> Scenario-Natural | AL42: =$I$3 -> Scenario-Hatchery | BE42: END | BF42: ='L3 Results'!$BG$5 ->  | CE42: ='L3 BaselineNatural'!K75 -> 1311.363352 | CF42: ='L3 BaselineHatchery'!K75 ->  | CG42: ='L3 ScenarioNatural'!K75 -> 1311.363352 | CH42: ='L3 ScenarioHatchery'!K75 -> 
B43: END | G43: Broodstock Needed | J43: =J42/(J38*J37*J39*J40) -> 0 | P43: 2500 | Q43: <--Change threshold value here | AI43: Maturity schedule | AJ43: Fecundity | AK43: % Females | AL43: Maturity schedule | AM43: Fecundity | AN43: % Females | BE43: END | BF43: ='L3 Results'!$BH$5 ->  | CE43: ='L3 BaselineNatural'!K76 -> 1308.720028 | CF43: ='L3 BaselineHatchery'!K76 ->  | CG43: ='L3 ScenarioNatural'!K76 -> 1308.720028 | CH43: ='L3 ScenarioHatchery'!K76 -> 
B44: END | G44: pNOB Target | J44: 1 | K44: 1 | L44: Max % NORs Escapement | BD44: =$E$3 -> Baseline-Hatchery | BE44: =B21 -> Spawning | BF44: ='L3 Results 1'!$AX$5 ->  | CE44: ='L3 BaselineNatural'!K77 -> 1306.149077 | CF44: ='L3 BaselineHatchery'!K77 ->  | CG44: ='L3 ScenarioNatural'!K77 -> 1306.149077 | CH44: ='L3 ScenarioHatchery'!K77 -> 
B45: END | G45: Stray Rate of HOR Adults | J45: 1 | AH45: Age 1 | AI45: 0 | AJ45: 0 | AK45: 0 | AL45: 0 | AM45: 0 | AN45: 0 | BE45: Incubation | BF45: ='L3 Results 1'!$AY$5 ->  | CE45: ='L3 BaselineNatural'!K78 -> 1303.597045 | CF45: ='L3 BaselineHatchery'!K78 ->  | CG45: ='L3 ScenarioNatural'!K78 -> 1303.597045 | CH45: ='L3 ScenarioHatchery'!K78 -> 
B46: END | G46: Early Marine Survival for HORs | AH46: Age 2 | AI46: 0.11 | AJ46: 0 | AK46: 0 | AL46: 0.11 | AM46: 0 | AN46: 0 | BE46: Fry Colonization | BF46: ='L3 Results 1'!$AZ$5 ->  | CE46: ='L3 BaselineNatural'!K79 -> 1301.153344 | CF46: ='L3 BaselineHatchery'!K79 ->  | CG46: ='L3 ScenarioNatural'!K79 -> 1301.153344 | CH46: ='L3 ScenarioHatchery'!K79 -> 
B47: Early Marine Survival | C47: 0.05 | D47: =MIN('L3 ScenarioNatural'!$O$35:$O$134) -> 0.05 | E47: =MAX('L3 ScenarioNatural'!$O$35:$O$134) -> 0.05 | F47: =10^12 -> 1000000000000 | G47: 0.03 | H47: =MIN('L3 ScenarioHatchery'!$O$35:$O$134) -> 0.03 | I47: =MAX('L3 ScenarioHatchery'!$O$35:$O$134) -> 0.03 | J47: =10^12 -> 1000000000000 | AH47: Age 3 | AI47: 0.26 | AJ47: 3400 | AK47: 0.5 | AL47: 0.26 | AM47: 3400 | AN47: 0.5 | BE47: Rearing | BF47: ='L3 Results 1'!$BA$5 ->  | CE47: ='L3 BaselineNatural'!K80 -> 1298.914258 | CF47: ='L3 BaselineHatchery'!K80 ->  | CG47: ='L3 ScenarioNatural'!K80 -> 1298.914258 | CH47: ='L3 ScenarioHatchery'!K80 -> 
B48: Cumulative B&H | C48: =PRODUCT('L3 ScenarioNatural'!DX11:DX21)*BK88*'L3 ScenarioNatural'!AI8*PRODUCT(G12:G13) -> 1.17882149 | F48: =C48/'L3 ScenarioNatural'!ET22 -> 8222.189191 | AH48: Age 4 | AI48: 0.73 | AJ48: 3400 | AK48: 0.5 | AL48: 0.73 | AM48: 3400 | AN48: 0.5 | BE48: Migration | BF48: ='L3 Results 1'!$BB$5 ->  | CE48: ='L3 BaselineNatural'!K81 -> 1296.875394 | CF48: ='L3 BaselineHatchery'!K81 ->  | CG48: ='L3 ScenarioNatural'!K81 -> 1296.875394 | CH48: ='L3 ScenarioHatchery'!K81 -> 
B49: Percent Change From Baseline | C49: =(+C48-C33)/C48 -> 0 | F49: =(+F48-F33)/F48 -> 0 | AH49: Age 5 | AI49: 0.98 | AJ49: 4000 | AK49: 0.5 | AL49: 0.98 | AM49: 4000 | AN49: 0.5 | BE49: END | BF49: ='L3 Results 1'!$BC$5 ->  | CE49: ='L3 BaselineNatural'!K82 -> 1294.952084 | CF49: ='L3 BaselineHatchery'!K82 ->  | CG49: ='L3 ScenarioNatural'!K82 -> 1294.952084 | CH49: ='L3 ScenarioHatchery'!K82 -> 
AH50: Age 6 | AI50: 1 | AJ50: 4000 | AK50: 0.5 | AL50: 1 | AM50: 4000 | AN50: 0.5 | BE50: END | BF50: ='L3 Results 1'!$BD$5 ->  | CE50: ='L3 BaselineNatural'!K83 -> 1293.075651 | CF50: ='L3 BaselineHatchery'!K83 ->  | CG50: ='L3 ScenarioNatural'!K83 -> 1293.075651 | CH50: ='L3 ScenarioHatchery'!K83 -> 
B51: Note that current path is downward - see figure. | AH51: Age | AI51: Harvest Vulnerability | AL51: Harvest Vulnerability | BE51: END | BF51: ='L3 Results 1'!$BE$5 ->  | CE51: ='L3 BaselineNatural'!K84 -> 1291.250172 | CF51: ='L3 BaselineHatchery'!K84 ->  | CG51: ='L3 ScenarioNatural'!K84 -> 1291.250172 | CH51: ='L3 ScenarioHatchery'!K84 -> 
AI52: Ocean | AJ52: Lower River | AK52: Terminal | AL52: Ocean | AM52: Lower River | AN52: Terminal | BE52: END | BF52: ='L3 Results 1'!$BF$5 ->  | CE52: ='L3 BaselineNatural'!K85 -> 1289.523094 | CF52: ='L3 BaselineHatchery'!K85 ->  | CG52: ='L3 ScenarioNatural'!K85 -> 1289.523094 | CH52: ='L3 ScenarioHatchery'!K85 -> 
AH53: Age 1 | AI53: 0 | AJ53: 0 | AK53: 0 | AL53: 0 | AM53: 0 | AN53: 0 | BE53: END | BF53: ='L3 Results 1'!$BG$5 ->  | CE53: ='L3 BaselineNatural'!K86 -> 1287.920597 | CF53: ='L3 BaselineHatchery'!K86 ->  | CG53: ='L3 ScenarioNatural'!K86 -> 1287.920597 | CH53: ='L3 ScenarioHatchery'!K86 -> 
C54: Increment | D54: =F33/50 -> 164.4437838 | F54: Show as % of capacity ( C) or as Number (N) | G54: n | AH54: Age 2 | AI54: 1 | AJ54: 1 | AK54: 1 | AL54: 1 | AM54: 1 | AN54: 1 | BE54: END | BF54: ='L3 Results 1'!$BH$5 ->  | CE54: ='L3 BaselineNatural'!K87 -> 1286.420914 | CF54: ='L3 BaselineHatchery'!K87 ->  | CG54: ='L3 ScenarioNatural'!K87 -> 1286.420914 | CH54: ='L3 ScenarioHatchery'!K87 -> 
C55: Spawners | D55: % of Capacity | E55: =CONCATENATE("Baseline Ps=",C21," Pj=",C24) -> Baseline Ps=0.5 Pj=0.5 | F55: % of Capacity | G55: =CONCATENATE("Scenario Ps=",C36," Pj=",C39) -> Scenario Ps=0.5 Pj=0.5 | H55: Replacement | AH55: Age 3 | AI55: 1 | AJ55: 1 | AK55: 1 | AL55: 1 | AM55: 1 | AN55: 1 | BD55: =$G$3 -> Scenario-Natural | BE55: =B21 -> Spawning | BF55: ='L3 Results 2'!$AX$5 -> 572.8759562 | CE55: ='L3 BaselineNatural'!K88 -> 1284.982588 | CF55: ='L3 BaselineHatchery'!K88 ->  | CG55: ='L3 ScenarioNatural'!K88 -> 1284.982588 | CH55: ='L3 ScenarioHatchery'!K88 -> 
B56: =(G56-E56)/E56 -> 0 | C56: =D54 -> 164.4437838 | D56: =$C56/IF($G$54="C",$F$33,1) -> 164.4437838 | E56: =($C56*$C$33/(1+$C56*$C$33/$F$33))/(IF($G$54="C",$F$33,1)) -> 189.3848478 | F56: =$C56/IF($G$54="C",$F$48,1) -> 164.4437838 | G56: =($C56*$C$48/(1+$C56*$C$48/$F$48))/(IF($G$54="C",$F$48,1)) -> 189.3848478 | H56: =D56 -> 164.4437838 | J56: =CONCATENATE("Recruitment when Spawner Capacity = ",F21) -> Recruitment when Spawner Capacity = 5000 | AH56: Age 4 | AI56: 1 | AJ56: 1 | AK56: 1 | AL56: 1 | AM56: 1 | AN56: 1 | BE56: Incubation | BF56: ='L3 Results 2'!$AY$5 -> 391884.2751 | CE56: ='L3 BaselineNatural'!K89 -> 1283.585755 | CF56: ='L3 BaselineHatchery'!K89 ->  | CG56: ='L3 ScenarioNatural'!K89 -> 1283.585755 | CH56: ='L3 ScenarioHatchery'!K89 -> 
B57: =(G57-E57)/E57 -> 0 | C57: =C56+$D$54 -> 328.8875676 | D57: =$C57/IF($G$54="C",$F$33,1) -> 328.8875676 | E57: =($C57*$C$33/(1+$C57*$C$33/$F$33))/(IF($G$54="C",$F$33,1)) -> 370.2417743 | F57: =$C57/IF($G$54="C",$F$48,1) -> 328.8875676 | G57: =($C57*$C$48/(1+$C57*$C$48/$F$48))/(IF($G$54="C",$F$48,1)) -> 370.2417743 | H57: =D57 -> 328.8875676 | AH57: Age 5 | AI57: 1 | AJ57: 1 | AK57: 1 | AL57: 1 | AM57: 1 | AN57: 1 | BE57: Fry Colonization | BF57: ='L3 Results 2'!$AZ$5 -> 293826.8467 | CE57: ='L3 BaselineNatural'!K90 -> 1282.241939 | CF57: ='L3 BaselineHatchery'!K90 ->  | CG57: ='L3 ScenarioNatural'!K90 -> 1282.241939 | CH57: ='L3 ScenarioHatchery'!K90 -> 
B58: 0 | C58: =C57+$D$54 -> 493.3313515 | D58: 493.3313515 | E58: 543.1341094 | F58: 493.3313515 | G58: 543.1341094 | H58: 493.3313515 | AH58: Age 6 | AI58: 1 | AJ58: 1 | AK58: 1 | AL58: 1 | AM58: 1 | AN58: 1 | BE58: Rearing | BF58: ='L3 Results 2'!$BA$5 -> 140054.7783 | CE58: ='L3 BaselineNatural'!K91 -> 1280.970454 | CF58: ='L3 BaselineHatchery'!K91 ->  | CG58: ='L3 ScenarioNatural'!K91 -> 1280.970454 | CH58: ='L3 ScenarioHatchery'!K91 -> 
B59: 0 | C59: 657.7751353 | D59: 657.7751353 | E59: 708.5766361 | F59: 657.7751353 | G59: 708.5766361 | H59: 657.7751353 | AI59: Harvest Allocation | AL59: Harvest Allocation | BE59: Migration | BF59: ='L3 Results 2'!$BB$5 -> 125891.9102 | CE59: ='L3 BaselineNatural'!K92 -> 1279.773262 | CF59: ='L3 BaselineHatchery'!K92 ->  | CG59: ='L3 ScenarioNatural'!K92 -> 1279.773262 | CH59: ='L3 ScenarioHatchery'!K92 -> 
B60: 0 | C60: 822.2189191 | D60: 822.2189191 | E60: 867.0407096 | F60: 822.2189191 | G60: 867.0407096 | H60: 822.2189191 | AI60: 0 | AJ60: =1-AI60-AK60 -> 0 | AK60: 1 | AL60: 0 | AM60: =1-AL60-AN60 -> 0 | AN60: 1 | BE60: END | BF60: ='L3 Results 2'!$BC$5 ->  | CE60: ='L3 BaselineNatural'!K93 -> 1278.63374 | CF60: ='L3 BaselineHatchery'!K93 ->  | CG60: ='L3 ScenarioNatural'!K93 -> 1278.63374 | CH60: ='L3 ScenarioHatchery'!K93 -> 
B61: 0 | C61: 986.6627029 | D61: 986.6627029 | E61: 1018.958742 | F61: 986.6627029 | G61: 1018.958742 | H61: 986.6627029 | AH61: HR Variability | AI61: 0.2 | AL61: 0.2 | BE61: END | BF61: ='L3 Results 2'!$BD$5 ->  | CE61: ='L3 BaselineNatural'!K94 -> 1277.534564 | CF61: ='L3 BaselineHatchery'!K94 ->  | CG61: ='L3 ScenarioNatural'!K94 -> 1277.534564 | CH61: ='L3 ScenarioHatchery'!K94 -> 
B62: 0 | C62: 1151.106487 | D62: 1151.106487 | E62: 1164.728145 | F62: 1151.106487 | G62: 1164.728145 | H62: 1151.106487 | BE62: END | BF62: ='L3 Results 2'!$BE$5 ->  | CE62: ='L3 BaselineNatural'!K95 -> 1276.472085 | CF62: ='L3 BaselineHatchery'!K95 ->  | CG62: ='L3 ScenarioNatural'!K95 -> 1276.472085 | CH62: ='L3 ScenarioHatchery'!K95 -> 
B63: 0 | C63: 1315.550271 | D63: 1315.550271 | E63: 1304.714796 | F63: 1315.550271 | G63: 1304.714796 | H63: 1315.550271 | BE63: END | BF63: ='L3 Results 2'!$BF$5 ->  | CE63: ='L3 BaselineNatural'!K96 -> 1275.453689 | CF63: ='L3 BaselineHatchery'!K96 ->  | CG63: ='L3 ScenarioNatural'!K96 -> 1275.453689 | CH63: ='L3 ScenarioHatchery'!K96 -> 
B64: 0 | C64: 1479.994054 | D64: 1479.994054 | E64: 1439.256111 | F64: 1479.994054 | G64: 1439.256111 | H64: 1479.994054 | BE64: END | BF64: ='L3 Results 2'!$BG$5 ->  | CE64: ='L3 BaselineNatural'!K97 -> 1274.485022 | CF64: ='L3 BaselineHatchery'!K97 ->  | CG64: ='L3 ScenarioNatural'!K97 -> 1274.485022 | CH64: ='L3 ScenarioHatchery'!K97 -> 
B65: 0 | C65: 1644.437838 | D65: 1644.437838 | E65: 1568.663754 | F65: 1644.437838 | G65: 1568.663754 | H65: 1644.437838 | BE65: END | BF65: ='L3 Results 2'!$BH$5 ->  | CE65: ='L3 BaselineNatural'!K98 -> 1273.562326 | CF65: ='L3 BaselineHatchery'!K98 ->  | CG65: ='L3 ScenarioNatural'!K98 -> 1273.562326 | CH65: ='L3 ScenarioHatchery'!K98 -> 
B66: 0 | C66: 1808.881622 | D66: 1808.881622 | E66: 1693.226053 | F66: 1808.881622 | G66: 1693.226053 | H66: 1808.881622 | BD66: =$I$3 -> Scenario-Hatchery | BE66: =B21 -> Spawning | BF66: ='L3 Results 3'!$AX$5 ->  | CE66: ='L3 BaselineNatural'!K99 -> 1272.676253 | CF66: ='L3 BaselineHatchery'!K99 ->  | CG66: ='L3 ScenarioNatural'!K99 -> 1272.676253 | CH66: ='L3 ScenarioHatchery'!K99 -> 
B67: 0 | C67: 1973.325406 | D67: 1973.325406 | E67: 1813.210138 | F67: 1973.325406 | G67: 1813.210138 | H67: 1973.325406 | BE67: Incubation | BF67: ='L3 Results 3'!$AY$5 ->  | CE67: ='L3 BaselineNatural'!K100 -> 1271.82047 | CF67: ='L3 BaselineHatchery'!K100 ->  | CG67: ='L3 ScenarioNatural'!K100 -> 1271.82047 | CH67: ='L3 ScenarioHatchery'!K100 -> 
B68: 0 | C68: 2137.76919 | D68: 2137.76919 | E68: 1928.863859 | F68: 2137.76919 | G68: 1928.863859 | H68: 2137.76919 | BE68: Fry Colonization | BF68: ='L3 Results 3'!$AZ$5 ->  | CE68: ='L3 BaselineNatural'!K101 -> 1270.995252 | CF68: ='L3 BaselineHatchery'!K101 ->  | CG68: ='L3 ScenarioNatural'!K101 -> 1270.995252 | CH68: ='L3 ScenarioHatchery'!K101 -> 
B69: 0 | C69: 2302.212974 | D69: 2302.212974 | E69: 2040.417492 | F69: 2302.212974 | G69: 2040.417492 | H69: 2302.212974 | BE69: Rearing | BF69: ='L3 Results 3'!$BA$5 ->  | CE69: ='L3 BaselineNatural'!K102 -> 1270.203728 | CF69: ='L3 BaselineHatchery'!K102 ->  | CG69: ='L3 ScenarioNatural'!K102 -> 1270.203728 | CH69: ='L3 ScenarioHatchery'!K102 -> 
B70: 0 | C70: 2466.656757 | D70: 2466.656757 | E70: 2148.085271 | F70: 2466.656757 | G70: 2148.085271 | H70: 2466.656757 | BE70: Migration | BF70: ='L3 Results 3'!$BB$5 ->  | CE70: ='L3 BaselineNatural'!K103 -> 1269.446326 | CF70: ='L3 BaselineHatchery'!K103 ->  | CG70: ='L3 ScenarioNatural'!K103 -> 1269.446326 | CH70: ='L3 ScenarioHatchery'!K103 -> 
B71: 0 | C71: 2631.100541 | D71: 2631.100541 | E71: 2252.066759 | F71: 2631.100541 | G71: 2252.066759 | H71: 2631.100541 | BE71: END | BF71: ='L3 Results 3'!$BC$5 ->  | CE71: ='L3 BaselineNatural'!K104 -> 1268.719424 | CF71: ='L3 BaselineHatchery'!K104 ->  | CG71: ='L3 ScenarioNatural'!K104 -> 1268.719424 | CH71: ='L3 ScenarioHatchery'!K104 -> 
B72: 0 | C72: 2795.544325 | D72: 2795.544325 | E72: 2352.548086 | F72: 2795.544325 | G72: 2352.548086 | H72: 2795.544325 | BE72: END | BF72: ='L3 Results 3'!$BD$5 ->  | CE72: ='L3 BaselineNatural'!K105 -> 1268.018481 | CF72: ='L3 BaselineHatchery'!K105 ->  | CG72: ='L3 ScenarioNatural'!K105 -> 1268.018481 | CH72: ='L3 ScenarioHatchery'!K105 -> 
B73: 0 | C73: 2959.988109 | D73: 2959.988109 | E73: 2449.703056 | F73: 2959.988109 | G73: 2449.703056 | H73: 2959.988109 | BE73: END | BF73: ='L3 Results 3'!$BE$5 ->  | CE73: ='L3 BaselineNatural'!K106 -> 1267.341406 | CF73: ='L3 BaselineHatchery'!K106 ->  | CG73: ='L3 ScenarioNatural'!K106 -> 1267.341406 | CH73: ='L3 ScenarioHatchery'!K106 -> 
B74: 0 | C74: 3124.431893 | D74: 3124.431893 | E74: 2543.694154 | F74: 3124.431893 | G74: 2543.694154 | H74: 3124.431893 | BE74: END | BF74: ='L3 Results 3'!$BF$5 ->  | CE74: ='L3 BaselineNatural'!K107 -> 1266.688727 | CF74: ='L3 BaselineHatchery'!K107 ->  | CG74: ='L3 ScenarioNatural'!K107 -> 1266.688727 | CH74: ='L3 ScenarioHatchery'!K107 -> 
B75: 0 | C75: 3288.875676 | D75: 3288.875676 | E75: 2634.673452 | F75: 3288.875676 | G75: 2634.673452 | H75: 3288.875676 | BE75: END | BF75: ='L3 Results 3'!$BG$5 ->  | CE75: ='L3 BaselineNatural'!K108 -> 1266.061194 | CF75: ='L3 BaselineHatchery'!K108 ->  | CG75: ='L3 ScenarioNatural'!K108 -> 1266.061194 | CH75: ='L3 ScenarioHatchery'!K108 -> 
B76: 0 | C76: 3453.31946 | D76: 3453.31946 | E76: 2722.783432 | F76: 3453.31946 | G76: 2722.783432 | H76: 3453.31946 | BE76: END | BF76: ='L3 Results 3'!$BH$5 ->  | CE76: ='L3 BaselineNatural'!K109 -> 1265.45782 | CF76: ='L3 BaselineHatchery'!K109 ->  | CG76: ='L3 ScenarioNatural'!K109 -> 1265.45782 | CH76: ='L3 ScenarioHatchery'!K109 -> 
B77: 0 | C77: 3617.763244 | D77: 3617.763244 | E77: 2808.157723 | F77: 3617.763244 | G77: 2808.157723 | H77: 3617.763244 | CE77: ='L3 BaselineNatural'!K110 -> 1264.876229 | CF77: ='L3 BaselineHatchery'!K110 ->  | CG77: ='L3 ScenarioNatural'!K110 -> 1264.876229 | CH77: ='L3 ScenarioHatchery'!K110 -> 
B78: 0 | C78: 3782.207028 | D78: 3782.207028 | E78: 2890.921789 | F78: 3782.207028 | G78: 2890.921789 | H78: 3782.207028 | BD78: =CONCATENATE("Model Outputs Based on 100-year outcomes from ",$L$11," model runs") -> Model Outputs Based on 100-year outcomes from 1 model runs | CE78: ='L3 BaselineNatural'!K111 -> 1264.314357 | CF78: ='L3 BaselineHatchery'!K111 ->  | CG78: ='L3 ScenarioNatural'!K111 -> 1264.314357 | CH78: ='L3 ScenarioHatchery'!K111 -> 
B79: 0 | C79: 3946.650812 | D79: 3946.650812 | E79: 2971.193533 | F79: 3946.650812 | G79: 2971.193533 | H79: 3946.650812 | BD79: Model | BE79: Parameter | BF79: 5th Percentile | BG79: 10th Percentile | BH79: 25th Percentile | BI79: 30th Percentile | BJ79: 40th Percentile | BK79: 50th Percentile | BL79: 60th Percentile | BM79: 75th Percentile | BN79: 80th Percentile | BO79: 90th Percentile | BP79: 95th Percentile | CE79: ='L3 BaselineNatural'!K112 -> 1263.771489 | CF79: ='L3 BaselineHatchery'!K112 ->  | CG79: ='L3 ScenarioNatural'!K112 -> 1263.771489 | CH79: ='L3 ScenarioHatchery'!K112 -> 
B80: 0 | C80: 4111.094596 | D80: 4111.094596 | E80: 3049.083865 | F80: 4111.094596 | G80: 3049.083865 | H80: 4111.094596 | BD80: =$C$3 -> Baseline-Natural | BE80: Smolt to Adult Survival | BF80: ='L3 Results'!CQ$5 -> 0.01020790911 | BG80: ='L3 Results'!CR$5 -> 0.01020790911 | BH80: ='L3 Results'!CS$5 -> 0.01020790911 | BI80: ='L3 Results'!CT$5 -> 0.01020790911 | BJ80: ='L3 Results'!CU$5 -> 0.01020790911 | BK80: ='L3 Results'!CV$5 -> 0.01020790911 | BL80: ='L3 Results'!CW$5 -> 0.01020790911 | BM80: ='L3 Results'!CX$5 -> 0.01020790911 | BN80: ='L3 Results'!CY$5 -> 0.01020790911 | BO80: ='L3 Results'!CZ$5 -> 0.01020790911 | BP80: ='L3 Results'!DI$5 -> 0.01020790911 | CE80: ='L3 BaselineNatural'!K113 -> 1263.247737 | CF80: ='L3 BaselineHatchery'!K113 ->  | CG80: ='L3 ScenarioNatural'!K113 -> 1263.247737 | CH80: ='L3 ScenarioHatchery'!K113 -> 
B81: 0 | C81: 4275.538379 | D81: 4275.538379 | E81: 3124.69721 | F81: 4275.538379 | G81: 3124.69721 | H81: 4275.538379 | BE81: Early Marine Survival | BF81: ='L3 Results'!CF$5 -> 0.05 | BG81: ='L3 Results'!CG$5 -> 0.05 | BH81: ='L3 Results'!CH$5 -> 0.05 | BI81: ='L3 Results'!CI$5 -> 0.05 | BJ81: ='L3 Results'!CJ$5 -> 0.05 | BK81: ='L3 Results'!CK$5 -> 0.05 | BL81: ='L3 Results'!CL$5 -> 0.05 | BM81: ='L3 Results'!CM$5 -> 0.05 | BN81: ='L3 Results'!CN$5 -> 0.05 | BO81: ='L3 Results'!CO$5 -> 0.05 | BP81: ='L3 Results'!DH$5 -> 0.05 | CE81: ='L3 BaselineNatural'!K114 -> 1262.742881 | CF81: ='L3 BaselineHatchery'!K114 ->  | CG81: ='L3 ScenarioNatural'!K114 -> 1262.742881 | CH81: ='L3 ScenarioHatchery'!K114 -> 
B82: 0 | C82: 4439.982163 | D82: 4439.982163 | E82: 3198.131973 | F82: 4439.982163 | G82: 3198.131973 | H82: 4439.982163 | BE82: Cumulative Productivity | BF82: ='L3 Results'!BJ$5*$O$15 -> 1.17882149 | BG82: ='L3 Results'!BK$5*$O$15 -> 1.17882149 | BH82: ='L3 Results'!BL$5*$O$15 -> 1.17882149 | BI82: ='L3 Results'!BM$5*$O$15 -> 1.17882149 | BJ82: ='L3 Results'!BN$5*$O$15 -> 1.17882149 | BK82: ='L3 Results'!BO$5*$O$15 -> 1.17882149 | BL82: ='L3 Results'!BP$5*$O$15 -> 1.17882149 | BM82: ='L3 Results'!BQ$5*$O$15 -> 1.17882149 | BN82: ='L3 Results'!BR$5*$O$15 -> 1.17882149 | BO82: ='L3 Results'!BS$5*$O$15 -> 1.17882149 | BP82: ='L3 Results'!DF$5*$O$15 -> 1.17882149 | CE82: ='L3 BaselineNatural'!K115 -> 1262.255874 | CF82: ='L3 BaselineHatchery'!K115 ->  | CG82: ='L3 ScenarioNatural'!K115 -> 1262.255874 | CH82: ='L3 ScenarioHatchery'!K115 -> 
B83: 0 | C83: 4604.425947 | D83: 4604.425947 | E83: 3269.480974 | F83: 4604.425947 | G83: 3269.480974 | H83: 4604.425947 | BE83: Cumulative Capacity | BF83: ='L3 Results'!BU$5*$O$15 -> 8222.189189 | BG83: ='L3 Results'!BV$5*$O$15 -> 8222.189189 | BH83: ='L3 Results'!BW$5*$O$15 -> 8222.18919 | BI83: ='L3 Results'!BX$5*$O$15 -> 8222.18919 | BJ83: ='L3 Results'!BY$5*$O$15 -> 8222.18919 | BK83: ='L3 Results'!BZ$5*$O$15 -> 8222.18919 | BL83: ='L3 Results'!CA$5*$O$15 -> 8222.18919 | BM83: ='L3 Results'!CB$5*$O$15 -> 8222.18919 | BN83: ='L3 Results'!CC$5*$O$15 -> 8222.189191 | BO83: ='L3 Results'!CD$5*$O$15 -> 8222.189191 | BP83: ='L3 Results'!DG$5*$O$15 -> 8222.189191 | CE83: ='L3 BaselineNatural'!K116 -> 1261.78534 | CF83: ='L3 BaselineHatchery'!K116 ->  | CG83: ='L3 ScenarioNatural'!K116 -> 1261.78534 | CH83: ='L3 ScenarioHatchery'!K116 -> 
B84: 0 | C84: 4768.869731 | D84: 4768.869731 | E84: 3338.83183 | F84: 4768.869731 | G84: 3338.83183 | H84: 4768.869731 | BD84: =$E$3 -> Baseline-Hatchery | BE84: Smolt to Adult Survival | BF84: ='L3 Results 1'!CQ$5 ->  | BG84: ='L3 Results 1'!CR$5 ->  | BH84: ='L3 Results 1'!CS$5 ->  | BI84: ='L3 Results 1'!CT$5 ->  | BJ84: ='L3 Results 1'!CU$5 ->  | BK84: ='L3 Results 1'!CV$5 ->  | BL84: ='L3 Results 1'!CW$5 ->  | BM84: ='L3 Results 1'!CX$5 ->  | BN84: ='L3 Results 1'!CY$5 ->  | BO84: ='L3 Results 1'!CZ$5 ->  | BP84: ='L3 Results 1'!DI$5 ->  | CE84: ='L3 BaselineNatural'!K117 -> 1261.330319 | CF84: ='L3 BaselineHatchery'!K117 ->  | CG84: ='L3 ScenarioNatural'!K117 -> 1261.330319 | CH84: ='L3 ScenarioHatchery'!K117 -> 
B85: 0 | C85: 4933.313515 | D85: 4933.313515 | E85: 3406.267319 | F85: 4933.313515 | G85: 3406.267319 | H85: 4933.313515 | BE85: Early Marine Survival | BF85: ='L3 Results 1'!CF$5 -> 0.03 | BG85: ='L3 Results 1'!CG$5 -> 0.03 | BH85: ='L3 Results 1'!CH$5 -> 0.03 | BI85: ='L3 Results 1'!CI$5 -> 0.03 | BJ85: ='L3 Results 1'!CJ$5 -> 0.03 | BK85: ='L3 Results 1'!CK$5 -> 0.03 | BL85: ='L3 Results 1'!CL$5 -> 0.03 | BM85: ='L3 Results 1'!CM$5 -> 0.03 | BN85: ='L3 Results 1'!CN$5 -> 0.03 | BO85: ='L3 Results 1'!CO$5 -> 0.03 | BP85: ='L3 Results 1'!DH$5 -> 0.03 | CE85: ='L3 BaselineNatural'!K118 -> 1260.890453 | CF85: ='L3 BaselineHatchery'!K118 ->  | CG85: ='L3 ScenarioNatural'!K118 -> 1260.890453 | CH85: ='L3 ScenarioHatchery'!K118 -> 
B86: 0 | C86: 5097.757299 | D86: 5097.757299 | E86: 3471.865711 | F86: 5097.757299 | G86: 3471.865711 | H86: 5097.757299 | BE86: Cumulative Productivity | BF86: ='L3 Results 1'!BJ$5*$P$15 ->  | BG86: ='L3 Results 1'!BK$5*$P$15 ->  | BH86: ='L3 Results 1'!BL$5*$P$15 ->  | BI86: ='L3 Results 1'!BM$5*$P$15 ->  | BJ86: ='L3 Results 1'!BN$5*$P$15 ->  | BK86: ='L3 Results 1'!BO$5*$P$15 ->  | BL86: ='L3 Results 1'!BP$5*$P$15 ->  | BM86: ='L3 Results 1'!BQ$5*$P$15 ->  | BN86: ='L3 Results 1'!BR$5*$P$15 ->  | BO86: ='L3 Results 1'!BS$5*$P$15 ->  | BP86: ='L3 Results 1'!DF$5*$P$15 ->  | CE86: ='L3 BaselineNatural'!K119 -> 1260.465552 | CF86: ='L3 BaselineHatchery'!K119 ->  | CG86: ='L3 ScenarioNatural'!K119 -> 1260.465552 | CH86: ='L3 ScenarioHatchery'!K119 -> 
B87: 0 | C87: 5262.201082 | D87: 5262.201082 | E87: 3535.701066 | F87: 5262.201082 | G87: 3535.701066 | H87: 5262.201082 | BE87: Cumulative Capacity | BF87: ='L3 Results 1'!BU$5*$P$15 ->  | BG87: ='L3 Results 1'!BV$5*$P$15 ->  | BH87: ='L3 Results 1'!BW$5*$P$15 ->  | BI87: ='L3 Results 1'!BX$5*$P$15 ->  | BJ87: ='L3 Results 1'!BY$5*$P$15 ->  | BK87: ='L3 Results 1'!BZ$5*$P$15 ->  | BL87: ='L3 Results 1'!CA$5*$P$15 ->  | BM87: ='L3 Results 1'!CB$5*$P$15 ->  | BN87: ='L3 Results 1'!CC$5*$P$15 ->  | BO87: ='L3 Results 1'!CD$5*$P$15 ->  | BP87: ='L3 Results 1'!DG$5*$P$15 ->  | CE87: ='L3 BaselineNatural'!K120 -> 1260.055142 | CF87: ='L3 BaselineHatchery'!K120 ->  | CG87: ='L3 ScenarioNatural'!K120 -> 1260.055142 | CH87: ='L3 ScenarioHatchery'!K120 -> 
B88: 0 | C88: 5426.644866 | D88: 5426.644866 | E88: 3597.843518 | F88: 5426.644866 | G88: 3597.843518 | H88: 5426.644866 | BD88: =$G$3 -> Scenario-Natural | BE88: Smolt to Adult Survival | BF88: ='L3 Results 2'!CQ$5 -> 0.01020790911 | BG88: ='L3 Results 2'!CR$5 -> 0.01020790911 | BH88: ='L3 Results 2'!CS$5 -> 0.01020790911 | BI88: ='L3 Results 2'!CT$5 -> 0.01020790911 | BJ88: ='L3 Results 2'!CU$5 -> 0.01020790911 | BK88: ='L3 Results 2'!CV$5 -> 0.01020790911 | BL88: ='L3 Results 2'!CW$5 -> 0.01020790911 | BM88: ='L3 Results 2'!CX$5 -> 0.01020790911 | BN88: ='L3 Results 2'!CY$5 -> 0.01020790911 | BO88: ='L3 Results 2'!CZ$5 -> 0.01020790911 | BP88: ='L3 Results 2'!DI$5 -> 0.01020790911 | CE88: ='L3 BaselineNatural'!K121 -> 1259.658435 | CF88: ='L3 BaselineHatchery'!K121 ->  | CG88: ='L3 ScenarioNatural'!K121 -> 1259.658435 | CH88: ='L3 ScenarioHatchery'!K121 -> 
B89: 0 | C89: 5591.08865 | D89: 5591.08865 | E89: 3658.359529 | F89: 5591.08865 | G89: 3658.359529 | H89: 5591.08865 | BE89: Early Marine Survival | BF89: ='L3 Results 2'!CF$5 -> 0.05 | BG89: ='L3 Results 2'!CG$5 -> 0.05 | BH89: ='L3 Results 2'!CH$5 -> 0.05 | BI89: ='L3 Results 2'!CI$5 -> 0.05 | BJ89: ='L3 Results 2'!CJ$5 -> 0.05 | BK89: ='L3 Results 2'!CK$5 -> 0.05 | BL89: ='L3 Results 2'!CL$5 -> 0.05 | BM89: ='L3 Results 2'!CM$5 -> 0.05 | BN89: ='L3 Results 2'!CN$5 -> 0.05 | BO89: ='L3 Results 2'!CO$5 -> 0.05 | BP89: ='L3 Results 2'!DH$5 -> 0.05 | CE89: ='L3 BaselineNatural'!K122 -> 1259.27465 | CF89: ='L3 BaselineHatchery'!K122 ->  | CG89: ='L3 ScenarioNatural'!K122 -> 1259.27465 | CH89: ='L3 ScenarioHatchery'!K122 -> 
B90: 0 | C90: 5755.532434 | D90: 5755.532434 | E90: 3717.312127 | F90: 5755.532434 | G90: 3717.312127 | H90: 5755.532434 | BE90: Cumulative Productivity | BF90: ='L3 Results 2'!BJ$5*$Q$15 -> 1.17882149 | BG90: ='L3 Results 2'!BK$5*$Q$15 -> 1.17882149 | BH90: ='L3 Results 2'!BL$5*$Q$15 -> 1.17882149 | BI90: ='L3 Results 2'!BM$5*$Q$15 -> 1.17882149 | BJ90: ='L3 Results 2'!BN$5*$Q$15 -> 1.17882149 | BK90: ='L3 Results 2'!BO$5*$Q$15 -> 1.17882149 | BL90: ='L3 Results 2'!BP$5*$Q$15 -> 1.17882149 | BM90: ='L3 Results 2'!BQ$5*$Q$15 -> 1.17882149 | BN90: ='L3 Results 2'!BR$5*$Q$15 -> 1.17882149 | BO90: ='L3 Results 2'!BS$5*$Q$15 -> 1.17882149 | BP90: ='L3 Results 2'!DF$5*$Q$15 -> 1.17882149 | CE90: ='L3 BaselineNatural'!K123 -> 1258.903274 | CF90: ='L3 BaselineHatchery'!K123 ->  | CG90: ='L3 ScenarioNatural'!K123 -> 1258.903274 | CH90: ='L3 ScenarioHatchery'!K123 -> 
B91: 0 | C91: 5919.976218 | D91: 5919.976218 | E91: 3774.761124 | F91: 5919.976218 | G91: 3774.761124 | H91: 5919.976218 | O91: 5th | BE91: Cumulative Capacity | BF91: ='L3 Results 2'!BU$5*$Q$15 -> 8222.189189 | BG91: ='L3 Results 2'!BV$5*$Q$15 -> 8222.189189 | BH91: ='L3 Results 2'!BW$5*$Q$15 -> 8222.18919 | BI91: ='L3 Results 2'!BX$5*$Q$15 -> 8222.18919 | BJ91: ='L3 Results 2'!BY$5*$Q$15 -> 8222.18919 | BK91: ='L3 Results 2'!BZ$5*$Q$15 -> 8222.18919 | BL91: ='L3 Results 2'!CA$5*$Q$15 -> 8222.18919 | BM91: ='L3 Results 2'!CB$5*$Q$15 -> 8222.189191 | BN91: ='L3 Results 2'!CC$5*$Q$15 -> 8222.189191 | BO91: ='L3 Results 2'!CD$5*$Q$15 -> 8222.189191 | BP91: ='L3 Results 2'!DG$5*$Q$15 -> 8222.189191 | CE91: ='L3 BaselineNatural'!K124 -> 1258.544018 | CF91: ='L3 BaselineHatchery'!K124 ->  | CG91: ='L3 ScenarioNatural'!K124 -> 1258.544018 | CH91: ='L3 ScenarioHatchery'!K124 -> 
B92: 0 | C92: 6084.420001 | D92: 6084.420001 | E92: 3830.763321 | F92: 6084.420001 | G92: 3830.763321 | H92: 6084.420001 | O92: 25th | BD92: =$I$3 -> Scenario-Hatchery | BE92: Smolt to Adult Survival | BF92: ='L3 Results 3'!CQ$5 ->  | BG92: ='L3 Results 3'!CR$5 ->  | BH92: ='L3 Results 3'!CS$5 ->  | BI92: ='L3 Results 3'!CT$5 ->  | BJ92: ='L3 Results 3'!CU$5 ->  | BK92: ='L3 Results 3'!CV$5 ->  | BL92: ='L3 Results 3'!CW$5 ->  | BM92: ='L3 Results 3'!CX$5 ->  | BN92: ='L3 Results 3'!CY$5 ->  | BO92: ='L3 Results 3'!CZ$5 ->  | BP92: ='L3 Results 3'!DI$5 ->  | CE92: ='L3 BaselineNatural'!K125 -> 1258.196581 | CF92: ='L3 BaselineHatchery'!K125 ->  | CG92: ='L3 ScenarioNatural'!K125 -> 1258.196581 | CH92: ='L3 ScenarioHatchery'!K125 -> 
B93: 0 | C93: 6248.863785 | D93: 6248.863785 | E93: 3885.372692 | F93: 6248.863785 | G93: 3885.372692 | H93: 6248.863785 | O93: 50th | BE93: Early Marine Survival | BF93: ='L3 Results 3'!CF$5 -> 0.03 | BG93: ='L3 Results 3'!CG$5 -> 0.03 | BH93: ='L3 Results 3'!CH$5 -> 0.03 | BI93: ='L3 Results 3'!CI$5 -> 0.03 | BJ93: ='L3 Results 3'!CJ$5 -> 0.03 | BK93: ='L3 Results 3'!CK$5 -> 0.03 | BL93: ='L3 Results 3'!CL$5 -> 0.03 | BM93: ='L3 Results 3'!CM$5 -> 0.03 | BN93: ='L3 Results 3'!CN$5 -> 0.03 | BO93: ='L3 Results 3'!CO$5 -> 0.03 | BP93: ='L3 Results 3'!DH$5 -> 0.03 | CE93: ='L3 BaselineNatural'!K126 -> 1257.860507 | CF93: ='L3 BaselineHatchery'!K126 ->  | CG93: ='L3 ScenarioNatural'!K126 -> 1257.860507 | CH93: ='L3 ScenarioHatchery'!K126 -> 
B94: 0 | C94: 6413.307569 | D94: 6413.307569 | E94: 3938.640561 | F94: 6413.307569 | G94: 3938.640561 | H94: 6413.307569 | O94: 75th | BE94: Cumulative Productivity | BF94: ='L3 Results 3'!BJ$5*$R$15 ->  | BG94: ='L3 Results 3'!BK$5*$R$15 ->  | BH94: ='L3 Results 3'!BL$5*$R$15 ->  | BI94: ='L3 Results 3'!BM$5*$R$15 ->  | BJ94: ='L3 Results 3'!BN$5*$R$15 ->  | BK94: ='L3 Results 3'!BO$5*$R$15 ->  | BL94: ='L3 Results 3'!BP$5*$R$15 ->  | BM94: ='L3 Results 3'!BQ$5*$R$15 ->  | BN94: ='L3 Results 3'!BR$5*$R$15 ->  | BO94: ='L3 Results 3'!BS$5*$R$15 ->  | BP94: ='L3 Results 3'!DF$5*$R$15 ->  | CE94: ='L3 BaselineNatural'!K127 -> 1257.535256 | CF94: ='L3 BaselineHatchery'!K127 ->  | CG94: ='L3 ScenarioNatural'!K127 -> 1257.535256 | CH94: ='L3 ScenarioHatchery'!K127 -> 
B95: 0 | C95: 6577.751353 | D95: 6577.751353 | E95: 3990.61576 | F95: 6577.751353 | G95: 3990.61576 | H95: 6577.751353 | O95: 95th | BE95: Cumulative Capacity | BF95: ='L3 Results 3'!BU$5*$R$15 ->  | BG95: ='L3 Results 3'!BV$5*$R$15 ->  | BH95: ='L3 Results 3'!BW$5*$R$15 ->  | BI95: ='L3 Results 3'!BX$5*$R$15 ->  | BJ95: ='L3 Results 3'!BY$5*$R$15 ->  | BK95: ='L3 Results 3'!BZ$5*$R$15 ->  | BL95: ='L3 Results 3'!CA$5*$R$15 ->  | BM95: ='L3 Results 3'!CB$5*$R$15 ->  | BN95: ='L3 Results 3'!CC$5*$R$15 ->  | BO95: ='L3 Results 3'!CD$5*$R$15 ->  | BP95: ='L3 Results 3'!DG$5*$R$15 ->  | CE95: ='L3 BaselineNatural'!K128 -> 1257.220357 | CF95: ='L3 BaselineHatchery'!K128 ->  | CG95: ='L3 ScenarioNatural'!K128 -> 1257.220357 | CH95: ='L3 ScenarioHatchery'!K128 -> 
CE96: ='L3 BaselineNatural'!K129 -> 1256.915474 | CF96: ='L3 BaselineHatchery'!K129 ->  | CG96: ='L3 ScenarioNatural'!K129 -> 1256.915474 | CH96: ='L3 ScenarioHatchery'!K129 -> 
CE97: ='L3 BaselineNatural'!K130 -> 1256.620341 | CF97: ='L3 BaselineHatchery'!K130 ->  | CG97: ='L3 ScenarioNatural'!K130 -> 1256.620341 | CH97: ='L3 ScenarioHatchery'!K130 -> 
CE98: ='L3 BaselineNatural'!K131 -> 1256.334652 | CF98: ='L3 BaselineHatchery'!K131 ->  | CG98: ='L3 ScenarioNatural'!K131 -> 1256.334652 | CH98: ='L3 ScenarioHatchery'!K131 -> 
CE99: ='L3 BaselineNatural'!K132 -> 1256.058042 | CF99: ='L3 BaselineHatchery'!K132 ->  | CG99: ='L3 ScenarioNatural'!K132 -> 1256.058042 | CH99: ='L3 ScenarioHatchery'!K132 -> 
CE100: ='L3 BaselineNatural'!K133 -> 1255.790141 | CF100: ='L3 BaselineHatchery'!K133 ->  | CG100: ='L3 ScenarioNatural'!K133 -> 1255.790141 | CH100: ='L3 ScenarioHatchery'!K133 -> 
CE101: ='L3 BaselineNatural'!K134 -> 1255.530633 | CF101: ='L3 BaselineHatchery'!K134 ->  | CG101: ='L3 ScenarioNatural'!K134 -> 1255.530633 | CH101: ='L3 ScenarioHatchery'!K134 -> 

Sheet L3 BaselineNatural
B1: Function | C1: BH | E1: Productivity | F1: =C2*AF8 -> 1.17882149 | N1: Age 1 | P1: Age 2 | R1: Age 3 | T1: Age 4 | V1: Age 5 | X1: Age 6 | AC1: Age | AD1: Maturity | AE1: Survival | AF1: Return | AG1: Ocean | AH1: Age Comp | AI1: Fecundity | AJ1: % females | AM1: Harvest Vulnerability | AN1: Age 1 | AO1: Age 2 | AP1: Age 3 | AQ1: Age 4 | AR1: Age 5 | AS1: Age 6 | AT1: Harv. All. | CV1: Standardized values for the PDO index from: http://jisao.washington.edu/pdo/PDO.latest | DH1: Link to PDO data online | GF1: =FD38 -> 0.9 | GG1: =FT38 -> 128.3124332 | GY1: Median | GZ1: =MEDIAN(GZ12:GZ132) -> 805472.4136 | HA1: ='Level 3'!K29 -> 1 | HB1: <--max % NOR for NOB | HH1: 0.5
B2: AdjProd | C2: =IF('Level 3'!$C$15 = "Random", 'L3 BaselineNatural'!EK3,'L3 BaselineNatural'!EJ3) -> 115.4811899 | E2: Capacity | F2: =C3*AF8 -> 8222.189191 | M2: Maturity | N2: ='Level 3'!AI24 -> 0 | P2: ='Level 3'!AI25 -> 0.11 | R2: ='Level 3'!AI26 -> 0.26 | T2: ='Level 3'!AI27 -> 0.73 | V2: ='Level 3'!AI28 -> 0.98 | X2: ='Level 3'!AI29 -> 1 | AC2: 1 | AD2: =N2 -> 0 | AE2: =N3 -> 0.05 | AF2: =AD2*AE2 -> 0 | AG2: =(1-AD2)*AE2 -> 0.05 | AH2: =AF2/$AF$8 -> 0 | AI2: ='Level 3'!AJ24 -> 0 | AJ2: ='Level 3'!AK24 -> 0 | AL2: Ocean | AN2: ='Level 3'!AI32 -> 0 | AO2: ='Level 3'!AI33 -> 1 | AP2: ='Level 3'!AI34 -> 1 | AQ2: ='Level 3'!AI35 -> 1 | AR2: ='Level 3'!AI36 -> 1 | AS2: ='Level 3'!AI37 -> 1 | AT2: ='Level 3'!AI40 -> 0 | EJ2: No Random Variation | EK2: Random | EV2: =MAX(EV12:EV132) -> 0.5 | EX2: =MAX(EX12:EX132) -> 684.3329771 | EZ2: =MAX(EZ12:EZ132) -> 0.75 | FB2: =MAX(FB12:FB132) -> 0.5 | FD2: =MAX(FD12:FD132) -> 0.9 | FF2: =MAX(FF12:FF132) -> 1 | FH2: =MAX(FH12:FH132) -> 1 | FJ2: =MAX(FJ12:FJ132) -> 1 | FL2: =MAX(FL12:FL132) -> 1 | FN2: =MAX(FN12:FN132) -> 1 | FP2: =MAX(FP12:FP132) -> 1 | FQ2: 0.5 | FR2: 342.1664885 | FS2: 256.6248664 | FT2: 128.3124332 | FU2: 115.4811899 | FV2: 115.4811899 | FW2: 115.4811899 | FX2: 115.4811899 | FY2: 115.4811899 | FZ2: 115.4811899 | GA2: 115.4811899 | GB2: 115.4811899 | GF2: ='L3 ScenarioNatural'!GH1 -> 0.9 | GG2: ='L3 ScenarioNatural'!GG1 -> 128.3124332 | GY2: Max | GZ2: =MAX(GZ12:GZ132) -> 805472.4136
B3: AdjCap | C3: =IF('Level 3'!$C$15 = "Random", 'L3 BaselineNatural'!EK4,'L3 BaselineNatural'!EJ4) -> 805472.4137 | E3: Neq | F3: =MAX(F2*(1-1/F1),0) -> 1247.266136 | M3: Survival | N3: ='Level 3'!AI5 -> 0.05 | P3: ='Level 3'!AI6 -> 0.4 | R3: ='Level 3'!AI7 -> 0.6 | T3: ='Level 3'!AI8 -> 0.7 | V3: ='Level 3'!AI9 -> 0.8 | X3: ='Level 3'!AI10 -> 0.9 | AC3: 2 | AD3: =P2 -> 0.11 | AE3: =P3 -> 0.4 | AF3: =AG2*AE3*AD3 -> 0.0022 | AG3: =AG2*AE3*(1-AD3) -> 0.0178 | AH3: 0.2155191603 | AI3: ='Level 3'!AJ25 -> 0 | AJ3: ='Level 3'!AK25 -> 0 | AL3: Upstream survival (passage 1) | AN3: 1 | AX3: =AC32 -> 214455.7821 | CV3: YEAR | CW3: JAN | CX3: FEB | CY3: MAR | CZ3: APR | DA3: MAY | DB3: JUN | DC3: JUL | DD3: AUG | DE3: SEP | DF3: OCT | DG3: NOV | DH3: DEC | DI3: YEAR | DJ3: Average | EI3: Cum Prod | EJ3: =VLOOKUP(1,EG11:EK34,4,FALSE) -> 115.4811899 | EK3: =GB3 -> 115.4811899 | EV3: =AVERAGE(EV12:EV132) -> 0.5 | EX3: =AVERAGE(EX12:EX132) -> 684.332977 | EZ3: =AVERAGE(EZ12:EZ132) -> 0.75 | FB3: =AVERAGE(FB12:FB132) -> 0.5 | FD3: =AVERAGE(FD12:FD132) -> 0.9 | FF3: =AVERAGE(FF12:FF132) -> 1 | FH3: =AVERAGE(FH12:FH132) -> 1 | FJ3: =AVERAGE(FJ12:FJ132) -> 1 | FL3: =AVERAGE(FL12:FL132) -> 1 | FN3: =AVERAGE(FN12:FN132) -> 1 | FP3: =AVERAGE(FP12:FP132) -> 1 | FQ3: 0.5 | FR3: 342.1664885 | FS3: 256.6248664 | FT3: 128.3124332 | FU3: 115.4811899 | FV3: 115.4811899 | FW3: 115.4811899 | FX3: 115.4811899 | FY3: 115.4811899 | FZ3: 115.4811899 | GA3: 115.4811899 | GB3: 115.4811899 | GF3: =FU38 -> 115.4811899 | GG3: =FU38/(FU38/GS38-FT38/GR38) -> 1e+11 | GH3: =-FT39/GR39 -> -0.0001433696024 | GY3: Ave. | GZ3: =AVERAGE(GZ12:GZ132) -> 805472.4136 | HG3: =HB34 -> 2306.708727 | HH3: =CI34 -> 2306.708727
B4: Max HR | C4: 0.9 | E4: RMSY | F4: =MAX(F2*(SQRT(F1)-1)/SQRT(F1),0) -> 649.2678955 | M4: Cum survival | N4: =N3*N2 -> 0 | P4: =P2*PRODUCT($N$3:P3) -> 0.0022 | R4: =R2*PRODUCT($N$3:R3) -> 0.00312 | T4: =T2*PRODUCT($N$3:T3) -> 0.006132 | V4: =V2*PRODUCT($N$3:V3) -> 0.0065856 | X4: =X2*PRODUCT($N$3:X3) -> 0.006048 | AC4: 3 | AD4: =R2 -> 0.26 | AE4: =R3 -> 0.6 | AF4: =AG3*AE4*AD4 -> 0.0027768 | AG4: =AG3*AE4*(1-AD4) -> 0.0079032 | AH4: 0.2720243656 | AI4: ='Level 3'!AJ26 -> 3400 | AJ4: ='Level 3'!AK26 -> 0.5 | AL4: Lower river catch | AN4: ='Level 3'!AJ32 -> 0 | AO4: ='Level 3'!AJ33 -> 1 | AP4: ='Level 3'!AJ34 -> 1 | AQ4: ='Level 3'!AJ35 -> 1 | AR4: ='Level 3'!AJ36 -> 1 | AS4: ='Level 3'!AJ37 -> 1 | AT4: ='Level 3'!AJ40 -> 0 | CT4: PHOS Discount Factor | CU4: 0.8 | CV4: 1900 | CW4: 0.04 | CX4: 1.32 | CY4: 0.49 | CZ4: 0.35 | DA4: 0.77 | DB4: 0.65 | DC4: 0.95 | DD4: 0.14 | DE4: -0.24 | DF4: 0.23 | DG4: -0.44 | DH4: 1.19 | DI4: 1900 | DJ4: =-AVERAGE(CZ4:DE4) -> -0.4366666667 | DR4: =IF(DL$58=CV4,1,IF(CV4<DL$58,IF(CV4-CV$4<DL$58+12-DI$117,1,0),IF(CV4<=DL$58+12,1,IF(DL$58+12>DI$117,IF(CV4-CV$4<DL$58+12-DI$117,1,0),0)))) -> 0 | DS4: =IF(CV4-CV$4<DL$58+12-DI$117,1,0) -> 0 | EI4: Cum Cap | EJ4: =VLOOKUP(1,EG11:EK34,5,FALSE) -> 805472.4137 | EK4: =GZ3 -> 805472.4136 | EV4: =MIN(EV12:EV132) -> 0.5 | EX4: =MIN(EX12:EX132) -> 684.332977 | EZ4: =MIN(EZ12:EZ132) -> 0.7499999999 | FB4: =MIN(FB12:FB132) -> 0.5 | FD4: =MIN(FD12:FD132) -> 0.8999999999 | FF4: =MIN(FF12:FF132) -> 1 | FH4: =MIN(FH12:FH132) -> 1 | FJ4: =MIN(FJ12:FJ132) -> 1 | FL4: =MIN(FL12:FL132) -> 1 | FN4: =MIN(FN12:FN132) -> 1 | FP4: =MIN(FP12:FP132) -> 1 | FQ4: 0.5 | FR4: 342.1664885 | FS4: 256.6248663 | FT4: 128.3124332 | FU4: 115.4811898 | FV4: 115.4811898 | FW4: 115.4811898 | FX4: 115.4811898 | FY4: 115.4811898 | FZ4: 115.4811898 | GA4: 115.4811898 | GB4: 115.4811898 | GF4: ='L3 ScenarioNatural'!GG2 -> 115.4811899 | GG4: ='L3 ScenarioNatural'!GG3 -> 1e+11 | GH4: ='L3 ScenarioNatural'!GH3 -> -0.0001433696024 | GY4: Min | GZ4: =MIN(GZ12:GZ132) -> 805472.4134 | HG4: =CJ34 -> 0
B5: SD HR | C5: ='Level 3'!AI41 -> 0.2 | E5: MSY Escape | F5: =MAX((F2/F1)*(SQRT(F1)-1),0) -> 597.9982409 | M5: SAR | N5: =AF8 -> 0.01020790911 | AC5: 4 | AD5: =T2 -> 0.73 | AE5: =T3 -> 0.7 | AF5: =AG4*AE5*AD5 -> 0.0040385352 | AG5: =AG4*AE5*(1-AD5) -> 0.0014937048 | AH5: 0.3956280523 | AI5: ='Level 3'!AJ27 -> 3400 | AJ5: ='Level 3'!AK27 -> 0.5 | AL5: Upstream survival (passage 2) | AN5: ='Level 3'!C12 -> 1 | CV5: 1901 | CW5: 0.79 | CX5: -0.12 | CY5: 0.35 | CZ5: 0.61 | DA5: -0.42 | DB5: -0.05 | DC5: -0.6 | DD5: -1.2 | DE5: -0.33 | DF5: 0.16 | DG5: -0.6 | DH5: -0.14 | DI5: 1901 | DJ5: =-AVERAGE(CZ5:DE5) -> 0.3316666667 | DR5: =IF(DL$58=CV5,1,IF(CV5<DL$58,IF(CV5-CV$4<DL$58+12-DI$117,1,0),IF(CV5<=DL$58+12,1,IF(DL$58+12>DI$117,IF(CV5-CV$4<DL$58+12-DI$117,1,0),0)))) -> 0 | EU5: Juv.Passage Survival | EV5: 1 | EX5: 1 | EZ5: 1 | FB5: 1 | FD5: 1 | FF5: 1 | FH5: 1 | FJ5: 1 | FL5: 1 | FN5: 1 | FP5: 1 | HG5: =MIN('Level 3'!$J$29*'Level 3'!$J$28,CI34*0.3) -> 0
E6: MSY rate | F6: =MAX(1-1/SQRT(F1),0) -> 0.07896533155 | M6: Ocean surv | N6: =SUM(N4:X4) -> 0.0240856 | AC6: 5 | AD6: =V2 -> 0.98 | AE6: =V3 -> 0.8 | AF6: =AG5*AE6*AD6 -> 0.001171064563 | AG6: =AG5*AE6*(1-AD6) -> 2.38992768e-05 | AH6: 0.114721296 | AI6: ='Level 3'!AJ28 -> 4000 | AJ6: ='Level 3'!AK28 -> 0.5 | AL6: Terminal fisheries | AN6: ='Level 3'!AK32 -> 0 | AO6: ='Level 3'!AK33 -> 1 | AP6: ='Level 3'!AK34 -> 1 | AQ6: ='Level 3'!AK35 -> 1 | AR6: ='Level 3'!AK36 -> 1 | AS6: ='Level 3'!AK37 -> 1 | AT6: ='Level 3'!AK40 -> 1 | CV6: 1902 | CW6: 0.82 | CX6: 1.58 | CY6: 0.48 | CZ6: 1.37 | DA6: 1.09 | DB6: 0.52 | DC6: 1.58 | DD6: 1.57 | DE6: 0.44 | DF6: 0.7 | DG6: 0.16 | DH6: -1.1 | DI6: 1902 | DJ6: -1.095 | DR6: 0 | EV6: 1 | EX6: 2 | EZ6: 3 | FB6: 4 | FD6: 5 | FF6: 6 | FH6: 7 | FJ6: 8 | FL6: 9 | FN6: 10 | FP6: 11 | FQ6: =IF($DW12="END",IF($DW11<>"END",1,0),0) -> 0 | FR6: =IF($DW13="END",IF($DW12<>"END",1,0),0) -> 0 | FS6: =IF($DW14="END",IF($DW13<>"END",1,0),0) -> 0 | FT6: =IF($DW15="END",IF($DW14<>"END",1,0),0) -> 0 | FU6: =IF($DW16="END",IF($DW15<>"END",1,0),0) -> 1 | FV6: =IF($DW17="END",IF($DW16<>"END",1,0),0) -> 0 | FW6: =IF($DW18="END",IF($DW17<>"END",1,0),0) -> 0 | FX6: =IF($DW19="END",IF($DW18<>"END",1,0),0) -> 0 | FY6: =IF($DW20="END",IF($DW19<>"END",1,0),0) -> 0 | FZ6: =IF($DW21="END",IF($DW20<>"END",1,0),0) -> 0 | GA6: =IF($DW22="END",IF($DW21<>"END",1,0),0) -> 0 | GC6: 1 | GD6: 2 | GE6: 3 | GF6: 4 | GG6: 5 | GH6: 6 | GI6: 7 | GJ6: 8 | GK6: 9 | GL6: 10 | GM6: 11 | GO6: =IF($DW12="END",IF($DW11<>"END",1,0),0) -> 0 | GP6: =IF($DW13="END",IF($DW12<>"END",1,0),0) -> 0 | GQ6: =IF($DW14="END",IF($DW13<>"END",1,0),0) -> 0 | GR6: =IF($DW15="END",IF($DW14<>"END",1,0),0) -> 0 | GS6: =IF($DW16="END",IF($DW15<>"END",1,0),0) -> 1 | GT6: =IF($DW17="END",IF($DW16<>"END",1,0),0) -> 0 | GU6: =IF($DW18="END",IF($DW17<>"END",1,0),0) -> 0 | GV6: =IF($DW19="END",IF($DW18<>"END",1,0),0) -> 0 | GW6: =IF($DW20="END",IF($DW19<>"END",1,0),0) -> 0 | GX6: =IF($DW21="END",IF($DW20<>"END",1,0),0) -> 0 | GY6: =IF($DW22="END",IF($DW21<>"END",1,0),0) -> 0 | HG6: 1020.916814 | HH6: 1020.916814
AC7: 6 | AD7: =X2 -> 1 | AE7: =X3 -> 0.9 | AF7: =AG6*AE7*AD7 -> 2.150934912e-05 | AG7: =AG6*AE7*(1-AD7) -> 0 | AH7: 0.002107125846 | AI7: ='Level 3'!AJ29 -> 4000 | AJ7: ='Level 3'!AK29 -> 0.5 | AL7: Upstream survival (passage 3) | AN7: ='Level 3'!C13 -> 1 | CV7: 1903 | CW7: 0.86 | CX7: -0.24 | CY7: -0.22 | CZ7: -0.5 | DA7: 0.43 | DB7: 0.23 | DC7: 0.4 | DD7: 1.01 | DE7: -0.24 | DF7: 0.18 | DG7: 0.08 | DH7: -0.03 | DI7: 1903 | DJ7: -0.2216666667 | DR7: 0 | DW7: Eggs/Spawner | DX7: =AI8 -> 1368.665954 | ED7: Place holder for future calculations | EV7: Randomize Cap and Prod Calculations
M8: Annual Ocean Survival Rate by Age | AE8: SAR | AF8: =SUM(AF2:AF7) -> 0.01020790911 | AH8: Eggs/Sp. | AI8: =AH3*AI3*AJ3+AH4*AI4*AJ4+AH5*AI5*AJ5+AH6*AI6*AJ6+AH7*AI7*AJ7 -> 1368.665954 | CV8: 1904 | CW8: 0.63 | CX8: -0.91 | CY8: -0.71 | CZ8: -0.07 | DA8: -0.22 | DB8: -1.53 | DC8: -1.58 | DD8: -0.64 | DE8: 0.06 | DF8: 0.43 | DG8: 1.45 | DH8: 0.06 | DI8: 1904 | DJ8: 0.6633333333 | DR8: 0 | DU8: Species: | DV8: Spring Chinook | EL8: Entered Ranges | EP8: Applied Ranges | EU8: Min | EV8: =$EP$11 -> 0.4999999999 | EX8: =$EP$12 -> 0.4999999999 | EZ8: =MIN($EP$13,EZ9) -> 0.7499999999 | FB8: =MIN($EP$14,FB9) -> 0.4999999999 | FD8: =MIN($EP$15,FD9) -> 0.8999999999 | FF8: =MIN($EP$16,FF9) -> 0.9999999999 | FH8: =MIN($EP$17,FH9) -> 0.9999999999 | FJ8: =MIN($EP$18,FJ9) -> 0.9999999999 | FL8: =MIN($EP$19,FL9) -> 0.9999999999 | FN8: =MIN($EP$20,FN9) -> 0.9999999999 | FP8: =MIN($EP$21,FP9) -> 0.9999999999 | GO8: =ER11 -> 4999.999999 | GP8: 9999.999999 | HH8: Binomial Var? (Y or N) | HI8: N
M9: Logn mean | N9: =LN(N3) -> -2.995732274 | CV9: 1905 | CW9: 0.73 | CX9: 0.91 | CY9: 1.31 | CZ9: 1.59 | DA9: -0.07 | DB9: 0.69 | DC9: 0.85 | DD9: 1.26 | DE9: -0.03 | DF9: -0.15 | DG9: 1.11 | DH9: -0.5 | DI9: 1905 | DJ9: -0.715 | DR9: 0 | DX9: Segment Parameters | EL9: Segment Productivity | EN9: Segment Capacity | EP9: Segment Productivity | ER9: Segment Capacity | EU9: Mean | EV9: =$DX$11 -> 0.5 | EX9: =$DX$12 -> 0.5 | EZ9: =$DX$13 -> 0.75 | FB9: =$DX$14 -> 0.5 | FD9: =$DX$15 -> 0.9 | FF9: =$DX$16 -> 1 | FH9: =$DX$17 -> 1 | FJ9: =$DX$18 -> 1 | FL9: =$DX$19 -> 1 | FN9: =$DX$20 -> 1 | FP9: =$DX$21 -> 1 | GO9: =EK11 -> 5000 | GP9: 10000 | HF9: =IF($DW12="END",IF($DW11<>"END",1,0),0) -> 0 | HG9: =IF($DW13="END",IF($DW12<>"END",1,0),0) -> 0 | HH9: =IF($DW14="END",IF($DW13<>"END",1,0),0) -> 0 | HI9: =IF($DW15="END",IF($DW14<>"END",1,0),0) -> 0 | HJ9: =IF($DW16="END",IF($DW15<>"END",1,0),0) -> 1 | HK9: =IF($DW17="END",IF($DW16<>"END",1,0),0) -> 0 | HL9: =IF($DW18="END",IF($DW17<>"END",1,0),0) -> 0 | HM9: =IF($DW19="END",IF($DW18<>"END",1,0),0) -> 0 | HN9: =IF($DW20="END",IF($DW19<>"END",1,0),0) -> 0 | HO9: =IF($DW21="END",IF($DW20<>"END",1,0),0) -> 0 | HP9: =IF($DW22="END",IF($DW21<>"END",1,0),0) -> 0
M10: logn var | N10: 0.5 | O10: Min | P10: ='Level 3'!AJ6 -> 0.39 | R10: ='Level 3'!AJ7 -> 0.59 | T10: ='Level 3'!AJ8 -> 0.69 | V10: ='Level 3'!AJ9 -> 0.79 | X10: ='Level 3'!AJ10 -> 0.89 | AL10: =AJ56-AL56 -> 1425.791275 | CC10: Adult Passage 3 applied here | CV10: 1906 | CW10: 0.92 | CX10: 1.18 | CY10: 0.83 | CZ10: 0.74 | DA10: 0.44 | DB10: 1.24 | DC10: 0.09 | DD10: -0.53 | DE10: -0.31 | DF10: 0.08 | DG10: 1.69 | DH10: -0.54 | DI10: 1906 | DJ10: -0.2783333333 | DR10: 0 | DT10: =MAX(DT11:DT34) -> 5 | DU10: Segment ID | DV10: Reach | DW10: Life Stage | DX10: Entered Productivity | DY10: CumCalc | DZ10: Min | EA10: Max | EB10: Entered Capacity | EC10: Applied Productivity | ED10: Reach length (m) | EE10: Reach width (m) | EF10: Applied Capacity | EJ10: Cumulative Productivity | EK10: Cumulative Capacity | EL10: Min | EM10: Max | EN10: Min | EO10: Max | EP10: Min | EQ10: Max | ER10: Min | ES10: Max | ET10: CumCalc | EU10: Max | EV10: =$EQ$11 -> 0.5 | EX10: =$EQ$12 -> 0.5 | EZ10: =$EQ$13 -> 0.75 | FB10: =$EQ$14 -> 0.5 | FD10: =$EQ$15 -> 0.9 | FF10: =$EQ$16 -> 1 | FH10: =$EQ$17 -> 1 | FJ10: =$EQ$18 -> 1 | FL10: =$EQ$19 -> 1 | FN10: =$EQ$20 -> 1 | FP10: =$EQ$21 -> 1 | GO10: =ES11 -> 5000 | GP10: 10000 | GZ10: =GZ34/GZ33 -> 1 | HD10: Abundance at end of each life stage - Baseline
H11: Output Charts and Tables | M11: Min | N11: =EXP(N9-2*N10) -> 0.01839397206 | O11: Mode | P11: =P3 -> 0.4 | R11: =R3 -> 0.6 | T11: =T3 -> 0.7 | V11: =V3 -> 0.8 | X11: =X3 -> 0.9 | AB11: =MIN(AB35:AB134) -> 77.45950015 | CV11: 1907 | CW11: -0.3 | CX11: -0.32 | CY11: -0.19 | CZ11: -0.16 | DA11: 0.16 | DB11: 0.57 | DC11: 0.63 | DD11: -0.96 | DE11: -0.23 | DF11: 0.84 | DG11: 0.66 | DH11: 0.72 | DI11: 1907 | DJ11: -0.001666666667 | DR11: 0 | DT11: =IF(DW11="END",0,DU11) -> 1 | DU11: 1 | DV11: Reach 1 | DW11: ='Level 3'!B21 -> Spawning | DX11: =IF('Level 3'!B21="END",1,'Level 3'!C21*IF(DW11 = 'Level 3'!$C$10, 'Level 3'!C$11,1)) -> 0.5 | DY11: =DX11 -> 0.5 | DZ11: =MAX(0.0000000001,DX11*(1-MAX('Level 3'!D21,0.0000000001))) -> 0.4999999999 | EA11: =MIN(1,DX11*(1+MAX('Level 3'!D21,0.000000000000001))) -> 0.5 | EB11: =IF('Level 3'!B21="END",0,'Level 3'!F21) -> 5000 | EC11: =IF(DW11="END",0,DX11) -> 0.5 | ED11: 1000 | EE11: 10 | EF11: =IF(DW11="END",0,EB11) -> 5000 | EG11: =IF(DW12="END",IF(DW11<>"END",1,0),0) -> 0 | EH11: =EJ11/EF11 -> 0.0001 | EI11: =EH11 -> 0.0001 | EJ11: =EC11 -> 0.5 | EK11: =EF11 -> 5000 | EL11: =MAX(0,DZ11) -> 0.4999999999 | EM11: =MIN(1, EA11) -> 0.5 | EP11: =IF(EL11>0,EL11,EC11/2) -> 0.4999999999 | EQ11: =IF(EM11>0,EM11,EC11*2) -> 0.5 | ER11: =IF(EN11>0,EN11,EF11/EC11*EP11) -> 4999.999999 | ES11: =IF(EO11>0,EO11,EF11/EC11*EQ11) -> 5000 | ET11: =IF(DW11="END",0,EJ11/EB11) -> 0.0001 | EU11: Rand | EV11: Prod 1 | EW11: Rand | EX11: Prod 2 | EY11: Rand | EZ11: Prod 3 | FA11: Rand | FB11: Prod 4 | FC11: Rand | FD11: Prod 5 | FE11: Rand | FF11: Prod 6 | FG11: Rand | FH11: Prod 7 | FI11: Rand | FJ11: Prod 8 | FK11: Rand | FL11: Prod 9 | FM11: Rand | FN11: Prod 10 | FO11: Rand | FP11: Prod 11 | FQ11: CumP 1 | FR11: CumP 2 | FS11: CumP 3 | FT11: CumP 4 | FU11: CumP 5 | FV11: CumP 6 | FW11: CumP 7 | FX11: CumP 8 | FY11: CumP 9 | FZ11: CumP 10 | GA11: CumP 11 | GB11: Cum Prod | GC11: Cap 1 | GD11: Cap 2 | GE11: Cap 3 | GF11: Cap 4 | GG11: Cap 5 | GH11: Cap 6 | GI11: Cap 7 | GJ11: Cap 8 | GK11: Cap 9 | GL11: Cap 10 | GM11: Cap 11 | GN11: Rand | GO11: Cum C 1 | GP11: Cum C 2 | GQ11: Cum C 3 | GR11: Cum C 4 | GS11: Cum C 5 | GT11: Cum C 6 | GU11: Cum C 7 | GV11: Cum C 8 | GW11: Cum C 9 | GX11: Cum C 10 | GY11: Cum C 11 | GZ11: Cum Cap | HA11: NOB | HB11: Prespawners | HC11: Run Avg | HD11: Adj Esc | HE11: Adj Esc 2 | HF11: Spawners | HG11: =DW12 -> Incubation | HH11: =DW13 -> Fry Colonization | HI11: =DW14 -> Rearing | HJ11: =DW15 -> Migration | HK11: =DW16 -> END | HL11: =DW17 -> END | HM11: =DW18 -> END | HN11: =DW19 -> END | HO11: =DW20 -> END | HP11: =DW21 -> END | HQ11: Smolts
M12: Max | N12: =EXP(N9+2*N10) -> 0.1359140914 | O12: Max | P12: ='Level 3'!AK6 -> 0.41 | R12: ='Level 3'!AK7 -> 0.61 | T12: ='Level 3'!AK8 -> 0.71 | V12: ='Level 3'!AK9 -> 0.81 | X12: ='Level 3'!AK10 -> 0.91 | AB12: =MAX(AB35:AB134) -> 97.85739572 | AD12: Number of fish returning by ocean age each year | AN12: Ocean Catch by Age | AV12: Return to the river after Upstream Passage 1 | BD12: Lower River catch | BL12: Return to the river after Upstream Passage 2 | BT12: Catch in terminal fisheries | CC12: Spawning Escapement | CK12: Age Composition (Spawners) | CS12: Eggs/spawner | CV12: 1908 | CW12: 1.36 | CX12: 1.02 | CY12: 0.67 | CZ12: 0.23 | DA12: 0.23 | DB12: 0.41 | DC12: 0.6 | DD12: -1.04 | DE12: -0.16 | DF12: -0.41 | DG12: 0.47 | DH12: 1.16 | DI12: 1908 | DJ12: -0.045 | DR12: =IF(DL$58=CV12,1,IF(CV12<DL$58,IF(CV12-CV$4<DL$58+12-DI$117,1,0),IF(CV12<=DL$58+12,1,IF(DL$58+12>DI$117,IF(CV12-CV$4<DL$58+12-DI$117,1,0),0)))) -> 0 | DT12: 2 | DU12: 2 | DV12: Tributary | DW12: ='Level 3'!B22 -> Incubation | DX12: =IF('Level 3'!B22="END",1,'Level 3'!C22*IF(DW12 = 'Level 3'!$C$10, 'Level 3'!C$11,1)) -> 0.5 | DY12: =PRODUCT(DX$11:DX12) -> 0.25 | DZ12: =MAX(0.0000000001,DX12*(1-MAX('Level 3'!D22,0.0000000001))) -> 0.4999999999 | EA12: =MIN(1,DX12*(1+MAX('Level 3'!D22,0.000000000000001))) -> 0.5 | EB12: =IF('Level 3'!B22="END",0,'Level 3'!F22) -> 1000000000 | EC12: =IF(DW12="END",0,DX12)*$DX$7 -> 684.3329771 | ED12: 1000 | EE12: 10 | EF12: 1000000000 | EG12: 0 | EH12: =EJ12/EF12 -> 3.421664885e-07 | EI12: =SUM($EH$11:EH12) -> 0.0001003421665 | EJ12: =EJ11*EC12 -> 342.1664885 | EK12: =EJ12/EI12 -> 3409997.018 | EL12: =MAX(0,DZ12) -> 0.4999999999 | EM12: 0.5 | EP12: =IF(EL12>0,EL12,EC12/2/$DX$7) -> 0.4999999999 | EQ12: =IF(EM12>0,EM12,EC12*2/$DX$7) -> 0.5 | ER12: =IF(EN12>0,EN12,EF12/EC12*EP12*$DX$7) -> 999999999.9 | ES12: =IF(EO12>0,EO12,EF12/EC12*EQ12*$DX$7) -> 1000000000 | ET12: 3.421664885e-07 | EU12: =RAND() -> 0.9461279622 | EV12: =IF(EV$9=1,1,IF($EU12<(EV$9-EV$8)/(EV$10-EV$8),SQRT($EU12*(EV$10-EV$8)*(EV$9-EV$8))+EV$8,EV$10-SQRT((1-$EU12)*(EV$10-EV$8)*(EV$10-EV$9)))*EV$5) -> 0.5 | EW12: =RAND() -> 0.3401477768 | EX12: =IF(EX$9=1,$DX$7,IF($EW12<(EX$9-EX$8)/(EX$10-EX$8),SQRT($EW12*(EX$10-EX$8)*(EX$9-EX$8))+EX$8,EX$10-SQRT((1-$EW12)*(EX$10-EX$8)*(EX$10-EX$9)))*$DX$7*EX$5) -> 684.332977 | EY12: =RAND() -> 0.1028616331 | EZ12: =IF(EZ$9=1,1,IF($EU12<(EZ$9-EZ$8)/(EZ$10-EZ$8),SQRT($EU12*(EZ$10-EZ$8)*(EZ$9-EZ$8))+EZ$8,EZ$10-SQRT((1-$EU12)*(EZ$10-EZ$8)*(EZ$10-EZ$9)))*EZ$5) -> 0.75 | FA12: =RAND() -> 0.6995927599 | FB12: =IF(FB$9=1,1,IF($EU12<(FB$9-FB$8)/(FB$10-FB$8),SQRT($EU12*(FB$10-FB$8)*(FB$9-FB$8))+FB$8,FB$10-SQRT((1-$EU12)*(FB$10-FB$8)*(FB$10-FB$9)))*FB$5) -> 0.5 | FC12: =RAND() -> 0.8364682414 | FD12: =IF(FD$9=1,1,IF($EU12<(FD$9-FD$8)/(FD$10-FD$8),SQRT($EU12*(FD$10-FD$8)*(FD$9-FD$8))+FD$8,FD$10-SQRT((1-$EU12)*(FD$10-FD$8)*(FD$10-FD$9)))*FD$5) -> 0.9 | FE12: =RAND() -> 0.02499454835 | FF12: =IF(FF$9=1,1,IF($EU12<(FF$9-FF$8)/(FF$10-FF$8),SQRT($EU12*(FF$10-FF$8)*(FF$9-FF$8))+FF$8,FF$10-SQRT((1-$EU12)*(FF$10-FF$8)*(FF$10-FF$9)))*FF$5) -> 1 | FG12: =RAND() -> 0.7132034782 | FH12: =IF(FH$9=1,1,IF($EU12<(FH$9-FH$8)/(FH$10-FH$8),SQRT($EU12*(FH$10-FH$8)*(FH$9-FH$8))+FH$8,FH$10-SQRT((1-$EU12)*(FH$10-FH$8)*(FH$10-FH$9)))*FH$5) -> 1 | FI12: =RAND() -> 0.7843194003 | FJ12: =IF(FJ$9=1,1,IF($EU12<(FJ$9-FJ$8)/(FJ$10-FJ$8),SQRT($EU12*(FJ$10-FJ$8)*(FJ$9-FJ$8))+FJ$8,FJ$10-SQRT((1-$EU12)*(FJ$10-FJ$8)*(FJ$10-FJ$9)))*FJ$5) -> 1 | FK12: =RAND() -> 0.6541613924 | FL12: =IF(FL$9=1,1,IF($EU12<(FL$9-FL$8)/(FL$10-FL$8),SQRT($EU12*(FL$10-FL$8)*(FL$9-FL$8))+FL$8,FL$10-SQRT((1-$EU12)*(FL$10-FL$8)*(FL$10-FL$9)))*FL$5) -> 1 | FM12: =RAND() -> 0.2196955406 | FN12: =IF(FN$9=1,1,IF($EU12<(FN$9-FN$8)/(FN$10-FN$8),SQRT($EU12*(FN$10-FN$8)*(FN$9-FN$8))+FN$8,FN$10-SQRT((1-$EU12)*(FN$10-FN$8)*(FN$10-FN$9)))*FN$5) -> 1 | FO12: =RAND() -> 0.9518648577 | FP12: =IF(FP$9=1,1,IF($EU12<(FP$9-FP$8)/(FP$10-FP$8),SQRT($EU12*(FP$10-FP$8)*(FP$9-FP$8))+FP$8,FP$10-SQRT((1-$EU12)*(FP$10-FP$8)*(FP$10-FP$9)))*FP$5) -> 1 | FQ12: =EV12 -> 0.5 | FR12: =FQ12*EX12 -> 342.1664885 | FS12: =FR12*EZ12 -> 256.6248664 | FT12: =FS12*FB12 -> 128.3124332 | FU12: =FT12*FD12 -> 115.4811899 | FV12: =FU12*FF12 -> 115.4811899 | FW12: =FV12*FH12 -> 115.4811899 | FX12: =FW12*FJ12 -> 115.4811899 | FY12: =FX12*FL12 -> 115.4811899 | FZ12: =FY12*FN12 -> 115.4811899 | GA12: =FZ12*FP12 -> 115.4811899 | GB12: =HLOOKUP(1,$FQ$6:$GA$132,ROW()-5,FALSE) -> 115.4811899 | GC12: =GO12 -> 5000 | GD12: =IF(GD$6<$DT$10+1,FR12/(FR12/GP12-FQ12/GO12),0) -> 1000000000 | GE12: =IF(GE$6<$DT$10+1,FS12/(FS12/GQ12-FR12/GP12),0) -> 1000000000 | GF12: =IF(GF$6<$DT$10+1,FT12/(FT12/GR12-FS12/GQ12),0) -> 3000000 | GG12: =IF(GG$6<$DT$10+1,FU12/(FU12/GS12-FT12/GR12),0) -> 1e+11 | GH12: =IF(GH$6<$DT$10+1,FV12/(FV12/GT12-FU12/GS12),0) -> 0 | GI12: =IF(GI$6<$DT$10+1,FW12/(FW12/GU12-FV12/GT12),0) -> 0 | GJ12: =IF(GJ$6<$DT$10+1,FX12/(FX12/GV12-FW12/GU12),0) -> 0 | GK12: =IF(GK$6<$DT$10+1,FY12/(FY12/GW12-FX12/GV12),0) -> 0 | GL12: =IF(GL$6<$DT$10+1,FZ12/(FZ12/GX12-FY12/GW12),0) -> 0 | GM12: =IF(GM$6<$DT$10+1,GA12/(GA12/GY12-FZ12/GX12),0) -> 0 | GN12: =RAND() -> 0.3307870711 | GO12: =IF($GN12<(GO$9-GO$8)/(GO$10-GO$8),SQRT($GN12*(GO$10-GO$8)*(GO$9-GO$8))+GO$8,GO$10-SQRT((1-$GN12)*(GO$10-GO$8)*(GO$10-GO$9))) -> 5000 | GP12: =EX12/(1/GO12+EX12/$EF$12) -> 3409997.018 | GQ12: =EZ12/(1/GP12+EZ12/$EF$13) -> 2550973.654 | GR12: =FB12/(1/GQ12+FB12/$EF$14) -> 894976.5573 | GS12: =FD12/(1/GR12+FD12/$EF$15) -> 805472.4136 | GT12: =FF12/(1/GS12+FF12/$EF$16) ->  | GU12: =FH12/(1/GT12+FH12/$EF$17) ->  | GV12: =FJ12/(1/GU12+FJ12/$EF$18) ->  | GW12: =FL12/(1/GV12+FL12/$EF$19) ->  | GX12: =FN12/(1/GW12+FN12/$EF$20) ->  | GY12: =FP12/(1/GX12+FP12/$EF$21) ->  | GZ12: =HLOOKUP(1,$GO$6:$GY$132,ROW()-5,FALSE) -> 805472.4136 | HB12: =CI14 -> 0 | HD12: =HB12 -> 0 | HE12: =HD12 -> 0 | HF12: =IF('Level 3'!$C$15 <> "None",HE12*$EV12/(1+HE12*$EV12/$GC12),HE12*$EC$11/(1+HE12*$EC$11/$EF$11)) -> 0 | HG12: =IF('Level 3'!$C$15 <> "None",HF12*$EX12/(1+HF12*$EX12/$GD12),HF12*$EC$12/(1+HF12*$EC$12/$EF$12)) -> 0 | HH12: =IF('Level 3'!$C$15 <> "None",HG12*$EZ12/(1+HG12*$EZ12/$GE12),HG12*$EC$13/(1+HG12*$EC$13/$EF$13)) -> 0 | HI12: =IF('Level 3'!$C$15 <> "None",HH12*$FB12/(1+HH12*$FB12/$GF12),HH12*$EC$14/(1+HH12*$EC$14/$EF$14)) -> 0 | HJ12: =IF('Level 3'!$C$15 <> "None",HI12*$FD12/(1+HI12*$FD12/$GG12),HI12*$EC$15/(1+HI12*$EC$15/$EF$15)) -> 0 | HK12: =IF('Level 3'!$C$15 <> "None",HJ12*$FF12/(1+HJ12*$FF12/$GH12),HJ12*$EC$16/(1+HJ12*$EC$16/$EF$16)) ->  | HL12: =IF('Level 3'!$C$15 <> "None",HK12*$FH12/(1+HK12*$FH12/$GI12),HK12*$EC$17/(1+HK12*$EC$17/$EF$17)) ->  | HM12: =IF('Level 3'!$C$15 <> "None",HL12*$FJ12/(1+HL12*$FJ12/$GJ12),HL12*$EC$18/(1+HL12*$EC$18/$EF$18)) ->  | HN12: =IF('Level 3'!$C$15 <> "None",HM12*$FL12/(1+HM12*$FL12/$GK12),HM12*$EC$19/(1+HM12*$EC$19/$EF$19)) ->  | HO12: =IF('Level 3'!$C$15 <> "None",HN12*$FN12/(1+HN12*$FN12/$GL12),HN12*$EC$20/(1+HN12*$EC$20/$EF$20)) ->  | HP12: =IF('Level 3'!$C$15 <> "None",HO12*$FP12/(1+HO12*$FP12/$GM12),HO12*$EC$21/(1+HO12*$EC$21/$EF$21)) ->  | HQ12: =IF('Level 3'!$C$15="None",HE12*$EJ$3/(1+$EJ$3*HE12/$EJ$4),HLOOKUP(1,$HF$9:$HP$132,ROW()-8,FALSE)) -> 0
B13: Generation | C13: Rand | D13: N(0,1/12) | E13: Mean hr | F13: HR | G13: Spawners (NOR) | H13: Smolt | I13: NOR Runsize | J13: Catch | K13: Return to Subbasin | L13: Sp Run Avg | M13: Rand | N13: Age 1 | O13: Age 1 | P13: Age 2 | Q13: Age 2 | R13: Age 3 | S13: Age 3 | T13: Age 4 | U13: Age 4 | V13: Age 5 | W13: Age 5 | X13: Age 6 | Y13: Age 6 | Z13: Smolts (Yearlings) | AA13: BY SAR | AC13: Smolts | AD13: 1's | AE13: 2's | AF13: 3's | AG13: 4's | AH13: 5's | AI13: 6's | AJ13: Total Run | AK13: HR | AL13: Catch | AM13: BY Return | AN13: 1's | AO13: 2's | AP13: 3's | AQ13: 4's | AR13: 5's | AS13: 6's | AT13: Total | AV13: 1's | AW13: 2's | AX13: 3's | AY13: 4's | AZ13: 5's | BA13: 6's | BB13: Total | BD13: 1's | BE13: 2's | BF13: 3's | BG13: 4's | BH13: 5's | BI13: 6's | BJ13: Total | BL13: 1's | BM13: 2's | BN13: 3's | BO13: 4's | BP13: 5's | BQ13: 6's | BR13: Total | BT13: 1's | BU13: 2's | BV13: 3's | BW13: 4's | BX13: 5's | BY13: 6's | BZ13: Total | CA13: Total Catch All Fisheries | CC13: 1's | CD13: 2's | CE13: 3's | CF13: 4's | CG13: 5's | CH13: 6's | CI13: Total | CJ13: HOS | CK13: 1's | CL13: 2's | CM13: 3's | CN13: 4's | CO13: 5's | CP13: 6's | CQ13: Total | CT13: pNOB | CU13: pHOS | CV13: 1909 | CW13: 0.23 | CX13: 1.01 | CY13: 0.54 | CZ13: 0.24 | DA13: -0.39 | DB13: -0.64 | DC13: -0.39 | DD13: -0.68 | DE13: -0.89 | DF13: -0.02 | DG13: -0.4 | DH13: -0.01 | DI13: 1909 | DJ13: 0.4583333333 | DR13: 0 | DT13: 3 | DU13: 3 | DV13: Tributary | DW13: ='Level 3'!B23 -> Fry Colonization | DX13: =IF('Level 3'!B23="END",1,'Level 3'!C23*IF(DW13 = 'Level 3'!$C$10, 'Level 3'!C$11,1)) -> 0.75 | DY13: =PRODUCT(DX$11:DX13) -> 0.1875 | DZ13: =MAX(0.0000000001,DX13*(1-MAX('Level 3'!D23,0.0000000001))) -> 0.7499999999 | EA13: =MIN(1,DX13*(1+MAX('Level 3'!D23,0.000000000000001))) -> 0.75 | EB13: =IF('Level 3'!B23="END",0,'Level 3'!F23) -> 1000000000 | EC13: =IF(DW13="END",0,DX13) -> 0.75 | ED13: 1000 | EE13: 10 | EF13: 1000000000 | EG13: 0 | EH13: =EJ13/EF13 -> 2.566248664e-07 | EI13: =SUM($EH$11:EH13) -> 0.0001005987914 | EJ13: =$EJ$12*$EC$13 -> 256.6248664 | EK13: =EJ13/EI13 -> 2550973.654 | EL13: 0.7499999999 | EM13: 0.75 | EP13: =IF(EL13>0,EL13,EC13/2) -> 0.7499999999 | EQ13: =IF(EM13>0,EM13,EC13*2) -> 0.75 | ER13: =IF(EN13>0,EN13,EF13/EC13*EP13) -> 999999999.9 | ES13: =IF(EO13>0,EO13,EF13/EC13*EQ13) -> 1000000000 | ET13: 2.566248664e-07 | EU13: 0.9092475562 | EV13: =IF(EV$9=1,1,IF($EU13<(EV$9-EV$8)/(EV$10-EV$8),SQRT($EU13*(EV$10-EV$8)*(EV$9-EV$8))+EV$8,EV$10-SQRT((1-$EU13)*(EV$10-EV$8)*(EV$10-EV$9)))*EV$5) -> 0.5 | EW13: 0.7481252607 | EX13: =IF(EX$9=1,$DX$7,IF($EW13<(EX$9-EX$8)/(EX$10-EX$8),SQRT($EW13*(EX$10-EX$8)*(EX$9-EX$8))+EX$8,EX$10-SQRT((1-$EW13)*(EX$10-EX$8)*(EX$10-EX$9)))*$DX$7*EX$5) -> 684.332977 | EY13: 0.5986747736 | EZ13: =IF(EZ$9=1,1,IF($EU13<(EZ$9-EZ$8)/(EZ$10-EZ$8),SQRT($EU13*(EZ$10-EZ$8)*(EZ$9-EZ$8))+EZ$8,EZ$10-SQRT((1-$EU13)*(EZ$10-EZ$8)*(EZ$10-EZ$9)))*EZ$5) -> 0.75 | FA13: 0.1803374556 | FB13: =IF(FB$9=1,1,IF($EU13<(FB$9-FB$8)/(FB$10-FB$8),SQRT($EU13*(FB$10-FB$8)*(FB$9-FB$8))+FB$8,FB$10-SQRT((1-$EU13)*(FB$10-FB$8)*(FB$10-FB$9)))*FB$5) -> 0.5 | FC13: 0.8499973736 | FD13: =IF(FD$9=1,1,IF($EU13<(FD$9-FD$8)/(FD$10-FD$8),SQRT($EU13*(FD$10-FD$8)*(FD$9-FD$8))+FD$8,FD$10-SQRT((1-$EU13)*(FD$10-FD$8)*(FD$10-FD$9)))*FD$5) -> 0.9 | FE13: 0.6462811833 | FF13: =IF(FF$9=1,1,IF($EU13<(FF$9-FF$8)/(FF$10-FF$8),SQRT($EU13*(FF$10-FF$8)*(FF$9-FF$8))+FF$8,FF$10-SQRT((1-$EU13)*(FF$10-FF$8)*(FF$10-FF$9)))*FF$5) -> 1 | FG13: 0.2437333695 | FH13: =IF(FH$9=1,1,IF($EU13<(FH$9-FH$8)/(FH$10-FH$8),SQRT($EU13*(FH$10-FH$8)*(FH$9-FH$8))+FH$8,FH$10-SQRT((1-$EU13)*(FH$10-FH$8)*(FH$10-FH$9)))*FH$5) -> 1 | FI13: 0.3621080746 | FJ13: =IF(FJ$9=1,1,IF($EU13<(FJ$9-FJ$8)/(FJ$10-FJ$8),SQRT($EU13*(FJ$10-FJ$8)*(FJ$9-FJ$8))+FJ$8,FJ$10-SQRT((1-$EU13)*(FJ$10-FJ$8)*(FJ$10-FJ$9)))*FJ$5) -> 1 | FK13: 0.1263639451 | FL13: =IF(FL$9=1,1,IF($EU13<(FL$9-FL$8)/(FL$10-FL$8),SQRT($EU13*(FL$10-FL$8)*(FL$9-FL$8))+FL$8,FL$10-SQRT((1-$EU13)*(FL$10-FL$8)*(FL$10-FL$9)))*FL$5) -> 1 | FM13: 0.5591578764 | FN13: =IF(FN$9=1,1,IF($EU13<(FN$9-FN$8)/(FN$10-FN$8),SQRT($EU13*(FN$10-FN$8)*(FN$9-FN$8))+FN$8,FN$10-SQRT((1-$EU13)*(FN$10-FN$8)*(FN$10-FN$9)))*FN$5) -> 1 | FO13: 0.7773548099 | FP13: =IF(FP$9=1,1,IF($EU13<(FP$9-FP$8)/(FP$10-FP$8),SQRT($EU13*(FP$10-FP$8)*(FP$9-FP$8))+FP$8,FP$10-SQRT((1-$EU13)*(FP$10-FP$8)*(FP$10-FP$9)))*FP$5) -> 1 | FQ13: 0.5 | FR13: 342.1664885 | FS13: 256.6248664 | FT13: 128.3124332 | FU13: 115.4811899 | FV13: 115.4811899 | FW13: 115.4811899 | FX13: 115.4811899 | FY13: 115.4811899 | FZ13: 115.4811899 | GA13: 115.4811899 | GB13: 115.4811899 | GC13: =GO13 -> 5000 | GD13: =IF(GD$6<$DT$10+1,FR13/(FR13/GP13-FQ13/GO13),0) -> 1000000000 | GE13: =IF(GE$6<$DT$10+1,FS13/(FS13/GQ13-FR13/GP13),0) -> 1000000000 | GF13: =IF(GF$6<$DT$10+1,FT13/(FT13/GR13-FS13/GQ13),0) -> 3000000 | GG13: =IF(GG$6<$DT$10+1,FU13/(FU13/GS13-FT13/GR13),0) -> 1e+11 | GH13: 0 | GI13: 0 | GJ13: 0 | GK13: 0 | GL13: 0 | GM13: 0 | GN13: 0.6851456688 | GO13: =IF($GN13<(GO$9-GO$8)/(GO$10-GO$8),SQRT($GN13*(GO$10-GO$8)*(GO$9-GO$8))+GO$8,GO$10-SQRT((1-$GN13)*(GO$10-GO$8)*(GO$10-GO$9))) -> 5000 | GP13: 3409997.018 | GQ13: 2550973.654 | GR13: 894976.5573 | GS13: 805472.4136 | GZ13: 805472.4136 | HB13: =CI14 -> 0 | HD13: =HB13 -> 0 | HE13: 0 | HF13: =IF('Level 3'!$C$15 <> "None",HE13*$EV13/(1+HE13*$EV13/$GC13),HE13*$EC$11/(1+HE13*$EC$11/$EF$11)) -> 0 | HG13: =IF('Level 3'!$C$15 <> "None",HF13*$EX13/(1+HF13*$EX13/$GD13),HF13*$EC$12/(1+HF13*$EC$12/$EF$12)) -> 0 | HH13: =IF('Level 3'!$C$15 <> "None",HG13*$EZ13/(1+HG13*$EZ13/$GE13),HG13*$EC$13/(1+HG13*$EC$13/$EF$13)) -> 0 | HI13: =IF('Level 3'!$C$15 <> "None",HH13*$FB13/(1+HH13*$FB13/$GF13),HH13*$EC$14/(1+HH13*$EC$14/$EF$14)) -> 0 | HJ13: =IF('Level 3'!$C$15 <> "None",HI13*$FD13/(1+HI13*$FD13/$GG13),HI13*$EC$15/(1+HI13*$EC$15/$EF$15)) -> 0 | HK13: =IF('Level 3'!$C$15 <> "None",HJ13*$FF13/(1+HJ13*$FF13/$GH13),HJ13*$EC$16/(1+HJ13*$EC$16/$EF$16)) ->  | HL13: =IF('Level 3'!$C$15 <> "None",HK13*$FH13/(1+HK13*$FH13/$GI13),HK13*$EC$17/(1+HK13*$EC$17/$EF$17)) ->  | HM13: =IF('Level 3'!$C$15 <> "None",HL13*$FJ13/(1+HL13*$FJ13/$GJ13),HL13*$EC$18/(1+HL13*$EC$18/$EF$18)) ->  | HN13: =IF('Level 3'!$C$15 <> "None",HM13*$FL13/(1+HM13*$FL13/$GK13),HM13*$EC$19/(1+HM13*$EC$19/$EF$19)) ->  | HO13: =IF('Level 3'!$C$15 <> "None",HN13*$FN13/(1+HN13*$FN13/$GL13),HN13*$EC$20/(1+HN13*$EC$20/$EF$20)) ->  | HP13: =IF('Level 3'!$C$15 <> "None",HO13*$FP13/(1+HO13*$FP13/$GM13),HO13*$EC$21/(1+HO13*$EC$21/$EF$21)) ->  | HQ13: =IF('Level 3'!$C$15="None",HE13*$EJ$3/(1+$EJ$3*HE13/$EJ$4),HLOOKUP(1,$HF$9:$HP$132,ROW()-8,FALSE)) -> 0
C14: =IF('Level 3'!$C$15="Random",RAND(),IF('Level 3'!$C$15="None",0.5,RAND())) -> 0.5 | D14: =NORMINV(C14,0,SQRT(1/12)) -> 0 | F14: 0 | H14: =AC14 -> 402736.2068 | I14: =AJ14 -> 0 | J14: =AL14 -> 0 | K14: =BR14 -> 0 | M14: =RAND() -> 0.3499075849 | N14: =MIN(LOGINV(M14,$N$9,$N$10),0.9999) -> 0.04123296326 | O14: =IF('Level 3'!$C$15= "None", N$3, IF('Level 3'!$C$15 = "Random",N14, $N$3)) -> 0.05 | P14: =IF(M14<(P$11-P$10)/(P$12-P$10),SQRT(M14*(P$12-P$10)*(P$11-P$10))+P$10,P$12-SQRT((1-M14)*(P$12-P$10)*(P$12-P$11))) -> 0.3983654956 | Q14: =IF('Level 3'!$C$15= "None",P$3,P14) -> 0.4 | R14: =IF(M14<(R$11-R$10)/(R$12-R$10),SQRT(M14*(R$12-R$10)*(R$11-R$10))+R$10,R$12-SQRT((1-M14)*(R$12-R$10)*(R$12-R$11))) -> 0.5983654956 | S14: =IF('Level 3'!$C$15= "None",R$3,R14) -> 0.6 | T14: =IF(M14<(T$11-T$10)/(T$12-T$10),SQRT(M14*(T$12-T$10)*(T$11-T$10))+T$10,T$12-SQRT((1-M14)*(T$12-T$10)*(T$12-T$11))) -> 0.6983654956 | U14: =IF('Level 3'!$C$15= "None",T$3,T14) -> 0.7 | V14: =IF(M14<(V$11-V$10)/(V$12-V$10),SQRT(M14*(V$12-V$10)*(V$11-V$10))+V$10,V$12-SQRT((1-M14)*(V$12-V$10)*(V$12-V$11))) -> 0.7983654956 | W14: =IF('Level 3'!$C$15= "None",V$3,V14) -> 0.8 | X14: =IF(M14<(X$11-X$10)/(X$12-X$10),SQRT(M14*(X$12-X$10)*(X$11-X$10))+X$10,X$12-SQRT((1-M14)*(X$12-X$10)*(X$12-X$11))) -> 0.8983654956 | Y14: =IF('Level 3'!$C$15= "None",X$3,X14) -> 0.9 | Z14: =HQ12 -> 0 | AC14: =$EJ$4/2 -> 402736.2068 | AJ14: =SUM(AD14:AI14) -> 0 | AK14: =F14 -> 0 | AL14: =AK14*AJ14 -> 0 | AN14: =MIN(AD14*$C$4,AD14*$AK14*AN$2*$AT$2) -> 0 | AO14: =MIN(AE14*$C$4,AE14*$AK14*AO$2*$AT$2) -> 0 | AP14: =MIN(AF14*$C$4,AF14*$AK14*AP$2*$AT$2) -> 0 | AQ14: =MIN(AG14*$C$4,AG14*$AK14*AQ$2*$AT$2) -> 0 | AR14: =MIN(AH14*$C$4,AH14*$AK14*AR$2*$AT$2) -> 0 | AS14: =MIN(AI14*$C$4,AI14*$AK14*AS$2*$AT$2) -> 0 | AT14: =SUM(AN14:AS14) -> 0 | AV14: =(AD14-AN14)*$AN$3 -> 0 | AW14: =(AE14-AO14)*$AN$3 -> 0 | AX14: =(AF14-AP14)*$AN$3 -> 0 | AY14: =(AG14-AQ14)*$AN$3 -> 0 | AZ14: =(AH14-AR14)*$AN$3 -> 0 | BA14: =(AI14-AS14)*$AN$3 -> 0 | BB14: =SUM(AV14:BA14) -> 0 | BD14: =MIN(AV14*$C$4,$AK14*AD14*(1-$AT$2-$AT$6)*AN$4) -> 0 | BE14: =MIN(AW14*$C$4,$AK14*AE14*(1-$AT$2-$AT$6)*AO$4) -> 0 | BF14: =MIN(AX14*$C$4,$AK14*AF14*(1-$AT$2-$AT$6)*AP$4) -> 0 | BG14: =MIN(AY14*$C$4,$AK14*AG14*(1-$AT$2-$AT$6)*AQ$4) -> 0 | BH14: =MIN(AZ14*$C$4,$AK14*AH14*(1-$AT$2-$AT$6)*AR$4) -> 0 | BI14: =MIN(BA14*$C$4,$AK14*AI14*(1-$AT$2-$AT$6)*AS$4) -> 0 | BJ14: =SUM(BD14:BI14) -> 0 | BL14: =(AV14-BD14)*$AN$5 -> 0 | BM14: =(AW14-BE14)*$AN$5 -> 0 | BN14: =(AX14-BF14)*$AN$5 -> 0 | BO14: =(AY14-BG14)*$AN$5 -> 0 | BP14: =(AZ14-BH14)*$AN$5 -> 0 | BQ14: =(BA14-BI14)*$AN$5 -> 0 | BR14: =SUM(BL14:BQ14) -> 0 | BT14: =MIN(BL14*$C$4,AD14*$AK14*AN$6*$AT$6) -> 0 | BU14: =MIN(BM14*$C$4,AE14*$AK14*AO$6*$AT$6) -> 0 | BV14: =MIN(BN14*$C$4,AF14*$AK14*AP$6*$AT$6) -> 0 | BW14: =MIN(BO14*$C$4,AG14*$AK14*AQ$6*$AT$6) -> 0 | BX14: =MIN(BP14*$C$4,AH14*$AK14*AR$6*$AT$6) -> 0 | BY14: =MIN(BQ14*$C$4,AI14*$AK14*AS$6*$AT$6) -> 0 | BZ14: =SUM(BT14:BY14) -> 0 | CA14: =BZ14+BJ14+AT14 -> 0 | CC14: =(BL14-BT14)*$AN$7 -> 0 | CD14: =(BM14-BU14)*$AN$7 -> 0 | CE14: 0 | CF14: 0 | CG14: 0 | CH14: 0 | CI14: =SUM(CC14:CH14) -> 0 | CV14: 1910 | CW14: -0.25 | CX14: -0.7 | CY14: 0.18 | CZ14: -0.37 | DA14: -0.06 | DB14: -0.28 | DC14: 0.03 | DD14: -0.06 | DE14: 0.4 | DF14: -0.66 | DG14: 0.02 | DH14: 0.84 | DI14: 1910 | DJ14: 0.05666666667 | DR14: 0 | DT14: 4 | DU14: 4 | DV14: Tributary | DW14: ='Level 3'!B24 -> Rearing | DX14: =IF('Level 3'!B24="END",1,'Level 3'!C24*IF(DW14 = 'Level 3'!$C$10, 'Level 3'!C$11,1)) -> 0.5 | DY14: =PRODUCT(DX$11:DX14) -> 0.09375 | DZ14: =MAX(0.0000000001,DX14*(1-MAX('Level 3'!D24,0.0000000001))) -> 0.4999999999 | EA14: =MIN(1,DX14*(1+MAX('Level 3'!D24,0.000000000000001))) -> 0.5 | EB14: =IF('Level 3'!B24="END",0,'Level 3'!F24) -> 3000000 | EC14: =IF(DW14="END",0,DX14) -> 0.5 | ED14: 1000 | EE14: 10 | EF14: 3000000 | EG14: 0 | EH14: 4.277081107e-05 | EI14: =SUM($EH$11:EH14) -> 0.0001433696024 | EJ14: =EJ13*EC14 -> 128.3124332 | EK14: =EJ14/EI14 -> 894976.5573 | EL14: 0.4999999999 | EM14: 0.5 | EP14: =IF(EL14>0,EL14,EC14/2) -> 0.4999999999 | EQ14: =IF(EM14>0,EM14,EC14*2) -> 0.5 | ER14: =IF(EN14>0,EN14,EF14/EC14*EP14) -> 3000000 | ES14: =IF(EO14>0,EO14,EF14/EC14*EQ14) -> 3000000 | ET14: 4.277081107e-05 | EU14: 0.01351096665 | EV14: 0.5 | EW14: 0.8895737444 | EX14: 684.332977 | EY14: 0.16529913 | EZ14: 0.7499999999 | FA14: 0.8298256545 | FB14: 0.5 | FC14: 0.8194956901 | FD14: 0.8999999999 | FE14: 0.3617384766 | FF14: 1 | FG14: 0.7392109127 | FH14: 1 | FI14: 0.7084424752 | FJ14: 1 | FK14: 0.660272189 | FL14: 1 | FM14: 0.1364533352 | FN14: 1 | FO14: 0.3531138236 | FP14: 1 | FQ14: 0.5 | FR14: 342.1664885 | FS14: 256.6248663 | FT14: 128.3124332 | FU14: 115.4811898 | FV14: 115.4811898 | FW14: 115.4811898 | FX14: 115.4811898 | FY14: 115.4811898 | FZ14: 115.4811898 | GA14: 115.4811898 | GB14: 115.4811898 | GC14: 5000 | GD14: 1000000000 | GE14: 1000000000 | GF14: 3000000 | GG14: 1e+11 | GH14: 0 | GI14: 0 | GJ14: 0 | GK14: 0 | GL14: 0 | GM14: 0 | GN14: 0.8700166199 | GO14: 5000 | GP14: 3409997.018 | GQ14: 2550973.654 | GR14: 894976.5572 | GS14: 805472.4135 | GZ14: 805472.4135 | HB14: 0 | HD14: =HB14 -> 0 | HE14: 0 | HF14: =IF('Level 3'!$C$15 <> "None",HE14*$EV14/(1+HE14*$EV14/$GC14),HE14*$EC$11/(1+HE14*$EC$11/$EF$11)) -> 0 | HG14: =IF('Level 3'!$C$15 <> "None",HF14*$EX14/(1+HF14*$EX14/$GD14),HF14*$EC$12/(1+HF14*$EC$12/$EF$12)) -> 0 | HH14: =MAX(IF('Level 3'!$C$15 <> "None",IF($HI$8="Y",((RAND()-0.5)/SQRT(1/12))*SQRT((HG14*EZ14/(1+HG14*EZ14/GE14))*(1-EZ14/(1+HG14*EZ14/GE14))),0)+(HG14*EZ14/(1+HG14*EZ14/GE14)),HG14*$EC$13/(1+HG14*$EC$13/$EF$13)),0) -> 0 | HI14: =MAX(IF('Level 3'!$C$15 <> "None",IF($HI$8="Y",((RAND()-0.5)/SQRT(1/12))*SQRT((HH14*FB14/(1+HH14*FB14/GF14))*(1-FB14/(1+HH14*FB14/GF14))),0)+(HH14*FB14/(1+HH14*FB14/GF14)),HH14*$EC$14/(1+HH14*$EC$14/$EF$14)),0) -> 0 | HJ14: =MAX(IF('Level 3'!$C$15 <> "None",IF($HI$8="Y",((RAND()-0.5)/SQRT(1/12))*SQRT((HI14*FD14/(1+HI14*FD14/GG14))*(1-FD14/(1+HI14*FD14/GG14))),0)+(HI14*FD14/(1+HI14*FD14/GG14)),HI14*$EC$15/(1+HI14*$EC$15/$EF$15)),0) -> 0 | HK14: =MAX(IF('Level 3'!$C$15 <> "None",IF($HI$8="Y",((RAND()-0.5)/SQRT(1/12))*SQRT((HJ14*FF14/(1+HJ14*FF14/GH14))*(1-FF14/(1+HJ14*FF14/GH14))),0)+(HJ14*FF14/(1+HJ14*FF14/GH14)),HJ14*$EC$16/(1+HJ14*$EC$16/$EF$16)),0) ->  | HL14: =MAX(IF('Level 3'!$C$15 <> "None",IF($HI$8="Y",((RAND()-0.5)/SQRT(1/12))*SQRT((HK14*FH14/(1+HK14*FH14/GI14))*(1-FH14/(1+HK14*FH14/GI14))),0)+(HK14*FH14/(1+HK14*FH14/GI14)),HK14*$EC$17/(1+HK14*$EC$17/$EF$17)),0) ->  | HM14: =MAX(IF('Level 3'!$C$15 <> "None",IF($HI$8="Y",((RAND()-0.5)/SQRT(1/12))*SQRT((HL14*FJ14/(1+HL14*FJ14/GJ14))*(1-FJ14/(1+HL14*FJ14/GJ14))),0)+(HL14*FJ14/(1+HL14*FJ14/GJ14)),HL14*$EC$18/(1+HL14*$EC$18/$EF$18)),0) ->  | HN14: =MAX(IF('Level 3'!$C$15 <> "None",IF($HI$8="Y",((RAND()-0.5)/SQRT(1/12))*SQRT((HM14*FL14/(1+HM14*FL14/GK14))*(1-FL14/(1+HM14*FL14/GK14))),0)+(HM14*FL14/(1+HM14*FL14/GK14)),HM14*$EC$19/(1+HM14*$EC$19/$EF$19)),0) ->  | HO14: =MAX(IF('Level 3'!$C$15 <> "None",IF($HI$8="Y",((RAND()-0.5)/SQRT(1/12))*SQRT((HN14*FN14/(1+HN14*FN14/GL14))*(1-FN14/(1+HN14*FN14/GL14))),0)+(HN14*FN14/(1+HN14*FN14/GL14)),HN14*$EC$20/(1+HN14*$EC$20/$EF$20)),0) ->  | HP14: =MAX(IF('Level 3'!$C$15 <> "None",IF($HI$8="Y",((RAND()-0.5)/SQRT(1/12))*SQRT((HO14*FP14/(1+HO14*FP14/GM14))*(1-FP14/(1+HO14*FP14/GM14))),0)+(HO14*FP14/(1+HO14*FP14/GM14)),HO14*$EC$21/(1+HO14*$EC$21/$EF$21)),0) ->  | HQ14: =IF('Level 3'!$C$15="None",HE14*$EJ$3/(1+$EJ$3*HE14/$EJ$4),HLOOKUP(1,$HF$9:$HP$132,ROW()-8,FALSE)) -> 0
C15: =IF('Level 3'!$C$15="Random",RAND(),IF('Level 3'!$C$15="None",0.5,RAND())) -> 0.5 | D15: =NORMINV(C15,0,SQRT(1/12)) -> 0 | F15: 0 | H15: 402736.2068 | I15: 0 | J15: 0 | K15: =BR15 -> 0 | M15: =RAND() -> 0.1313654066 | N15: =MIN(LOGINV(M15,$N$9,$N$10),0.9999) -> 0.02856102458 | O15: =IF('Level 3'!$C$15= "None", N$3, IF('Level 3'!$C$15 = "Random",N15, $N$3)) -> 0.05 | P15: =IF(M15<(P$11-P$10)/(P$12-P$10),SQRT(M15*(P$12-P$10)*(P$11-P$10))+P$10,P$12-SQRT((1-M15)*(P$12-P$10)*(P$12-P$11))) -> 0.3951257274 | Q15: =IF('Level 3'!$C$15= "None",P$3,P15) -> 0.4 | R15: =IF(M15<(R$11-R$10)/(R$12-R$10),SQRT(M15*(R$12-R$10)*(R$11-R$10))+R$10,R$12-SQRT((1-M15)*(R$12-R$10)*(R$12-R$11))) -> 0.5951257274 | S15: =IF('Level 3'!$C$15= "None",R$3,R15) -> 0.6 | T15: =IF(M15<(T$11-T$10)/(T$12-T$10),SQRT(M15*(T$12-T$10)*(T$11-T$10))+T$10,T$12-SQRT((1-M15)*(T$12-T$10)*(T$12-T$11))) -> 0.6951257274 | U15: =IF('Level 3'!$C$15= "None",T$3,T15) -> 0.7 | V15: =IF(M15<(V$11-V$10)/(V$12-V$10),SQRT(M15*(V$12-V$10)*(V$11-V$10))+V$10,V$12-SQRT((1-M15)*(V$12-V$10)*(V$12-V$11))) -> 0.7951257274 | W15: =IF('Level 3'!$C$15= "None",V$3,V15) -> 0.8 | X15: =IF(M15<(X$11-X$10)/(X$12-X$10),SQRT(M15*(X$12-X$10)*(X$11-X$10))+X$10,X$12-SQRT((1-M15)*(X$12-X$10)*(X$12-X$11))) -> 0.8951257274 | Y15: =IF('Level 3'!$C$15= "None",X$3,X15) -> 0.9 | Z15: =HQ13 -> 0 | AC15: =$EJ$4/2 -> 402736.2068 | AD15: =AC14*$N$2*O14 -> 0 | AJ15: =SUM(AD15:AI15) -> 0 | AK15: 0 | AL15: =AK15*AJ15 -> 0 | AN15: 0 | AO15: 0 | AP15: 0 | AQ15: 0 | AR15: 0 | AS15: 0 | AT15: 0 | AV15: 0 | AW15: 0 | AX15: 0 | AY15: 0 | AZ15: 0 | BA15: 0 | BB15: =SUM(AV15:BA15) -> 0 | BD15: 0 | BE15: 0 | BF15: 0 | BG15: 0 | BH15: 0 | BI15: 0 | BJ15: =SUM(BD15:BI15) -> 0 | BL15: 0 | BM15: 0 | BN15: 0 | BO15: 0 | BP15: 0 | BQ15: 0 | BR15: =SUM(BL15:BQ15) -> 0 | BT15: 0 | BU15: 0 | BV15: 0 | BW15: 0 | BX15: 0 | BY15: 0 | BZ15: =SUM(BT15:BY15) -> 0 | CA15: 0 | CC15: =(BL15-BT15)*$AN$7 -> 0 | CD15: =(BM15-BU15)*$AN$7 -> 0 | CE15: =(BN15-BV15)*$AN$7 -> 0 | CF15: =(BO15-BW15)*$AN$7 -> 0 | CG15: =(BP15-BX15)*$AN$7 -> 0 | CH15: =(BQ15-BY15)*$AN$7 -> 0 | CI15: =SUM(CC15:CH15) -> 0 | CV15: 1911 | CW15: -1.11 | CX15: 0 | CY15: -0.78 | CZ15: -0.73 | DA15: 0.17 | DB15: 0.02 | DC15: 0.48 | DD15: 0.43 | DE15: 0.29 | DF15: 0.2 | DG15: -0.86 | DH15: 0.01 | DI15: 1911 | DJ15: -0.11 | DR15: 0 | DT15: 5 | DU15: 5 | DV15: Tributary | DW15: ='Level 3'!B25 -> Migration | DX15: =IF('Level 3'!B25="END",1,'Level 3'!C25*IF(DW15 = 'Level 3'!$C$10, 'Level 3'!C$11,1)) -> 0.9 | DY15: =PRODUCT(DX$11:DX15) -> 0.084375 | DZ15: =MAX(0.0000000001,DX15*(1-MAX('Level 3'!D25,0.0000000001))) -> 0.8999999999 | EA15: =MIN(1,DX15*(1+MAX('Level 3'!D25,0.000000000000001))) -> 0.9 | EB15: =IF('Level 3'!B25="END",0,'Level 3'!F25) -> 100000000000 | EC15: 0.9 | ED15: 1000 | EE15: 10 | EF15: 100000000000 | EG15: 1 | EH15: 1.154811899e-09 | EI15: =SUM($EH$11:EH15) -> 0.0001433707572 | EJ15: =EJ14*EC15 -> 115.4811899 | EK15: 805472.4137 | EL15: 0.8999999999 | EM15: =MIN(1, EA15) -> 0.9 | EP15: =IF(EL15>0,EL15,EC15/2) -> 0.8999999999 | EQ15: =IF(EM15>0,EM15,EC15*2) -> 0.9 | ER15: =IF(EN15>0,EN15,EF15/EC15*EP15) -> 99999999990 | ES15: =IF(EO15>0,EO15,EF15/EC15*EQ15) -> 1e+11 | ET15: 1.154811899e-09 | EU15: 0.3970446208 | EV15: 0.5 | EW15: 0.8612329918 | EX15: 684.332977 | EY15: 0.7953429358 | EZ15: 0.75 | FA15: 0.6862681181 | FB15: 0.5 | FC15: 0.6074620415 | FD15: 0.9 | FE15: 0.0969437471 | FF15: 1 | FG15: 0.6805891181 | FH15: 1 | FI15: 0.6384807656 | FJ15: 1 | FK15: 0.0494154075 | FL15: 1 | FM15: 0.2715379518 | FN15: 1 | FO15: 0.01750712024 | FP15: 1 | FQ15: 0.5 | FR15: 342.1664885 | FS15: 256.6248664 | FT15: 128.3124332 | FU15: 115.4811899 | FV15: 115.4811899 | FW15: 115.4811899 | FX15: 115.4811899 | FY15: 115.4811899 | FZ15: 115.4811899 | GA15: 115.4811899 | GB15: 115.4811899 | GC15: 5000 | GD15: 1000000000 | GE15: 1000000000 | GF15: 3000000 | GG15: 1e+11 | GH15: 0 | GI15: 0 | GJ15: 0 | GK15: 0 | GL15: 0 | GM15: 0 | GN15: 0.7953451929 | GO15: 5000 | GP15: 3409997.018 | GQ15: 2550973.654 | GR15: 894976.5573 | GS15: 805472.4136 | GZ15: 805472.4136 | HB15: 886.019655 | HD15: =HB15 -> 886.019655 | HE15: 886.019655 | HF15: =IF('Level 3'!$C$15 <> "None",HE15*$EV15/(1+HE15*$EV15/$GC15),HE15*$EC$11/(1+HE15*$EC$11/$EF$11)) -> 406.9529925 | HG15: =IF('Level 3'!$C$15 <> "None",HF15*$EX15/(1+HF15*$EX15/$GD15),HF15*$EC$12/(1+HF15*$EC$12/$EF$12)) -> 278413.817 | HH15: =MAX(IF('Level 3'!$C$15 <> "None",IF($HI$8="Y",((RAND()-0.5)/SQRT(1/12))*SQRT((HG15*EZ15/(1+HG15*EZ15/GE15))*(1-EZ15/(1+HG15*EZ15/GE15))),0)+(HG15*EZ15/(1+HG15*EZ15/GE15)),HG15*$EC$13/(1+HG15*$EC$13/$EF$13)),0) -> 208766.7701 | HI15: =MAX(IF('Level 3'!$C$15 <> "None",IF($HI$8="Y",((RAND()-0.5)/SQRT(1/12))*SQRT((HH15*FB15/(1+HH15*FB15/GF15))*(1-FB15/(1+HH15*FB15/GF15))),0)+(HH15*FB15/(1+HH15*FB15/GF15)),HH15*$EC$14/(1+HH15*$EC$14/$EF$14)),0) -> 100873.5444 | HJ15: =MAX(IF('Level 3'!$C$15 <> "None",IF($HI$8="Y",((RAND()-0.5)/SQRT(1/12))*SQRT((HI15*FD15/(1+HI15*FD15/GG15))*(1-FD15/(1+HI15*FD15/GG15))),0)+(HI15*FD15/(1+HI15*FD15/GG15)),HI15*$EC$15/(1+HI15*$EC$15/$EF$15)),0) -> 90786.10753 | HK15: =MAX(IF('Level 3'!$C$15 <> "None",IF($HI$8="Y",((RAND()-0.5)/SQRT(1/12))*SQRT((HJ15*FF15/(1+HJ15*FF15/GH15))*(1-FF15/(1+HJ15*FF15/GH15))),0)+(HJ15*FF15/(1+HJ15*FF15/GH15)),HJ15*$EC$16/(1+HJ15*$EC$16/$EF$16)),0) ->  | HL15: =MAX(IF('Level 3'!$C$15 <> "None",IF($HI$8="Y",((RAND()-0.5)/SQRT(1/12))*SQRT((HK15*FH15/(1+HK15*FH15/GI15))*(1-FH15/(1+HK15*FH15/GI15))),0)+(HK15*FH15/(1+HK15*FH15/GI15)),HK15*$EC$17/(1+HK15*$EC$17/$EF$17)),0) ->  | HM15: =MAX(IF('Level 3'!$C$15 <> "None",IF($HI$8="Y",((RAND()-0.5)/SQRT(1/12))*SQRT((HL15*FJ15/(1+HL15*FJ15/GJ15))*(1-FJ15/(1+HL15*FJ15/GJ15))),0)+(HL15*FJ15/(1+HL15*FJ15/GJ15)),HL15*$EC$18/(1+HL15*$EC$18/$EF$18)),0) ->  | HN15: =MAX(IF('Level 3'!$C$15 <> "None",IF($HI$8="Y",((RAND()-0.5)/SQRT(1/12))*SQRT((HM15*FL15/(1+HM15*FL15/GK15))*(1-FL15/(1+HM15*FL15/GK15))),0)+(HM15*FL15/(1+HM15*FL15/GK15)),HM15*$EC$19/(1+HM15*$EC$19/$EF$19)),0) ->  | HO15: =MAX(IF('Level 3'!$C$15 <> "None",IF($HI$8="Y",((RAND()-0.5)/SQRT(1/12))*SQRT((HN15*FN15/(1+HN15*FN15/GL15))*(1-FN15/(1+HN15*FN15/GL15))),0)+(HN15*FN15/(1+HN15*FN15/GL15)),HN15*$EC$20/(1+HN15*$EC$20/$EF$20)),0) ->  | HP15: =MAX(IF('Level 3'!$C$15 <> "None",IF($HI$8="Y",((RAND()-0.5)/SQRT(1/12))*SQRT((HO15*FP15/(1+HO15*FP15/GM15))*(1-FP15/(1+HO15*FP15/GM15))),0)+(HO15*FP15/(1+HO15*FP15/GM15)),HO15*$EC$21/(1+HO15*$EC$21/$EF$21)),0) ->  | HQ15: =IF('Level 3'!$C$15="None",HE15*$EJ$3/(1+$EJ$3*HE15/$EJ$4),HLOOKUP(1,$HF$9:$HP$132,ROW()-8,FALSE)) -> 90786.10753
C16: =IF('Level 3'!$C$15="Random",RAND(),IF('Level 3'!$C$15="None",0.5,RAND())) -> 0.5 | D16: 0 | E16: =IF('Level 3'!$AX$14="MR",$F$6,IF('Level 3'!$AX$14="FR", 'Level 3'!$C$5,IF('Level 3'!$AX$14="ME",IF(I16=0,0,MAX(0,('L3 BaselineNatural'!I16-'L3 BaselineNatural'!$F$5)/'L3 BaselineNatural'!I16)),IF(I16=0,0,MAX(0,('L3 BaselineNatural'!I16-'Level 3'!$C$7)/'L3 BaselineNatural'!I16))))) -> 0 | F16: 0 | H16: 402736.2068 | I16: 886.019655 | J16: 0 | K16: 886.019655 | M16: 0.8864811253 | N16: 0.09147222474 | O16: =IF('Level 3'!$C$15= "None", N$3, IF('Level 3'!$C$15 = "Random",N16, $N$3)) -> 0.05 | P16: 0.4052351522 | Q16: =IF('Level 3'!$C$15= "None",P$3,P16) -> 0.4 | R16: 0.6052351522 | S16: =IF('Level 3'!$C$15= "None",R$3,R16) -> 0.6 | T16: 0.7052351522 | U16: =IF('Level 3'!$C$15= "None",T$3,T16) -> 0.7 | V16: 0.8052351522 | W16: =IF('Level 3'!$C$15= "None",V$3,V16) -> 0.8 | X16: 0.9052351522 | Y16: =IF('Level 3'!$C$15= "None",X$3,X16) -> 0.9 | Z16: =HQ14 -> 0 | AA16: =(AE19+AF20+AG21+AH22+AI23)/AC17 -> 0.01020790911 | AC16: 402736.2068 | AD16: 0 | AE16: =$AC14*O14*(1-N$2)*Q15*P$2 -> 886.019655 | AJ16: 886.019655 | AK16: 0 | AL16: 0 | AN16: 0 | AO16: 0 | AP16: 0 | AQ16: 0 | AR16: 0 | AS16: 0 | AT16: 0 | AV16: 0 | AW16: 886.019655 | AX16: 0 | AY16: 0 | AZ16: 0 | BA16: 0 | BB16: 886.019655 | BD16: 0 | BE16: 0 | BF16: 0 | BG16: 0 | BH16: 0 | BI16: 0 | BJ16: 0 | BL16: 0 | BM16: 886.019655 | BN16: 0 | BO16: 0 | BP16: 0 | BQ16: 0 | BR16: 886.019655 | BT16: 0 | BU16: 0 | BV16: 0 | BW16: 0 | BX16: 0 | BY16: 0 | BZ16: 0 | CA16: 0 | CC16: 0 | CD16: 886.019655 | CE16: 0 | CF16: 0 | CG16: 0 | CH16: 0 | CI16: 886.019655 | CK16: =CC16/$CI16 -> 0 | CL16: =CD16/$CI16 -> 1 | CM16: =CE16/$CI16 -> 0 | CN16: =CF16/$CI16 -> 0 | CO16: =CG16/$CI16 -> 0 | CP16: =CH16/$CI16 -> 0 | CQ16: =CI16/$CI16 -> 1 | CS16: =CK16*AJ$2*AI$2+CL16*AJ$3*AI$3+CM16*AJ$4*AI$4+CN16*AJ$5*AI$5+CO16*AJ$6*AI$6+CP16*AJ$7*AI$7 -> 0 | CV16: 1912 | CW16: -1.72 | CX16: -0.23 | CY16: -0.04 | CZ16: -0.38 | DA16: -0.02 | DB16: 0.77 | DC16: 1.07 | DD16: -0.84 | DE16: 0.94 | DF16: 0.56 | DG16: 0.74 | DH16: 0.98 | DI16: 1912 | DJ16: -0.2566666667 | DR16: 0 | DT16: 0 | DU16: 6 | DV16: Tributary | DW16: ='Level 3'!B26 -> END | DX16: =IF('Level 3'!B26="END",1,'Level 3'!C26*IF(DW16 = 'Level 3'!$C$10, 'Level 3'!C$11,1)) -> 1 | DY16: =PRODUCT(DX$11:DX16) -> 0.084375 | DZ16: =MAX(0.0000000001,DX16*(1-MAX('Level 3'!D26,0.0000000001))) -> 0.9999999999 | EA16: =MIN(1,DX16*(1+MAX('Level 3'!D26,0.000000000000001))) -> 1 | EB16: =IF('Level 3'!B26="END",0,'Level 3'!F26) -> 0 | EC16: 0 | ED16: 1000 | EE16: 10 | EF16: 0 | EG16: 0 | EI16: =SUM($EH$11:EH16) ->  | EJ16: 0 | EL16: 0.9999999999 | EM16: =MIN(1, EA16) -> 1 | EP16: =IF(EL16>0,EL16,EC16/2) -> 0.9999999999 | EQ16: =IF(EM16>0,EM16,EC16*2) -> 1 | ER16: =IF(EN16>0,EN16,EF16/EC16*EP16) ->  | ES16: =IF(EO16>0,EO16,EF16/EC16*EQ16) ->  | ET16: 0 | EU16: 0.2905817218 | EV16: 0.5 | EW16: 0.1265102373 | EX16: 684.332977 | EY16: 0.9804162811 | EZ16: 0.75 | FA16: 0.4058557562 | FB16: 0.5 | FC16: 0.3790585028 | FD16: 0.9 | FE16: 0.4180689046 | FF16: 1 | FG16: 0.6878556497 | FH16: 1 | FI16: 0.7203021965 | FJ16: 1 | FK16: 0.2791005179 | FL16: 1 | FM16: 0.60988188 | FN16: 1 | FO16: 0.4806408528 | FP16: 1 | FQ16: 0.5 | FR16: 342.1664885 | FS16: 256.6248664 | FT16: 128.3124332 | FU16: 115.4811898 | FV16: 115.4811898 | FW16: 115.4811898 | FX16: 115.4811898 | FY16: 115.4811898 | FZ16: 115.4811898 | GA16: 115.4811898 | GB16: 115.4811898 | GC16: 5000 | GD16: 1000000000 | GE16: 1000000000 | GF16: 3000000 | GG16: 1e+11 | GH16: 0 | GI16: 0 | GJ16: 0 | GK16: 0 | GL16: 0 | GM16: 0 | GN16: 0.867794291 | GO16: 5000 | GP16: 3409997.018 | GQ16: 2550973.654 | GR16: 894976.5572 | GS16: 805472.4135 | GZ16: 805472.4135 | HB16: =CI16 -> 886.019655 | HD16: 886.019655 | HE16: 886.019655 | HF16: =IF('Level 3'!$C$15 <> "None",HE16*$EV16/(1+HE16*$EV16/$GC16),HE16*$EC$11/(1+HE16*$EC$11/$EF$11)) -> 406.9529925 | HG16: =IF('Level 3'!$C$15 <> "None",HF16*$EX16/(1+HF16*$EX16/$GD16),HF16*$EC$12/(1+HF16*$EC$12/$EF$12)) -> 278413.817 | HH16: =MAX(IF('Level 3'!$C$15 <> "None",IF($HI$8="Y",((RAND()-0.5)/SQRT(1/12))*SQRT((HG16*EZ16/(1+HG16*EZ16/GE16))*(1-EZ16/(1+HG16*EZ16/GE16))),0)+(HG16*EZ16/(1+HG16*EZ16/GE16)),HG16*$EC$13/(1+HG16*$EC$13/$EF$13)),0) -> 208766.7701 | HI16: =MAX(IF('Level 3'!$C$15 <> "None",IF($HI$8="Y",((RAND()-0.5)/SQRT(1/12))*SQRT((HH16*FB16/(1+HH16*FB16/GF16))*(1-FB16/(1+HH16*FB16/GF16))),0)+(HH16*FB16/(1+HH16*FB16/GF16)),HH16*$EC$14/(1+HH16*$EC$14/$EF$14)),0) -> 100873.5444 | HJ16: =MAX(IF('Level 3'!$C$15 <> "None",IF($HI$8="Y",((RAND()-0.5)/SQRT(1/12))*SQRT((HI16*FD16/(1+HI16*FD16/GG16))*(1-FD16/(1+HI16*FD16/GG16))),0)+(HI16*FD16/(1+HI16*FD16/GG16)),HI16*$EC$15/(1+HI16*$EC$15/$EF$15)),0) -> 90786.10753 | HK16: =MAX(IF('Level 3'!$C$15 <> "None",IF($HI$8="Y",((RAND()-0.5)/SQRT(1/12))*SQRT((HJ16*FF16/(1+HJ16*FF16/GH16))*(1-FF16/(1+HJ16*FF16/GH16))),0)+(HJ16*FF16/(1+HJ16*FF16/GH16)),HJ16*$EC$16/(1+HJ16*$EC$16/$EF$16)),0) ->  | HL16: =MAX(IF('Level 3'!$C$15 <> "None",IF($HI$8="Y",((RAND()-0.5)/SQRT(1/12))*SQRT((HK16*FH16/(1+HK16*FH16/GI16))*(1-FH16/(1+HK16*FH16/GI16))),0)+(HK16*FH16/(1+HK16*FH16/GI16)),HK16*$EC$17/(1+HK16*$EC$17/$EF$17)),0) ->  | HM16: =MAX(IF('Level 3'!$C$15 <> "None",IF($HI$8="Y",((RAND()-0.5)/SQRT(1/12))*SQRT((HL16*FJ16/(1+HL16*FJ16/GJ16))*(1-FJ16/(1+HL16*FJ16/GJ16))),0)+(HL16*FJ16/(1+HL16*FJ16/GJ16)),HL16*$EC$18/(1+HL16*$EC$18/$EF$18)),0) ->  | HN16: =MAX(IF('Level 3'!$C$15 <> "None",IF($HI$8="Y",((RAND()-0.5)/SQRT(1/12))*SQRT((HM16*FL16/(1+HM16*FL16/GK16))*(1-FL16/(1+HM16*FL16/GK16))),0)+(HM16*FL16/(1+HM16*FL16/GK16)),HM16*$EC$19/(1+HM16*$EC$19/$EF$19)),0) ->  | HO16: =MAX(IF('Level 3'!$C$15 <> "None",IF($HI$8="Y",((RAND()-0.5)/SQRT(1/12))*SQRT((HN16*FN16/(1+HN16*FN16/GL16))*(1-FN16/(1+HN16*FN16/GL16))),0)+(HN16*FN16/(1+HN16*FN16/GL16)),HN16*$EC$20/(1+HN16*$EC$20/$EF$20)),0) ->  | HP16: =MAX(IF('Level 3'!$C$15 <> "None",IF($HI$8="Y",((RAND()-0.5)/SQRT(1/12))*SQRT((HO16*FP16/(1+HO16*FP16/GM16))*(1-FP16/(1+HO16*FP16/GM16))),0)+(HO16*FP16/(1+HO16*FP16/GM16)),HO16*$EC$21/(1+HO16*$EC$21/$EF$21)),0) ->  | HQ16: =IF('Level 3'!$C$15="None",HE16*$EJ$3/(1+$EJ$3*HE16/$EJ$4),HLOOKUP(1,$HF$9:$HP$132,ROW()-8,FALSE)) -> 90786.10753
C17: =IF('Level 3'!$C$15="Random",RAND(),IF('Level 3'!$C$15="None",0.5,RAND())) -> 0.5 | D17: 0 | E17: =IF('Level 3'!$AX$14="MR",$F$6,IF('Level 3'!$AX$14="FR", 'Level 3'!$C$5,IF('Level 3'!$AX$14="ME",IF(I17=0,0,MAX(0,('L3 BaselineNatural'!I17-'L3 BaselineNatural'!$F$5)/'L3 BaselineNatural'!I17)),IF(I17=0,0,MAX(0,('L3 BaselineNatural'!I17-'Level 3'!$C$7)/'L3 BaselineNatural'!I17))))) -> 0 | F17: 0 | H17: 402736.2068 | I17: 2004.337554 | J17: 0 | K17: 2004.337554 | M17: 0.9208291139 | N17: 0.1012262683 | O17: =IF('Level 3'!$C$15= "None", N$3, IF('Level 3'!$C$15 = "Random",N17, $N$3)) -> 0.05 | P17: 0.4060207818 | Q17: =IF('Level 3'!$C$15= "None",P$3,P17) -> 0.4 | R17: 0.6060207818 | S17: =IF('Level 3'!$C$15= "None",R$3,R17) -> 0.6 | T17: 0.7060207818 | U17: =IF('Level 3'!$C$15= "None",T$3,T17) -> 0.7 | V17: 0.8060207818 | W17: =IF('Level 3'!$C$15= "None",V$3,V17) -> 0.8 | X17: 0.9060207818 | Y17: =IF('Level 3'!$C$15= "None",X$3,X17) -> 0.9 | Z17: 90786.10753 | AA17: 0.01020790911 | AC17: 402736.2068 | AD17: 0 | AE17: 886.019655 | AF17: =$AC14*O14*(1-N$2)*Q15*(1-P$2)*R$2*S16 -> 1118.317899 | AJ17: 2004.337554 | AK17: 0 | AL17: 0 | AN17: 0 | AO17: 0 | AP17: 0 | AQ17: 0 | AR17: 0 | AS17: 0 | AT17: 0 | AV17: 0 | AW17: 886.019655 | AX17: 1118.317899 | AY17: 0 | AZ17: 0 | BA17: 0 | BB17: 2004.337554 | BD17: 0 | BE17: 0 | BF17: 0 | BG17: 0 | BH17: 0 | BI17: 0 | BJ17: 0 | BL17: 0 | BM17: 886.019655 | BN17: 1118.317899 | BO17: 0 | BP17: 0 | BQ17: 0 | BR17: 2004.337554 | BT17: 0 | BU17: 0 | BV17: 0 | BW17: 0 | BX17: 0 | BY17: 0 | BZ17: 0 | CA17: 0 | CC17: 0 | CD17: 886.019655 | CE17: 1118.317899 | CF17: 0 | CG17: 0 | CH17: 0 | CI17: 2004.337554 | CK17: 0 | CL17: 0.4420511172 | CM17: 0.5579488828 | CN17: 0 | CO17: 0 | CP17: 0 | CQ17: 1 | CS17: 948.5131008 | CT17: ='Level 3'!$J$29 -> 1 | CV17: 1913 | CW17: -0.03 | CX17: 0.34 | CY17: 0.06 | CZ17: -0.92 | DA17: 0.66 | DB17: 1.43 | DC17: 1.06 | DD17: 1.29 | DE17: 0.73 | DF17: 0.62 | DG17: 0.75 | DH17: 0.9 | DI17: 1913 | DJ17: -0.7083333333 | DR17: 0 | DT17: 0 | DU17: 7 | DV17: Mainstem | DW17: ='Level 3'!B27 -> END | DX17: =IF('Level 3'!B27="END",1,'Level 3'!C27*IF(DW17 = 'Level 3'!$C$10, 'Level 3'!C$11,1)) -> 1 | DY17: =PRODUCT(DX$11:DX17) -> 0.084375 | DZ17: =MAX(0.0000000001,DX17*(1-MAX('Level 3'!D27,0.0000000001))) -> 0.9999999999 | EA17: =MIN(1,DX17*(1+MAX('Level 3'!D27,0.000000000000001))) -> 1 | EB17: =IF('Level 3'!B27="END",0,'Level 3'!F27) -> 0 | EC17: 0 | ED17: 1000 | EE17: 10 | EF17: 0 | EG17: 0 | EI17: =SUM($EH$11:EH17) ->  | EJ17: 0 | EL17: 0.9999999999 | EM17: 1 | EP17: =IF(EL17>0,EL17,EC17/2) -> 0.9999999999 | EQ17: =IF(EM17>0,EM17,EC17*2) -> 1 | ER17: =IF(EN17>0,EN17,EF17/EC17*EP17) ->  | ES17: =IF(EO17>0,EO17,EF17/EC17*EQ17) ->  | ET17: 0 | EU17: 0.4530547118 | EV17: 0.5 | EW17: 0.439677801 | EX17: 684.332977 | EY17: 0.9890876445 | EZ17: 0.75 | FA17: 0.9217260568 | FB17: 0.5 | FC17: 0.4621306202 | FD17: 0.9 | FE17: 0.7145584712 | FF17: 1 | FG17: 0.6679448732 | FH17: 1 | FI17: 0.9957040823 | FJ17: 1 | FK17: 0.8529404033 | FL17: 1 | FM17: 0.7447605293 | FN17: 1 | FO17: 0.8344648581 | FP17: 1 | FQ17: 0.5 | FR17: 342.1664885 | FS17: 256.6248664 | FT17: 128.3124332 | FU17: 115.4811899 | FV17: 115.4811899 | FW17: 115.4811899 | FX17: 115.4811899 | FY17: 115.4811899 | FZ17: 115.4811899 | GA17: 115.4811899 | GB17: 115.4811899 | GC17: 5000 | GD17: 1000000000 | GE17: 1000000000 | GF17: 3000000 | GG17: 1e+11 | GH17: 0 | GI17: 0 | GJ17: 0 | GK17: 0 | GL17: 0 | GM17: 0 | GN17: 0.7406086639 | GO17: 5000 | GP17: 3409997.018 | GQ17: 2550973.654 | GR17: 894976.5572 | GS17: 805472.4136 | GZ17: 805472.4136 | HB17: =CI17+CJ17-MIN('Level 3'!$J$29*'Level 3'!$J$28,CI17*0.3) -> 2004.337554 | HD17: 2004.337554 | HE17: 2004.337554 | HF17: =IF('Level 3'!$C$15 <> "None",HE17*$EV17/(1+HE17*$EV17/$GC17),HE17*$EC$11/(1+HE17*$EC$11/$EF$11)) -> 834.8388843 | HG17: =IF('Level 3'!$C$15 <> "None",HF17*$EX17/(1+HF17*$EX17/$GD17),HF17*$EC$12/(1+HF17*$EC$12/$EF$12)) -> 570981.5729 | HH17: =MAX(IF('Level 3'!$C$15 <> "None",IF($HI$8="Y",((RAND()-0.5)/SQRT(1/12))*SQRT((HG17*EZ17/(1+HG17*EZ17/GE17))*(1-EZ17/(1+HG17*EZ17/GE17))),0)+(HG17*EZ17/(1+HG17*EZ17/GE17)),HG17*$EC$13/(1+HG17*$EC$13/$EF$13)),0) -> 428052.8719 | HI17: =MAX(IF('Level 3'!$C$15 <> "None",IF($HI$8="Y",((RAND()-0.5)/SQRT(1/12))*SQRT((HH17*FB17/(1+HH17*FB17/GF17))*(1-FB17/(1+HH17*FB17/GF17))),0)+(HH17*FB17/(1+HH17*FB17/GF17)),HH17*$EC$14/(1+HH17*$EC$14/$EF$14)),0) -> 199774.1215 | HJ17: =MAX(IF('Level 3'!$C$15 <> "None",IF($HI$8="Y",((RAND()-0.5)/SQRT(1/12))*SQRT((HI17*FD17/(1+HI17*FD17/GG17))*(1-FD17/(1+HI17*FD17/GG17))),0)+(HI17*FD17/(1+HI17*FD17/GG17)),HI17*$EC$15/(1+HI17*$EC$15/$EF$15)),0) -> 179796.3861 | HK17: =MAX(IF('Level 3'!$C$15 <> "None",IF($HI$8="Y",((RAND()-0.5)/SQRT(1/12))*SQRT((HJ17*FF17/(1+HJ17*FF17/GH17))*(1-FF17/(1+HJ17*FF17/GH17))),0)+(HJ17*FF17/(1+HJ17*FF17/GH17)),HJ17*$EC$16/(1+HJ17*$EC$16/$EF$16)),0) ->  | HL17: =MAX(IF('Level 3'!$C$15 <> "None",IF($HI$8="Y",((RAND()-0.5)/SQRT(1/12))*SQRT((HK17*FH17/(1+HK17*FH17/GI17))*(1-FH17/(1+HK17*FH17/GI17))),0)+(HK17*FH17/(1+HK17*FH17/GI17)),HK17*$EC$17/(1+HK17*$EC$17/$EF$17)),0) ->  | HM17: =MAX(IF('Level 3'!$C$15 <> "None",IF($HI$8="Y",((RAND()-0.5)/SQRT(1/12))*SQRT((HL17*FJ17/(1+HL17*FJ17/GJ17))*(1-FJ17/(1+HL17*FJ17/GJ17))),0)+(HL17*FJ17/(1+HL17*FJ17/GJ17)),HL17*$EC$18/(1+HL17*$EC$18/$EF$18)),0) ->  | HN17: =MAX(IF('Level 3'!$C$15 <> "None",IF($HI$8="Y",((RAND()-0.5)/SQRT(1/12))*SQRT((HM17*FL17/(1+HM17*FL17/GK17))*(1-FL17/(1+HM17*FL17/GK17))),0)+(HM17*FL17/(1+HM17*FL17/GK17)),HM17*$EC$19/(1+HM17*$EC$19/$EF$19)),0) ->  | HO17: =MAX(IF('Level 3'!$C$15 <> "None",IF($HI$8="Y",((RAND()-0.5)/SQRT(1/12))*SQRT((HN17*FN17/(1+HN17*FN17/GL17))*(1-FN17/(1+HN17*FN17/GL17))),0)+(HN17*FN17/(1+HN17*FN17/GL17)),HN17*$EC$20/(1+HN17*$EC$20/$EF$20)),0) ->  | HP17: =MAX(IF('Level 3'!$C$15 <> "None",IF($HI$8="Y",((RAND()-0.5)/SQRT(1/12))*SQRT((HO17*FP17/(1+HO17*FP17/GM17))*(1-FP17/(1+HO17*FP17/GM17))),0)+(HO17*FP17/(1+HO17*FP17/GM17)),HO17*$EC$21/(1+HO17*$EC$21/$EF$21)),0) ->  | HQ17: =IF('Level 3'!$C$15="None",HE17*$EJ$3/(1+$EJ$3*HE17/$EJ$4),HLOOKUP(1,$HF$9:$HP$132,ROW()-8,FALSE)) -> 179796.3861
C18: =IF('Level 3'!$C$15="Random",RAND(),IF('Level 3'!$C$15="None",0.5,RAND())) -> 0.5 | D18: 0 | E18: =IF('Level 3'!$AX$14="MR",$F$6,IF('Level 3'!$AX$14="FR", 'Level 3'!$C$5,IF('Level 3'!$AX$14="ME",IF(I18=0,0,MAX(0,('L3 BaselineNatural'!I18-'L3 BaselineNatural'!$F$5)/'L3 BaselineNatural'!I18)),IF(I18=0,0,MAX(0,('L3 BaselineNatural'!I18-'Level 3'!$C$7)/'L3 BaselineNatural'!I18))))) -> 0 | F18: =MIN($C$4,IF(E18=0,0,EXP(D18*$C$5+LN(E18)))) -> 0 | G18: =HE18-CJ18 -> 3630.801902 | H18: 402736.2068 | I18: 3630.801902 | J18: 0 | K18: 3630.801902 | M18: 0.730066072 | N18: =MIN(LOGINV(M18,$N$9,$N$10),0.9999) -> 0.06793350919 | O18: =IF('Level 3'!$C$15= "None", N$3, IF('Level 3'!$C$15 = "Random",N18, $N$3)) -> 0.05 | P18: 0.40265243 | Q18: =IF('Level 3'!$C$15= "None",P$3,P18) -> 0.4 | R18: 0.60265243 | S18: =IF('Level 3'!$C$15= "None",R$3,R18) -> 0.6 | T18: 0.70265243 | U18: =IF('Level 3'!$C$15= "None",T$3,T18) -> 0.7 | V18: 0.80265243 | W18: =IF('Level 3'!$C$15= "None",V$3,V18) -> 0.8 | X18: 0.90265243 | Y18: =IF('Level 3'!$C$15= "None",X$3,X18) -> 0.9 | Z18: 90786.10753 | AA18: =(AE21+AF22+AG23+AH24+AI25)/AC19 -> 0.01020790911 | AC18: 402736.2068 | AD18: 0 | AE18: 886.019655 | AF18: 1118.317899 | AG18: =$AC14*O14*(1-N$2)*Q15*(1-P$2)*S16*(1-R$2)*U17*T$2 -> 1626.464348 | AJ18: 3630.801902 | AK18: 0 | AL18: 0 | AN18: 0 | AO18: 0 | AP18: 0 | AQ18: 0 | AR18: 0 | AS18: 0 | AT18: 0 | AV18: 0 | AW18: 886.019655 | AX18: 1118.317899 | AY18: 1626.464348 | AZ18: 0 | BA18: 0 | BB18: 3630.801902 | BD18: 0 | BE18: 0 | BF18: 0 | BG18: 0 | BH18: 0 | BI18: 0 | BJ18: 0 | BL18: 0 | BM18: 886.019655 | BN18: 1118.317899 | BO18: 1626.464348 | BP18: 0 | BQ18: 0 | BR18: 3630.801902 | BT18: 0 | BU18: 0 | BV18: 0 | BW18: 0 | BX18: 0 | BY18: 0 | BZ18: 0 | CA18: 0 | CC18: 0 | CD18: 886.019655 | CE18: 1118.317899 | CF18: 1626.464348 | CG18: 0 | CH18: 0 | CI18: =SUM(CC18:CH18) -> 3630.801902 | CJ18: =IF('Level 3'!$J$27=0,0,'L3 BaselineHatchery'!CU18*$CU$4) -> 0 | CK18: 0 | CL18: 0.2440286413 | CM18: 0.3080085142 | CN18: 0.4479628445 | CO18: 0 | CP18: 0 | CQ18: 1 | CS18: 1285.15131 | CT18: ='Level 3'!$J$29 -> 1 | CU18: =IF(CJ18>0,CJ18/(CJ18+CI18-MIN(CT18*'Level 3'!$J$28,CI18*0.3)),0) -> 0 | CV18: 1914 | CW18: 0.34 | CX18: -0.29 | CY18: 0.08 | CZ18: 1.2 | DA18: 0.11 | DB18: 0.11 | DC18: -0.21 | DD18: 0.11 | DE18: -0.34 | DF18: -0.11 | DG18: 0.03 | DH18: 0.89 | DI18: 1914 | DJ18: -0.1633333333 | DR18: 0 | DT18: 0 | DU18: 8 | DV18: Ocean | DW18: ='Level 3'!B28 -> END | DX18: =IF('Level 3'!B28="END",1,'Level 3'!C28*IF(DW18 = 'Level 3'!$C$10, 'Level 3'!C$11,1)) -> 1 | DY18: =PRODUCT(DX$11:DX18) -> 0.084375 | DZ18: =MAX(0.0000000001,DX18*(1-MAX('Level 3'!D28,0.0000000001))) -> 0.9999999999 | EA18: =MIN(1,DX18*(1+MAX('Level 3'!D28,0.000000000000001))) -> 1 | EB18: =IF('Level 3'!B28="END",0,'Level 3'!F28) -> 0 | EC18: 0 | ED18: =IF(DW18=#REF!,$DX$8,IF(DX18="END",0,IF(DY18=0,VLOOKUP(DX18,#REF!,8,FALSE)^IF(EB18=0,1,EB18/VLOOKUP(DX18,#REF!,7,FALSE)),DY18))*IF(DX18=#REF!,$DX$7,1)) ->  | EE18: =IF(DX18=#REF!,$DX$8,IF(DY18="END",0,IF(EB18=0,VLOOKUP(DY18,#REF!,8,FALSE)^IF(EC18=0,1,EC18/VLOOKUP(DY18,#REF!,7,FALSE)),EB18))*IF(DY18=#REF!,$DX$7,1)) ->  | EF18: 0 | EG18: 0 | EI18: =SUM($EH$11:EH18) ->  | EJ18: 0 | EL18: 0.9999999999 | EM18: 1 | EP18: =IF(EL18>0,EL18,EJ18/2) -> 0.9999999999 | EQ18: =IF(EM18>0,EM18,EJ18*2) -> 1 | ER18: =IF(EN18>0,EN18,EK18/EJ18*EP18) ->  | ES18: =IF(EO18>0,EO18,EK18/EJ18*EQ18) ->  | ET18: 0 | EU18: 0.3204389849 | EV18: 0.5 | EW18: 0.4899373104 | EX18: 684.332977 | EY18: 0.4619818532 | EZ18: 0.75 | FA18: 0.9080060079 | FB18: 0.5 | FC18: 0.8603841272 | FD18: 0.9 | FE18: 0.722169959 | FF18: 1 | FG18: 0.02535035598 | FH18: 1 | FI18: 0.4804930666 | FJ18: 1 | FK18: 0.2343258611 | FL18: 1 | FM18: 0.6922500117 | FN18: 1 | FO18: 0.007923978005 | FP18: 1 | FQ18: 0.5 | FR18: 342.1664885 | FS18: 256.6248664 | FT18: 128.3124332 | FU18: 115.4811899 | FV18: 115.4811899 | FW18: 115.4811899 | FX18: 115.4811899 | FY18: 115.4811899 | FZ18: 115.4811899 | GA18: 115.4811899 | GB18: 115.4811899 | GC18: 5000 | GD18: 1000000000 | GE18: 1000000000 | GF18: 3000000 | GG18: 1e+11 | GH18: 0 | GI18: 0 | GJ18: 0 | GK18: 0 | GL18: 0 | GM18: 0 | GN18: 0.4237680554 | GO18: 5000 | GP18: 3409997.018 | GQ18: 2550973.654 | GR18: 894976.5572 | GS18: 805472.4135 | GZ18: 805472.4135 | HA18: =MIN(CT18*'Level 3'!$J$28,CI18*0.3) -> 0 | HB18: =CI18+CJ18-MIN('Level 3'!$J$29*'Level 3'!$J$28,CI18*0.3) -> 3630.801902 | HD18: 3630.801902 | HE18: 3630.801902 | HF18: =IF('Level 3'!$C$15 <> "None",HE18*$EV18/(1+HE18*$EV18/$GC18),HE18*$EC$11/(1+HE18*$EC$11/$EF$11)) -> 1331.837235 | HG18: =IF('Level 3'!$C$15 <> "None",HF18*$EX18/(1+HF18*$EX18/$GD18),HF18*$EC$12/(1+HF18*$EC$12/$EF$12)) -> 910590.2094 | HH18: =MAX(IF('Level 3'!$C$15 <> "None",IF($HI$8="Y",((RAND()-0.5)/SQRT(1/12))*SQRT((HG18*EZ18/(1+HG18*EZ18/GE18))*(1-EZ18/(1+HG18*EZ18/GE18))),0)+(HG18*EZ18/(1+HG18*EZ18/GE18)),HG18*$EC$13/(1+HG18*$EC$13/$EF$13)),0) -> 682476.5647 | HI18: =MAX(IF('Level 3'!$C$15 <> "None",IF($HI$8="Y",((RAND()-0.5)/SQRT(1/12))*SQRT((HH18*FB18/(1+HH18*FB18/GF18))*(1-FB18/(1+HH18*FB18/GF18))),0)+(HH18*FB18/(1+HH18*FB18/GF18)),HH18*$EC$14/(1+HH18*$EC$14/$EF$14)),0) -> 306387.86 | HJ18: =MAX(IF('Level 3'!$C$15 <> "None",IF($HI$8="Y",((RAND()-0.5)/SQRT(1/12))*SQRT((HI18*FD18/(1+HI18*FD18/GG18))*(1-FD18/(1+HI18*FD18/GG18))),0)+(HI18*FD18/(1+HI18*FD18/GG18)),HI18*$EC$15/(1+HI18*$EC$15/$EF$15)),0) -> 275748.3136 | HK18: =MAX(IF('Level 3'!$C$15 <> "None",IF($HI$8="Y",((RAND()-0.5)/SQRT(1/12))*SQRT((HJ18*FF18/(1+HJ18*FF18/GH18))*(1-FF18/(1+HJ18*FF18/GH18))),0)+(HJ18*FF18/(1+HJ18*FF18/GH18)),HJ18*$EC$16/(1+HJ18*$EC$16/$EF$16)),0) ->  | HL18: =MAX(IF('Level 3'!$C$15 <> "None",IF($HI$8="Y",((RAND()-0.5)/SQRT(1/12))*SQRT((HK18*FH18/(1+HK18*FH18/GI18))*(1-FH18/(1+HK18*FH18/GI18))),0)+(HK18*FH18/(1+HK18*FH18/GI18)),HK18*$EC$17/(1+HK18*$EC$17/$EF$17)),0) ->  | HM18: =MAX(IF('Level 3'!$C$15 <> "None",IF($HI$8="Y",((RAND()-0.5)/SQRT(1/12))*SQRT((HL18*FJ18/(1+HL18*FJ18/GJ18))*(1-FJ18/(1+HL18*FJ18/GJ18))),0)+(HL18*FJ18/(1+HL18*FJ18/GJ18)),HL18*$EC$18/(1+HL18*$EC$18/$EF$18)),0) ->  | HN18: =MAX(IF('Level 3'!$C$15 <> "None",IF($HI$8="Y",((RAND()-0.5)/SQRT(1/12))*SQRT((HM18*FL18/(1+HM18*FL18/GK18))*(1-FL18/(1+HM18*FL18/GK18))),0)+(HM18*FL18/(1+HM18*FL18/GK18)),HM18*$EC$19/(1+HM18*$EC$19/$EF$19)),0) ->  | HO18: =MAX(IF('Level 3'!$C$15 <> "None",IF($HI$8="Y",((RAND()-0.5)/SQRT(1/12))*SQRT((HN18*FN18/(1+HN18*FN18/GL18))*(1-FN18/(1+HN18*FN18/GL18))),0)+(HN18*FN18/(1+HN18*FN18/GL18)),HN18*$EC$20/(1+HN18*$EC$20/$EF$20)),0) ->  | HP18: =MAX(IF('Level 3'!$C$15 <> "None",IF($HI$8="Y",((RAND()-0.5)/SQRT(1/12))*SQRT((HO18*FP18/(1+HO18*FP18/GM18))*(1-FP18/(1+HO18*FP18/GM18))),0)+(HO18*FP18/(1+HO18*FP18/GM18)),HO18*$EC$21/(1+HO18*$EC$21/$EF$21)),0) ->  | HQ18: =IF('Level 3'!$C$15="None",HE18*$EJ$3/(1+$EJ$3*HE18/$EJ$4),HLOOKUP(1,$HF$9:$HP$132,ROW()-8,FALSE)) -> 275748.3136 | HR18: =HE18*GB18/(1+GB18*HE18/GZ18) -> 275748.3136
C19: =IF('Level 3'!$C$15="Random",RAND(),IF('Level 3'!$C$15="None",0.5,RAND())) -> 0.5 | D19: 0 | E19: =IF('Level 3'!$AX$14="MR",$F$6,IF('Level 3'!$AX$14="FR", 'Level 3'!$C$5,IF('Level 3'!$AX$14="ME",IF(I19=0,0,MAX(0,('L3 BaselineNatural'!I19-'L3 BaselineNatural'!$F$5)/'L3 BaselineNatural'!I19)),IF(I19=0,0,MAX(0,('L3 BaselineNatural'!I19-'Level 3'!$C$7)/'L3 BaselineNatural'!I19))))) -> 0 | F19: 0 | G19: 4102.432002 | H19: =HQ17 -> 179796.3861 | I19: 4102.432002 | J19: 0 | K19: 4102.432002 | M19: 0.1728571184 | N19: 0.03120429012 | O19: =IF('Level 3'!$C$15= "None", N$3, IF('Level 3'!$C$15 = "Random",N19, $N$3)) -> 0.05 | P19: 0.3958797469 | Q19: =IF('Level 3'!$C$15= "None",P$3,P19) -> 0.4 | R19: 0.5958797469 | S19: =IF('Level 3'!$C$15= "None",R$3,R19) -> 0.6 | T19: 0.6958797469 | U19: =IF('Level 3'!$C$15= "None",T$3,T19) -> 0.7 | V19: 0.7958797469 | W19: =IF('Level 3'!$C$15= "None",V$3,V19) -> 0.8 | X19: 0.8958797469 | Y19: =IF('Level 3'!$C$15= "None",X$3,X19) -> 0.9 | Z19: 179796.3861 | AA19: =(AE22+AF23+AG24+AH25+AI26)/AC20 -> 0.01020790911 | AB19: =Z19/HE17 -> 89.70364585 | AC19: 402736.2068 | AD19: 0 | AE19: 886.019655 | AF19: 1118.317899 | AG19: 1626.464348 | AH19: =$AC14*O14*(1-N$2)*Q15*(1-P$2)*S16*(1-R$2)*U17*(1-T$2)*W18*V$2 -> 471.6301001 | AJ19: 4102.432002 | AK19: 0 | AL19: 0 | AN19: 0 | AO19: 0 | AP19: 0 | AQ19: 0 | AR19: 0 | AS19: 0 | AT19: 0 | AV19: 0 | AW19: 886.019655 | AX19: 1118.317899 | AY19: 1626.464348 | AZ19: 471.6301001 | BA19: 0 | BB19: 4102.432002 | BD19: 0 | BE19: 0 | BF19: 0 | BG19: 0 | BH19: 0 | BI19: 0 | BJ19: 0 | BL19: 0 | BM19: 886.019655 | BN19: 1118.317899 | BO19: 1626.464348 | BP19: 471.6301001 | BQ19: 0 | BR19: 4102.432002 | BT19: 0 | BU19: 0 | BV19: 0 | BW19: 0 | BX19: 0 | BY19: 0 | BZ19: 0 | CA19: 0 | CC19: 0 | CD19: 886.019655 | CE19: 1118.317899 | CF19: 1626.464348 | CG19: 471.6301001 | CH19: 0 | CI19: =SUM(CC19:CH19) -> 4102.432002 | CJ19: =IF('Level 3'!$J$27=0,0,'L3 BaselineHatchery'!CU19*$CU$4) -> 0 | CK19: =CC19/$CI19 -> 0 | CL19: =CD19/$CI19 -> 0.2159742452 | CM19: =CE19/$CI19 -> 0.2725987655 | CN19: =CF19/$CI19 -> 0.3964634507 | CO19: =CG19/$CI19 -> 0.1149635387 | CP19: =CH19/$CI19 -> 0 | CQ19: 1 | CS19: 1367.332845 | CT19: ='Level 3'!$J$29 -> 1 | CU19: =IF(CJ19>0,CJ19/(CJ19+CI19-MIN(CT19*'Level 3'!$J$28,CI19*0.3)),0) -> 0 | CV19: 1915 | CW19: -0.41 | CX19: 0.14 | CY19: -1.22 | CZ19: 1.4 | DA19: 0.32 | DB19: 0.99 | DC19: 1.07 | DD19: 0.27 | DE19: -0.05 | DF19: -0.43 | DG19: -0.12 | DH19: 0.17 | DI19: 1915 | DJ19: -0.6666666667 | DR19: 0 | DT19: 0 | DU19: 9 | DV19: Mainstem | DW19: ='Level 3'!B29 -> END | DX19: =IF('Level 3'!B29="END",1,'Level 3'!C29*IF(DW19 = 'Level 3'!$C$10, 'Level 3'!C$11,1)) -> 1 | DY19: =PRODUCT(DX$11:DX19) -> 0.084375 | DZ19: =MAX(0.0000000001,DX19*(1-MAX('Level 3'!D29,0.0000000001))) -> 0.9999999999 | EA19: =MIN(1,DX19*(1+MAX('Level 3'!D29,0.000000000000001))) -> 1 | EB19: =IF('Level 3'!B29="END",0,'Level 3'!F29) -> 0 | EC19: 0 | ED19: =IF(DW19=#REF!,$DX$8,IF(DX19="END",0,IF(DY19=0,VLOOKUP(DX19,#REF!,8,FALSE)^IF(EB19=0,1,EB19/VLOOKUP(DX19,#REF!,7,FALSE)),DY19))*IF(DX19=#REF!,$DX$7,1)) ->  | EE19: =IF(DX19=#REF!,$DX$8,IF(DY19="END",0,IF(EB19=0,VLOOKUP(DY19,#REF!,8,FALSE)^IF(EC19=0,1,EC19/VLOOKUP(DY19,#REF!,7,FALSE)),EB19))*IF(DY19=#REF!,$DX$7,1)) ->  | EF19: 0 | EG19: 0 | EI19: =SUM($EH$11:EH19) ->  | EJ19: 0 | EL19: 0.9999999999 | EM19: 1 | EP19: =IF(EL19>0,EL19,EJ19/2) -> 0.9999999999 | EQ19: =IF(EM19>0,EM19,EJ19*2) -> 1 | ER19: =IF(EN19>0,EN19,EK19/EJ19*EP19) ->  | ES19: =IF(EO19>0,EO19,EK19/EJ19*EQ19) ->  | ET19: 0 | EU19: 0.7400232489 | EV19: 0.5 | EW19: 0.9060913351 | EX19: 684.332977 | EY19: 0.8546241218 | EZ19: 0.75 | FA19: 0.0607709414 | FB19: 0.5 | FC19: 0.9214257012 | FD19: 0.9 | FE19: 0.2110568282 | FF19: 1 | FG19: 0.4914888487 | FH19: 1 | FI19: 0.3558398243 | FJ19: 1 | FK19: 0.4024598322 | FL19: 1 | FM19: 0.9845208472 | FN19: 1 | FO19: 0.5788294792 | FP19: 1 | FQ19: 0.5 | FR19: 342.1664885 | FS19: 256.6248664 | FT19: 128.3124332 | FU19: 115.4811899 | FV19: 115.4811899 | FW19: 115.4811899 | FX19: 115.4811899 | FY19: 115.4811899 | FZ19: 115.4811899 | GA19: 115.4811899 | GB19: 115.4811899 | GC19: 5000 | GD19: 1000000000 | GE19: 1000000000 | GF19: 3000000 | GG19: 1e+11 | GH19: 0 | GI19: 0 | GJ19: 0 | GK19: 0 | GL19: 0 | GM19: 0 | GN19: 0.06046421532 | GO19: 5000 | GP19: 3409997.018 | GQ19: 2550973.654 | GR19: 894976.5572 | GS19: 805472.4136 | GZ19: 805472.4136 | HA19: =MIN(CT19*'Level 3'!$J$28,CI19*$HA$1) -> 0 | HB19: =CI19+CJ19-MIN('Level 3'!$J$29*'Level 3'!$J$28,CI19*0.3) -> 4102.432002 | HD19: 4102.432002 | HE19: 4102.432002 | HF19: =IF('Level 3'!$C$15 <> "None",HE19*$EV19/(1+HE19*$EV19/$GC19),HE19*$EC$11/(1+HE19*$EC$11/$EF$11)) -> 1454.512243 | HG19: =IF('Level 3'!$C$15 <> "None",HF19*$EX19/(1+HF19*$EX19/$GD19),HF19*$EC$12/(1+HF19*$EC$12/$EF$12)) -> 994380.9161 | HH19: =MAX(IF('Level 3'!$C$15 <> "None",IF($HI$8="Y",((RAND()-0.5)/SQRT(1/12))*SQRT((HG19*EZ19/(1+HG19*EZ19/GE19))*(1-EZ19/(1+HG19*EZ19/GE19))),0)+(HG19*EZ19/(1+HG19*EZ19/GE19)),HG19*$EC$13/(1+HG19*$EC$13/$EF$13)),0) -> 745229.9053 | HI19: =MAX(IF('Level 3'!$C$15 <> "None",IF($HI$8="Y",((RAND()-0.5)/SQRT(1/12))*SQRT((HH19*FB19/(1+HH19*FB19/GF19))*(1-FB19/(1+HH19*FB19/GF19))),0)+(HH19*FB19/(1+HH19*FB19/GF19)),HH19*$EC$14/(1+HH19*$EC$14/$EF$14)),0) -> 331447.5188 | HJ19: =MAX(IF('Level 3'!$C$15 <> "None",IF($HI$8="Y",((RAND()-0.5)/SQRT(1/12))*SQRT((HI19*FD19/(1+HI19*FD19/GG19))*(1-FD19/(1+HI19*FD19/GG19))),0)+(HI19*FD19/(1+HI19*FD19/GG19)),HI19*$EC$15/(1+HI19*$EC$15/$EF$15)),0) -> 298301.8771 | HK19: =MAX(IF('Level 3'!$C$15 <> "None",IF($HI$8="Y",((RAND()-0.5)/SQRT(1/12))*SQRT((HJ19*FF19/(1+HJ19*FF19/GH19))*(1-FF19/(1+HJ19*FF19/GH19))),0)+(HJ19*FF19/(1+HJ19*FF19/GH19)),HJ19*$EC$16/(1+HJ19*$EC$16/$EF$16)),0) ->  | HL19: =MAX(IF('Level 3'!$C$15 <> "None",IF($HI$8="Y",((RAND()-0.5)/SQRT(1/12))*SQRT((HK19*FH19/(1+HK19*FH19/GI19))*(1-FH19/(1+HK19*FH19/GI19))),0)+(HK19*FH19/(1+HK19*FH19/GI19)),HK19*$EC$17/(1+HK19*$EC$17/$EF$17)),0) ->  | HM19: =MAX(IF('Level 3'!$C$15 <> "None",IF($HI$8="Y",((RAND()-0.5)/SQRT(1/12))*SQRT((HL19*FJ19/(1+HL19*FJ19/GJ19))*(1-FJ19/(1+HL19*FJ19/GJ19))),0)+(HL19*FJ19/(1+HL19*FJ19/GJ19)),HL19*$EC$18/(1+HL19*$EC$18/$EF$18)),0) ->  | HN19: =MAX(IF('Level 3'!$C$15 <> "None",IF($HI$8="Y",((RAND()-0.5)/SQRT(1/12))*SQRT((HM19*FL19/(1+HM19*FL19/GK19))*(1-FL19/(1+HM19*FL19/GK19))),0)+(HM19*FL19/(1+HM19*FL19/GK19)),HM19*$EC$19/(1+HM19*$EC$19/$EF$19)),0) ->  | HO19: =MAX(IF('Level 3'!$C$15 <> "None",IF($HI$8="Y",((RAND()-0.5)/SQRT(1/12))*SQRT((HN19*FN19/(1+HN19*FN19/GL19))*(1-FN19/(1+HN19*FN19/GL19))),0)+(HN19*FN19/(1+HN19*FN19/GL19)),HN19*$EC$20/(1+HN19*$EC$20/$EF$20)),0) ->  | HP19: =MAX(IF('Level 3'!$C$15 <> "None",IF($HI$8="Y",((RAND()-0.5)/SQRT(1/12))*SQRT((HO19*FP19/(1+HO19*FP19/GM19))*(1-FP19/(1+HO19*FP19/GM19))),0)+(HO19*FP19/(1+HO19*FP19/GM19)),HO19*$EC$21/(1+HO19*$EC$21/$EF$21)),0) ->  | HQ19: =IF('Level 3'!$C$15="None",HE19*$EJ$3/(1+$EJ$3*HE19/$EJ$4),HLOOKUP(1,$HF$9:$HP$132,ROW()-8,FALSE)) -> 298301.8771 | HR19: =HE19*GB19/(1+GB19*HE19/GZ19) -> 298301.8771
C20: =IF('Level 3'!$C$15="Random",RAND(),IF('Level 3'!$C$15="None",0.5,RAND())) -> 0.5 | D20: 0 | E20: =IF('Level 3'!$AX$14="MR",$F$6,IF('Level 3'!$AX$14="FR", 'Level 3'!$C$5,IF('Level 3'!$AX$14="ME",IF(I20=0,0,MAX(0,('L3 BaselineNatural'!I20-'L3 BaselineNatural'!$F$5)/'L3 BaselineNatural'!I20)),IF(I20=0,0,MAX(0,('L3 BaselineNatural'!I20-'Level 3'!$C$7)/'L3 BaselineNatural'!I20))))) -> 0 | F20: 0 | G20: 4111.094596 | H20: 275748.3136 | I20: 4111.094596 | J20: 0 | K20: 4111.094596 | M20: 0.8107340276 | N20: 0.07765882814 | O20: =IF('Level 3'!$C$15= "None", N$3, IF('Level 3'!$C$15 = "Random",N20, $N$3)) -> 0.05 | P20: 0.403847505 | Q20: =IF('Level 3'!$C$15= "None",P$3,P20) -> 0.4 | R20: 0.603847505 | S20: =IF('Level 3'!$C$15= "None",R$3,R20) -> 0.6 | T20: 0.703847505 | U20: =IF('Level 3'!$C$15= "None",T$3,T20) -> 0.7 | V20: 0.803847505 | W20: =IF('Level 3'!$C$15= "None",V$3,V20) -> 0.8 | X20: 0.903847505 | Y20: =IF('Level 3'!$C$15= "None",X$3,X20) -> 0.9 | Z20: 275748.3136 | AA20: =(AE23+AF24+AG25+AH26+AI27)/AC21 -> 0.01020790911 | AB20: =Z20/HE18 -> 75.94694535 | AC20: =Z20 -> 275748.3136 | AD20: 0 | AE20: 886.019655 | AF20: 1118.317899 | AG20: 1626.464348 | AH20: 471.6301001 | AI20: =$AC14*O14*(1-N$2)*Q15*(1-P$2)*S16*(1-R$2)*U17*(1-T$2)*W18*(1-V$2)*Y19*X$2 -> 8.662593676 | AJ20: 4111.094596 | AK20: 0 | AL20: 0 | AN20: 0 | AO20: 0 | AP20: 0 | AQ20: 0 | AR20: 0 | AS20: 0 | AT20: 0 | AV20: 0 | AW20: 886.019655 | AX20: 1118.317899 | AY20: 1626.464348 | AZ20: 471.6301001 | BA20: 8.662593676 | BB20: 4111.094596 | BD20: 0 | BE20: 0 | BF20: 0 | BG20: 0 | BH20: 0 | BI20: 0 | BJ20: 0 | BL20: 0 | BM20: 886.019655 | BN20: 1118.317899 | BO20: 1626.464348 | BP20: 471.6301001 | BQ20: 8.662593676 | BR20: 4111.094596 | BT20: 0 | BU20: 0 | BV20: 0 | BW20: 0 | BX20: 0 | BY20: 0 | BZ20: 0 | CA20: 0 | CC20: 0 | CD20: 886.019655 | CE20: 1118.317899 | CF20: 1626.464348 | CG20: 471.6301001 | CH20: 8.662593676 | CI20: 4111.094596 | CJ20: =IF('Level 3'!$J$27=0,0,'L3 BaselineHatchery'!CU20*$CU$4) -> 0 | CK20: 0 | CL20: 0.2155191603 | CM20: 0.2720243656 | CN20: 0.3956280523 | CO20: 0.114721296 | CP20: 0.002107125846 | CQ20: 1 | CS20: 1368.665954 | CT20: ='Level 3'!$J$29 -> 1 | CU20: =IF(CJ20>0,CJ20/(CJ20+CI20-MIN(CT20*'Level 3'!$J$28,CI20*0.3)),0) -> 0 | CV20: 1916 | CW20: -0.64 | CX20: -0.19 | CY20: -0.11 | CZ20: 0.35 | DA20: 0.42 | DB20: -0.82 | DC20: -0.78 | DD20: -0.73 | DE20: -0.77 | DF20: -0.22 | DG20: -0.68 | DH20: -1.94 | DI20: 1916 | DJ20: 0.3883333333 | DR20: 0 | DT20: 0 | DU20: 10 | DV20: Tributary | DW20: ='Level 3'!B30 -> END | DX20: =IF('Level 3'!B30="END",1,'Level 3'!C30*IF(DW20 = 'Level 3'!$C$10, 'Level 3'!C$11,1)) -> 1 | DY20: =PRODUCT(DX$11:DX20) -> 0.084375 | DZ20: =MAX(0.0000000001,DX20*(1-MAX('Level 3'!D30,0.0000000001))) -> 0.9999999999 | EA20: =MIN(1,DX20*(1+MAX('Level 3'!D30,0.000000000000001))) -> 1 | EB20: =IF('Level 3'!B30="END",0,'Level 3'!F30) -> 0 | EC20: 0 | ED20: =IF(DW20=#REF!,$DX$8,IF(DX20="END",0,IF(DY20=0,VLOOKUP(DX20,#REF!,8,FALSE)^IF(EB20=0,1,EB20/VLOOKUP(DX20,#REF!,7,FALSE)),DY20))*IF(DX20=#REF!,$DX$7,1)) ->  | EE20: =IF(DX20=#REF!,$DX$8,IF(DY20="END",0,IF(EB20=0,VLOOKUP(DY20,#REF!,8,FALSE)^IF(EC20=0,1,EC20/VLOOKUP(DY20,#REF!,7,FALSE)),EB20))*IF(DY20=#REF!,$DX$7,1)) ->  | EF20: 0 | EG20: 0 | EI20: =SUM($EH$11:EH20) ->  | EJ20: 0 | EL20: 0.9999999999 | EM20: 1 | EP20: =IF(EL20>0,EL20,EJ20/2) -> 0.9999999999 | EQ20: =IF(EM20>0,EM20,EJ20*2) -> 1 | ER20: =IF(EN20>0,EN20,EK20/EJ20*EP20) ->  | ES20: =IF(EO20>0,EO20,EK20/EJ20*EQ20) ->  | ET20: 0 | EU20: 0.1490335929 | EV20: 0.5 | EW20: 0.476365813 | EX20: 684.332977 | EY20: 0.46085426 | EZ20: 0.75 | FA20: 0.3303772675 | FB20: 0.5 | FC20: 0.5267760729 | FD20: 0.8999999999 | FE20: 0.6515660849 | FF20: 1 | FG20: 0.34969682 | FH20: 1 | FI20: 0.08187822197 | FJ20: 1 | FK20: 0.7883701086 | FL20: 1 | FM20: 0.1864403898 | FN20: 1 | FO20: 0.05774473743 | FP20: 1 | FQ20: 0.5 | FR20: 342.1664885 | FS20: 256.6248664 | FT20: 128.3124332 | FU20: 115.4811898 | FV20: 115.4811898 | FW20: 115.4811898 | FX20: 115.4811898 | FY20: 115.4811898 | FZ20: 115.4811898 | GA20: 115.4811898 | GB20: 115.4811898 | GC20: 5000 | GD20: 1000000000 | GE20: 1000000000 | GF20: 3000000 | GG20: 1e+11 | GH20: 0 | GI20: 0 | GJ20: 0 | GK20: 0 | GL20: 0 | GM20: 0 | GN20: 0.9140814498 | GO20: 5000 | GP20: 3409997.018 | GQ20: 2550973.654 | GR20: 894976.5572 | GS20: 805472.4135 | GZ20: 805472.4135 | HA20: =MIN(CT20*'Level 3'!$J$28,CI20*$HA$1) -> 0 | HB20: =CI20+CJ20-MIN('Level 3'!$J$29*'Level 3'!$J$28,CI20*0.3) -> 4111.094596 | HD20: 4111.094596 | HE20: 4111.094596 | HF20: =IF('Level 3'!$C$15 <> "None",HE20*$EV20/(1+HE20*$EV20/$GC20),HE20*$EC$11/(1+HE20*$EC$11/$EF$11)) -> 1456.688766 | HG20: =IF('Level 3'!$C$15 <> "None",HF20*$EX20/(1+HF20*$EX20/$GD20),HF20*$EC$12/(1+HF20*$EC$12/$EF$12)) -> 995867.4195 | HH20: =MAX(IF('Level 3'!$C$15 <> "None",IF($HI$8="Y",((RAND()-0.5)/SQRT(1/12))*SQRT((HG20*EZ20/(1+HG20*EZ20/GE20))*(1-EZ20/(1+HG20*EZ20/GE20))),0)+(HG20*EZ20/(1+HG20*EZ20/GE20)),HG20*$EC$13/(1+HG20*$EC$13/$EF$13)),0) -> 746343.1206 | HI20: =MAX(IF('Level 3'!$C$15 <> "None",IF($HI$8="Y",((RAND()-0.5)/SQRT(1/12))*SQRT((HH20*FB20/(1+HH20*FB20/GF20))*(1-FB20/(1+HH20*FB20/GF20))),0)+(HH20*FB20/(1+HH20*FB20/GF20)),HH20*$EC$14/(1+HH20*$EC$14/$EF$14)),0) -> 331887.8571 | HJ20: =MAX(IF('Level 3'!$C$15 <> "None",IF($HI$8="Y",((RAND()-0.5)/SQRT(1/12))*SQRT((HI20*FD20/(1+HI20*FD20/GG20))*(1-FD20/(1+HI20*FD20/GG20))),0)+(HI20*FD20/(1+HI20*FD20/GG20)),HI20*$EC$15/(1+HI20*$EC$15/$EF$15)),0) -> 298698.1792 | HK20: =MAX(IF('Level 3'!$C$15 <> "None",IF($HI$8="Y",((RAND()-0.5)/SQRT(1/12))*SQRT((HJ20*FF20/(1+HJ20*FF20/GH20))*(1-FF20/(1+HJ20*FF20/GH20))),0)+(HJ20*FF20/(1+HJ20*FF20/GH20)),HJ20*$EC$16/(1+HJ20*$EC$16/$EF$16)),0) ->  | HL20: =MAX(IF('Level 3'!$C$15 <> "None",IF($HI$8="Y",((RAND()-0.5)/SQRT(1/12))*SQRT((HK20*FH20/(1+HK20*FH20/GI20))*(1-FH20/(1+HK20*FH20/GI20))),0)+(HK20*FH20/(1+HK20*FH20/GI20)),HK20*$EC$17/(1+HK20*$EC$17/$EF$17)),0) ->  | HM20: =MAX(IF('Level 3'!$C$15 <> "None",IF($HI$8="Y",((RAND()-0.5)/SQRT(1/12))*SQRT((HL20*FJ20/(1+HL20*FJ20/GJ20))*(1-FJ20/(1+HL20*FJ20/GJ20))),0)+(HL20*FJ20/(1+HL20*FJ20/GJ20)),HL20*$EC$18/(1+HL20*$EC$18/$EF$18)),0) ->  | HN20: =MAX(IF('Level 3'!$C$15 <> "None",IF($HI$8="Y",((RAND()-0.5)/SQRT(1/12))*SQRT((HM20*FL20/(1+HM20*FL20/GK20))*(1-FL20/(1+HM20*FL20/GK20))),0)+(HM20*FL20/(1+HM20*FL20/GK20)),HM20*$EC$19/(1+HM20*$EC$19/$EF$19)),0) ->  | HO20: =MAX(IF('Level 3'!$C$15 <> "None",IF($HI$8="Y",((RAND()-0.5)/SQRT(1/12))*SQRT((HN20*FN20/(1+HN20*FN20/GL20))*(1-FN20/(1+HN20*FN20/GL20))),0)+(HN20*FN20/(1+HN20*FN20/GL20)),HN20*$EC$20/(1+HN20*$EC$20/$EF$20)),0) ->  | HP20: =MAX(IF('Level 3'!$C$15 <> "None",IF($HI$8="Y",((RAND()-0.5)/SQRT(1/12))*SQRT((HO20*FP20/(1+HO20*FP20/GM20))*(1-FP20/(1+HO20*FP20/GM20))),0)+(HO20*FP20/(1+HO20*FP20/GM20)),HO20*$EC$21/(1+HO20*$EC$21/$EF$21)),0) ->  | HQ20: =IF('Level 3'!$C$15="None",HE20*$EJ$3/(1+$EJ$3*HE20/$EJ$4),HLOOKUP(1,$HF$9:$HP$132,ROW()-8,FALSE)) -> 298698.1792 | HR20: 298698.1791 | HZ20: ='Diagnostics L2'!AK4 -> 100 | IA20: =COUNTIF($IA$33:$IA$132,"<"&HZ20) -> 0
C21: =IF('Level 3'!$C$15="Random",RAND(),IF('Level 3'!$C$15="None",0.5,RAND())) -> 0.5 | D21: =NORMINV(C21,0,SQRT(1/12)) -> 0 | E21: =IF('Level 3'!$AX$14="MR",$F$6,IF('Level 3'!$AX$14="FR", 'Level 3'!$C$5,IF('Level 3'!$AX$14="ME",IF(I21=0,0,MAX(0,('L3 BaselineNatural'!I21-'L3 BaselineNatural'!$F$5)/'L3 BaselineNatural'!I21)),IF(I21=0,0,MAX(0,('L3 BaselineNatural'!I21-'Level 3'!$C$7)/'L3 BaselineNatural'!I21))))) -> 0 | F21: 0 | G21: 4111.094596 | H21: 298301.8771 | I21: 4111.094596 | J21: 0 | K21: 4111.094596 | M21: 0.531120254 | N21: 0.05199076469 | O21: =IF('Level 3'!$C$15= "None", N$3, IF('Level 3'!$C$15 = "Random",N21, $N$3)) -> 0.05 | P21: 0.4003162017 | Q21: =IF('Level 3'!$C$15= "None",P$3,P21) -> 0.4 | R21: 0.6003162017 | S21: =IF('Level 3'!$C$15= "None",R$3,R21) -> 0.6 | T21: 0.7003162017 | U21: =IF('Level 3'!$C$15= "None",T$3,T21) -> 0.7 | V21: 0.8003162017 | W21: =IF('Level 3'!$C$15= "None",V$3,V21) -> 0.8 | X21: 0.9003162017 | Y21: =IF('Level 3'!$C$15= "None",X$3,X21) -> 0.9 | Z21: 298301.8771 | AA21: 0.01020790911 | AB21: 72.71342388 | AC21: 298301.8771 | AD21: 0 | AE21: 886.019655 | AF21: 1118.317899 | AG21: 1626.464348 | AH21: 471.6301001 | AI21: 8.662593676 | AJ21: =SUM(AD21:AI21) -> 4111.094596 | AK21: 0 | AL21: 0 | AN21: 0 | AO21: 0 | AP21: 0 | AQ21: 0 | AR21: 0 | AS21: 0 | AT21: 0 | AV21: 0 | AW21: 886.019655 | AX21: 1118.317899 | AY21: 1626.464348 | AZ21: 471.6301001 | BA21: 8.662593676 | BB21: 4111.094596 | BD21: 0 | BE21: 0 | BF21: 0 | BG21: 0 | BH21: 0 | BI21: 0 | BJ21: 0 | BL21: 0 | BM21: 886.019655 | BN21: 1118.317899 | BO21: 1626.464348 | BP21: 471.6301001 | BQ21: 8.662593676 | BR21: 4111.094596 | BT21: 0 | BU21: 0 | BV21: 0 | BW21: 0 | BX21: 0 | BY21: 0 | BZ21: 0 | CA21: 0 | CC21: 0 | CD21: 886.019655 | CE21: 1118.317899 | CF21: 1626.464348 | CG21: 471.6301001 | CH21: 8.662593676 | CI21: 4111.094596 | CJ21: =IF('Level 3'!$J$27=0,0,'L3 BaselineHatchery'!CU21*$CU$4) -> 0 | CK21: 0 | CL21: 0.2155191603 | CM21: 0.2720243656 | CN21: 0.3956280523 | CO21: 0.114721296 | CP21: 0.002107125846 | CQ21: 1 | CS21: 1368.665954 | CT21: ='Level 3'!$J$29 -> 1 | CU21: =IF(CJ21>0,CJ21/(CJ21+CI21-MIN(CT21*'Level 3'!$J$28,CI21*0.3)),0) -> 0 | CV21: 1917 | CW21: -0.79 | CX21: -0.84 | CY21: -0.71 | CZ21: -0.34 | DA21: 0.82 | DB21: -0.03 | DC21: 0.1 | DD21: -0.22 | DE21: -0.4 | DF21: -1.75 | DG21: -0.34 | DH21: -0.6 | DI21: 1917 | DJ21: 0.01166666667 | DR21: 0 | DT21: 0 | DU21: 11 | DV21: Ocean | DW21: ='Level 3'!B31 -> END | DX21: =IF('Level 3'!B31="END",1,'Level 3'!C31*IF(DW21 = 'Level 3'!$C$10, 'Level 3'!C$11,1)) -> 1 | DY21: =PRODUCT(DX$11:DX21) -> 0.084375 | DZ21: =MAX(0.0000000001,DX21*(1-MAX('Level 3'!D31,0.0000000001))) -> 0.9999999999 | EA21: =MIN(1,DX21*(1+MAX('Level 3'!D31,0.000000000000001))) -> 1 | EB21: =IF('Level 3'!B31="END",0,'Level 3'!F31) -> 0 | EC21: 0 | ED21: =IF(DW21=#REF!,$DX$8,IF(DX21="END",0,IF(DY21=0,VLOOKUP(DX21,#REF!,8,FALSE)^IF(EB21=0,1,EB21/VLOOKUP(DX21,#REF!,7,FALSE)),DY21))*IF(DX21=#REF!,$DX$7,1)) ->  | EE21: =IF(DX21=#REF!,$DX$8,IF(DY21="END",0,IF(EB21=0,VLOOKUP(DY21,#REF!,8,FALSE)^IF(EC21=0,1,EC21/VLOOKUP(DY21,#REF!,7,FALSE)),EB21))*IF(DY21=#REF!,$DX$7,1)) ->  | EF21: 0 | EG21: 0 | EI21: =SUM($EH$11:EH21) ->  | EJ21: 0 | EL21: 0.9999999999 | EM21: 1 | EP21: =IF(EL21>0,EL21,EJ21/2) -> 0.9999999999 | EQ21: =IF(EM21>0,EM21,EJ21*2) -> 1 | ER21: =IF(EN21>0,EN21,EK21/EJ21*EP21) ->  | ES21: =IF(EO21>0,EO21,EK21/EJ21*EQ21) ->  | ET21: 0 | EU21: 0.2699239392 | EV21: 0.5 | EW21: 0.245023296 | EX21: 684.332977 | EY21: 0.6577514775 | EZ21: 0.75 | FA21: 0.9000685601 | FB21: 0.5 | FC21: 0.3337669619 | FD21: 0.9 | FE21: 0.4113733393 | FF21: 1 | FG21: 0.9194157573 | FH21: 1 | FI21: 0.531176734 | FJ21: 1 | FK21: 0.1806323601 | FL21: 1 | FM21: 0.2580099766 | FN21: 1 | FO21: 0.4122267551 | FP21: 1 | FQ21: 0.5 | FR21: 342.1664885 | FS21: 256.6248664 | FT21: 128.3124332 | FU21: 115.4811898 | FV21: 115.4811898 | FW21: 115.4811898 | FX21: 115.4811898 | FY21: 115.4811898 | FZ21: 115.4811898 | GA21: 115.4811898 | GB21: 115.4811898 | GC21: 5000 | GD21: 1000000000 | GE21: 1000000000 | GF21: 3000000 | GG21: 1e+11 | GH21: 0 | GI21: 0 | GJ21: 0 | GK21: 0 | GL21: 0 | GM21: 0 | GN21: 0.2738250066 | GO21: 5000 | GP21: 3409997.018 | GQ21: 2550973.654 | GR21: 894976.5572 | GS21: 805472.4135 | GZ21: 805472.4135 | HA21: =MIN(CT21*'Level 3'!$J$28,CI21*$HA$1) -> 0 | HB21: =CI21+CJ21-MIN('Level 3'!$J$29*'Level 3'!$J$28,CI21*0.3) -> 4111.094596 | HD21: 4111.094596 | HE21: 4111.094596 | HF21: =IF('Level 3'!$C$15 <> "None",HE21*$EV21/(1+HE21*$EV21/$GC21),HE21*$EC$11/(1+HE21*$EC$11/$EF$11)) -> 1456.688766 | HG21: =IF('Level 3'!$C$15 <> "None",HF21*$EX21/(1+HF21*$EX21/$GD21),HF21*$EC$12/(1+HF21*$EC$12/$EF$12)) -> 995867.4195 | HH21: =MAX(IF('Level 3'!$C$15 <> "None",IF($HI$8="Y",((RAND()-0.5)/SQRT(1/12))*SQRT((HG21*EZ21/(1+HG21*EZ21/GE21))*(1-EZ21/(1+HG21*EZ21/GE21))),0)+(HG21*EZ21/(1+HG21*EZ21/GE21)),HG21*$EC$13/(1+HG21*$EC$13/$EF$13)),0) -> 746343.1206 | HI21: =MAX(IF('Level 3'!$C$15 <> "None",IF($HI$8="Y",((RAND()-0.5)/SQRT(1/12))*SQRT((HH21*FB21/(1+HH21*FB21/GF21))*(1-FB21/(1+HH21*FB21/GF21))),0)+(HH21*FB21/(1+HH21*FB21/GF21)),HH21*$EC$14/(1+HH21*$EC$14/$EF$14)),0) -> 331887.8571 | HJ21: =MAX(IF('Level 3'!$C$15 <> "None",IF($HI$8="Y",((RAND()-0.5)/SQRT(1/12))*SQRT((HI21*FD21/(1+HI21*FD21/GG21))*(1-FD21/(1+HI21*FD21/GG21))),0)+(HI21*FD21/(1+HI21*FD21/GG21)),HI21*$EC$15/(1+HI21*$EC$15/$EF$15)),0) -> 298698.1792 | HK21: =MAX(IF('Level 3'!$C$15 <> "None",IF($HI$8="Y",((RAND()-0.5)/SQRT(1/12))*SQRT((HJ21*FF21/(1+HJ21*FF21/GH21))*(1-FF21/(1+HJ21*FF21/GH21))),0)+(HJ21*FF21/(1+HJ21*FF21/GH21)),HJ21*$EC$16/(1+HJ21*$EC$16/$EF$16)),0) ->  | HL21: =MAX(IF('Level 3'!$C$15 <> "None",IF($HI$8="Y",((RAND()-0.5)/SQRT(1/12))*SQRT((HK21*FH21/(1+HK21*FH21/GI21))*(1-FH21/(1+HK21*FH21/GI21))),0)+(HK21*FH21/(1+HK21*FH21/GI21)),HK21*$EC$17/(1+HK21*$EC$17/$EF$17)),0) ->  | HM21: =MAX(IF('Level 3'!$C$15 <> "None",IF($HI$8="Y",((RAND()-0.5)/SQRT(1/12))*SQRT((HL21*FJ21/(1+HL21*FJ21/GJ21))*(1-FJ21/(1+HL21*FJ21/GJ21))),0)+(HL21*FJ21/(1+HL21*FJ21/GJ21)),HL21*$EC$18/(1+HL21*$EC$18/$EF$18)),0) ->  | HN21: =MAX(IF('Level 3'!$C$15 <> "None",IF($HI$8="Y",((RAND()-0.5)/SQRT(1/12))*SQRT((HM21*FL21/(1+HM21*FL21/GK21))*(1-FL21/(1+HM21*FL21/GK21))),0)+(HM21*FL21/(1+HM21*FL21/GK21)),HM21*$EC$19/(1+HM21*$EC$19/$EF$19)),0) ->  | HO21: =MAX(IF('Level 3'!$C$15 <> "None",IF($HI$8="Y",((RAND()-0.5)/SQRT(1/12))*SQRT((HN21*FN21/(1+HN21*FN21/GL21))*(1-FN21/(1+HN21*FN21/GL21))),0)+(HN21*FN21/(1+HN21*FN21/GL21)),HN21*$EC$20/(1+HN21*$EC$20/$EF$20)),0) ->  | HP21: =MAX(IF('Level 3'!$C$15 <> "None",IF($HI$8="Y",((RAND()-0.5)/SQRT(1/12))*SQRT((HO21*FP21/(1+HO21*FP21/GM21))*(1-FP21/(1+HO21*FP21/GM21))),0)+(HO21*FP21/(1+HO21*FP21/GM21)),HO21*$EC$21/(1+HO21*$EC$21/$EF$21)),0) ->  | HQ21: =IF('Level 3'!$C$15="None",HE21*$EJ$3/(1+$EJ$3*HE21/$EJ$4),HLOOKUP(1,$HF$9:$HP$132,ROW()-8,FALSE)) -> 298698.1792 | HR21: 298698.1791 | HZ21: ='Diagnostics L2'!AK5 -> 200 | IA21: =COUNTIF($IA$33:$IA$132,"<"&HZ21) -> 0
C22: =IF('Level 3'!$C$15="Random",RAND(),IF('Level 3'!$C$15="None",0.5,RAND())) -> 0.5 | D22: 0 | E22: =IF('Level 3'!$AX$14="MR",$F$6,IF('Level 3'!$AX$14="FR", 'Level 3'!$C$5,IF('Level 3'!$AX$14="ME",IF(I22=0,0,MAX(0,('L3 BaselineNatural'!I22-'L3 BaselineNatural'!$F$5)/'L3 BaselineNatural'!I22)),IF(I22=0,0,MAX(0,('L3 BaselineNatural'!I22-'Level 3'!$C$7)/'L3 BaselineNatural'!I22))))) -> 0 | F22: 0 | G22: 3831.721231 | H22: 298698.1792 | I22: 3831.721231 | J22: 0 | K22: 3831.721231 | M22: 0.5384560647 | N22: 0.05247282522 | O22: =IF('Level 3'!$C$15= "None", N$3, IF('Level 3'!$C$15 = "Random",N22, $N$3)) -> 0.05 | P22: 0.4003922538 | Q22: =IF('Level 3'!$C$15= "None",P$3,P22) -> 0.4 | R22: 0.6003922538 | S22: =IF('Level 3'!$C$15= "None",R$3,R22) -> 0.6 | T22: 0.7003922538 | U22: =IF('Level 3'!$C$15= "None",T$3,T22) -> 0.7 | V22: 0.8003922538 | W22: =IF('Level 3'!$C$15= "None",V$3,V22) -> 0.8 | X22: 0.9003922538 | Y22: =IF('Level 3'!$C$15= "None",X$3,X22) -> 0.9 | Z22: 298698.1792 | AA22: 0.01020790911 | AB22: 72.65660574 | AC22: 298698.1792 | AD22: 0 | AE22: 606.6462899 | AF22: 1118.317899 | AG22: 1626.464348 | AH22: 471.6301001 | AI22: 8.662593676 | AJ22: 3831.721231 | AK22: 0 | AL22: 0 | AN22: 0 | AO22: 0 | AP22: 0 | AQ22: 0 | AR22: 0 | AS22: 0 | AT22: 0 | AV22: 0 | AW22: 606.6462899 | AX22: 1118.317899 | AY22: 1626.464348 | AZ22: 471.6301001 | BA22: 8.662593676 | BB22: 3831.721231 | BD22: 0 | BE22: 0 | BF22: 0 | BG22: 0 | BH22: 0 | BI22: 0 | BJ22: 0 | BL22: 0 | BM22: 606.6462899 | BN22: 1118.317899 | BO22: 1626.464348 | BP22: 471.6301001 | BQ22: 8.662593676 | BR22: 3831.721231 | BT22: 0 | BU22: 0 | BV22: 0 | BW22: 0 | BX22: 0 | BY22: 0 | BZ22: 0 | CA22: 0 | CC22: 0 | CD22: 606.6462899 | CE22: 1118.317899 | CF22: 1626.464348 | CG22: 471.6301001 | CH22: 8.662593676 | CI22: 3831.721231 | CJ22: =IF('Level 3'!$J$27=0,0,'L3 BaselineHatchery'!CU22*$CU$4) -> 0 | CK22: 0 | CL22: 0.158322136 | CM22: 0.2918578445 | CN22: 0.4244735589 | CO22: 0.1230857027 | CP22: 0.002260757804 | CQ22: 1 | CS22: 1468.456307 | CT22: ='Level 3'!$J$29 -> 1 | CU22: =IF(CJ22>0,CJ22/(CJ22+CI22-MIN(CT22*'Level 3'!$J$28,CI22*0.3)),0) -> 0 | CV22: 1918 | CW22: -1.13 | CX22: -0.66 | CY22: -1.15 | CZ22: -0.32 | DA22: -0.33 | DB22: 0.07 | DC22: 0.98 | DD22: -0.31 | DE22: -0.59 | DF22: 0.61 | DG22: 0.34 | DH22: 0.86 | DI22: 1918 | DJ22: 0.08333333333 | DR22: 0 | EB22: =EB14 -> 3000000 | ET22: =SUM(ET11:ET21) -> 0.0001433707572 | EU22: 0.7379712598 | EV22: 0.5 | EW22: 0.2537759511 | EX22: 684.332977 | EY22: 0.3864803265 | EZ22: 0.75 | FA22: 0.6602423668 | FB22: 0.5 | FC22: 0.5531556062 | FD22: 0.9 | FE22: 0.5699917522 | FF22: 1 | FG22: 0.3016677744 | FH22: 1 | FI22: 0.6824660666 | FJ22: 1 | FK22: 0.9723959028 | FL22: 1 | FM22: 0.2097713812 | FN22: 1 | FO22: 0.694403857 | FP22: 1 | FQ22: 0.5 | FR22: 342.1664885 | FS22: 256.6248664 | FT22: 128.3124332 | FU22: 115.4811899 | FV22: 115.4811899 | FW22: 115.4811899 | FX22: 115.4811899 | FY22: 115.4811899 | FZ22: 115.4811899 | GA22: 115.4811899 | GB22: 115.4811899 | GC22: 5000 | GD22: 1000000000 | GE22: 1000000000 | GF22: 3000000 | GG22: 1e+11 | GH22: 0 | GI22: 0 | GJ22: 0 | GK22: 0 | GL22: 0 | GM22: 0 | GN22: 0.2917379529 | GO22: 5000 | GP22: 3409997.018 | GQ22: 2550973.654 | GR22: 894976.5572 | GS22: 805472.4136 | GZ22: 805472.4136 | HA22: =MIN(CT22*'Level 3'!$J$28,CI22*$HA$1) -> 0 | HB22: =CI22+CJ22-MIN('Level 3'!$J$29*'Level 3'!$J$28,CI22*0.3) -> 3831.721231 | HD22: 3831.721231 | HE22: 3831.721231 | HF22: =IF('Level 3'!$C$15 <> "None",HE22*$EV22/(1+HE22*$EV22/$GC22),HE22*$EC$11/(1+HE22*$EC$11/$EF$11)) -> 1385.1209 | HG22: =IF('Level 3'!$C$15 <> "None",HF22*$EX22/(1+HF22*$EX22/$GD22),HF22*$EC$12/(1+HF22*$EC$12/$EF$12)) -> 946986.2757 | HH22: =MAX(IF('Level 3'!$C$15 <> "None",IF($HI$8="Y",((RAND()-0.5)/SQRT(1/12))*SQRT((HG22*EZ22/(1+HG22*EZ22/GE22))*(1-EZ22/(1+HG22*EZ22/GE22))),0)+(HG22*EZ22/(1+HG22*EZ22/GE22)),HG22*$EC$13/(1+HG22*$EC$13/$EF$13)),0) -> 709735.6243 | HI22: =MAX(IF('Level 3'!$C$15 <> "None",IF($HI$8="Y",((RAND()-0.5)/SQRT(1/12))*SQRT((HH22*FB22/(1+HH22*FB22/GF22))*(1-FB22/(1+HH22*FB22/GF22))),0)+(HH22*FB22/(1+HH22*FB22/GF22)),HH22*$EC$14/(1+HH22*$EC$14/$EF$14)),0) -> 317330.9639 | HJ22: =MAX(IF('Level 3'!$C$15 <> "None",IF($HI$8="Y",((RAND()-0.5)/SQRT(1/12))*SQRT((HI22*FD22/(1+HI22*FD22/GG22))*(1-FD22/(1+HI22*FD22/GG22))),0)+(HI22*FD22/(1+HI22*FD22/GG22)),HI22*$EC$15/(1+HI22*$EC$15/$EF$15)),0) -> 285597.0518 | HK22: =MAX(IF('Level 3'!$C$15 <> "None",IF($HI$8="Y",((RAND()-0.5)/SQRT(1/12))*SQRT((HJ22*FF22/(1+HJ22*FF22/GH22))*(1-FF22/(1+HJ22*FF22/GH22))),0)+(HJ22*FF22/(1+HJ22*FF22/GH22)),HJ22*$EC$16/(1+HJ22*$EC$16/$EF$16)),0) ->  | HL22: =MAX(IF('Level 3'!$C$15 <> "None",IF($HI$8="Y",((RAND()-0.5)/SQRT(1/12))*SQRT((HK22*FH22/(1+HK22*FH22/GI22))*(1-FH22/(1+HK22*FH22/GI22))),0)+(HK22*FH22/(1+HK22*FH22/GI22)),HK22*$EC$17/(1+HK22*$EC$17/$EF$17)),0) ->  | HM22: =MAX(IF('Level 3'!$C$15 <> "None",IF($HI$8="Y",((RAND()-0.5)/SQRT(1/12))*SQRT((HL22*FJ22/(1+HL22*FJ22/GJ22))*(1-FJ22/(1+HL22*FJ22/GJ22))),0)+(HL22*FJ22/(1+HL22*FJ22/GJ22)),HL22*$EC$18/(1+HL22*$EC$18/$EF$18)),0) ->  | HN22: =MAX(IF('Level 3'!$C$15 <> "None",IF($HI$8="Y",((RAND()-0.5)/SQRT(1/12))*SQRT((HM22*FL22/(1+HM22*FL22/GK22))*(1-FL22/(1+HM22*FL22/GK22))),0)+(HM22*FL22/(1+HM22*FL22/GK22)),HM22*$EC$19/(1+HM22*$EC$19/$EF$19)),0) ->  | HO22: =MAX(IF('Level 3'!$C$15 <> "None",IF($HI$8="Y",((RAND()-0.5)/SQRT(1/12))*SQRT((HN22*FN22/(1+HN22*FN22/GL22))*(1-FN22/(1+HN22*FN22/GL22))),0)+(HN22*FN22/(1+HN22*FN22/GL22)),HN22*$EC$20/(1+HN22*$EC$20/$EF$20)),0) ->  | HP22: =MAX(IF('Level 3'!$C$15 <> "None",IF($HI$8="Y",((RAND()-0.5)/SQRT(1/12))*SQRT((HO22*FP22/(1+HO22*FP22/GM22))*(1-FP22/(1+HO22*FP22/GM22))),0)+(HO22*FP22/(1+HO22*FP22/GM22)),HO22*$EC$21/(1+HO22*$EC$21/$EF$21)),0) ->  | HQ22: =IF('Level 3'!$C$15="None",HE22*$EJ$3/(1+$EJ$3*HE22/$EJ$4),HLOOKUP(1,$HF$9:$HP$132,ROW()-8,FALSE)) -> 285597.0518 | HR22: 285597.0518 | HZ22: ='Diagnostics L2'!AK6 -> 300 | IA22: =COUNTIF($IA$33:$IA$132,"<"&HZ22) -> 0
C23: =IF('Level 3'!$C$15="Random",RAND(),IF('Level 3'!$C$15="None",0.5,RAND())) -> 0.5 | D23: 0 | E23: =IF('Level 3'!$AX$14="MR",$F$6,IF('Level 3'!$AX$14="FR", 'Level 3'!$C$5,IF('Level 3'!$AX$14="ME",IF(I23=0,0,MAX(0,('L3 BaselineNatural'!I23-'L3 BaselineNatural'!$F$5)/'L3 BaselineNatural'!I23)),IF(I23=0,0,MAX(0,('L3 BaselineNatural'!I23-'Level 3'!$C$7)/'L3 BaselineNatural'!I23))))) -> 0 | F23: 0 | G23: 3528.719088 | H23: 298698.1792 | I23: 3528.719088 | J23: 0 | K23: 3528.719088 | M23: 0.7072695169 | N23: 0.0656761412 | O23: =IF('Level 3'!$C$15= "None", N$3, IF('Level 3'!$C$15 = "Random",N23, $N$3)) -> 0.05 | P23: 0.4023484579 | Q23: =IF('Level 3'!$C$15= "None",P$3,P23) -> 0.4 | R23: 0.6023484579 | S23: =IF('Level 3'!$C$15= "None",R$3,R23) -> 0.6 | T23: 0.7023484579 | U23: =IF('Level 3'!$C$15= "None",T$3,T23) -> 0.7 | V23: 0.8023484579 | W23: =IF('Level 3'!$C$15= "None",V$3,V23) -> 0.8 | X23: 0.9023484579 | Y23: =IF('Level 3'!$C$15= "None",X$3,X23) -> 0.9 | Z23: 298698.1792 | AA23: 0.01020790911 | AB23: 72.65660574 | AC23: =Z23 -> 298698.1792 | AD23: 0 | AE23: 656.2641296 | AF23: 765.6979172 | AG23: 1626.464348 | AH23: 471.6301001 | AI23: 8.662593676 | AJ23: 3528.719088 | AK23: 0 | AL23: 0 | AN23: 0 | AO23: 0 | AP23: 0 | AQ23: 0 | AR23: 0 | AS23: 0 | AT23: 0 | AV23: 0 | AW23: 656.2641296 | AX23: 765.6979172 | AY23: 1626.464348 | AZ23: 471.6301001 | BA23: 8.662593676 | BB23: 3528.719088 | BD23: 0 | BE23: 0 | BF23: 0 | BG23: 0 | BH23: 0 | BI23: 0 | BJ23: 0 | BL23: 0 | BM23: 656.2641296 | BN23: 765.6979172 | BO23: 1626.464348 | BP23: 471.6301001 | BQ23: 8.662593676 | BR23: 3528.719088 | BT23: 0 | BU23: 0 | BV23: 0 | BW23: 0 | BX23: 0 | BY23: 0 | BZ23: 0 | CA23: 0 | CC23: 0 | CD23: 656.2641296 | CE23: 765.6979172 | CF23: 1626.464348 | CG23: 471.6301001 | CH23: 8.662593676 | CI23: 3528.719088 | CJ23: =IF('Level 3'!$J$27=0,0,'L3 BaselineHatchery'!CU23*$CU$4) -> 0 | CK23: 0 | CL23: 0.1859780031 | CM23: 0.2169903294 | CN23: 0.4609220249 | CO23: 0.1336547592 | CP23: 0.002454883333 | CQ23: 1 | CS23: 1424.670287 | CT23: ='Level 3'!$J$29 -> 1 | CU23: =IF(CJ23>0,CJ23/(CJ23+CI23-MIN(CT23*'Level 3'!$J$28,CI23*0.3)),0) -> 0 | CV23: 1919 | CW23: -1.07 | CX23: 1.31 | CY23: -0.5 | CZ23: 0.08 | DA23: 0.17 | DB23: -0.71 | DC23: -0.47 | DD23: 0.38 | DE23: 0.06 | DF23: -0.42 | DG23: -0.8 | DH23: 0.76 | DI23: 1919 | DJ23: 0.08166666667 | DR23: 0 | DX23: =PRODUCT(DX11:DX21) -> 0.084375 | EB23: =EB15 -> 100000000000 | EU23: 0.6245840836 | EV23: 0.5 | EW23: 0.5914165789 | EX23: 684.332977 | EY23: 0.5474624726 | EZ23: 0.75 | FA23: 0.8436171623 | FB23: 0.5 | FC23: 0.6257949005 | FD23: 0.9 | FE23: 0.8811761041 | FF23: 1 | FG23: 0.534447872 | FH23: 1 | FI23: 0.9474134486 | FJ23: 1 | FK23: 0.04770707859 | FL23: 1 | FM23: 0.1388734693 | FN23: 1 | FO23: 0.2228476376 | FP23: 1 | FQ23: 0.5 | FR23: 342.1664885 | FS23: 256.6248664 | FT23: 128.3124332 | FU23: 115.4811899 | FV23: 115.4811899 | FW23: 115.4811899 | FX23: 115.4811899 | FY23: 115.4811899 | FZ23: 115.4811899 | GA23: 115.4811899 | GB23: 115.4811899 | GC23: 5000 | GD23: 1000000000 | GE23: 1000000000 | GF23: 3000000 | GG23: 1e+11 | GH23: 0 | GI23: 0 | GJ23: 0 | GK23: 0 | GL23: 0 | GM23: 0 | GN23: 0.1433989386 | GO23: 5000 | GP23: 3409997.018 | GQ23: 2550973.654 | GR23: 894976.5572 | GS23: 805472.4136 | GZ23: 805472.4136 | HA23: =MIN(CT23*'Level 3'!$J$28,CI23*$HA$1) -> 0 | HB23: =CI23+CJ23-MIN('Level 3'!$J$29*'Level 3'!$J$28,CI23*0.3) -> 3528.719088 | HD23: 3528.719088 | HE23: 3528.719088 | HF23: =IF('Level 3'!$C$15 <> "None",HE23*$EV23/(1+HE23*$EV23/$GC23),HE23*$EC$11/(1+HE23*$EC$11/$EF$11)) -> 1304.158607 | HG23: =IF('Level 3'!$C$15 <> "None",HF23*$EX23/(1+HF23*$EX23/$GD23),HF23*$EC$12/(1+HF23*$EC$12/$EF$12)) -> 891682.934 | HH23: =MAX(IF('Level 3'!$C$15 <> "None",IF($HI$8="Y",((RAND()-0.5)/SQRT(1/12))*SQRT((HG23*EZ23/(1+HG23*EZ23/GE23))*(1-EZ23/(1+HG23*EZ23/GE23))),0)+(HG23*EZ23/(1+HG23*EZ23/GE23)),HG23*$EC$13/(1+HG23*$EC$13/$EF$13)),0) -> 668315.2566 | HI23: =MAX(IF('Level 3'!$C$15 <> "None",IF($HI$8="Y",((RAND()-0.5)/SQRT(1/12))*SQRT((HH23*FB23/(1+HH23*FB23/GF23))*(1-FB23/(1+HH23*FB23/GF23))),0)+(HH23*FB23/(1+HH23*FB23/GF23)),HH23*$EC$14/(1+HH23*$EC$14/$EF$14)),0) -> 300667.5138 | HJ23: =MAX(IF('Level 3'!$C$15 <> "None",IF($HI$8="Y",((RAND()-0.5)/SQRT(1/12))*SQRT((HI23*FD23/(1+HI23*FD23/GG23))*(1-FD23/(1+HI23*FD23/GG23))),0)+(HI23*FD23/(1+HI23*FD23/GG23)),HI23*$EC$15/(1+HI23*$EC$15/$EF$15)),0) -> 270600.0302 | HK23: =MAX(IF('Level 3'!$C$15 <> "None",IF($HI$8="Y",((RAND()-0.5)/SQRT(1/12))*SQRT((HJ23*FF23/(1+HJ23*FF23/GH23))*(1-FF23/(1+HJ23*FF23/GH23))),0)+(HJ23*FF23/(1+HJ23*FF23/GH23)),HJ23*$EC$16/(1+HJ23*$EC$16/$EF$16)),0) ->  | HL23: =MAX(IF('Level 3'!$C$15 <> "None",IF($HI$8="Y",((RAND()-0.5)/SQRT(1/12))*SQRT((HK23*FH23/(1+HK23*FH23/GI23))*(1-FH23/(1+HK23*FH23/GI23))),0)+(HK23*FH23/(1+HK23*FH23/GI23)),HK23*$EC$17/(1+HK23*$EC$17/$EF$17)),0) ->  | HM23: =MAX(IF('Level 3'!$C$15 <> "None",IF($HI$8="Y",((RAND()-0.5)/SQRT(1/12))*SQRT((HL23*FJ23/(1+HL23*FJ23/GJ23))*(1-FJ23/(1+HL23*FJ23/GJ23))),0)+(HL23*FJ23/(1+HL23*FJ23/GJ23)),HL23*$EC$18/(1+HL23*$EC$18/$EF$18)),0) ->  | HN23: =MAX(IF('Level 3'!$C$15 <> "None",IF($HI$8="Y",((RAND()-0.5)/SQRT(1/12))*SQRT((HM23*FL23/(1+HM23*FL23/GK23))*(1-FL23/(1+HM23*FL23/GK23))),0)+(HM23*FL23/(1+HM23*FL23/GK23)),HM23*$EC$19/(1+HM23*$EC$19/$EF$19)),0) ->  | HO23: =MAX(IF('Level 3'!$C$15 <> "None",IF($HI$8="Y",((RAND()-0.5)/SQRT(1/12))*SQRT((HN23*FN23/(1+HN23*FN23/GL23))*(1-FN23/(1+HN23*FN23/GL23))),0)+(HN23*FN23/(1+HN23*FN23/GL23)),HN23*$EC$20/(1+HN23*$EC$20/$EF$20)),0) ->  | HP23: =MAX(IF('Level 3'!$C$15 <> "None",IF($HI$8="Y",((RAND()-0.5)/SQRT(1/12))*SQRT((HO23*FP23/(1+HO23*FP23/GM23))*(1-FP23/(1+HO23*FP23/GM23))),0)+(HO23*FP23/(1+HO23*FP23/GM23)),HO23*$EC$21/(1+HO23*$EC$21/$EF$21)),0) ->  | HQ23: =IF('Level 3'!$C$15="None",HE23*$EJ$3/(1+$EJ$3*HE23/$EJ$4),HLOOKUP(1,$HF$9:$HP$132,ROW()-8,FALSE)) -> 270600.0302 | HR23: 270600.0302 | HZ23: ='Diagnostics L2'!AK7 -> 400 | IA23: =COUNTIF($IA$33:$IA$132,"<"&HZ23) -> 0
C24: =IF('Level 3'!$C$15="Random",RAND(),IF('Level 3'!$C$15="None",0.5,RAND())) -> 0.5 | D24: 0 | E24: =IF('Level 3'!$AX$14="MR",$F$6,IF('Level 3'!$AX$14="FR", 'Level 3'!$C$5,IF('Level 3'!$AX$14="ME",IF(I24=0,0,MAX(0,('L3 BaselineNatural'!I24-'L3 BaselineNatural'!$F$5)/'L3 BaselineNatural'!I24)),IF(I24=0,0,MAX(0,('L3 BaselineNatural'!I24-'Level 3'!$C$7)/'L3 BaselineNatural'!I24))))) -> 0 | F24: 0 | G24: 3079.372611 | H24: 285597.0518 | I24: 3079.372611 | J24: 0 | K24: 3079.372611 | M24: 0.992816327 | N24: 0.1700335317 | O24: =IF('Level 3'!$C$15= "None", N$3, IF('Level 3'!$C$15 = "Random",N24, $N$3)) -> 0.05 | P24: 0.4088013614 | Q24: =IF('Level 3'!$C$15= "None",P$3,P24) -> 0.4 | R24: 0.6088013614 | S24: =IF('Level 3'!$C$15= "None",R$3,R24) -> 0.6 | T24: 0.7088013614 | U24: =IF('Level 3'!$C$15= "None",T$3,T24) -> 0.7 | V24: 0.8088013614 | W24: =IF('Level 3'!$C$15= "None",V$3,V24) -> 0.8 | X24: 0.9088013614 | Y24: =IF('Level 3'!$C$15= "None",X$3,X24) -> 0.9 | Z24: 285597.0518 | AA24: 0.01020790911 | AB24: 74.53492429 | AC24: 285597.0518 | AD24: 0 | AE24: 657.1359942 | AF24: 828.3246523 | AG24: 1113.619271 | AH24: 471.6301001 | AI24: 8.662593676 | AJ24: 3079.372611 | AK24: 0 | AL24: 0 | AN24: 0 | AO24: 0 | AP24: 0 | AQ24: 0 | AR24: 0 | AS24: 0 | AT24: 0 | AV24: 0 | AW24: 657.1359942 | AX24: 828.3246523 | AY24: 1113.619271 | AZ24: 471.6301001 | BA24: 8.662593676 | BB24: 3079.372611 | BD24: 0 | BE24: 0 | BF24: 0 | BG24: 0 | BH24: 0 | BI24: 0 | BJ24: 0 | BL24: 0 | BM24: 657.1359942 | BN24: 828.3246523 | BO24: 1113.619271 | BP24: 471.6301001 | BQ24: 8.662593676 | BR24: 3079.372611 | BT24: 0 | BU24: 0 | BV24: 0 | BW24: 0 | BX24: 0 | BY24: 0 | BZ24: 0 | CA24: 0 | CC24: =(BL24-BT24)*$AN$7 -> 0 | CD24: 657.1359942 | CE24: 828.3246523 | CF24: 1113.619271 | CG24: 471.6301001 | CH24: 8.662593676 | CI24: 3079.372611 | CJ24: =IF('Level 3'!$J$27=0,0,'L3 BaselineHatchery'!CU24*$CU$4) -> 0 | CK24: 0 | CL24: 0.2133993112 | CM24: 0.2689913683 | CN24: 0.3616383632 | CO24: 0.1531578538 | CP24: 0.002813103437 | CQ24: 1 | CS24: 1384.012458 | CT24: ='Level 3'!$J$29 -> 1 | CU24: =IF(CJ24>0,CJ24/(CJ24+CI24-MIN(CT24*'Level 3'!$J$28,CI24*0.3)),0) -> 0 | CV24: 1920 | CW24: -1.18 | CX24: 0.06 | CY24: -0.78 | CZ24: -1.29 | DA24: -0.97 | DB24: -1.3 | DC24: -0.9 | DD24: -2.21 | DE24: -1.28 | DF24: -1.06 | DG24: -0.26 | DH24: 0.29 | DI24: 1920 | DJ24: 1.325 | DR24: 0 | EB24: 0 | EU24: 0.6070281795 | EV24: 0.5 | EW24: 0.1867235186 | EX24: 684.332977 | EY24: 0.4408031911 | EZ24: 0.75 | FA24: 0.274215266 | FB24: 0.5 | FC24: 0.3747518162 | FD24: 0.9 | FE24: 0.4229830957 | FF24: 1 | FG24: 0.7633238271 | FH24: 1 | FI24: 0.1711515479 | FJ24: 1 | FK24: 0.7739455712 | FL24: 1 | FM24: 0.9986399092 | FN24: 1 | FO24: 0.9662732602 | FP24: 1 | FQ24: 0.5 | FR24: 342.1664885 | FS24: 256.6248664 | FT24: 128.3124332 | FU24: 115.4811899 | FV24: 115.4811899 | FW24: 115.4811899 | FX24: 115.4811899 | FY24: 115.4811899 | FZ24: 115.4811899 | GA24: 115.4811899 | GB24: 115.4811899 | GC24: 5000 | GD24: 1000000000 | GE24: 1000000000 | GF24: 3000000 | GG24: 1e+11 | GH24: 0 | GI24: 0 | GJ24: 0 | GK24: 0 | GL24: 0 | GM24: 0 | GN24: 0.5514003391 | GO24: 5000 | GP24: 3409997.018 | GQ24: 2550973.654 | GR24: 894976.5572 | GS24: 805472.4136 | GZ24: 805472.4136 | HA24: =MIN(CT24*'Level 3'!$J$28,CI24*$HA$1) -> 0 | HB24: =CI24+CJ24-MIN('Level 3'!$J$29*'Level 3'!$J$28,CI24*$HA$1) -> 3079.372611 | HD24: 3079.372611 | HE24: 3079.372611 | HF24: =IF('Level 3'!$C$15 <> "None",HE24*$EV24/(1+HE24*$EV24/$GC24),HE24*$EC$11/(1+HE24*$EC$11/$EF$11)) -> 1177.186667 | HG24: =IF('Level 3'!$C$15 <> "None",HF24*$EX24/(1+HF24*$EX24/$GD24),HF24*$EC$12/(1+HF24*$EC$12/$EF$12)) -> 804939.2076 | HH24: =MAX(IF('Level 3'!$C$15 <> "None",IF($HI$8="Y",((RAND()-0.5)/SQRT(1/12))*SQRT((HG24*EZ24/(1+HG24*EZ24/GE24))*(1-EZ24/(1+HG24*EZ24/GE24))),0)+(HG24*EZ24/(1+HG24*EZ24/GE24)),HG24*$EC$13/(1+HG24*$EC$13/$EF$13)),0) -> 603340.1666 | HI24: =MAX(IF('Level 3'!$C$15 <> "None",IF($HI$8="Y",((RAND()-0.5)/SQRT(1/12))*SQRT((HH24*FB24/(1+HH24*FB24/GF24))*(1-FB24/(1+HH24*FB24/GF24))),0)+(HH24*FB24/(1+HH24*FB24/GF24)),HH24*$EC$14/(1+HH24*$EC$14/$EF$14)),0) -> 274106.8087 | HJ24: =MAX(IF('Level 3'!$C$15 <> "None",IF($HI$8="Y",((RAND()-0.5)/SQRT(1/12))*SQRT((HI24*FD24/(1+HI24*FD24/GG24))*(1-FD24/(1+HI24*FD24/GG24))),0)+(HI24*FD24/(1+HI24*FD24/GG24)),HI24*$EC$15/(1+HI24*$EC$15/$EF$15)),0) -> 246695.5192 | HK24: =MAX(IF('Level 3'!$C$15 <> "None",IF($HI$8="Y",((RAND()-0.5)/SQRT(1/12))*SQRT((HJ24*FF24/(1+HJ24*FF24/GH24))*(1-FF24/(1+HJ24*FF24/GH24))),0)+(HJ24*FF24/(1+HJ24*FF24/GH24)),HJ24*$EC$16/(1+HJ24*$EC$16/$EF$16)),0) ->  | HL24: =MAX(IF('Level 3'!$C$15 <> "None",IF($HI$8="Y",((RAND()-0.5)/SQRT(1/12))*SQRT((HK24*FH24/(1+HK24*FH24/GI24))*(1-FH24/(1+HK24*FH24/GI24))),0)+(HK24*FH24/(1+HK24*FH24/GI24)),HK24*$EC$17/(1+HK24*$EC$17/$EF$17)),0) ->  | HM24: =MAX(IF('Level 3'!$C$15 <> "None",IF($HI$8="Y",((RAND()-0.5)/SQRT(1/12))*SQRT((HL24*FJ24/(1+HL24*FJ24/GJ24))*(1-FJ24/(1+HL24*FJ24/GJ24))),0)+(HL24*FJ24/(1+HL24*FJ24/GJ24)),HL24*$EC$18/(1+HL24*$EC$18/$EF$18)),0) ->  | HN24: =MAX(IF('Level 3'!$C$15 <> "None",IF($HI$8="Y",((RAND()-0.5)/SQRT(1/12))*SQRT((HM24*FL24/(1+HM24*FL24/GK24))*(1-FL24/(1+HM24*FL24/GK24))),0)+(HM24*FL24/(1+HM24*FL24/GK24)),HM24*$EC$19/(1+HM24*$EC$19/$EF$19)),0) ->  | HO24: =MAX(IF('Level 3'!$C$15 <> "None",IF($HI$8="Y",((RAND()-0.5)/SQRT(1/12))*SQRT((HN24*FN24/(1+HN24*FN24/GL24))*(1-FN24/(1+HN24*FN24/GL24))),0)+(HN24*FN24/(1+HN24*FN24/GL24)),HN24*$EC$20/(1+HN24*$EC$20/$EF$20)),0) ->  | HP24: =MAX(IF('Level 3'!$C$15 <> "None",IF($HI$8="Y",((RAND()-0.5)/SQRT(1/12))*SQRT((HO24*FP24/(1+HO24*FP24/GM24))*(1-FP24/(1+HO24*FP24/GM24))),0)+(HO24*FP24/(1+HO24*FP24/GM24)),HO24*$EC$21/(1+HO24*$EC$21/$EF$21)),0) ->  | HQ24: =IF('Level 3'!$C$15="None",HE24*$EJ$3/(1+$EJ$3*HE24/$EJ$4),HLOOKUP(1,$HF$9:$HP$132,ROW()-8,FALSE)) -> 246695.5192 | HR24: 246695.5192
C25: =IF('Level 3'!$C$15="Random",RAND(),IF('Level 3'!$C$15="None",0.5,RAND())) -> 0.5 | D25: 0 | E25: =IF('Level 3'!$AX$14="MR",$F$6,IF('Level 3'!$AX$14="FR", 'Level 3'!$C$5,IF('Level 3'!$AX$14="ME",IF(I25=0,0,MAX(0,('L3 BaselineNatural'!I25-'L3 BaselineNatural'!$F$5)/'L3 BaselineNatural'!I25)),IF(I25=0,0,MAX(0,('L3 BaselineNatural'!I25-'Level 3'!$C$7)/'L3 BaselineNatural'!I25))))) -> 0 | F25: 0 | G25: 3022.845401 | H25: 270600.0302 | I25: 3022.845401 | J25: 0 | K25: 3022.845401 | M25: 0.6431835636 | N25: 0.06007019039 | O25: =IF('Level 3'!$C$15= "None", N$3, IF('Level 3'!$C$15 = "Random",N25, $N$3)) -> 0.05 | P25: 0.4015523206 | Q25: =IF('Level 3'!$C$15= "None",P$3,P25) -> 0.4 | R25: 0.6015523206 | S25: =IF('Level 3'!$C$15= "None",R$3,R25) -> 0.6 | T25: 0.7015523206 | U25: =IF('Level 3'!$C$15= "None",T$3,T25) -> 0.7 | V25: 0.8015523206 | W25: =IF('Level 3'!$C$15= "None",V$3,V25) -> 0.8 | X25: 0.9015523206 | Y25: =IF('Level 3'!$C$15= "None",X$3,X25) -> 0.9 | Z25: 270600.0302 | AA25: 0.01020790911 | AB25: 76.68505864 | AC25: 270600.0302 | AD25: 0 | AE25: 657.1359942 | AF25: 829.425104 | AG25: 1204.702631 | AH25: 322.9190784 | AI25: 8.662593676 | AJ25: 3022.845401 | AK25: 0 | AL25: 0 | AN25: 0 | AO25: 0 | AP25: 0 | AQ25: 0 | AR25: 0 | AS25: 0 | AT25: 0 | AV25: 0 | AW25: 657.1359942 | AX25: 829.425104 | AY25: 1204.702631 | AZ25: 322.9190784 | BA25: 8.662593676 | BB25: 3022.845401 | BD25: 0 | BE25: 0 | BF25: 0 | BG25: 0 | BH25: 0 | BI25: 0 | BJ25: 0 | BL25: 0 | BM25: 657.1359942 | BN25: 829.425104 | BO25: 1204.702631 | BP25: 322.9190784 | BQ25: 8.662593676 | BR25: 3022.845401 | BT25: 0 | BU25: 0 | BV25: 0 | BW25: 0 | BX25: 0 | BY25: 0 | BZ25: 0 | CA25: 0 | CC25: =(BL25-BT25)*$AN$7 -> 0 | CD25: =(BM25-BU25)*$AN$7 -> 657.1359942 | CE25: =(BN25-BV25)*$AN$7 -> 829.425104 | CF25: =(BO25-BW25)*$AN$7 -> 1204.702631 | CG25: =(BP25-BX25)*$AN$7 -> 322.9190784 | CH25: =(BQ25-BY25)*$AN$7 -> 8.662593676 | CI25: 3022.845401 | CJ25: =IF('Level 3'!$J$27=0,0,'L3 BaselineHatchery'!CU25*$CU$4) -> 0 | CK25: 0 | CL25: 0.2173898784 | CM25: 0.274385552 | CN25: 0.3985326641 | CO25: 0.106826197 | CP25: 0.002865708472 | CQ25: 1 | CS25: 1363.344778 | CT25: ='Level 3'!$J$29 -> 1 | CU25: =IF(CJ25>0,CJ25/(CJ25+CI25-MIN(CT25*'Level 3'!$J$28,CI25*0.3)),0) -> 0 | CV25: 1921 | CW25: -0.66 | CX25: -0.61 | CY25: -0.01 | CZ25: -0.93 | DA25: -0.42 | DB25: 0.4 | DC25: -0.58 | DD25: -0.69 | DE25: -0.78 | DF25: -0.23 | DG25: 1.92 | DH25: 1.42 | DI25: 1921 | DJ25: 0.5 | DR25: 0 | EB25: 0 | EU25: 0.7302115546 | EV25: 0.5 | EW25: 0.315451744 | EX25: 684.332977 | EY25: 0.0530585148 | EZ25: 0.75 | FA25: 0.2499985912 | FB25: 0.5 | FC25: 0.6725532536 | FD25: 0.9 | FE25: 0.4381709231 | FF25: 1 | FG25: 0.7877514033 | FH25: 1 | FI25: 0.1016671717 | FJ25: 1 | FK25: 0.4479307951 | FL25: 1 | FM25: 0.004454469862 | FN25: 1 | FO25: 0.2118312422 | FP25: 1 | FQ25: 0.5 | FR25: 342.1664885 | FS25: 256.6248664 | FT25: 128.3124332 | FU25: 115.4811899 | FV25: 115.4811899 | FW25: 115.4811899 | FX25: 115.4811899 | FY25: 115.4811899 | FZ25: 115.4811899 | GA25: 115.4811899 | GB25: 115.4811899 | GC25: 5000 | GD25: 1000000000 | GE25: 1000000000 | GF25: 3000000 | GG25: 1e+11 | GH25: 0 | GI25: 0 | GJ25: 0 | GK25: 0 | GL25: 0 | GM25: 0 | GN25: 0.09182364729 | GO25: 5000 | GP25: 3409997.018 | GQ25: 2550973.654 | GR25: 894976.5572 | GS25: 805472.4136 | GZ25: 805472.4136 | HA25: =MIN(CT25*'Level 3'!$J$28,CI25*$HA$1) -> 0 | HB25: =CI25+CJ25-MIN('Level 3'!$J$29*'Level 3'!$J$28,CI25*$HA$1) -> 3022.845401 | HD25: 3022.845401 | HE25: 3022.845401 | HF25: =IF('Level 3'!$C$15 <> "None",HE25*$EV25/(1+HE25*$EV25/$GC25),HE25*$EC$11/(1+HE25*$EC$11/$EF$11)) -> 1160.593291 | HG25: =IF('Level 3'!$C$15 <> "None",HF25*$EX25/(1+HF25*$EX25/$GD25),HF25*$EC$12/(1+HF25*$EC$12/$EF$12)) -> 793601.9579 | HH25: =MAX(IF('Level 3'!$C$15 <> "None",IF($HI$8="Y",((RAND()-0.5)/SQRT(1/12))*SQRT((HG25*EZ25/(1+HG25*EZ25/GE25))*(1-EZ25/(1+HG25*EZ25/GE25))),0)+(HG25*EZ25/(1+HG25*EZ25/GE25)),HG25*$EC$13/(1+HG25*$EC$13/$EF$13)),0) -> 594847.4144 | HI25: =MAX(IF('Level 3'!$C$15 <> "None",IF($HI$8="Y",((RAND()-0.5)/SQRT(1/12))*SQRT((HH25*FB25/(1+HH25*FB25/GF25))*(1-FB25/(1+HH25*FB25/GF25))),0)+(HH25*FB25/(1+HH25*FB25/GF25)),HH25*$EC$14/(1+HH25*$EC$14/$EF$14)),0) -> 270596.4416 | HJ25: =MAX(IF('Level 3'!$C$15 <> "None",IF($HI$8="Y",((RAND()-0.5)/SQRT(1/12))*SQRT((HI25*FD25/(1+HI25*FD25/GG25))*(1-FD25/(1+HI25*FD25/GG25))),0)+(HI25*FD25/(1+HI25*FD25/GG25)),HI25*$EC$15/(1+HI25*$EC$15/$EF$15)),0) -> 243536.2043 | HK25: =MAX(IF('Level 3'!$C$15 <> "None",IF($HI$8="Y",((RAND()-0.5)/SQRT(1/12))*SQRT((HJ25*FF25/(1+HJ25*FF25/GH25))*(1-FF25/(1+HJ25*FF25/GH25))),0)+(HJ25*FF25/(1+HJ25*FF25/GH25)),HJ25*$EC$16/(1+HJ25*$EC$16/$EF$16)),0) ->  | HL25: =MAX(IF('Level 3'!$C$15 <> "None",IF($HI$8="Y",((RAND()-0.5)/SQRT(1/12))*SQRT((HK25*FH25/(1+HK25*FH25/GI25))*(1-FH25/(1+HK25*FH25/GI25))),0)+(HK25*FH25/(1+HK25*FH25/GI25)),HK25*$EC$17/(1+HK25*$EC$17/$EF$17)),0) ->  | HM25: =MAX(IF('Level 3'!$C$15 <> "None",IF($HI$8="Y",((RAND()-0.5)/SQRT(1/12))*SQRT((HL25*FJ25/(1+HL25*FJ25/GJ25))*(1-FJ25/(1+HL25*FJ25/GJ25))),0)+(HL25*FJ25/(1+HL25*FJ25/GJ25)),HL25*$EC$18/(1+HL25*$EC$18/$EF$18)),0) ->  | HN25: =MAX(IF('Level 3'!$C$15 <> "None",IF($HI$8="Y",((RAND()-0.5)/SQRT(1/12))*SQRT((HM25*FL25/(1+HM25*FL25/GK25))*(1-FL25/(1+HM25*FL25/GK25))),0)+(HM25*FL25/(1+HM25*FL25/GK25)),HM25*$EC$19/(1+HM25*$EC$19/$EF$19)),0) ->  | HO25: =MAX(IF('Level 3'!$C$15 <> "None",IF($HI$8="Y",((RAND()-0.5)/SQRT(1/12))*SQRT((HN25*FN25/(1+HN25*FN25/GL25))*(1-FN25/(1+HN25*FN25/GL25))),0)+(HN25*FN25/(1+HN25*FN25/GL25)),HN25*$EC$20/(1+HN25*$EC$20/$EF$20)),0) ->  | HP25: =MAX(IF('Level 3'!$C$15 <> "None",IF($HI$8="Y",((RAND()-0.5)/SQRT(1/12))*SQRT((HO25*FP25/(1+HO25*FP25/GM25))*(1-FP25/(1+HO25*FP25/GM25))),0)+(HO25*FP25/(1+HO25*FP25/GM25)),HO25*$EC$21/(1+HO25*$EC$21/$EF$21)),0) ->  | HQ25: =IF('Level 3'!$C$15="None",HE25*$EJ$3/(1+$EJ$3*HE25/$EJ$4),HLOOKUP(1,$HF$9:$HP$132,ROW()-8,FALSE)) -> 243536.2043 | HR25: 243536.2043
C26: =IF('Level 3'!$C$15="Random",RAND(),IF('Level 3'!$C$15="None",0.5,RAND())) -> 0.5 | D26: 0 | E26: =IF('Level 3'!$AX$14="MR",$F$6,IF('Level 3'!$AX$14="FR", 'Level 3'!$C$5,IF('Level 3'!$AX$14="ME",IF(I26=0,0,MAX(0,('L3 BaselineNatural'!I26-'L3 BaselineNatural'!$F$5)/'L3 BaselineNatural'!I26)),IF(I26=0,0,MAX(0,('L3 BaselineNatural'!I26-'Level 3'!$C$7)/'L3 BaselineNatural'!I26))))) -> 0 | F26: 0 | G26: 3019.303653 | H26: 246695.5192 | I26: 3019.303653 | J26: 0 | K26: 3019.303653 | M26: 0.6933178045 | N26: 0.06437088515 | O26: =IF('Level 3'!$C$15= "None", N$3, IF('Level 3'!$C$15 = "Random",N26, $N$3)) -> 0.05 | P26: 0.4021682416 | Q26: =IF('Level 3'!$C$15= "None",P$3,P26) -> 0.4 | R26: 0.6021682416 | S26: =IF('Level 3'!$C$15= "None",R$3,R26) -> 0.6 | T26: 0.7021682416 | U26: =IF('Level 3'!$C$15= "None",T$3,T26) -> 0.7 | V26: 0.8021682416 | W26: =IF('Level 3'!$C$15= "None",V$3,V26) -> 0.8 | X26: 0.9021682416 | Y26: =IF('Level 3'!$C$15= "None",X$3,X26) -> 0.9 | Z26: 246695.5192 | AA26: 0.01020790911 | AB26: 80.11226648 | AC26: 246695.5192 | AD26: 0 | AE26: 628.313514 | AF26: 829.425104 | AG26: 1206.303111 | AH26: 349.3307574 | AI26: 5.931166747 | AJ26: 3019.303653 | AK26: 0 | AL26: 0 | AN26: 0 | AO26: 0 | AP26: 0 | AQ26: 0 | AR26: 0 | AS26: 0 | AT26: 0 | AV26: 0 | AW26: 628.313514 | AX26: 829.425104 | AY26: 1206.303111 | AZ26: 349.3307574 | BA26: 5.931166747 | BB26: 3019.303653 | BD26: 0 | BE26: 0 | BF26: 0 | BG26: 0 | BH26: 0 | BI26: 0 | BJ26: 0 | BL26: 0 | BM26: 628.313514 | BN26: 829.425104 | BO26: 1206.303111 | BP26: 349.3307574 | BQ26: 5.931166747 | BR26: 3019.303653 | BT26: 0 | BU26: 0 | BV26: 0 | BW26: 0 | BX26: 0 | BY26: 0 | BZ26: 0 | CA26: 0 | CC26: 0 | CD26: 628.313514 | CE26: 829.425104 | CF26: 1206.303111 | CG26: 349.3307574 | CH26: 5.931166747 | CI26: 3019.303653 | CJ26: =IF('Level 3'!$J$27=0,0,'L3 BaselineHatchery'!CU26*$CU$4) -> 0 | CK26: 0 | CL26: 0.2080988156 | CM26: 0.2747074158 | CN26: 0.3995302393 | CO26: 0.1156991139 | CP26: 0.001964415451 | CQ26: 1 | CS26: 1381.531072 | CT26: ='Level 3'!$J$29 -> 1 | CU26: =IF(CJ26>0,CJ26/(CJ26+CI26-MIN(CT26*'Level 3'!$J$28,CI26*0.3)),0) -> 0 | CV26: 1922 | CW26: 1.05 | CX26: -0.85 | CY26: 0.08 | CZ26: 0.43 | DA26: -0.19 | DB26: -1.04 | DC26: -0.82 | DD26: -0.93 | DE26: -0.81 | DF26: 0.84 | DG26: -0.6 | DH26: 0.48 | DI26: 1922 | DJ26: 0.56 | DR26: 0 | EU26: 0.6270644458 | EV26: 0.5 | EW26: 0.1744388771 | EX26: 684.332977 | EY26: 0.8869108508 | EZ26: 0.75 | FA26: 0.4420026964 | FB26: 0.5 | FC26: 0.4564569808 | FD26: 0.9 | FE26: 0.1452497648 | FF26: 1 | FG26: 0.6017563735 | FH26: 1 | FI26: 0.4049738374 | FJ26: 1 | FK26: 0.2508627669 | FL26: 1 | FM26: 0.6460637246 | FN26: 1 | FO26: 0.3142898782 | FP26: 1 | FQ26: 0.5 | FR26: 342.1664885 | FS26: 256.6248664 | FT26: 128.3124332 | FU26: 115.4811899 | FV26: 115.4811899 | FW26: 115.4811899 | FX26: 115.4811899 | FY26: 115.4811899 | FZ26: 115.4811899 | GA26: 115.4811899 | GB26: 115.4811899 | GC26: 5000 | GD26: 1000000000 | GE26: 1000000000 | GF26: 3000000 | GG26: 1e+11 | GH26: 0 | GI26: 0 | GJ26: 0 | GK26: 0 | GL26: 0 | GM26: 0 | GN26: 0.5753579668 | GO26: 5000 | GP26: 3409997.018 | GQ26: 2550973.654 | GR26: 894976.5572 | GS26: 805472.4136 | GZ26: 805472.4136 | HA26: =MIN(CT26*'Level 3'!$J$28,CI26*$HA$1) -> 0 | HB26: =CI26+CJ26-MIN('Level 3'!$J$29*'Level 3'!$J$28,CI26*$HA$1) -> 3019.303653 | HD26: 3019.303653 | HE26: 3019.303653 | HF26: =IF('Level 3'!$C$15 <> "None",HE26*$EV26/(1+HE26*$EV26/$GC26),HE26*$EC$11/(1+HE26*$EC$11/$EF$11)) -> 1159.548826 | HG26: =IF('Level 3'!$C$15 <> "None",HF26*$EX26/(1+HF26*$EX26/$GD26),HF26*$EC$12/(1+HF26*$EC$12/$EF$12)) -> 792888.3293 | HH26: =MAX(IF('Level 3'!$C$15 <> "None",IF($HI$8="Y",((RAND()-0.5)/SQRT(1/12))*SQRT((HG26*EZ26/(1+HG26*EZ26/GE26))*(1-EZ26/(1+HG26*EZ26/GE26))),0)+(HG26*EZ26/(1+HG26*EZ26/GE26)),HG26*$EC$13/(1+HG26*$EC$13/$EF$13)),0) -> 594312.8292 | HI26: =MAX(IF('Level 3'!$C$15 <> "None",IF($HI$8="Y",((RAND()-0.5)/SQRT(1/12))*SQRT((HH26*FB26/(1+HH26*FB26/GF26))*(1-FB26/(1+HH26*FB26/GF26))),0)+(HH26*FB26/(1+HH26*FB26/GF26)),HH26*$EC$14/(1+HH26*$EC$14/$EF$14)),0) -> 270375.1754 | HJ26: =MAX(IF('Level 3'!$C$15 <> "None",IF($HI$8="Y",((RAND()-0.5)/SQRT(1/12))*SQRT((HI26*FD26/(1+HI26*FD26/GG26))*(1-FD26/(1+HI26*FD26/GG26))),0)+(HI26*FD26/(1+HI26*FD26/GG26)),HI26*$EC$15/(1+HI26*$EC$15/$EF$15)),0) -> 243337.0657 | HK26: =MAX(IF('Level 3'!$C$15 <> "None",IF($HI$8="Y",((RAND()-0.5)/SQRT(1/12))*SQRT((HJ26*FF26/(1+HJ26*FF26/GH26))*(1-FF26/(1+HJ26*FF26/GH26))),0)+(HJ26*FF26/(1+HJ26*FF26/GH26)),HJ26*$EC$16/(1+HJ26*$EC$16/$EF$16)),0) ->  | HL26: =MAX(IF('Level 3'!$C$15 <> "None",IF($HI$8="Y",((RAND()-0.5)/SQRT(1/12))*SQRT((HK26*FH26/(1+HK26*FH26/GI26))*(1-FH26/(1+HK26*FH26/GI26))),0)+(HK26*FH26/(1+HK26*FH26/GI26)),HK26*$EC$17/(1+HK26*$EC$17/$EF$17)),0) ->  | HM26: =MAX(IF('Level 3'!$C$15 <> "None",IF($HI$8="Y",((RAND()-0.5)/SQRT(1/12))*SQRT((HL26*FJ26/(1+HL26*FJ26/GJ26))*(1-FJ26/(1+HL26*FJ26/GJ26))),0)+(HL26*FJ26/(1+HL26*FJ26/GJ26)),HL26*$EC$18/(1+HL26*$EC$18/$EF$18)),0) ->  | HN26: =MAX(IF('Level 3'!$C$15 <> "None",IF($HI$8="Y",((RAND()-0.5)/SQRT(1/12))*SQRT((HM26*FL26/(1+HM26*FL26/GK26))*(1-FL26/(1+HM26*FL26/GK26))),0)+(HM26*FL26/(1+HM26*FL26/GK26)),HM26*$EC$19/(1+HM26*$EC$19/$EF$19)),0) ->  | HO26: =MAX(IF('Level 3'!$C$15 <> "None",IF($HI$8="Y",((RAND()-0.5)/SQRT(1/12))*SQRT((HN26*FN26/(1+HN26*FN26/GL26))*(1-FN26/(1+HN26*FN26/GL26))),0)+(HN26*FN26/(1+HN26*FN26/GL26)),HN26*$EC$20/(1+HN26*$EC$20/$EF$20)),0) ->  | HP26: =MAX(IF('Level 3'!$C$15 <> "None",IF($HI$8="Y",((RAND()-0.5)/SQRT(1/12))*SQRT((HO26*FP26/(1+HO26*FP26/GM26))*(1-FP26/(1+HO26*FP26/GM26))),0)+(HO26*FP26/(1+HO26*FP26/GM26)),HO26*$EC$21/(1+HO26*$EC$21/$EF$21)),0) ->  | HQ26: =IF('Level 3'!$C$15="None",HE26*$EJ$3/(1+$EJ$3*HE26/$EJ$4),HLOOKUP(1,$HF$9:$HP$132,ROW()-8,FALSE)) -> 243337.0657 | HR26: 243337.0657 | HZ26: ='Diagnostics L2'!AK10 -> 500 | IA26: =COUNTIF($IA$33:$IA$132,">"&HZ26) -> 99
C27: =IF('Level 3'!$C$15="Random",RAND(),IF('Level 3'!$C$15="None",0.5,RAND())) -> 0.5 | D27: 0 | E27: =IF('Level 3'!$AX$14="MR",$F$6,IF('Level 3'!$AX$14="FR", 'Level 3'!$C$5,IF('Level 3'!$AX$14="ME",IF(I27=0,0,MAX(0,('L3 BaselineNatural'!I27-'L3 BaselineNatural'!$F$5)/'L3 BaselineNatural'!I27)),IF(I27=0,0,MAX(0,('L3 BaselineNatural'!I27-'Level 3'!$C$7)/'L3 BaselineNatural'!I27))))) -> 0 | F27: 0 | G27: 2950.880203 | H27: 243536.2043 | I27: 2950.880203 | J27: 0 | K27: 2950.880203 | M27: 0.5311265064 | N27: 0.05199117335 | O27: =IF('Level 3'!$C$15= "None", N$3, IF('Level 3'!$C$15 = "Random",N27, $N$3)) -> 0.05 | P27: 0.4003162663 | Q27: =IF('Level 3'!$C$15= "None",P$3,P27) -> 0.4 | R27: 0.6003162663 | S27: =IF('Level 3'!$C$15= "None",R$3,R27) -> 0.6 | T27: 0.7003162663 | U27: =IF('Level 3'!$C$15= "None",T$3,T27) -> 0.7 | V27: 0.8003162663 | W27: =IF('Level 3'!$C$15= "None",V$3,V27) -> 0.8 | X27: 0.9003162663 | Y27: =IF('Level 3'!$C$15= "None",X$3,X27) -> 0.9 | Z27: 243536.2043 | AA27: 0.01020790911 | AB27: 80.56521985 | AC27: 243536.2043 | AD27: 0 | AE27: 595.3200665 | AF27: 793.0458935 | AG27: 1206.303111 | AH27: 349.7948528 | AI27: 6.416279217 | AJ27: 2950.880203 | AK27: 0 | AL27: 0 | AN27: 0 | AO27: 0 | AP27: 0 | AQ27: 0 | AR27: 0 | AS27: 0 | AT27: 0 | AV27: 0 | AW27: 595.3200665 | AX27: 793.0458935 | AY27: 1206.303111 | AZ27: 349.7948528 | BA27: 6.416279217 | BB27: 2950.880203 | BD27: 0 | BE27: 0 | BF27: 0 | BG27: 0 | BH27: 0 | BI27: 0 | BJ27: 0 | BL27: 0 | BM27: 595.3200665 | BN27: 793.0458935 | BO27: 1206.303111 | BP27: 349.7948528 | BQ27: 6.416279217 | BR27: 2950.880203 | BT27: 0 | BU27: 0 | BV27: 0 | BW27: 0 | BX27: 0 | BY27: 0 | BZ27: 0 | CA27: 0 | CC27: 0 | CD27: 595.3200665 | CE27: 793.0458935 | CF27: 1206.303111 | CG27: 349.7948528 | CH27: 6.416279217 | CI27: 2950.880203 | CJ27: =IF('Level 3'!$J$27=0,0,'L3 BaselineHatchery'!CU27*$CU$4) -> 0 | CK27: 0 | CL27: 0.2017432175 | CM27: 0.2687489288 | CN27: 0.4087943352 | CO27: 0.1185391574 | CP27: 0.002174361132 | CQ27: 1 | CS27: 1393.250586 | CT27: ='Level 3'!$J$29 -> 1 | CU27: =IF(CJ27>0,CJ27/(CJ27+CI27-MIN(CT27*'Level 3'!$J$28,CI27*0.3)),0) -> 0 | CV27: 1923 | CW27: 0.75 | CX27: -0.04 | CY27: 0.49 | CZ27: 0.99 | DA27: -0.2 | DB27: 0.68 | DC27: 1.16 | DD27: 0.84 | DE27: -0.24 | DF27: 1.1 | DG27: 0.62 | DH27: -0.36 | DI27: 1923 | DJ27: -0.5383333333 | DR27: 0 | EB27: Fitness loss? | EC27: y | EU27: 0.0517438869 | EV27: 0.5 | EW27: 0.1235812595 | EX27: 684.332977 | EY27: 0.4056897711 | EZ27: 0.7499999999 | FA27: 0.4207055496 | FB27: 0.5 | FC27: 0.4315677097 | FD27: 0.8999999999 | FE27: 0.4208704405 | FF27: 1 | FG27: 0.6628072728 | FH27: 1 | FI27: 0.5150507563 | FJ27: 1 | FK27: 0.2960844561 | FL27: 1 | FM27: 0.0589734155 | FN27: 1 | FO27: 0.4091562115 | FP27: 1 | FQ27: 0.5 | FR27: 342.1664885 | FS27: 256.6248663 | FT27: 128.3124332 | FU27: 115.4811898 | FV27: 115.4811898 | FW27: 115.4811898 | FX27: 115.4811898 | FY27: 115.4811898 | FZ27: 115.4811898 | GA27: 115.4811898 | GB27: 115.4811898 | GC27: 5000 | GD27: 1000000000 | GE27: 1000000000 | GF27: 3000000 | GG27: 1e+11 | GH27: 0 | GI27: 0 | GJ27: 0 | GK27: 0 | GL27: 0 | GM27: 0 | GN27: 0.2412726971 | GO27: 5000 | GP27: 3409997.018 | GQ27: 2550973.654 | GR27: 894976.5571 | GS27: 805472.4135 | GZ27: 805472.4135 | HA27: =MIN(CT27*'Level 3'!$J$28,CI27*$HA$1) -> 0 | HB27: =CI27+CJ27-MIN('Level 3'!$J$29*'Level 3'!$J$28,CI27*$HA$1) -> 2950.880203 | HD27: 2950.880203 | HE27: 2950.880203 | HF27: =IF('Level 3'!$C$15 <> "None",HE27*$EV27/(1+HE27*$EV27/$GC27),HE27*$EC$11/(1+HE27*$EC$11/$EF$11)) -> 1139.258551 | HG27: =IF('Level 3'!$C$15 <> "None",HF27*$EX27/(1+HF27*$EX27/$GD27),HF27*$EC$12/(1+HF27*$EC$12/$EF$12)) -> 779024.843 | HH27: =MAX(IF('Level 3'!$C$15 <> "None",IF($HI$8="Y",((RAND()-0.5)/SQRT(1/12))*SQRT((HG27*EZ27/(1+HG27*EZ27/GE27))*(1-EZ27/(1+HG27*EZ27/GE27))),0)+(HG27*EZ27/(1+HG27*EZ27/GE27)),HG27*$EC$13/(1+HG27*$EC$13/$EF$13)),0) -> 583927.4617 | HI27: =MAX(IF('Level 3'!$C$15 <> "None",IF($HI$8="Y",((RAND()-0.5)/SQRT(1/12))*SQRT((HH27*FB27/(1+HH27*FB27/GF27))*(1-FB27/(1+HH27*FB27/GF27))),0)+(HH27*FB27/(1+HH27*FB27/GF27)),HH27*$EC$14/(1+HH27*$EC$14/$EF$14)),0) -> 266069.5148 | HJ27: =MAX(IF('Level 3'!$C$15 <> "None",IF($HI$8="Y",((RAND()-0.5)/SQRT(1/12))*SQRT((HI27*FD27/(1+HI27*FD27/GG27))*(1-FD27/(1+HI27*FD27/GG27))),0)+(HI27*FD27/(1+HI27*FD27/GG27)),HI27*$EC$15/(1+HI27*$EC$15/$EF$15)),0) -> 239461.9899 | HK27: =MAX(IF('Level 3'!$C$15 <> "None",IF($HI$8="Y",((RAND()-0.5)/SQRT(1/12))*SQRT((HJ27*FF27/(1+HJ27*FF27/GH27))*(1-FF27/(1+HJ27*FF27/GH27))),0)+(HJ27*FF27/(1+HJ27*FF27/GH27)),HJ27*$EC$16/(1+HJ27*$EC$16/$EF$16)),0) ->  | HL27: =MAX(IF('Level 3'!$C$15 <> "None",IF($HI$8="Y",((RAND()-0.5)/SQRT(1/12))*SQRT((HK27*FH27/(1+HK27*FH27/GI27))*(1-FH27/(1+HK27*FH27/GI27))),0)+(HK27*FH27/(1+HK27*FH27/GI27)),HK27*$EC$17/(1+HK27*$EC$17/$EF$17)),0) ->  | HM27: =MAX(IF('Level 3'!$C$15 <> "None",IF($HI$8="Y",((RAND()-0.5)/SQRT(1/12))*SQRT((HL27*FJ27/(1+HL27*FJ27/GJ27))*(1-FJ27/(1+HL27*FJ27/GJ27))),0)+(HL27*FJ27/(1+HL27*FJ27/GJ27)),HL27*$EC$18/(1+HL27*$EC$18/$EF$18)),0) ->  | HN27: =MAX(IF('Level 3'!$C$15 <> "None",IF($HI$8="Y",((RAND()-0.5)/SQRT(1/12))*SQRT((HM27*FL27/(1+HM27*FL27/GK27))*(1-FL27/(1+HM27*FL27/GK27))),0)+(HM27*FL27/(1+HM27*FL27/GK27)),HM27*$EC$19/(1+HM27*$EC$19/$EF$19)),0) ->  | HO27: =MAX(IF('Level 3'!$C$15 <> "None",IF($HI$8="Y",((RAND()-0.5)/SQRT(1/12))*SQRT((HN27*FN27/(1+HN27*FN27/GL27))*(1-FN27/(1+HN27*FN27/GL27))),0)+(HN27*FN27/(1+HN27*FN27/GL27)),HN27*$EC$20/(1+HN27*$EC$20/$EF$20)),0) ->  | HP27: =MAX(IF('Level 3'!$C$15 <> "None",IF($HI$8="Y",((RAND()-0.5)/SQRT(1/12))*SQRT((HO27*FP27/(1+HO27*FP27/GM27))*(1-FP27/(1+HO27*FP27/GM27))),0)+(HO27*FP27/(1+HO27*FP27/GM27)),HO27*$EC$21/(1+HO27*$EC$21/$EF$21)),0) ->  | HQ27: =IF('Level 3'!$C$15="None",HE27*$EJ$3/(1+$EJ$3*HE27/$EJ$4),HLOOKUP(1,$HF$9:$HP$132,ROW()-8,FALSE)) -> 239461.9899 | HR27: 239461.9898 | HZ27: ='Diagnostics L2'!AK11 -> 1000 | IA27: =COUNTIF($IA$33:$IA$132,">"&HZ27) -> 99
C28: =IF('Level 3'!$C$15="Random",RAND(),IF('Level 3'!$C$15="None",0.5,RAND())) -> 0.5 | D28: 0 | E28: =IF('Level 3'!$AX$14="MR",$F$6,IF('Level 3'!$AX$14="FR", 'Level 3'!$C$5,IF('Level 3'!$AX$14="ME",IF(I28=0,0,MAX(0,('L3 BaselineNatural'!I28-'L3 BaselineNatural'!$F$5)/'L3 BaselineNatural'!I28)),IF(I28=0,0,MAX(0,('L3 BaselineNatural'!I28-'Level 3'!$C$7)/'L3 BaselineNatural'!I28))))) -> 0 | F28: 0 | G28: 2803.745709 | H28: 243337.0657 | I28: 2803.745709 | J28: 0 | K28: 2803.745709 | M28: 0.6195549261 | N28: 0.05821709512 | O28: =IF('Level 3'!$C$15= "None", N$3, IF('Level 3'!$C$15 = "Random",N28, $N$3)) -> 0.05 | P28: 0.4012770983 | Q28: =IF('Level 3'!$C$15= "None",P$3,P28) -> 0.4 | R28: 0.6012770983 | S28: =IF('Level 3'!$C$15= "None",R$3,R28) -> 0.6 | T28: 0.7012770983 | U28: =IF('Level 3'!$C$15= "None",T$3,T28) -> 0.7 | V28: 0.8012770983 | W28: =IF('Level 3'!$C$15= "None",V$3,V28) -> 0.8 | X28: 0.9012770983 | Y28: =IF('Level 3'!$C$15= "None",X$3,X28) -> 0.9 | Z28: 243337.0657 | AA28: 0.01020790911 | AB28: 80.59377051 | AC28: 243337.0657 | AD28: 0 | AE28: 542.7301423 | AF28: 751.4021639 | AG28: 1153.393747 | AH28: 349.7948528 | AI28: 6.424803418 | AJ28: 2803.745709 | AK28: 0 | AL28: 0 | AN28: 0 | AO28: 0 | AP28: 0 | AQ28: 0 | AR28: 0 | AS28: 0 | AT28: 0 | AV28: 0 | AW28: 542.7301423 | AX28: 751.4021639 | AY28: 1153.393747 | AZ28: 349.7948528 | BA28: 6.424803418 | BB28: 2803.745709 | BD28: 0 | BE28: 0 | BF28: 0 | BG28: 0 | BH28: 0 | BI28: 0 | BJ28: 0 | BL28: 0 | BM28: 542.7301423 | BN28: 751.4021639 | BO28: 1153.393747 | BP28: 349.7948528 | BQ28: 6.424803418 | BR28: 2803.745709 | BT28: 0 | BU28: 0 | BV28: 0 | BW28: 0 | BX28: 0 | BY28: 0 | BZ28: 0 | CA28: 0 | CC28: 0 | CD28: 542.7301423 | CE28: 751.4021639 | CF28: 1153.393747 | CG28: 349.7948528 | CH28: 6.424803418 | CI28: 2803.745709 | CJ28: =IF('Level 3'!$J$27=0,0,'L3 BaselineHatchery'!CU28*$CU$4) -> 0 | CK28: 0 | CL28: 0.1935732404 | CM28: 0.2679993986 | CN28: 0.4113760185 | CO28: 0.1247598352 | CP28: 0.002291507178 | CQ28: 1 | CS28: 1409.040894 | CT28: ='Level 3'!$J$29 -> 1 | CU28: =IF(CJ28>0,CJ28/(CJ28+CI28-MIN(CT28*'Level 3'!$J$28,CI28*0.3)),0) -> 0 | CV28: 1924 | CW28: 1.29 | CX28: 0.73 | CY28: 1.13 | CZ28: -0.02 | DA28: 0.36 | DB28: 0.75 | DC28: -0.55 | DD28: -0.67 | DE28: -0.48 | DF28: -1.25 | DG28: 0.24 | DH28: 0.11 | DI28: 1924 | DJ28: 0.1016666667 | DR28: 0 | EB28: Fitness Floor | EC28: 0.5 | EU28: 0.6797596531 | EV28: 0.5 | EW28: 0.9655265905 | EX28: 684.3329771 | EY28: 0.4048097676 | EZ28: 0.75 | FA28: 0.9989450821 | FB28: 0.5 | FC28: 0.5664470559 | FD28: 0.9 | FE28: 0.5400650661 | FF28: 1 | FG28: 0.211732117 | FH28: 1 | FI28: 0.7896185567 | FJ28: 1 | FK28: 0.383229049 | FL28: 1 | FM28: 0.009572340839 | FN28: 1 | FO28: 0.4959971682 | FP28: 1 | FQ28: 0.5 | FR28: 342.1664885 | FS28: 256.6248664 | FT28: 128.3124332 | FU28: 115.4811899 | FV28: 115.4811899 | FW28: 115.4811899 | FX28: 115.4811899 | FY28: 115.4811899 | FZ28: 115.4811899 | GA28: 115.4811899 | GB28: 115.4811899 | GC28: 5000 | GD28: 1000000000 | GE28: 1000000000 | GF28: 3000000 | GG28: 1e+11 | GH28: 0 | GI28: 0 | GJ28: 0 | GK28: 0 | GL28: 0 | GM28: 0 | GN28: 0.9555862144 | GO28: 5000 | GP28: 3409997.018 | GQ28: 2550973.654 | GR28: 894976.5573 | GS28: 805472.4136 | GZ28: 805472.4136 | HA28: =MIN(CT28*'Level 3'!$J$28,CI28*$HA$1) -> 0 | HB28: =CI28+CJ28-MIN('Level 3'!$J$29*'Level 3'!$J$28,CI28*$HA$1) -> 2803.745709 | HD28: 2803.745709 | HE28: 2803.745709 | HF28: =IF('Level 3'!$C$15 <> "None",HE28*$EV28/(1+HE28*$EV28/$GC28),HE28*$EC$11/(1+HE28*$EC$11/$EF$11)) -> 1094.892765 | HG28: =IF('Level 3'!$C$15 <> "None",HF28*$EX28/(1+HF28*$EX28/$GD28),HF28*$EC$12/(1+HF28*$EC$12/$EF$12)) -> 748710.2386 | HH28: =MAX(IF('Level 3'!$C$15 <> "None",IF($HI$8="Y",((RAND()-0.5)/SQRT(1/12))*SQRT((HG28*EZ28/(1+HG28*EZ28/GE28))*(1-EZ28/(1+HG28*EZ28/GE28))),0)+(HG28*EZ28/(1+HG28*EZ28/GE28)),HG28*$EC$13/(1+HG28*$EC$13/$EF$13)),0) -> 561217.537 | HI28: =MAX(IF('Level 3'!$C$15 <> "None",IF($HI$8="Y",((RAND()-0.5)/SQRT(1/12))*SQRT((HH28*FB28/(1+HH28*FB28/GF28))*(1-FB28/(1+HH28*FB28/GF28))),0)+(HH28*FB28/(1+HH28*FB28/GF28)),HH28*$EC$14/(1+HH28*$EC$14/$EF$14)),0) -> 256606.7352 | HJ28: =MAX(IF('Level 3'!$C$15 <> "None",IF($HI$8="Y",((RAND()-0.5)/SQRT(1/12))*SQRT((HI28*FD28/(1+HI28*FD28/GG28))*(1-FD28/(1+HI28*FD28/GG28))),0)+(HI28*FD28/(1+HI28*FD28/GG28)),HI28*$EC$15/(1+HI28*$EC$15/$EF$15)),0) -> 230945.5283 | HK28: =MAX(IF('Level 3'!$C$15 <> "None",IF($HI$8="Y",((RAND()-0.5)/SQRT(1/12))*SQRT((HJ28*FF28/(1+HJ28*FF28/GH28))*(1-FF28/(1+HJ28*FF28/GH28))),0)+(HJ28*FF28/(1+HJ28*FF28/GH28)),HJ28*$EC$16/(1+HJ28*$EC$16/$EF$16)),0) ->  | HL28: =MAX(IF('Level 3'!$C$15 <> "None",IF($HI$8="Y",((RAND()-0.5)/SQRT(1/12))*SQRT((HK28*FH28/(1+HK28*FH28/GI28))*(1-FH28/(1+HK28*FH28/GI28))),0)+(HK28*FH28/(1+HK28*FH28/GI28)),HK28*$EC$17/(1+HK28*$EC$17/$EF$17)),0) ->  | HM28: =MAX(IF('Level 3'!$C$15 <> "None",IF($HI$8="Y",((RAND()-0.5)/SQRT(1/12))*SQRT((HL28*FJ28/(1+HL28*FJ28/GJ28))*(1-FJ28/(1+HL28*FJ28/GJ28))),0)+(HL28*FJ28/(1+HL28*FJ28/GJ28)),HL28*$EC$18/(1+HL28*$EC$18/$EF$18)),0) ->  | HN28: =MAX(IF('Level 3'!$C$15 <> "None",IF($HI$8="Y",((RAND()-0.5)/SQRT(1/12))*SQRT((HM28*FL28/(1+HM28*FL28/GK28))*(1-FL28/(1+HM28*FL28/GK28))),0)+(HM28*FL28/(1+HM28*FL28/GK28)),HM28*$EC$19/(1+HM28*$EC$19/$EF$19)),0) ->  | HO28: =MAX(IF('Level 3'!$C$15 <> "None",IF($HI$8="Y",((RAND()-0.5)/SQRT(1/12))*SQRT((HN28*FN28/(1+HN28*FN28/GL28))*(1-FN28/(1+HN28*FN28/GL28))),0)+(HN28*FN28/(1+HN28*FN28/GL28)),HN28*$EC$20/(1+HN28*$EC$20/$EF$20)),0) ->  | HP28: =MAX(IF('Level 3'!$C$15 <> "None",IF($HI$8="Y",((RAND()-0.5)/SQRT(1/12))*SQRT((HO28*FP28/(1+HO28*FP28/GM28))*(1-FP28/(1+HO28*FP28/GM28))),0)+(HO28*FP28/(1+HO28*FP28/GM28)),HO28*$EC$21/(1+HO28*$EC$21/$EF$21)),0) ->  | HQ28: =IF('Level 3'!$C$15="None",HE28*$EJ$3/(1+$EJ$3*HE28/$EJ$4),HLOOKUP(1,$HF$9:$HP$132,ROW()-8,FALSE)) -> 230945.5283 | HR28: 230945.5283 | HZ28: ='Diagnostics L2'!AK12 -> 5000 | IA28: =COUNTIF($IA$33:$IA$132,">"&HZ28) -> 0
C29: =IF('Level 3'!$C$15="Random",RAND(),IF('Level 3'!$C$15="None",0.5,RAND())) -> 0.5 | D29: 0 | E29: =IF('Level 3'!$AX$14="MR",$F$6,IF('Level 3'!$AX$14="FR", 'Level 3'!$C$5,IF('Level 3'!$AX$14="ME",IF(I29=0,0,MAX(0,('L3 BaselineNatural'!I29-'L3 BaselineNatural'!$F$5)/'L3 BaselineNatural'!I29)),IF(I29=0,0,MAX(0,('L3 BaselineNatural'!I29-'Level 3'!$C$7)/'L3 BaselineNatural'!I29))))) -> 0 | F29: 0 | G29: 2654.508905 | H29: 239461.9899 | I29: 2654.508905 | J29: 0 | K29: 2654.508905 | M29: 0.9414724584 | N29: 0.1094700001 | O29: =IF('Level 3'!$C$15= "None", N$3, IF('Level 3'!$C$15 = "Random",N29, $N$3)) -> 0.05 | P29: 0.4065786686 | Q29: =IF('Level 3'!$C$15= "None",P$3,P29) -> 0.4 | R29: 0.6065786686 | S29: =IF('Level 3'!$C$15= "None",R$3,R29) -> 0.6 | T29: 0.7065786686 | U29: =IF('Level 3'!$C$15= "None",T$3,T29) -> 0.7 | V29: 0.8065786686 | W29: =IF('Level 3'!$C$15= "None",V$3,V29) -> 0.8 | X29: 0.9065786686 | Y29: =IF('Level 3'!$C$15= "None",X$3,X29) -> 0.9 | Z29: 239461.9899 | AA29: 0.01020790911 | AB29: 81.14934306 | AC29: 239461.9899 | AD29: 0 | AE29: 535.7796495 | AF29: 685.0241178 | AG29: 1092.827747 | AH29: 334.4525868 | AI29: 6.424803418 | AJ29: 2654.508905 | AK29: 0 | AL29: 0 | AN29: 0 | AO29: 0 | AP29: 0 | AQ29: 0 | AR29: 0 | AS29: 0 | AT29: 0 | AV29: 0 | AW29: 535.7796495 | AX29: 685.0241178 | AY29: 1092.827747 | AZ29: 334.4525868 | BA29: 6.424803418 | BB29: 2654.508905 | BD29: 0 | BE29: 0 | BF29: 0 | BG29: 0 | BH29: 0 | BI29: 0 | BJ29: 0 | BL29: 0 | BM29: 535.7796495 | BN29: 685.0241178 | BO29: 1092.827747 | BP29: 334.4525868 | BQ29: 6.424803418 | BR29: 2654.508905 | BT29: 0 | BU29: 0 | BV29: 0 | BW29: 0 | BX29: 0 | BY29: 0 | BZ29: 0 | CA29: 0 | CC29: 0 | CD29: 535.7796495 | CE29: 685.0241178 | CF29: 1092.827747 | CG29: 334.4525868 | CH29: 6.424803418 | CI29: 2654.508905 | CJ29: =IF('Level 3'!$J$27=0,0,'L3 BaselineHatchery'!CU29*$CU$4) -> 0 | CK29: =CC29/$CI29 -> 0 | CL29: =CD29/$CI29 -> 0.2018375785 | CM29: =CE29/$CI29 -> 0.2580605839 | CN29: =CF29/$CI29 -> 0.411687354 | CO29: =CG29/$CI29 -> 0.1259941476 | CP29: =CH29/$CI29 -> 0.002420335983 | CQ29: 1 | CS29: 1395.400462 | CT29: ='Level 3'!$J$29 -> 1 | CU29: =IF(CJ29>0,CJ29/(CJ29+CI29-MIN(CT29*'Level 3'!$J$28,CI29*0.3)),0) -> 0 | CV29: 1925 | CW29: -0.05 | CX29: -0.14 | CY29: 0.2 | CZ29: 0.86 | DA29: 0.79 | DB29: -1.08 | DC29: -0.06 | DD29: -0.86 | DE29: 0.52 | DF29: 0.04 | DG29: 0.88 | DH29: 1.19 | DI29: 1925 | DJ29: -0.02833333333 | DR29: 0 | EU29: 0.4174736675 | EV29: 0.5 | EW29: 0.1160174787 | EX29: 684.332977 | EY29: 0.2985409723 | EZ29: 0.75 | FA29: 0.6969557477 | FB29: 0.5 | FC29: 0.1594109958 | FD29: 0.9 | FE29: 0.3223175222 | FF29: 1 | FG29: 0.4459369585 | FH29: 1 | FI29: 0.4720024063 | FJ29: 1 | FK29: 0.8887053509 | FL29: 1 | FM29: 0.2256162768 | FN29: 1 | FO29: 0.129368777 | FP29: 1 | FQ29: 0.5 | FR29: 342.1664885 | FS29: 256.6248664 | FT29: 128.3124332 | FU29: 115.4811899 | FV29: 115.4811899 | FW29: 115.4811899 | FX29: 115.4811899 | FY29: 115.4811899 | FZ29: 115.4811899 | GA29: 115.4811899 | GB29: 115.4811899 | GC29: 5000 | GD29: 1000000000 | GE29: 1000000000 | GF29: 3000000 | GG29: 1e+11 | GH29: 0 | GI29: 0 | GJ29: 0 | GK29: 0 | GL29: 0 | GM29: 0 | GN29: 0.6748093736 | GO29: 5000 | GP29: 3409997.018 | GQ29: 2550973.654 | GR29: 894976.5572 | GS29: 805472.4136 | GZ29: 805472.4136 | HA29: =MIN(CT29*'Level 3'!$J$28,CI29*$HA$1) -> 0 | HB29: =CI29+CJ29-MIN('Level 3'!$J$29*'Level 3'!$J$28,CI29*$HA$1) -> 2654.508905 | HD29: 2654.508905 | HE29: 2654.508905 | HF29: =IF('Level 3'!$C$15 <> "None",HE29*$EV29/(1+HE29*$EV29/$GC29),HE29*$EC$11/(1+HE29*$EC$11/$EF$11)) -> 1048.839163 | HG29: =IF('Level 3'!$C$15 <> "None",HF29*$EX29/(1+HF29*$EX29/$GD29),HF29*$EC$12/(1+HF29*$EC$12/$EF$12)) -> 717240.4235 | HH29: =MAX(IF('Level 3'!$C$15 <> "None",IF($HI$8="Y",((RAND()-0.5)/SQRT(1/12))*SQRT((HG29*EZ29/(1+HG29*EZ29/GE29))*(1-EZ29/(1+HG29*EZ29/GE29))),0)+(HG29*EZ29/(1+HG29*EZ29/GE29)),HG29*$EC$13/(1+HG29*$EC$13/$EF$13)),0) -> 537641.1042 | HI29: =MAX(IF('Level 3'!$C$15 <> "None",IF($HI$8="Y",((RAND()-0.5)/SQRT(1/12))*SQRT((HH29*FB29/(1+HH29*FB29/GF29))*(1-FB29/(1+HH29*FB29/GF29))),0)+(HH29*FB29/(1+HH29*FB29/GF29)),HH29*$EC$14/(1+HH29*$EC$14/$EF$14)),0) -> 246713.3461 | HJ29: =MAX(IF('Level 3'!$C$15 <> "None",IF($HI$8="Y",((RAND()-0.5)/SQRT(1/12))*SQRT((HI29*FD29/(1+HI29*FD29/GG29))*(1-FD29/(1+HI29*FD29/GG29))),0)+(HI29*FD29/(1+HI29*FD29/GG29)),HI29*$EC$15/(1+HI29*$EC$15/$EF$15)),0) -> 222041.5185 | HK29: =MAX(IF('Level 3'!$C$15 <> "None",IF($HI$8="Y",((RAND()-0.5)/SQRT(1/12))*SQRT((HJ29*FF29/(1+HJ29*FF29/GH29))*(1-FF29/(1+HJ29*FF29/GH29))),0)+(HJ29*FF29/(1+HJ29*FF29/GH29)),HJ29*$EC$16/(1+HJ29*$EC$16/$EF$16)),0) ->  | HL29: =MAX(IF('Level 3'!$C$15 <> "None",IF($HI$8="Y",((RAND()-0.5)/SQRT(1/12))*SQRT((HK29*FH29/(1+HK29*FH29/GI29))*(1-FH29/(1+HK29*FH29/GI29))),0)+(HK29*FH29/(1+HK29*FH29/GI29)),HK29*$EC$17/(1+HK29*$EC$17/$EF$17)),0) ->  | HM29: =MAX(IF('Level 3'!$C$15 <> "None",IF($HI$8="Y",((RAND()-0.5)/SQRT(1/12))*SQRT((HL29*FJ29/(1+HL29*FJ29/GJ29))*(1-FJ29/(1+HL29*FJ29/GJ29))),0)+(HL29*FJ29/(1+HL29*FJ29/GJ29)),HL29*$EC$18/(1+HL29*$EC$18/$EF$18)),0) ->  | HN29: =MAX(IF('Level 3'!$C$15 <> "None",IF($HI$8="Y",((RAND()-0.5)/SQRT(1/12))*SQRT((HM29*FL29/(1+HM29*FL29/GK29))*(1-FL29/(1+HM29*FL29/GK29))),0)+(HM29*FL29/(1+HM29*FL29/GK29)),HM29*$EC$19/(1+HM29*$EC$19/$EF$19)),0) ->  | HO29: =MAX(IF('Level 3'!$C$15 <> "None",IF($HI$8="Y",((RAND()-0.5)/SQRT(1/12))*SQRT((HN29*FN29/(1+HN29*FN29/GL29))*(1-FN29/(1+HN29*FN29/GL29))),0)+(HN29*FN29/(1+HN29*FN29/GL29)),HN29*$EC$20/(1+HN29*$EC$20/$EF$20)),0) ->  | HP29: =MAX(IF('Level 3'!$C$15 <> "None",IF($HI$8="Y",((RAND()-0.5)/SQRT(1/12))*SQRT((HO29*FP29/(1+HO29*FP29/GM29))*(1-FP29/(1+HO29*FP29/GM29))),0)+(HO29*FP29/(1+HO29*FP29/GM29)),HO29*$EC$21/(1+HO29*$EC$21/$EF$21)),0) ->  | HQ29: =IF('Level 3'!$C$15="None",HE29*$EJ$3/(1+$EJ$3*HE29/$EJ$4),HLOOKUP(1,$HF$9:$HP$132,ROW()-8,FALSE)) -> 222041.5185 | HR29: 222041.5184 | HW29: =COUNTIF(HW$33:HW$132,">1") -> 0 | HX29: =COUNTIF(HX$33:HX$132,">1") -> 0 | HY29: =COUNTIF(HY$33:HY$132,">1") -> 0 | IE29: =COUNTIF(IE$33:IE$132,">1") -> 0 | IF29: =COUNTIF(IF$33:IF$132,">1") -> 0 | IG29: =COUNTIF(IG$33:IG$132,">1") -> 0
C30: =IF('Level 3'!$C$15="Random",RAND(),IF('Level 3'!$C$15="None",0.5,RAND())) -> 0.5 | D30: 0 | E30: =IF('Level 3'!$AX$14="MR",$F$6,IF('Level 3'!$AX$14="FR", 'Level 3'!$C$5,IF('Level 3'!$AX$14="ME",IF(I30=0,0,MAX(0,('L3 BaselineNatural'!I30-'L3 BaselineNatural'!$F$5)/'L3 BaselineNatural'!I30)),IF(I30=0,0,MAX(0,('L3 BaselineNatural'!I30-'Level 3'!$C$7)/'L3 BaselineNatural'!I30))))) -> 0 | F30: 0 | G30: 2530.914528 | H30: 230945.5283 | I30: 2530.914528 | J30: 0 | K30: 2530.914528 | M30: 0.4443304229 | N30: 0.04661971623 | O30: =IF('Level 3'!$C$15= "None", N$3, IF('Level 3'!$C$15 = "Random",N30, $N$3)) -> 0.05 | P30: 0.399426881 | Q30: =IF('Level 3'!$C$15= "None",P$3,P30) -> 0.4 | R30: 0.599426881 | S30: =IF('Level 3'!$C$15= "None",R$3,R30) -> 0.6 | T30: 0.699426881 | U30: =IF('Level 3'!$C$15= "None",T$3,T30) -> 0.7 | V30: 0.799426881 | W30: =IF('Level 3'!$C$15= "None",V$3,V30) -> 0.8 | X30: 0.899426881 | Y30: =IF('Level 3'!$C$15= "None",X$3,X30) -> 0.9 | Z30: 230945.5283 | AA30: 0.01020790911 | AB30: 82.37035461 | AC30: 230945.5283 | AD30: 0 | AE30: 535.3415445 | AF30: 676.2513322 | AG30: 996.2885381 | AH30: 316.8901062 | AI30: 6.143006695 | AJ30: 2530.914528 | AK30: 0 | AL30: 0 | AN30: 0 | AO30: 0 | AP30: 0 | AQ30: 0 | AR30: 0 | AS30: 0 | AT30: 0 | AV30: 0 | AW30: 535.3415445 | AX30: 676.2513322 | AY30: 996.2885381 | AZ30: 316.8901062 | BA30: 6.143006695 | BB30: 2530.914528 | BD30: 0 | BE30: 0 | BF30: 0 | BG30: 0 | BH30: 0 | BI30: 0 | BJ30: 0 | BL30: 0 | BM30: 535.3415445 | BN30: 676.2513322 | BO30: 996.2885381 | BP30: 316.8901062 | BQ30: 6.143006695 | BR30: 2530.914528 | BT30: 0 | BU30: 0 | BV30: 0 | BW30: 0 | BX30: 0 | BY30: 0 | BZ30: 0 | CA30: 0 | CC30: 0 | CD30: 535.3415445 | CE30: 676.2513322 | CF30: 996.2885381 | CG30: 316.8901062 | CH30: 6.143006695 | CI30: 2530.914528 | CJ30: =IF('Level 3'!$J$27=0,0,'L3 BaselineHatchery'!CU30*$CU$4) -> 0 | CK30: 0 | CL30: 0.2115209892 | CM30: 0.2671964323 | CN30: 0.3936476429 | CO30: 0.1252077471 | CP30: 0.002427188524 | CQ30: 1 | CS30: 1378.704799 | CT30: ='Level 3'!$J$29 -> 1 | CU30: =IF(CJ30>0,CJ30/(CJ30+CI30-MIN(CT30*'Level 3'!$J$28,CI30*0.3)),0) -> 0 | CV30: 1926 | CW30: 0.3 | CX30: 0.98 | CY30: -0.5 | CZ30: 2.1 | DA30: 1.43 | DB30: 2.03 | DC30: 1.05 | DD30: 1.64 | DE30: 1.18 | DF30: 1.65 | DG30: 1 | DH30: 1.06 | DI30: 1926 | DJ30: -1.571666667 | DR30: 0 | EB30: Omegawsq | EC30: =10^2 -> 100 | EU30: 0.2317616331 | EV30: 0.5 | EW30: 0.4157892653 | EX30: 684.332977 | EY30: 0.4857604785 | EZ30: 0.75 | FA30: 0.7629117746 | FB30: 0.5 | FC30: 0.7948238215 | FD30: 0.9 | FE30: 0.09667530718 | FF30: 1 | FG30: 0.2668303022 | FH30: 1 | FI30: 0.8895524713 | FJ30: 1 | FK30: 0.04222129053 | FL30: 1 | FM30: 0.7583658215 | FN30: 1 | FO30: 0.7577674241 | FP30: 1 | FQ30: 0.5 | FR30: 342.1664885 | FS30: 256.6248664 | FT30: 128.3124332 | FU30: 115.4811898 | FV30: 115.4811898 | FW30: 115.4811898 | FX30: 115.4811898 | FY30: 115.4811898 | FZ30: 115.4811898 | GA30: 115.4811898 | GB30: 115.4811898 | GC30: 5000 | GD30: 1000000000 | GE30: 1000000000 | GF30: 3000000 | GG30: 1e+11 | GH30: 0 | GI30: 0 | GJ30: 0 | GK30: 0 | GL30: 0 | GM30: 0 | GN30: 0.6855293879 | GO30: 5000 | GP30: 3409997.018 | GQ30: 2550973.654 | GR30: 894976.5572 | GS30: 805472.4135 | GZ30: 805472.4135 | HA30: =MIN(CT30*'Level 3'!$J$28,CI30*$HA$1) -> 0 | HB30: =CI30+CJ30-MIN('Level 3'!$J$29*'Level 3'!$J$28,CI30*$HA$1) -> 2530.914528 | HD30: 2530.914528 | HE30: 2530.914528 | HF30: =IF('Level 3'!$C$15 <> "None",HE30*$EV30/(1+HE30*$EV30/$GC30),HE30*$EC$11/(1+HE30*$EC$11/$EF$11)) -> 1009.868243 | HG30: =IF('Level 3'!$C$15 <> "None",HF30*$EX30/(1+HF30*$EX30/$GD30),HF30*$EC$12/(1+HF30*$EC$12/$EF$12)) -> 690608.871 | HH30: =MAX(IF('Level 3'!$C$15 <> "None",IF($HI$8="Y",((RAND()-0.5)/SQRT(1/12))*SQRT((HG30*EZ30/(1+HG30*EZ30/GE30))*(1-EZ30/(1+HG30*EZ30/GE30))),0)+(HG30*EZ30/(1+HG30*EZ30/GE30)),HG30*$EC$13/(1+HG30*$EC$13/$EF$13)),0) -> 517688.513 | HI30: =MAX(IF('Level 3'!$C$15 <> "None",IF($HI$8="Y",((RAND()-0.5)/SQRT(1/12))*SQRT((HH30*FB30/(1+HH30*FB30/GF30))*(1-FB30/(1+HH30*FB30/GF30))),0)+(HH30*FB30/(1+HH30*FB30/GF30)),HH30*$EC$14/(1+HH30*$EC$14/$EF$14)),0) -> 238284.7134 | HJ30: =MAX(IF('Level 3'!$C$15 <> "None",IF($HI$8="Y",((RAND()-0.5)/SQRT(1/12))*SQRT((HI30*FD30/(1+HI30*FD30/GG30))*(1-FD30/(1+HI30*FD30/GG30))),0)+(HI30*FD30/(1+HI30*FD30/GG30)),HI30*$EC$15/(1+HI30*$EC$15/$EF$15)),0) -> 214455.7821 | HK30: =MAX(IF('Level 3'!$C$15 <> "None",IF($HI$8="Y",((RAND()-0.5)/SQRT(1/12))*SQRT((HJ30*FF30/(1+HJ30*FF30/GH30))*(1-FF30/(1+HJ30*FF30/GH30))),0)+(HJ30*FF30/(1+HJ30*FF30/GH30)),HJ30*$EC$16/(1+HJ30*$EC$16/$EF$16)),0) ->  | HL30: =MAX(IF('Level 3'!$C$15 <> "None",IF($HI$8="Y",((RAND()-0.5)/SQRT(1/12))*SQRT((HK30*FH30/(1+HK30*FH30/GI30))*(1-FH30/(1+HK30*FH30/GI30))),0)+(HK30*FH30/(1+HK30*FH30/GI30)),HK30*$EC$17/(1+HK30*$EC$17/$EF$17)),0) ->  | HM30: =MAX(IF('Level 3'!$C$15 <> "None",IF($HI$8="Y",((RAND()-0.5)/SQRT(1/12))*SQRT((HL30*FJ30/(1+HL30*FJ30/GJ30))*(1-FJ30/(1+HL30*FJ30/GJ30))),0)+(HL30*FJ30/(1+HL30*FJ30/GJ30)),HL30*$EC$18/(1+HL30*$EC$18/$EF$18)),0) ->  | HN30: =MAX(IF('Level 3'!$C$15 <> "None",IF($HI$8="Y",((RAND()-0.5)/SQRT(1/12))*SQRT((HM30*FL30/(1+HM30*FL30/GK30))*(1-FL30/(1+HM30*FL30/GK30))),0)+(HM30*FL30/(1+HM30*FL30/GK30)),HM30*$EC$19/(1+HM30*$EC$19/$EF$19)),0) ->  | HO30: =MAX(IF('Level 3'!$C$15 <> "None",IF($HI$8="Y",((RAND()-0.5)/SQRT(1/12))*SQRT((HN30*FN30/(1+HN30*FN30/GL30))*(1-FN30/(1+HN30*FN30/GL30))),0)+(HN30*FN30/(1+HN30*FN30/GL30)),HN30*$EC$20/(1+HN30*$EC$20/$EF$20)),0) ->  | HP30: =MAX(IF('Level 3'!$C$15 <> "None",IF($HI$8="Y",((RAND()-0.5)/SQRT(1/12))*SQRT((HO30*FP30/(1+HO30*FP30/GM30))*(1-FP30/(1+HO30*FP30/GM30))),0)+(HO30*FP30/(1+HO30*FP30/GM30)),HO30*$EC$21/(1+HO30*$EC$21/$EF$21)),0) ->  | HQ30: =IF('Level 3'!$C$15="None",HE30*$EJ$3/(1+$EJ$3*HE30/$EJ$4),HLOOKUP(1,$HF$9:$HP$132,ROW()-8,FALSE)) -> 214455.7821 | HR30: 214455.7821
C31: =IF('Level 3'!$C$15="Random",RAND(),IF('Level 3'!$C$15="None",0.5,RAND())) -> 0.5 | D31: 0 | E31: =IF('Level 3'!$AX$14="MR",$F$6,IF('Level 3'!$AX$14="FR", 'Level 3'!$C$5,IF('Level 3'!$AX$14="ME",IF(I31=0,0,MAX(0,('L3 BaselineNatural'!I31-'L3 BaselineNatural'!$F$5)/'L3 BaselineNatural'!I31)),IF(I31=0,0,MAX(0,('L3 BaselineNatural'!I31-'Level 3'!$C$7)/'L3 BaselineNatural'!I31))))) -> 0 | F31: 0 | G31: 2480.761086 | H31: 222041.5185 | I31: 2480.761086 | J31: 0 | K31: 2480.761086 | M31: 0.2193958079 | N31: 0.03395055905 | O31: =IF('Level 3'!$C$15= "None", N$3, IF('Level 3'!$C$15 = "Random",N31, $N$3)) -> 0.05 | P31: 0.3966241348 | Q31: =IF('Level 3'!$C$15= "None",P$3,P31) -> 0.4 | R31: 0.5966241348 | S31: =IF('Level 3'!$C$15= "None",R$3,R31) -> 0.6 | T31: 0.6966241348 | U31: =IF('Level 3'!$C$15= "None",T$3,T31) -> 0.7 | V31: 0.7966241348 | W31: =IF('Level 3'!$C$15= "None",V$3,V31) -> 0.8 | X31: 0.8966241348 | Y31: =IF('Level 3'!$C$15= "None",X$3,X31) -> 0.9 | Z31: 222041.5185 | AA31: 0.01020790911 | AB31: 83.64692923 | AC31: 222041.5185 | AD31: 0 | AE31: 526.8163778 | AF31: 675.698364 | AG31: 983.5295336 | AH31: 288.8963805 | AI31: 5.820430522 | AJ31: 2480.761086 | AK31: 0 | AL31: 0 | AN31: 0 | AO31: 0 | AP31: 0 | AQ31: 0 | AR31: 0 | AS31: 0 | AT31: 0 | AV31: 0 | AW31: 526.8163778 | AX31: 675.698364 | AY31: 983.5295336 | AZ31: 288.8963805 | BA31: 5.820430522 | BB31: 2480.761086 | BD31: 0 | BE31: 0 | BF31: 0 | BG31: 0 | BH31: 0 | BI31: 0 | BJ31: 0 | BL31: 0 | BM31: 526.8163778 | BN31: 675.698364 | BO31: 983.5295336 | BP31: 288.8963805 | BQ31: 5.820430522 | BR31: 2480.761086 | BT31: 0 | BU31: 0 | BV31: 0 | BW31: 0 | BX31: 0 | BY31: 0 | BZ31: 0 | CA31: 0 | CC31: 0 | CD31: 526.8163778 | CE31: 675.698364 | CF31: 983.5295336 | CG31: 288.8963805 | CH31: 5.820430522 | CI31: 2480.761086 | CJ31: =IF('Level 3'!$J$27=0,0,'L3 BaselineHatchery'!CU31*$CU$4) -> 0 | CK31: 0 | CL31: 0.2123607874 | CM31: 0.2723754285 | CN31: 0.396462819 | CO31: 0.1164547372 | CP31: 0.002346227758 | CQ31: 1 | CS31: 1374.626951 | CT31: ='Level 3'!$J$29 -> 1 | CU31: =IF(CJ31>0,CJ31/(CJ31+CI31-MIN(CT31*'Level 3'!$J$28,CI31*0.3)),0) -> 0 | CV31: 1927 | CW31: 1.07 | CX31: 1.73 | CY31: 0.15 | CZ31: -0.18 | DA31: 0.3 | DB31: 0.69 | DC31: -0.31 | DD31: -0.73 | DE31: -0.41 | DF31: -0.62 | DG31: -0.07 | DH31: 0.07 | DI31: 1927 | DJ31: 0.1066666667 | DR31: 0 | EB31: aw | EC31: 1000 | EU31: 0.4036875646 | EV31: 0.5 | EW31: 0.4857641246 | EX31: 684.332977 | EY31: 0.3397421576 | EZ31: 0.75 | FA31: 0.9922640578 | FB31: 0.5 | FC31: 0.6708329364 | FD31: 0.9 | FE31: 0.03852158706 | FF31: 1 | FG31: 0.6035708592 | FH31: 1 | FI31: 0.5653374458 | FJ31: 1 | FK31: 0.9858318631 | FL31: 1 | FM31: 0.5465409272 | FN31: 1 | FO31: 0.2553186484 | FP31: 1 | FQ31: 0.5 | FR31: 342.1664885 | FS31: 256.6248664 | FT31: 128.3124332 | FU31: 115.4811899 | FV31: 115.4811899 | FW31: 115.4811899 | FX31: 115.4811899 | FY31: 115.4811899 | FZ31: 115.4811899 | GA31: 115.4811899 | GB31: 115.4811899 | GC31: 5000 | GD31: 1000000000 | GE31: 1000000000 | GF31: 3000000 | GG31: 1e+11 | GH31: 0 | GI31: 0 | GJ31: 0 | GK31: 0 | GL31: 0 | GM31: 0 | GN31: 0.03741410697 | GO31: 5000 | GP31: 3409997.018 | GQ31: 2550973.654 | GR31: 894976.5572 | GS31: 805472.4135 | GZ31: 805472.4135 | HA31: =MIN(CT31*'Level 3'!$J$28,CI31*$HA$1) -> 0 | HB31: =CI31+CJ31-MIN('Level 3'!$J$29*'Level 3'!$J$28,CI31*$HA$1) -> 2480.761086 | HD31: 2480.761086 | HE31: 2480.761086 | HF31: =IF('Level 3'!$C$15 <> "None",HE31*$EV31/(1+HE31*$EV31/$GC31),HE31*$EC$11/(1+HE31*$EC$11/$EF$11)) -> 993.8340576 | HG31: =IF('Level 3'!$C$15 <> "None",HF31*$EX31/(1+HF31*$EX31/$GD31),HF31*$EC$12/(1+HF31*$EC$12/$EF$12)) -> 679651.1794 | HH31: =MAX(IF('Level 3'!$C$15 <> "None",IF($HI$8="Y",((RAND()-0.5)/SQRT(1/12))*SQRT((HG31*EZ31/(1+HG31*EZ31/GE31))*(1-EZ31/(1+HG31*EZ31/GE31))),0)+(HG31*EZ31/(1+HG31*EZ31/GE31)),HG31*$EC$13/(1+HG31*$EC$13/$EF$13)),0) -> 509478.6837 | HI31: =MAX(IF('Level 3'!$C$15 <> "None",IF($HI$8="Y",((RAND()-0.5)/SQRT(1/12))*SQRT((HH31*FB31/(1+HH31*FB31/GF31))*(1-FB31/(1+HH31*FB31/GF31))),0)+(HH31*FB31/(1+HH31*FB31/GF31)),HH31*$EC$14/(1+HH31*$EC$14/$EF$14)),0) -> 234801.6063 | HJ31: =MAX(IF('Level 3'!$C$15 <> "None",IF($HI$8="Y",((RAND()-0.5)/SQRT(1/12))*SQRT((HI31*FD31/(1+HI31*FD31/GG31))*(1-FD31/(1+HI31*FD31/GG31))),0)+(HI31*FD31/(1+HI31*FD31/GG31)),HI31*$EC$15/(1+HI31*$EC$15/$EF$15)),0) -> 211320.9991 | HK31: =MAX(IF('Level 3'!$C$15 <> "None",IF($HI$8="Y",((RAND()-0.5)/SQRT(1/12))*SQRT((HJ31*FF31/(1+HJ31*FF31/GH31))*(1-FF31/(1+HJ31*FF31/GH31))),0)+(HJ31*FF31/(1+HJ31*FF31/GH31)),HJ31*$EC$16/(1+HJ31*$EC$16/$EF$16)),0) ->  | HL31: =MAX(IF('Level 3'!$C$15 <> "None",IF($HI$8="Y",((RAND()-0.5)/SQRT(1/12))*SQRT((HK31*FH31/(1+HK31*FH31/GI31))*(1-FH31/(1+HK31*FH31/GI31))),0)+(HK31*FH31/(1+HK31*FH31/GI31)),HK31*$EC$17/(1+HK31*$EC$17/$EF$17)),0) ->  | HM31: =MAX(IF('Level 3'!$C$15 <> "None",IF($HI$8="Y",((RAND()-0.5)/SQRT(1/12))*SQRT((HL31*FJ31/(1+HL31*FJ31/GJ31))*(1-FJ31/(1+HL31*FJ31/GJ31))),0)+(HL31*FJ31/(1+HL31*FJ31/GJ31)),HL31*$EC$18/(1+HL31*$EC$18/$EF$18)),0) ->  | HN31: =MAX(IF('Level 3'!$C$15 <> "None",IF($HI$8="Y",((RAND()-0.5)/SQRT(1/12))*SQRT((HM31*FL31/(1+HM31*FL31/GK31))*(1-FL31/(1+HM31*FL31/GK31))),0)+(HM31*FL31/(1+HM31*FL31/GK31)),HM31*$EC$19/(1+HM31*$EC$19/$EF$19)),0) ->  | HO31: =MAX(IF('Level 3'!$C$15 <> "None",IF($HI$8="Y",((RAND()-0.5)/SQRT(1/12))*SQRT((HN31*FN31/(1+HN31*FN31/GL31))*(1-FN31/(1+HN31*FN31/GL31))),0)+(HN31*FN31/(1+HN31*FN31/GL31)),HN31*$EC$20/(1+HN31*$EC$20/$EF$20)),0) ->  | HP31: =MAX(IF('Level 3'!$C$15 <> "None",IF($HI$8="Y",((RAND()-0.5)/SQRT(1/12))*SQRT((HO31*FP31/(1+HO31*FP31/GM31))*(1-FP31/(1+HO31*FP31/GM31))),0)+(HO31*FP31/(1+HO31*FP31/GM31)),HO31*$EC$21/(1+HO31*$EC$21/$EF$21)),0) ->  | HQ31: =IF('Level 3'!$C$15="None",HE31*$EJ$3/(1+$EJ$3*HE31/$EJ$4),HLOOKUP(1,$HF$9:$HP$132,ROW()-8,FALSE)) -> 211320.9991 | HR31: 211320.9991 | HS31: SAR | HT31: Smolts/Spawner | HU31: Recruits/Spawner | HW31: Scenario 1/Baseline Ratios | IA31: Baseline
C32: =IF('Level 3'!$C$15="Random",RAND(),IF('Level 3'!$C$15="None",0.5,RAND())) -> 0.5 | D32: 0 | E32: =IF('Level 3'!$AX$14="MR",$F$6,IF('Level 3'!$AX$14="FR", 'Level 3'!$C$5,IF('Level 3'!$AX$14="ME",IF(I32=0,0,MAX(0,('L3 BaselineNatural'!I32-'L3 BaselineNatural'!$F$5)/'L3 BaselineNatural'!I32)),IF(I32=0,0,MAX(0,('L3 BaselineNatural'!I32-'Level 3'!$C$7)/'L3 BaselineNatural'!I32))))) -> 0 | F32: 0 | G32: 2446.2464 | H32: 214455.7821 | I32: 2446.2464 | J32: 0 | K32: 2446.2464 | M32: 0.7474800433 | N32: 0.06977762667 | O32: =IF('Level 3'!$C$15= "None", N$3, IF('Level 3'!$C$15 = "Random",N32, $N$3)) -> 0.05 | P32: 0.402893384 | Q32: =IF('Level 3'!$C$15= "None",P$3,P32) -> 0.4 | R32: 0.602893384 | S32: =IF('Level 3'!$C$15= "None",R$3,R32) -> 0.6 | T32: 0.702893384 | U32: =IF('Level 3'!$C$15= "None",T$3,T32) -> 0.7 | V32: 0.802893384 | W32: =IF('Level 3'!$C$15= "None",V$3,V32) -> 0.8 | X32: 0.902893384 | Y32: =IF('Level 3'!$C$15= "None",X$3,X32) -> 0.9 | Z32: 214455.7821 | AA32: 0.01020790911 | AB32: 84.734502 | AC32: 214455.7821 | AD32: 0 | AE32: 508.0801622 | AF32: 664.9380536 | AG32: 982.7253053 | AH32: 285.1966187 | AI32: 5.306260049 | AJ32: 2446.2464 | AK32: 0 | AL32: 0 | AN32: 0 | AO32: 0 | AP32: 0 | AQ32: 0 | AR32: 0 | AS32: 0 | AT32: 0 | AV32: 0 | AW32: 508.0801622 | AX32: 664.9380536 | AY32: 982.7253053 | AZ32: 285.1966187 | BA32: 5.306260049 | BB32: 2446.2464 | BD32: 0 | BE32: 0 | BF32: 0 | BG32: 0 | BH32: 0 | BI32: 0 | BJ32: 0 | BL32: 0 | BM32: 508.0801622 | BN32: 664.9380536 | BO32: 982.7253053 | BP32: 285.1966187 | BQ32: 5.306260049 | BR32: 2446.2464 | BT32: 0 | BU32: 0 | BV32: 0 | BW32: 0 | BX32: 0 | BY32: 0 | BZ32: 0 | CA32: 0 | CC32: 0 | CD32: 508.0801622 | CE32: 664.9380536 | CF32: 982.7253053 | CG32: 285.1966187 | CH32: 5.306260049 | CI32: 2446.2464 | CJ32: =IF('Level 3'!$J$27=0,0,'L3 BaselineHatchery'!CU32*$CU$4) -> 0 | CK32: 0 | CL32: 0.2076978682 | CM32: 0.2718197372 | CN32: 0.4017278494 | CO32: 0.1165854015 | CP32: 0.002169143734 | CQ32: 1 | CS32: 1382.539988 | CT32: ='Level 3'!$J$29 -> 1 | CU32: =IF(CJ32>0,CJ32/(CJ32+CI32-MIN(CT32*'Level 3'!$J$28,CI32*0.3)),0) -> 0 | CV32: 1928 | CW32: 0.96 | CX32: 0.79 | CY32: 0.52 | CZ32: 0.81 | DA32: 0.66 | DB32: 0.15 | DC32: 0.3 | DD32: -0.72 | DE32: -1.41 | DF32: -1.31 | DG32: 0.14 | DH32: 0.98 | DI32: 1928 | DJ32: 0.035 | DR32: 0 | EB32: bw | EC32: 110 | EU32: 0.4002588117 | EV32: 0.5 | EW32: 0.7326450375 | EX32: 684.332977 | EY32: 0.5729760507 | EZ32: 0.75 | FA32: 0.1279354 | FB32: 0.5 | FC32: 0.7802110104 | FD32: 0.9 | FE32: 0.509574343 | FF32: 1 | FG32: 0.6691628715 | FH32: 1 | FI32: 0.7175954969 | FJ32: 1 | FK32: 0.6903037196 | FL32: 1 | FM32: 0.1610249142 | FN32: 1 | FO32: 0.2048421399 | FP32: 1 | FQ32: 0.5 | FR32: 342.1664885 | FS32: 256.6248664 | FT32: 128.3124332 | FU32: 115.4811899 | FV32: 115.4811899 | FW32: 115.4811899 | FX32: 115.4811899 | FY32: 115.4811899 | FZ32: 115.4811899 | GA32: 115.4811899 | GB32: 115.4811899 | GC32: 5000 | GD32: 1000000000 | GE32: 1000000000 | GF32: 3000000 | GG32: 1e+11 | GH32: 0 | GI32: 0 | GJ32: 0 | GK32: 0 | GL32: 0 | GM32: 0 | GN32: 0.8625150688 | GO32: 5000 | GP32: 3409997.018 | GQ32: 2550973.654 | GR32: 894976.5573 | GS32: 805472.4136 | GZ32: 805472.4136 | HA32: =MIN(CT32*'Level 3'!$J$28,CI32*$HA$1) -> 0 | HB32: =CI32+CJ32-MIN('Level 3'!$J$29*'Level 3'!$J$28,CI32*$HA$1) -> 2446.2464 | HD32: 2446.2464 | HE32: =HD32 -> 2446.2464 | HF32: =IF('Level 3'!$C$15 <> "None",HE32*$EV32/(1+HE32*$EV32/$GC32),HE32*$EC$11/(1+HE32*$EC$11/$EF$11)) -> 982.7245586 | HG32: =IF('Level 3'!$C$15 <> "None",HF32*$EX32/(1+HF32*$EX32/$GD32),HF32*$EC$12/(1+HF32*$EC$12/$EF$12)) -> 672058.8559 | HH32: =MAX(IF('Level 3'!$C$15 <> "None",IF($HI$8="Y",((RAND()-0.5)/SQRT(1/12))*SQRT((HG32*EZ32/(1+HG32*EZ32/GE32))*(1-EZ32/(1+HG32*EZ32/GE32))),0)+(HG32*EZ32/(1+HG32*EZ32/GE32)),HG32*$EC$13/(1+HG32*$EC$13/$EF$13)),0) -> 503790.2095 | HI32: =MAX(IF('Level 3'!$C$15 <> "None",IF($HI$8="Y",((RAND()-0.5)/SQRT(1/12))*SQRT((HH32*FB32/(1+HH32*FB32/GF32))*(1-FB32/(1+HH32*FB32/GF32))),0)+(HH32*FB32/(1+HH32*FB32/GF32)),HH32*$EC$14/(1+HH32*$EC$14/$EF$14)),0) -> 232383.0535 | HJ32: =MAX(IF('Level 3'!$C$15 <> "None",IF($HI$8="Y",((RAND()-0.5)/SQRT(1/12))*SQRT((HI32*FD32/(1+HI32*FD32/GG32))*(1-FD32/(1+HI32*FD32/GG32))),0)+(HI32*FD32/(1+HI32*FD32/GG32)),HI32*$EC$15/(1+HI32*$EC$15/$EF$15)),0) -> 209144.3108 | HK32: =MAX(IF('Level 3'!$C$15 <> "None",IF($HI$8="Y",((RAND()-0.5)/SQRT(1/12))*SQRT((HJ32*FF32/(1+HJ32*FF32/GH32))*(1-FF32/(1+HJ32*FF32/GH32))),0)+(HJ32*FF32/(1+HJ32*FF32/GH32)),HJ32*$EC$16/(1+HJ32*$EC$16/$EF$16)),0) ->  | HL32: =MAX(IF('Level 3'!$C$15 <> "None",IF($HI$8="Y",((RAND()-0.5)/SQRT(1/12))*SQRT((HK32*FH32/(1+HK32*FH32/GI32))*(1-FH32/(1+HK32*FH32/GI32))),0)+(HK32*FH32/(1+HK32*FH32/GI32)),HK32*$EC$17/(1+HK32*$EC$17/$EF$17)),0) ->  | HM32: =MAX(IF('Level 3'!$C$15 <> "None",IF($HI$8="Y",((RAND()-0.5)/SQRT(1/12))*SQRT((HL32*FJ32/(1+HL32*FJ32/GJ32))*(1-FJ32/(1+HL32*FJ32/GJ32))),0)+(HL32*FJ32/(1+HL32*FJ32/GJ32)),HL32*$EC$18/(1+HL32*$EC$18/$EF$18)),0) ->  | HN32: =MAX(IF('Level 3'!$C$15 <> "None",IF($HI$8="Y",((RAND()-0.5)/SQRT(1/12))*SQRT((HM32*FL32/(1+HM32*FL32/GK32))*(1-FL32/(1+HM32*FL32/GK32))),0)+(HM32*FL32/(1+HM32*FL32/GK32)),HM32*$EC$19/(1+HM32*$EC$19/$EF$19)),0) ->  | HO32: =MAX(IF('Level 3'!$C$15 <> "None",IF($HI$8="Y",((RAND()-0.5)/SQRT(1/12))*SQRT((HN32*FN32/(1+HN32*FN32/GL32))*(1-FN32/(1+HN32*FN32/GL32))),0)+(HN32*FN32/(1+HN32*FN32/GL32)),HN32*$EC$20/(1+HN32*$EC$20/$EF$20)),0) ->  | HP32: =MAX(IF('Level 3'!$C$15 <> "None",IF($HI$8="Y",((RAND()-0.5)/SQRT(1/12))*SQRT((HO32*FP32/(1+HO32*FP32/GM32))*(1-FP32/(1+HO32*FP32/GM32))),0)+(HO32*FP32/(1+HO32*FP32/GM32)),HO32*$EC$21/(1+HO32*$EC$21/$EF$21)),0) ->  | HQ32: =IF('Level 3'!$C$15="None",HE32*$EJ$3/(1+$EJ$3*HE32/$EJ$4),HLOOKUP(1,$HF$9:$HP$132,ROW()-8,FALSE)) -> 209144.3108 | HR32: 209144.3107 | HW32: SAR | HX32: Smolts/Spawner | HY32: R/S | IA32: Spawners | IB32: Smolts | IC32: Recruits
A33: Recruits | C33: =IF('Level 3'!$C$15="Random",RAND(),IF('Level 3'!$C$15="None",0.5,RAND())) -> 0.5 | D33: 0 | E33: =IF('Level 3'!$AX$14="MR",$F$6,IF('Level 3'!$AX$14="FR", 'Level 3'!$C$5,IF('Level 3'!$AX$14="ME",IF(I33=0,0,MAX(0,('L3 BaselineNatural'!I33-'L3 BaselineNatural'!$F$5)/'L3 BaselineNatural'!I33)),IF(I33=0,0,MAX(0,('L3 BaselineNatural'!I33-'Level 3'!$C$7)/'L3 BaselineNatural'!I33))))) -> 0 | F33: 0 | G33: 2387.058279 | H33: 211320.9991 | I33: 2387.058279 | J33: 0 | K33: 2387.058279 | M33: 0.8831908304 | N33: 0.0907009561 | O33: =IF('Level 3'!$C$15= "None", N$3, IF('Level 3'!$C$15 = "Random",N33, $N$3)) -> 0.05 | P33: 0.4051665919 | Q33: =IF('Level 3'!$C$15= "None",P$3,P33) -> 0.4 | R33: 0.6051665919 | S33: =IF('Level 3'!$C$15= "None",R$3,R33) -> 0.6 | T33: 0.7051665919 | U33: =IF('Level 3'!$C$15= "None",T$3,T33) -> 0.7 | V33: 0.8051665919 | W33: =IF('Level 3'!$C$15= "None",V$3,V33) -> 0.8 | X33: 0.9051665919 | Y33: =IF('Level 3'!$C$15= "None",X$3,X33) -> 0.9 | Z33: 211320.9991 | AA33: 0.01020790911 | AB33: 85.18393822 | AC33: 211320.9991 | AD33: 0 | AE33: 488.4913407 | AF33: 641.289543 | AG33: 967.0756753 | AH33: 284.9634146 | AI33: 5.238305242 | AJ33: 2387.058279 | AK33: 0 | AL33: 0 | AM33: =AF36+AG37+AH38+AI39 -> 1692.239354 | AN33: 0 | AO33: 0 | AP33: 0 | AQ33: 0 | AR33: 0 | AS33: 0 | AT33: 0 | AV33: 0 | AW33: 488.4913407 | AX33: 641.289543 | AY33: 967.0756753 | AZ33: 284.9634146 | BA33: 5.238305242 | BB33: 2387.058279 | BD33: 0 | BE33: 0 | BF33: 0 | BG33: 0 | BH33: 0 | BI33: 0 | BJ33: 0 | BL33: 0 | BM33: 488.4913407 | BN33: 641.289543 | BO33: 967.0756753 | BP33: 284.9634146 | BQ33: 5.238305242 | BR33: 2387.058279 | BT33: 0 | BU33: 0 | BV33: 0 | BW33: 0 | BX33: 0 | BY33: 0 | BZ33: 0 | CA33: 0 | CC33: 0 | CD33: 488.4913407 | CE33: 641.289543 | CF33: 967.0756753 | CG33: 284.9634146 | CH33: 5.238305242 | CI33: 2387.058279 | CJ33: =IF('Level 3'!$J$27=0,0,'L3 BaselineHatchery'!CU33*$CU$4) -> 0 | CK33: 0 | CL33: 0.2046415645 | CM33: 0.2686526545 | CN33: 0.4051328298 | CO33: 0.1193784907 | CP33: 0.002194460558 | CQ33: 1 | CS33: 1388.581226 | CT33: ='Level 3'!$J$29 -> 1 | CU33: =IF(CJ33>0,CJ33/(CJ33+CI33-MIN(CT33*'Level 3'!$J$28,CI33*0.3)),0) -> 0 | CV33: 1929 | CW33: 0.97 | CX33: 0.52 | CY33: 0.5 | CZ33: 0.55 | DA33: 1.07 | DB33: 0.5 | DC33: -0.06 | DD33: -0.69 | DE33: 0.45 | DF33: -0.21 | DG33: 1.24 | DH33: -0.03 | DI33: 1929 | DJ33: -0.3033333333 | DR33: 0 | DV33: Year | DW33: pNOS | DX33: pHOB | DY33: Natural Trait Value | DZ33: Hatchery Trait Value | EA33: Natural Fitness | EB33: heritw | EC33: 0.5 | EU33: 0.4002584236 | EV33: 0.5 | EW33: 0.9742966526 | EX33: 684.3329771 | EY33: 0.3379062343 | EZ33: 0.75 | FA33: 0.7422545365 | FB33: 0.5 | FC33: 0.8157811007 | FD33: 0.9 | FE33: 0.745238681 | FF33: 1 | FG33: 0.6977740183 | FH33: 1 | FI33: 0.536660717 | FJ33: 1 | FK33: 0.4178983946 | FL33: 1 | FM33: 0.2441739559 | FN33: 1 | FO33: 0.3864284774 | FP33: 1 | FQ33: 0.5 | FR33: 342.1664885 | FS33: 256.6248664 | FT33: 128.3124332 | FU33: 115.4811899 | FV33: 115.4811899 | FW33: 115.4811899 | FX33: 115.4811899 | FY33: 115.4811899 | FZ33: 115.4811899 | GA33: 115.4811899 | GB33: 115.4811899 | GC33: 5000 | GD33: 1000000000 | GE33: 1000000000 | GF33: 3000000 | GG33: 1e+11 | GH33: 0 | GI33: 0 | GJ33: 0 | GK33: 0 | GL33: 0 | GM33: 0 | GN33: 0.7623666932 | GO33: 5000 | GP33: 3409997.018 | GQ33: 2550973.654 | GR33: 894976.5573 | GS33: 805472.4136 | GZ33: 805472.4136 | HA33: =MIN(CT33*'Level 3'!$J$28,CI33*$HA$1) -> 0 | HB33: =CI33+CJ33-MIN('Level 3'!$J$29*'Level 3'!$J$28,CI33*$HA$1) -> 2387.058279 | HD33: =HB33 -> 2387.058279 | HE33: =HD33 -> 2387.058279 | HF33: =IF('Level 3'!$C$15 <> "None",HE33*$EV33/(1+HE33*$EV33/$GC33),HE33*$EC$11/(1+HE33*$EC$11/$EF$11)) -> 963.5291225 | HG33: =IF('Level 3'!$C$15 <> "None",HF33*$EX33/(1+HF33*$EX33/$GD33),HF33*$EC$12/(1+HF33*$EC$12/$EF$12)) -> 658940.2643 | HH33: =MAX(IF('Level 3'!$C$15 <> "None",IF($HI$8="Y",((RAND()-0.5)/SQRT(1/12))*SQRT((HG33*EZ33/(1+HG33*EZ33/GE33))*(1-EZ33/(1+HG33*EZ33/GE33))),0)+(HG33*EZ33/(1+HG33*EZ33/GE33)),HG33*$EC$13/(1+HG33*$EC$13/$EF$13)),0) -> 493961.0801 | HI33: =MAX(IF('Level 3'!$C$15 <> "None",IF($HI$8="Y",((RAND()-0.5)/SQRT(1/12))*SQRT((HH33*FB33/(1+HH33*FB33/GF33))*(1-FB33/(1+HH33*FB33/GF33))),0)+(HH33*FB33/(1+HH33*FB33/GF33)),HH33*$EC$14/(1+HH33*$EC$14/$EF$14)),0) -> 228194.044 | HJ33: =MAX(IF('Level 3'!$C$15 <> "None",IF($HI$8="Y",((RAND()-0.5)/SQRT(1/12))*SQRT((HI33*FD33/(1+HI33*FD33/GG33))*(1-FD33/(1+HI33*FD33/GG33))),0)+(HI33*FD33/(1+HI33*FD33/GG33)),HI33*$EC$15/(1+HI33*$EC$15/$EF$15)),0) -> 205374.2178 | HK33: =MAX(IF('Level 3'!$C$15 <> "None",IF($HI$8="Y",((RAND()-0.5)/SQRT(1/12))*SQRT((HJ33*FF33/(1+HJ33*FF33/GH33))*(1-FF33/(1+HJ33*FF33/GH33))),0)+(HJ33*FF33/(1+HJ33*FF33/GH33)),HJ33*$EC$16/(1+HJ33*$EC$16/$EF$16)),0) ->  | HL33: =MAX(IF('Level 3'!$C$15 <> "None",IF($HI$8="Y",((RAND()-0.5)/SQRT(1/12))*SQRT((HK33*FH33/(1+HK33*FH33/GI33))*(1-FH33/(1+HK33*FH33/GI33))),0)+(HK33*FH33/(1+HK33*FH33/GI33)),HK33*$EC$17/(1+HK33*$EC$17/$EF$17)),0) ->  | HM33: =MAX(IF('Level 3'!$C$15 <> "None",IF($HI$8="Y",((RAND()-0.5)/SQRT(1/12))*SQRT((HL33*FJ33/(1+HL33*FJ33/GJ33))*(1-FJ33/(1+HL33*FJ33/GJ33))),0)+(HL33*FJ33/(1+HL33*FJ33/GJ33)),HL33*$EC$18/(1+HL33*$EC$18/$EF$18)),0) ->  | HN33: =MAX(IF('Level 3'!$C$15 <> "None",IF($HI$8="Y",((RAND()-0.5)/SQRT(1/12))*SQRT((HM33*FL33/(1+HM33*FL33/GK33))*(1-FL33/(1+HM33*FL33/GK33))),0)+(HM33*FL33/(1+HM33*FL33/GK33)),HM33*$EC$19/(1+HM33*$EC$19/$EF$19)),0) ->  | HO33: =MAX(IF('Level 3'!$C$15 <> "None",IF($HI$8="Y",((RAND()-0.5)/SQRT(1/12))*SQRT((HN33*FN33/(1+HN33*FN33/GL33))*(1-FN33/(1+HN33*FN33/GL33))),0)+(HN33*FN33/(1+HN33*FN33/GL33)),HN33*$EC$20/(1+HN33*$EC$20/$EF$20)),0) ->  | HP33: =MAX(IF('Level 3'!$C$15 <> "None",IF($HI$8="Y",((RAND()-0.5)/SQRT(1/12))*SQRT((HO33*FP33/(1+HO33*FP33/GM33))*(1-FP33/(1+HO33*FP33/GM33))),0)+(HO33*FP33/(1+HO33*FP33/GM33)),HO33*$EC$21/(1+HO33*$EC$21/$EF$21)),0) ->  | HQ33: =IF('Level 3'!$C$15="None",HE33*$EJ$3/(1+$EJ$3*HE33/$EJ$4),HLOOKUP(1,$HF$9:$HP$132,ROW()-8,FALSE)) -> 205374.2178 | HR33: 205374.2178 | HS33: =AM33/AC33 -> 0.008007909112 | HT33: =HQ33/HE33 -> 86.03653276 | HU33: =HT33*HS33 -> 0.6889727347 | HW33: ='L3 BaselineHatchery'!HS33/'L3 BaselineNatural'!HS33 ->  | HX33: ='L3 BaselineHatchery'!HT33/'L3 BaselineNatural'!HT33 ->  | HY33: ='L3 BaselineHatchery'!HU33/'L3 BaselineNatural'!HU33 ->  | HZ33: 1 | IA33: =HE33 -> 2387.058279 | IB33: =HQ33 -> 205374.2178 | IC33: =AM33 -> 1692.239354 | IE33: ='L3 BaselineHatchery'!IA33/'L3 BaselineNatural'!IA33 ->  | IF33: ='L3 BaselineHatchery'!IB33/'L3 BaselineNatural'!IB33 ->  | IG33: ='L3 BaselineHatchery'!IC33/'L3 BaselineNatural'!IC33 -> 
A34: =(AE36+AF37+AG38+AH39+AI40) -> 2134.926116 | C34: =IF('Level 3'!$C$15="Random",RAND(),IF('Level 3'!$C$15="None",0.5,RAND())) -> 0.5 | D34: 0 | E34: =IF('Level 3'!$AX$14="MR",$F$6,IF('Level 3'!$AX$14="FR", 'Level 3'!$C$5,IF('Level 3'!$AX$14="ME",IF(I34=0,0,MAX(0,('L3 BaselineNatural'!I34-'L3 BaselineNatural'!$F$5)/'L3 BaselineNatural'!I34)),IF(I34=0,0,MAX(0,('L3 BaselineNatural'!I34-'Level 3'!$C$7)/'L3 BaselineNatural'!I34))))) -> 0 | F34: 0 | G34: 2306.708727 | H34: 209144.3108 | I34: 2306.708727 | J34: 0 | K34: 2306.708727 | M34: 0.1964745611 | N34: 0.03261858879 | O34: =IF('Level 3'!$C$15= "None", N$3, IF('Level 3'!$C$15 = "Random",N34, $N$3)) -> 0.05 | P34: 0.3962685654 | Q34: =IF('Level 3'!$C$15= "None",P$3,P34) -> 0.4 | R34: 0.5962685654 | S34: =IF('Level 3'!$C$15= "None",R$3,R34) -> 0.6 | T34: 0.6962685654 | U34: =IF('Level 3'!$C$15= "None",T$3,T34) -> 0.7 | V34: 0.7962685654 | W34: =IF('Level 3'!$C$15= "None",V$3,V34) -> 0.8 | X34: 0.8962685654 | Y34: =IF('Level 3'!$C$15= "None",X$3,X34) -> 0.9 | Z34: 209144.3108 | AA34: =(AE37+AF38+AG39+AH40+AI41)/AC35 -> 0.01020790911 | AB34: 85.49601167 | AC34: 209144.3108 | AD34: 0 | AE34: 471.8027206 | AF34: 616.5648885 | AG34: 932.6816453 | AH34: 280.4254506 | AI34: 5.2340219 | AJ34: 2306.708727 | AK34: 0 | AL34: 0 | AM34: =AF37+AG38+AH39+AI40 -> 1674.808632 | AN34: 0 | AO34: 0 | AP34: 0 | AQ34: 0 | AR34: 0 | AS34: 0 | AT34: 0 | AV34: 0 | AW34: 471.8027206 | AX34: 616.5648885 | AY34: 932.6816453 | AZ34: 280.4254506 | BA34: 5.2340219 | BB34: 2306.708727 | BD34: 0 | BE34: 0 | BF34: 0 | BG34: 0 | BH34: 0 | BI34: 0 | BJ34: 0 | BL34: 0 | BM34: 471.8027206 | BN34: 616.5648885 | BO34: 932.6816453 | BP34: 280.4254506 | BQ34: 5.2340219 | BR34: 2306.708727 | BT34: 0 | BU34: 0 | BV34: 0 | BW34: 0 | BX34: 0 | BY34: 0 | BZ34: 0 | CA34: 0 | CC34: 0 | CD34: 471.8027206 | CE34: 616.5648885 | CF34: 932.6816453 | CG34: 280.4254506 | CH34: 5.2340219 | CI34: 2306.708727 | CJ34: =IF('Level 3'!$J$27=0,0,'L3 BaselineHatchery'!CU34*$CU$4) -> 0 | CK34: 0 | CL34: 0.2045350222 | CM34: 0.2672920431 | CN34: 0.404334381 | CO34: 0.1215695104 | CP34: 0.002269043264 | CQ34: 1 | CS34: 1389.442028 | CT34: ='Level 3'!$J$29 -> 1 | CU34: =IF(CJ34>0,CJ34/(CJ34+CI34-MIN(CT34*'Level 3'!$J$28,CI34*0.3)),0) -> 0 | CV34: 1930 | CW34: 0.97 | CX34: -1.06 | CY34: -0.43 | CZ34: -0.7 | DA34: 0.06 | DB34: 0.58 | DC34: -0.45 | DD34: -0.53 | DE34: -0.2 | DF34: -0.38 | DG34: -0.31 | DH34: 1.2 | DI34: 1930 | DJ34: 0.2066666667 | DR34: 0 | DV34: 0 | DW34: =1-CU34 -> 1 | DX34: =1-CT34 -> 0 | DY34: 95 | DZ34: 92 | EA34: =MAX($EC$28,IF($EC$27="N", 1,EXP((-1*(DY34-$EC$38)^2/(2*($EC$30+$EC$39)))))) -> 0.8925824723 | EB34: Omegacsq | EC34: 100 | EU34: 0.5931027598 | EV34: 0.5 | EW34: 0.3747691121 | EX34: 684.332977 | EY34: 0.8603969347 | EZ34: 0.75 | FA34: 0.2119127179 | FB34: 0.5 | FC34: 0.6595887285 | FD34: 0.9 | FE34: 0.2729075913 | FF34: 1 | FG34: 0.78182065 | FH34: 1 | FI34: 0.5388024499 | FJ34: 1 | FK34: 0.5239813769 | FL34: 1 | FM34: 0.9477895094 | FN34: 1 | FO34: 0.05007373253 | FP34: 1 | FQ34: 0.5 | FR34: 342.1664885 | FS34: 256.6248664 | FT34: 128.3124332 | FU34: 115.4811899 | FV34: 115.4811899 | FW34: 115.4811899 | FX34: 115.4811899 | FY34: 115.4811899 | FZ34: 115.4811899 | GA34: 115.4811899 | GB34: 115.4811899 | GC34: 5000 | GD34: 1000000000 | GE34: 1000000000 | GF34: 3000000 | GG34: =IF(GG$6<$DT$10+1,FU34/(FU34/GS34-FT34/GR34),0) -> 1e+11 | GH34: 0 | GI34: 0 | GJ34: 0 | GK34: 0 | GL34: 0 | GM34: 0 | GN34: 0.0297623242 | GO34: 5000 | GP34: 3409997.018 | GQ34: 2550973.654 | GR34: 894976.5572 | GS34: 805472.4136 | GZ34: 805472.4136 | HA34: =MIN(CT34*'Level 3'!$J$28,CI34*$HA$1) -> 0 | HB34: =CI34+CJ34-MIN('Level 3'!$J$29*'Level 3'!$J$28,CI34*$HA$1) -> 2306.708727 | HD34: =HB34 -> 2306.708727 | HE34: =HD34 -> 2306.708727 | HF34: =IF('Level 3'!$C$15 <> "None",HE34*$EV34/(1+HE34*$EV34/$GC34),HE34*$EC$11/(1+HE34*$EC$11/$EF$11)) -> 937.1753156 | HG34: =IF('Level 3'!$C$15 <> "None",HF34*$EX34/(1+HF34*$EX34/$GD34),HF34*$EC$12/(1+HF34*$EC$12/$EF$12)) -> 640928.9204 | HH34: =MAX(IF('Level 3'!$C$15 <> "None",IF($HI$8="Y",((RAND()-0.5)/SQRT(1/12))*SQRT((HG34*EZ34/(1+HG34*EZ34/GE34))*(1-EZ34/(1+HG34*EZ34/GE34))),0)+(HG34*EZ34/(1+HG34*EZ34/GE34)),HG34*$EC$13/(1+HG34*$EC$13/$EF$13)),0) -> 480465.732 | HI34: =MAX(IF('Level 3'!$C$15 <> "None",IF($HI$8="Y",((RAND()-0.5)/SQRT(1/12))*SQRT((HH34*FB34/(1+HH34*FB34/GF34))*(1-FB34/(1+HH34*FB34/GF34))),0)+(HH34*FB34/(1+HH34*FB34/GF34)),HH34*$EC$14/(1+HH34*$EC$14/$EF$14)),0) -> 222421.8529 | HJ34: =MAX(IF('Level 3'!$C$15 <> "None",IF($HI$8="Y",((RAND()-0.5)/SQRT(1/12))*SQRT((HI34*FD34/(1+HI34*FD34/GG34))*(1-FD34/(1+HI34*FD34/GG34))),0)+(HI34*FD34/(1+HI34*FD34/GG34)),HI34*$EC$15/(1+HI34*$EC$15/$EF$15)),0) -> 200179.2669 | HK34: =MAX(IF('Level 3'!$C$15 <> "None",IF($HI$8="Y",((RAND()-0.5)/SQRT(1/12))*SQRT((HJ34*FF34/(1+HJ34*FF34/GH34))*(1-FF34/(1+HJ34*FF34/GH34))),0)+(HJ34*FF34/(1+HJ34*FF34/GH34)),HJ34*$EC$16/(1+HJ34*$EC$16/$EF$16)),0) ->  | HL34: =MAX(IF('Level 3'!$C$15 <> "None",IF($HI$8="Y",((RAND()-0.5)/SQRT(1/12))*SQRT((HK34*FH34/(1+HK34*FH34/GI34))*(1-FH34/(1+HK34*FH34/GI34))),0)+(HK34*FH34/(1+HK34*FH34/GI34)),HK34*$EC$17/(1+HK34*$EC$17/$EF$17)),0) ->  | HM34: =MAX(IF('Level 3'!$C$15 <> "None",IF($HI$8="Y",((RAND()-0.5)/SQRT(1/12))*SQRT((HL34*FJ34/(1+HL34*FJ34/GJ34))*(1-FJ34/(1+HL34*FJ34/GJ34))),0)+(HL34*FJ34/(1+HL34*FJ34/GJ34)),HL34*$EC$18/(1+HL34*$EC$18/$EF$18)),0) ->  | HN34: =MAX(IF('Level 3'!$C$15 <> "None",IF($HI$8="Y",((RAND()-0.5)/SQRT(1/12))*SQRT((HM34*FL34/(1+HM34*FL34/GK34))*(1-FL34/(1+HM34*FL34/GK34))),0)+(HM34*FL34/(1+HM34*FL34/GK34)),HM34*$EC$19/(1+HM34*$EC$19/$EF$19)),0) ->  | HO34: =MAX(IF('Level 3'!$C$15 <> "None",IF($HI$8="Y",((RAND()-0.5)/SQRT(1/12))*SQRT((HN34*FN34/(1+HN34*FN34/GL34))*(1-FN34/(1+HN34*FN34/GL34))),0)+(HN34*FN34/(1+HN34*FN34/GL34)),HN34*$EC$20/(1+HN34*$EC$20/$EF$20)),0) ->  | HP34: =MAX(IF('Level 3'!$C$15 <> "None",IF($HI$8="Y",((RAND()-0.5)/SQRT(1/12))*SQRT((HO34*FP34/(1+HO34*FP34/GM34))*(1-FP34/(1+HO34*FP34/GM34))),0)+(HO34*FP34/(1+HO34*FP34/GM34)),HO34*$EC$21/(1+HO34*$EC$21/$EF$21)),0) ->  | HQ34: =EA34*IF('Level 3'!$C$15="None",(HE34*$EJ$3)/(1+($EJ$3*HE34)/$EJ$4),HLOOKUP(1,$HF$9:$HP$132,ROW()-8,FALSE)) -> 178676.505 | HR34: 200179.2669 | HS34: 0.008007909112 | HT34: 77.45950015 | HU34: =HT34*HS34 -> 0.6202886371 | HW34: ='L3 BaselineHatchery'!HS34/'L3 BaselineNatural'!HS34 ->  | HX34: ='L3 BaselineHatchery'!HT34/'L3 BaselineNatural'!HT34 ->  | HY34: ='L3 BaselineHatchery'!HU34/'L3 BaselineNatural'!HU34 ->  | HZ34: 1 | IA34: 2306.708727 | IB34: 178676.505 | IC34: 1674.808632 | IE34: ='L3 BaselineHatchery'!IA34/'L3 BaselineNatural'!IA34 ->  | IF34: ='L3 BaselineHatchery'!IB34/'L3 BaselineNatural'!IB34 ->  | IG34: ='L3 BaselineHatchery'!IC34/'L3 BaselineNatural'!IC34 -> 
A35: =(AE37+AF38+AG39+AH40+AI41) -> 2096.441349 | B35: =B36-1 -> 1 | C35: =IF('Level 3'!$C$15="Random",RAND(),IF('Level 3'!$C$15="None",0.5,RAND())) -> 0.5 | D35: 0 | E35: =IF('Level 3'!$AX$14="MR",$F$6,IF('Level 3'!$AX$14="FR", 'Level 3'!$C$5,IF('Level 3'!$AX$14="ME",IF(I35=0,0,MAX(0,('L3 BaselineNatural'!I35-'L3 BaselineNatural'!$F$5)/'L3 BaselineNatural'!I35)),IF(I35=0,0,MAX(0,('L3 BaselineNatural'!I35-'Level 3'!$C$7)/'L3 BaselineNatural'!I35))))) -> 0 | F35: 0 | G35: 2232.732298 | H35: 205374.2178 | I35: 2232.732298 | J35: 0 | K35: 2232.732298 | M35: 0.1604648509 | N35: 0.03043972248 | O35: =IF('Level 3'!$C$15= "None", N$3, IF('Level 3'!$C$15 = "Random",N35, DN58)) -> 0.05 | P35: 0.3956650658 | Q35: =IF('Level 3'!$C$15= "None",P$3,P35) -> 0.4 | R35: 0.5956650658 | S35: =IF('Level 3'!$C$15= "None",R$3,R35) -> 0.6 | T35: 0.6956650658 | U35: =IF('Level 3'!$C$15= "None",T$3,T35) -> 0.7 | V35: 0.7956650658 | W35: =IF('Level 3'!$C$15= "None",V$3,V35) -> 0.8 | X35: 0.8956650658 | Y35: =IF('Level 3'!$C$15= "None",X$3,X35) -> 0.9 | Z35: 205374.2178 | AA35: 0.01020790911 | AB35: 86.03653276 | AC35: 205374.2178 | AD35: 0 | AE35: 464.906198 | AF35: 595.5008158 | AG35: 896.7224883 | AH35: =$AC30*O30*(1-N$2)*Q31*(1-P$2)*S32*(1-R$2)*U33*(1-T$2)*W34*V$2 -> 270.4521242 | AI35: 5.150671542 | AJ35: =SUM(AD35:AI35) -> 2232.732298 | AK35: 0 | AL35: 0 | AM35: 1644.61807 | AN35: 0 | AO35: 0 | AP35: 0 | AQ35: 0 | AR35: 0 | AS35: 0 | AT35: 0 | AV35: 0 | AW35: 464.906198 | AX35: 595.5008158 | AY35: 896.7224883 | AZ35: 270.4521242 | BA35: 5.150671542 | BB35: 2232.732298 | BD35: 0 | BE35: 0 | BF35: 0 | BG35: 0 | BH35: 0 | BI35: 0 | BJ35: 0 | BL35: 0 | BM35: 464.906198 | BN35: 595.5008158 | BO35: 896.7224883 | BP35: 270.4521242 | BQ35: 5.150671542 | BR35: 2232.732298 | BT35: 0 | BU35: 0 | BV35: 0 | BW35: 0 | BX35: 0 | BY35: 0 | BZ35: 0 | CA35: 0 | CC35: 0 | CD35: 464.906198 | CE35: 595.5008158 | CF35: 896.7224883 | CG35: 270.4521242 | CH35: 5.150671542 | CI35: 2232.732298 | CJ35: =IF('Level 3'!$J$27=0,0,'L3 BaselineHatchery'!CU35*$CU$4) -> 0 | CK35: 0 | CL35: 0.2082229914 | CM35: 0.2667139345 | CN35: 0.4016256177 | CO35: 0.1211305648 | CP35: 0.002306891671 | CQ35: 1 | CS35: 1383.052152 | CT35: ='Level 3'!$J$29 -> 1 | CU35: =IF(CJ35>0,CJ35/(CJ35+CI35-MIN(CT35*'Level 3'!$J$28,CI35*0.3)),0) -> 0 | CV35: 1931 | CW35: 0.08 | CX35: 1.56 | CY35: 1.13 | CZ35: 1.28 | DA35: 1.66 | DB35: 0.39 | DC35: 1.49 | DD35: 0.02 | DE35: -0.01 | DF35: -0.17 | DG35: 0.34 | DH35: 1.09 | DI35: 1931 | DJ35: -0.805 | DR35: 0 | DV35: 1 | DW35: 1 | DX35: 0 | DY35: =DW34*(DY34+(((DY34*$EC$30+$EC$31)/$EC$32)-DY34)*$EC$33)+(1-DW34)*(DZ34+(((DZ34*$EC$30+$EC$31)/$EC$32)-DZ34)*$EC$33) -> 95.22727273 | DZ35: =DX34*(DZ34+(((DZ34*$EC$34+$EC$35)/$EC$36)-DZ34)*$EC$37)+(1-DX34)*(DY34+(((DY34*$EC$34+$EC$35)/$EC$36)-DY34)*$EC$37) -> 94.31818182 | EA35: 0.9016394416 | EB35: ac | EC35: 800 | ED35: =thetac*var | EU35: 0.9995977947 | EV35: 0.5 | EW35: 0.06563102886 | EX35: 684.332977 | EY35: 0.3537190722 | EZ35: 0.75 | FA35: 0.1921376975 | FB35: 0.5 | FC35: 0.7074536989 | FD35: 0.9 | FE35: 0.4059493495 | FF35: 1 | FG35: 0.8410758997 | FH35: 1 | FI35: 0.9143687211 | FJ35: 1 | FK35: 0.1519203757 | FL35: 1 | FM35: 0.5359673009 | FN35: 1 | FO35: 0.9479464547 | FP35: 1 | FQ35: 0.5 | FR35: 342.1664885 | FS35: 256.6248664 | FT35: 128.3124332 | FU35: 115.4811899 | FV35: 115.4811899 | FW35: 115.4811899 | FX35: 115.4811899 | FY35: 115.4811899 | FZ35: 115.4811899 | GA35: 115.4811899 | GB35: 115.4811899 | GC35: 5000 | GD35: 1000000000 | GE35: 1000000000 | GF35: 3000000 | GG35: 1e+11 | GH35: 0 | GI35: 0 | GJ35: 0 | GK35: 0 | GL35: 0 | GM35: 0 | GN35: 0.6670532333 | GO35: 5000 | GP35: 3409997.018 | GQ35: 2550973.654 | GR35: 894976.5573 | GS35: 805472.4136 | GZ35: 805472.4136 | HA35: =MIN(CT35*'Level 3'!$J$28,CI35*$HA$1) -> 0 | HB35: =CI35+CJ35-MIN('Level 3'!$J$29*'Level 3'!$J$28,CI35*$HA$1) -> 2232.732298 | HD35: =HB35 -> 2232.732298 | HE35: =HD35 -> 2232.732298 | HF35: =IF('Level 3'!$C$15 <> "None",HE35*$EV35/(1+HE35*$EV35/$GC35),HE35*$EC$11/(1+HE35*$EC$11/$EF$11)) -> 912.6057219 | HG35: =IF('Level 3'!$C$15 <> "None",HF35*$EX35/(1+HF35*$EX35/$GD35),HF35*$EC$12/(1+HF35*$EC$12/$EF$12)) -> 624136.401 | HH35: =MAX(IF('Level 3'!$C$15 <> "None",IF($HI$8="Y",((RAND()-0.5)/SQRT(1/12))*SQRT((HG35*EZ35/(1+HG35*EZ35/GE35))*(1-EZ35/(1+HG35*EZ35/GE35))),0)+(HG35*EZ35/(1+HG35*EZ35/GE35)),HG35*$EC$13/(1+HG35*$EC$13/$EF$13)),0) -> 467883.2835 | HI35: =MAX(IF('Level 3'!$C$15 <> "None",IF($HI$8="Y",((RAND()-0.5)/SQRT(1/12))*SQRT((HH35*FB35/(1+HH35*FB35/GF35))*(1-FB35/(1+HH35*FB35/GF35))),0)+(HH35*FB35/(1+HH35*FB35/GF35)),HH35*$EC$14/(1+HH35*$EC$14/$EF$14)),0) -> 217018.4261 | HJ35: =MAX(IF('Level 3'!$C$15 <> "None",IF($HI$8="Y",((RAND()-0.5)/SQRT(1/12))*SQRT((HI35*FD35/(1+HI35*FD35/GG35))*(1-FD35/(1+HI35*FD35/GG35))),0)+(HI35*FD35/(1+HI35*FD35/GG35)),HI35*$EC$15/(1+HI35*$EC$15/$EF$15)),0) -> 195316.202 | HK35: =MAX(IF('Level 3'!$C$15 <> "None",IF($HI$8="Y",((RAND()-0.5)/SQRT(1/12))*SQRT((HJ35*FF35/(1+HJ35*FF35/GH35))*(1-FF35/(1+HJ35*FF35/GH35))),0)+(HJ35*FF35/(1+HJ35*FF35/GH35)),HJ35*$EC$16/(1+HJ35*$EC$16/$EF$16)),0) ->  | HL35: =MAX(IF('Level 3'!$C$15 <> "None",IF($HI$8="Y",((RAND()-0.5)/SQRT(1/12))*SQRT((HK35*FH35/(1+HK35*FH35/GI35))*(1-FH35/(1+HK35*FH35/GI35))),0)+(HK35*FH35/(1+HK35*FH35/GI35)),HK35*$EC$17/(1+HK35*$EC$17/$EF$17)),0) ->  | HM35: =MAX(IF('Level 3'!$C$15 <> "None",IF($HI$8="Y",((RAND()-0.5)/SQRT(1/12))*SQRT((HL35*FJ35/(1+HL35*FJ35/GJ35))*(1-FJ35/(1+HL35*FJ35/GJ35))),0)+(HL35*FJ35/(1+HL35*FJ35/GJ35)),HL35*$EC$18/(1+HL35*$EC$18/$EF$18)),0) ->  | HN35: =MAX(IF('Level 3'!$C$15 <> "None",IF($HI$8="Y",((RAND()-0.5)/SQRT(1/12))*SQRT((HM35*FL35/(1+HM35*FL35/GK35))*(1-FL35/(1+HM35*FL35/GK35))),0)+(HM35*FL35/(1+HM35*FL35/GK35)),HM35*$EC$19/(1+HM35*$EC$19/$EF$19)),0) ->  | HO35: =MAX(IF('Level 3'!$C$15 <> "None",IF($HI$8="Y",((RAND()-0.5)/SQRT(1/12))*SQRT((HN35*FN35/(1+HN35*FN35/GL35))*(1-FN35/(1+HN35*FN35/GL35))),0)+(HN35*FN35/(1+HN35*FN35/GL35)),HN35*$EC$20/(1+HN35*$EC$20/$EF$20)),0) ->  | HP35: =MAX(IF('Level 3'!$C$15 <> "None",IF($HI$8="Y",((RAND()-0.5)/SQRT(1/12))*SQRT((HO35*FP35/(1+HO35*FP35/GM35))*(1-FP35/(1+HO35*FP35/GM35))),0)+(HO35*FP35/(1+HO35*FP35/GM35)),HO35*$EC$21/(1+HO35*$EC$21/$EF$21)),0) ->  | HQ35: =EA35*IF('Level 3'!$C$15="None",(HE35*$EJ$3)/(1+($EJ$3*HE35)/$EJ$4),HLOOKUP(1,$HF$9:$HP$132,ROW()-8,FALSE)) -> 176104.7913 | HR35: 195316.202 | HS35: 0.008007909112 | HT35: 78.87411827 | HU35: 0.6316167704 | HW35: ='L3 BaselineHatchery'!HS35/'L3 BaselineNatural'!HS35 ->  | HX35: ='L3 BaselineHatchery'!HT35/'L3 BaselineNatural'!HT35 ->  | HY35: ='L3 BaselineHatchery'!HU35/'L3 BaselineNatural'!HU35 ->  | HZ35: 1 | IA35: 2232.732298 | IB35: 176104.7913 | IC35: 1644.61807 | IE35: ='L3 BaselineHatchery'!IA35/'L3 BaselineNatural'!IA35 ->  | IF35: ='L3 BaselineHatchery'!IB35/'L3 BaselineNatural'!IB35 ->  | IG35: ='L3 BaselineHatchery'!IC35/'L3 BaselineNatural'!IC35 -> 
A36: 1823.913523 | B36: 2 | C36: =IF('Level 3'!$C$15="Random",RAND(),IF('Level 3'!$C$15="None",0.5,RAND())) -> 0.5 | D36: 0 | E36: =IF('Level 3'!$AX$14="MR",$F$6,IF('Level 3'!$AX$14="FR", 'Level 3'!$C$5,IF('Level 3'!$AX$14="ME",IF(I36=0,0,MAX(0,('L3 BaselineNatural'!I36-'L3 BaselineNatural'!$F$5)/'L3 BaselineNatural'!I36)),IF(I36=0,0,MAX(0,('L3 BaselineNatural'!I36-'Level 3'!$C$7)/'L3 BaselineNatural'!I36))))) -> 0 | F36: 0 | G36: 2177.993301 | H36: 178676.505 | I36: 2177.993301 | J36: 0 | K36: 2177.993301 | M36: 0.9744756383 | N36: 0.132629296 | O36: =IF('Level 3'!$C$15= "None", N$3, IF('Level 3'!$C$15 = "Random",N36, DN59)) -> 0.05 | P36: 0.4077406035 | Q36: =IF('Level 3'!$C$15= "None",P$3,P36) -> 0.4 | R36: 0.6077406035 | S36: =IF('Level 3'!$C$15= "None",R$3,R36) -> 0.6 | T36: 0.7077406035 | U36: =IF('Level 3'!$C$15= "None",T$3,T36) -> 0.7 | V36: 0.8077406035 | W36: =IF('Level 3'!$C$15= "None",V$3,V36) -> 0.8 | X36: 0.9077406035 | Y36: =IF('Level 3'!$C$15= "None",X$3,X36) -> 0.9 | Z36: 178676.505 | AA36: 0.01020790911 | AB36: 77.45950015 | AC36: 178676.505 | AD36: 0 | AE36: 460.1174837 | AF36: 586.7961503 | AG36: 866.0872249 | AH36: 260.0249539 | AI36: 4.967487996 | AJ36: 2177.993301 | AK36: 0 | AL36: 0 | AM36: 1430.825212 | AN36: 0 | AO36: 0 | AP36: 0 | AQ36: 0 | AR36: 0 | AS36: 0 | AT36: 0 | AV36: 0 | AW36: 460.1174837 | AX36: 586.7961503 | AY36: 866.0872249 | AZ36: 260.0249539 | BA36: 4.967487996 | BB36: 2177.993301 | BD36: 0 | BE36: 0 | BF36: 0 | BG36: 0 | BH36: 0 | BI36: 0 | BJ36: 0 | BL36: 0 | BM36: 460.1174837 | BN36: 586.7961503 | BO36: 866.0872249 | BP36: 260.0249539 | BQ36: 4.967487996 | BR36: 2177.993301 | BT36: 0 | BU36: 0 | BV36: 0 | BW36: 0 | BX36: 0 | BY36: 0 | BZ36: 0 | CA36: 0 | CC36: 0 | CD36: 460.1174837 | CE36: 586.7961503 | CF36: 866.0872249 | CG36: 260.0249539 | CH36: 4.967487996 | CI36: 2177.993301 | CJ36: =IF('Level 3'!$J$27=0,0,'L3 BaselineHatchery'!CU36*$CU$4) -> 0 | CK36: 0 | CL36: 0.2112575294 | CM36: 0.2694205488 | CN36: 0.3976537598 | CO36: 0.1193873984 | CP36: 0.002280763671 | CQ36: 1 | CS36: 1377.362649 | CT36: ='Level 3'!$J$29 -> 1 | CU36: =IF(CJ36>0,CJ36/(CJ36+CI36-MIN(CT36*'Level 3'!$J$28,CI36*0.3)),0) -> 0 | CV36: 1932 | CW36: -0.26 | CX36: -0.58 | CY36: 0.51 | CZ36: 1.15 | DA36: 0.64 | DB36: 0.1 | DC36: -0.12 | DD36: -0.14 | DE36: -0.4 | DF36: -0.29 | DG36: -0.88 | DH36: 0.02 | DI36: 1932 | DJ36: -0.205 | DR36: 0 | DV36: 2 | DW36: 1 | DX36: 0 | DY36: 95.44421488 | DZ36: =DX35*(DZ35+(((DZ35*$EC$34+$EC$35)/$EC$36)-DZ35)*$EC$37)+(1-DX35)*(DY35+(((DY35*$EC$34+$EC$35)/$EC$36)-DY35)*$EC$37) -> 94.53512397 | EA36: 0.9099717548 | EB36: bc | EC36: 110 | EU36: 0.7379269572 | EV36: 0.5 | EW36: 0.03577568365 | EX36: 684.332977 | EY36: 0.9746656911 | EZ36: 0.75 | FA36: 0.03002362553 | FB36: 0.5 | FC36: 0.5155915356 | FD36: 0.9 | FE36: 0.8593375304 | FF36: 1 | FG36: 0.923277867 | FH36: 1 | FI36: 0.3700755581 | FJ36: 1 | FK36: 0.3668932835 | FL36: 1 | FM36: 0.005072501353 | FN36: 1 | FO36: 0.7731623438 | FP36: 1 | FQ36: 0.5 | FR36: 342.1664885 | FS36: 256.6248664 | FT36: 128.3124332 | FU36: 115.4811899 | FV36: 115.4811899 | FW36: 115.4811899 | FX36: 115.4811899 | FY36: 115.4811899 | FZ36: 115.4811899 | GA36: 115.4811899 | GB36: 115.4811899 | GC36: 5000 | GD36: 1000000000 | GE36: 1000000000 | GF36: 3000000 | GG36: 1e+11 | GH36: 0 | GI36: 0 | GJ36: 0 | GK36: 0 | GL36: 0 | GM36: 0 | GN36: 0.09963429794 | GO36: 5000 | GP36: 3409997.018 | GQ36: 2550973.654 | GR36: 894976.5572 | GS36: 805472.4136 | GZ36: 805472.4136 | HA36: =MIN(CT36*'Level 3'!$J$28,CI36*$HA$1) -> 0 | HB36: =CI36+CJ36-MIN('Level 3'!$J$29*'Level 3'!$J$28,CI36*$HA$1) -> 2177.993301 | HC36: =AVERAGE(HB33:HB36) -> 2276.123151 | HD36: =IF(HC36<2,0,HB36) -> 2177.993301 | HE36: =IF(HE35=0,0,HD36) -> 2177.993301 | HF36: =IF('Level 3'!$C$15 <> "None",HE36*$EV36/(1+HE36*$EV36/$GC36),HE36*$EC$11/(1+HE36*$EC$11/$EF$11)) -> 894.233248 | HG36: =IF('Level 3'!$C$15 <> "None",HF36*$EX36/(1+HF36*$EX36/$GD36),HF36*$EC$12/(1+HF36*$EC$12/$EF$12)) -> 611579.043 | HH36: =MAX(IF('Level 3'!$C$15 <> "None",IF($HI$8="Y",((RAND()-0.5)/SQRT(1/12))*SQRT((HG36*EZ36/(1+HG36*EZ36/GE36))*(1-EZ36/(1+HG36*EZ36/GE36))),0)+(HG36*EZ36/(1+HG36*EZ36/GE36)),HG36*$EC$13/(1+HG36*$EC$13/$EF$13)),0) -> 458473.9874 | HI36: =MAX(IF('Level 3'!$C$15 <> "None",IF($HI$8="Y",((RAND()-0.5)/SQRT(1/12))*SQRT((HH36*FB36/(1+HH36*FB36/GF36))*(1-FB36/(1+HH36*FB36/GF36))),0)+(HH36*FB36/(1+HH36*FB36/GF36)),HH36*$EC$14/(1+HH36*$EC$14/$EF$14)),0) -> 212963.9238 | HJ36: =MAX(IF('Level 3'!$C$15 <> "None",IF($HI$8="Y",((RAND()-0.5)/SQRT(1/12))*SQRT((HI36*FD36/(1+HI36*FD36/GG36))*(1-FD36/(1+HI36*FD36/GG36))),0)+(HI36*FD36/(1+HI36*FD36/GG36)),HI36*$EC$15/(1+HI36*$EC$15/$EF$15)),0) -> 191667.1641 | HK36: =MAX(IF('Level 3'!$C$15 <> "None",IF($HI$8="Y",((RAND()-0.5)/SQRT(1/12))*SQRT((HJ36*FF36/(1+HJ36*FF36/GH36))*(1-FF36/(1+HJ36*FF36/GH36))),0)+(HJ36*FF36/(1+HJ36*FF36/GH36)),HJ36*$EC$16/(1+HJ36*$EC$16/$EF$16)),0) ->  | HL36: =MAX(IF('Level 3'!$C$15 <> "None",IF($HI$8="Y",((RAND()-0.5)/SQRT(1/12))*SQRT((HK36*FH36/(1+HK36*FH36/GI36))*(1-FH36/(1+HK36*FH36/GI36))),0)+(HK36*FH36/(1+HK36*FH36/GI36)),HK36*$EC$17/(1+HK36*$EC$17/$EF$17)),0) ->  | HM36: =MAX(IF('Level 3'!$C$15 <> "None",IF($HI$8="Y",((RAND()-0.5)/SQRT(1/12))*SQRT((HL36*FJ36/(1+HL36*FJ36/GJ36))*(1-FJ36/(1+HL36*FJ36/GJ36))),0)+(HL36*FJ36/(1+HL36*FJ36/GJ36)),HL36*$EC$18/(1+HL36*$EC$18/$EF$18)),0) ->  | HN36: =MAX(IF('Level 3'!$C$15 <> "None",IF($HI$8="Y",((RAND()-0.5)/SQRT(1/12))*SQRT((HM36*FL36/(1+HM36*FL36/GK36))*(1-FL36/(1+HM36*FL36/GK36))),0)+(HM36*FL36/(1+HM36*FL36/GK36)),HM36*$EC$19/(1+HM36*$EC$19/$EF$19)),0) ->  | HO36: =MAX(IF('Level 3'!$C$15 <> "None",IF($HI$8="Y",((RAND()-0.5)/SQRT(1/12))*SQRT((HN36*FN36/(1+HN36*FN36/GL36))*(1-FN36/(1+HN36*FN36/GL36))),0)+(HN36*FN36/(1+HN36*FN36/GL36)),HN36*$EC$20/(1+HN36*$EC$20/$EF$20)),0) ->  | HP36: =MAX(IF('Level 3'!$C$15 <> "None",IF($HI$8="Y",((RAND()-0.5)/SQRT(1/12))*SQRT((HO36*FP36/(1+HO36*FP36/GM36))*(1-FP36/(1+HO36*FP36/GM36))),0)+(HO36*FP36/(1+HO36*FP36/GM36)),HO36*$EC$21/(1+HO36*$EC$21/$EF$21)),0) ->  | HQ36: =EA36*IF('Level 3'!$C$15="None",(HE36*$EJ$3)/(1+($EJ$3*HE36)/$EJ$4),HLOOKUP(1,$HF$9:$HP$132,ROW()-8,FALSE)) -> 174411.7056 | HR36: 191667.1641 | HS36: 0.008007909112 | HT36: 80.07908269 | HU36: 0.641266016 | HW36: ='L3 BaselineHatchery'!HS36/'L3 BaselineNatural'!HS36 ->  | HX36: ='L3 BaselineHatchery'!HT36/'L3 BaselineNatural'!HT36 ->  | HY36: ='L3 BaselineHatchery'!HU36/'L3 BaselineNatural'!HU36 ->  | HZ36: 1 | IA36: 2177.993301 | IB36: 174411.7056 | IC36: 1430.825212 | IE36: ='L3 BaselineHatchery'!IA36/'L3 BaselineNatural'!IA36 ->  | IF36: ='L3 BaselineHatchery'!IB36/'L3 BaselineNatural'!IB36 ->  | IG36: ='L3 BaselineHatchery'!IC36/'L3 BaselineNatural'!IC36 -> 
A37: 1797.661704 | B37: 3 | C37: =IF('Level 3'!$C$15="Random",RAND(),IF('Level 3'!$C$15="None",0.5,RAND())) -> 0.5 | D37: 0 | E37: =IF('Level 3'!$AX$14="MR",$F$6,IF('Level 3'!$AX$14="FR", 'Level 3'!$C$5,IF('Level 3'!$AX$14="ME",IF(I37=0,0,MAX(0,('L3 BaselineNatural'!I37-'L3 BaselineNatural'!$F$5)/'L3 BaselineNatural'!I37)),IF(I37=0,0,MAX(0,('L3 BaselineNatural'!I37-'Level 3'!$C$7)/'L3 BaselineNatural'!I37))))) -> 0 | F37: 0 | G37: 2141.92003 | H37: 176104.7913 | I37: 2141.92003 | J37: 0 | K37: 2141.92003 | M37: 0.3623448479 | N37: 0.04192674595 | O37: =IF('Level 3'!$C$15= "None", N$3, IF('Level 3'!$C$15 = "Random",N37, DN60)) -> 0.05 | P37: 0.3985128708 | Q37: =IF('Level 3'!$C$15= "None",P$3,P37) -> 0.4 | R37: 0.5985128708 | S37: =IF('Level 3'!$C$15= "None",R$3,R37) -> 0.6 | T37: 0.6985128708 | U37: =IF('Level 3'!$C$15= "None",T$3,T37) -> 0.7 | V37: 0.7985128708 | W37: =IF('Level 3'!$C$15= "None",V$3,V37) -> 0.8 | X37: 0.8985128708 | Y37: =IF('Level 3'!$C$15= "None",X$3,X37) -> 0.9 | Z37: 176104.7913 | AA37: 0.01020790911 | AB37: 78.87411827 | AC37: 176104.7913 | AD37: 0 | AE37: 451.8232791 | AF37: 580.7519221 | AG37: 853.4272934 | AH37: 251.1415668 | AI37: 4.77596854 | AJ37: 2141.92003 | AK37: 0 | AL37: 0 | AM37: 1410.231163 | AN37: 0 | AO37: 0 | AP37: 0 | AQ37: 0 | AR37: 0 | AS37: 0 | AT37: 0 | AV37: 0 | AW37: 451.8232791 | AX37: 580.7519221 | AY37: 853.4272934 | AZ37: 251.1415668 | BA37: 4.77596854 | BB37: 2141.92003 | BD37: 0 | BE37: 0 | BF37: 0 | BG37: 0 | BH37: 0 | BI37: 0 | BJ37: 0 | BL37: 0 | BM37: 451.8232791 | BN37: 580.7519221 | BO37: 853.4272934 | BP37: 251.1415668 | BQ37: 4.77596854 | BR37: 2141.92003 | BT37: 0 | BU37: 0 | BV37: 0 | BW37: 0 | BX37: 0 | BY37: 0 | BZ37: 0 | CA37: 0 | CC37: 0 | CD37: 451.8232791 | CE37: 580.7519221 | CF37: 853.4272934 | CG37: 251.1415668 | CH37: 4.77596854 | CI37: 2141.92003 | CJ37: =IF('Level 3'!$J$27=0,0,'L3 BaselineHatchery'!CU37*$CU$4) -> 0 | CK37: 0 | CL37: 0.2109431131 | CM37: 0.2711361367 | CN37: 0.3984403159 | CO37: 0.1172506738 | CP37: 0.002229760436 | CQ37: 1 | CS37: 1377.240838 | CT37: ='Level 3'!$J$29 -> 1 | CU37: =IF(CJ37>0,CJ37/(CJ37+CI37-MIN(CT37*'Level 3'!$J$28,CI37*0.3)),0) -> 0 | CV37: 1933 | CW37: 0.29 | CX37: 0.02 | CY37: 0.15 | CZ37: -0.05 | DA37: -0.5 | DB37: -0.68 | DC37: -1.81 | DD37: -1.56 | DE37: -2.28 | DF37: -1.19 | DG37: 0.55 | DH37: -1.1 | DI37: 1933 | DJ37: 1.146666667 | DR37: 0 | DV37: 3 | DW37: 1 | DX37: 0 | DY37: 95.65129602 | DZ37: =DX36*(DZ36+(((DZ36*$EC$34+$EC$35)/$EC$36)-DZ36)*$EC$37)+(1-DX36)*(DY36+(((DY36*$EC$34+$EC$35)/$EC$36)-DY36)*$EC$37) -> 94.74220511 | EA37: 0.9176308259 | EB37: heritc | EC37: 0.5 | EU37: 0.7892774365 | EV37: 0.5 | EW37: 0.1038897597 | EX37: 684.332977 | EY37: 0.9872642311 | EZ37: 0.75 | FA37: 0.8346809766 | FB37: 0.5 | FC37: 0.8838628907 | FD37: 0.9 | FE37: 0.8435341707 | FF37: 1 | FG37: 0.585244839 | FH37: 1 | FI37: 0.2201881478 | FJ37: 1 | FK37: 0.7966119753 | FL37: 1 | FM37: 0.6899634555 | FN37: 1 | FO37: 0.2694010863 | FP37: 1 | FQ37: 0.5 | FR37: 342.1664885 | FS37: 256.6248664 | FT37: 128.3124332 | FU37: 115.4811899 | FV37: 115.4811899 | FW37: 115.4811899 | FX37: 115.4811899 | FY37: 115.4811899 | FZ37: 115.4811899 | GA37: 115.4811899 | GB37: 115.4811899 | GC37: 5000 | GD37: 1000000000 | GE37: 1000000000 | GF37: 3000000 | GG37: 1e+11 | GH37: 0 | GI37: 0 | GJ37: 0 | GK37: 0 | GL37: 0 | GM37: 0 | GN37: 0.4507588635 | GO37: 5000 | GP37: 3409997.018 | GQ37: 2550973.654 | GR37: 894976.5572 | GS37: 805472.4136 | GZ37: 805472.4136 | HA37: =MIN(CT37*'Level 3'!$J$28,CI37*$HA$1) -> 0 | HB37: =CI37+CJ37-MIN('Level 3'!$J$29*'Level 3'!$J$28,CI37*$HA$1) -> 2141.92003 | HC37: 2214.838589 | HD37: 2141.92003 | HE37: 2141.92003 | HF37: =IF('Level 3'!$C$15 <> "None",HE37*$EV37/(1+HE37*$EV37/$GC37),HE37*$EC$11/(1+HE37*$EC$11/$EF$11)) -> 882.0351414 | HG37: =IF('Level 3'!$C$15 <> "None",HF37*$EX37/(1+HF37*$EX37/$GD37),HF37*$EC$12/(1+HF37*$EC$12/$EF$12)) -> 603241.6141 | HH37: =MAX(IF('Level 3'!$C$15 <> "None",IF($HI$8="Y",((RAND()-0.5)/SQRT(1/12))*SQRT((HG37*EZ37/(1+HG37*EZ37/GE37))*(1-EZ37/(1+HG37*EZ37/GE37))),0)+(HG37*EZ37/(1+HG37*EZ37/GE37)),HG37*$EC$13/(1+HG37*$EC$13/$EF$13)),0) -> 452226.6091 | HI37: =MAX(IF('Level 3'!$C$15 <> "None",IF($HI$8="Y",((RAND()-0.5)/SQRT(1/12))*SQRT((HH37*FB37/(1+HH37*FB37/GF37))*(1-FB37/(1+HH37*FB37/GF37))),0)+(HH37*FB37/(1+HH37*FB37/GF37)),HH37*$EC$14/(1+HH37*$EC$14/$EF$14)),0) -> 210265.3719 | HJ37: =MAX(IF('Level 3'!$C$15 <> "None",IF($HI$8="Y",((RAND()-0.5)/SQRT(1/12))*SQRT((HI37*FD37/(1+HI37*FD37/GG37))*(1-FD37/(1+HI37*FD37/GG37))),0)+(HI37*FD37/(1+HI37*FD37/GG37)),HI37*$EC$15/(1+HI37*$EC$15/$EF$15)),0) -> 189238.4766 | HK37: =MAX(IF('Level 3'!$C$15 <> "None",IF($HI$8="Y",((RAND()-0.5)/SQRT(1/12))*SQRT((HJ37*FF37/(1+HJ37*FF37/GH37))*(1-FF37/(1+HJ37*FF37/GH37))),0)+(HJ37*FF37/(1+HJ37*FF37/GH37)),HJ37*$EC$16/(1+HJ37*$EC$16/$EF$16)),0) ->  | HL37: =MAX(IF('Level 3'!$C$15 <> "None",IF($HI$8="Y",((RAND()-0.5)/SQRT(1/12))*SQRT((HK37*FH37/(1+HK37*FH37/GI37))*(1-FH37/(1+HK37*FH37/GI37))),0)+(HK37*FH37/(1+HK37*FH37/GI37)),HK37*$EC$17/(1+HK37*$EC$17/$EF$17)),0) ->  | HM37: =MAX(IF('Level 3'!$C$15 <> "None",IF($HI$8="Y",((RAND()-0.5)/SQRT(1/12))*SQRT((HL37*FJ37/(1+HL37*FJ37/GJ37))*(1-FJ37/(1+HL37*FJ37/GJ37))),0)+(HL37*FJ37/(1+HL37*FJ37/GJ37)),HL37*$EC$18/(1+HL37*$EC$18/$EF$18)),0) ->  | HN37: =MAX(IF('Level 3'!$C$15 <> "None",IF($HI$8="Y",((RAND()-0.5)/SQRT(1/12))*SQRT((HM37*FL37/(1+HM37*FL37/GK37))*(1-FL37/(1+HM37*FL37/GK37))),0)+(HM37*FL37/(1+HM37*FL37/GK37)),HM37*$EC$19/(1+HM37*$EC$19/$EF$19)),0) ->  | HO37: =MAX(IF('Level 3'!$C$15 <> "None",IF($HI$8="Y",((RAND()-0.5)/SQRT(1/12))*SQRT((HN37*FN37/(1+HN37*FN37/GL37))*(1-FN37/(1+HN37*FN37/GL37))),0)+(HN37*FN37/(1+HN37*FN37/GL37)),HN37*$EC$20/(1+HN37*$EC$20/$EF$20)),0) ->  | HP37: =MAX(IF('Level 3'!$C$15 <> "None",IF($HI$8="Y",((RAND()-0.5)/SQRT(1/12))*SQRT((HO37*FP37/(1+HO37*FP37/GM37))*(1-FP37/(1+HO37*FP37/GM37))),0)+(HO37*FP37/(1+HO37*FP37/GM37)),HO37*$EC$21/(1+HO37*$EC$21/$EF$21)),0) ->  | HQ37: =EA37*IF('Level 3'!$C$15="None",(HE37*$EJ$3)/(1+($EJ$3*HE37)/$EJ$4),HLOOKUP(1,$HF$9:$HP$132,ROW()-8,FALSE)) -> 173651.0595 | HR37: 189238.4765 | HS37: 0.008007909112 | HT37: 81.07261574 | HU37: 0.6492221384 | HW37: ='L3 BaselineHatchery'!HS37/'L3 BaselineNatural'!HS37 ->  | HX37: ='L3 BaselineHatchery'!HT37/'L3 BaselineNatural'!HT37 ->  | HY37: ='L3 BaselineHatchery'!HU37/'L3 BaselineNatural'!HU37 ->  | HZ37: 1 | IA37: 2141.92003 | IB37: 173651.0595 | IC37: 1410.231163 | IE37: ='L3 BaselineHatchery'!IA37/'L3 BaselineNatural'!IA37 ->  | IF37: ='L3 BaselineHatchery'!IB37/'L3 BaselineNatural'!IB37 ->  | IG37: ='L3 BaselineHatchery'!IC37/'L3 BaselineNatural'!IC37 -> 
A38: 1780.378839 | B38: 4 | C38: =IF('Level 3'!$C$15="Random",RAND(),IF('Level 3'!$C$15="None",0.5,RAND())) -> 0.5 | D38: 0 | E38: =IF('Level 3'!$AX$14="MR",$F$6,IF('Level 3'!$AX$14="FR", 'Level 3'!$C$5,IF('Level 3'!$AX$14="ME",IF(I38=0,0,MAX(0,('L3 BaselineNatural'!I38-'L3 BaselineNatural'!$F$5)/'L3 BaselineNatural'!I38)),IF(I38=0,0,MAX(0,('L3 BaselineNatural'!I38-'Level 3'!$C$7)/'L3 BaselineNatural'!I38))))) -> 0 | F38: 0 | G38: 2060.091438 | H38: 174411.7056 | I38: 2060.091438 | J38: 0 | K38: 2060.091438 | L38: =AVERAGE(K35:K38) -> 2153.184267 | M38: 0.7181203812 | N38: 0.06673011868 | O38: =IF('Level 3'!$C$15= "None", N$3, IF('Level 3'!$C$15 = "Random",N38, DN61)) -> 0.05 | P38: 0.4024916098 | Q38: =IF('Level 3'!$C$15= "None",P$3,P38) -> 0.4 | R38: 0.6024916098 | S38: =IF('Level 3'!$C$15= "None",R$3,R38) -> 0.6 | T38: 0.7024916098 | U38: =IF('Level 3'!$C$15= "None",T$3,T38) -> 0.7 | V38: 0.8024916098 | W38: =IF('Level 3'!$C$15= "None",V$3,V38) -> 0.8 | X38: 0.9024916098 | Y38: =IF('Level 3'!$C$15= "None",X$3,X38) -> 0.9 | Z38: 174411.7056 | AA38: 0.01020790911 | AB38: 80.07908269 | AC38: 174411.7056 | AD38: 0 | AE38: 393.088311 | AF38: 570.283128 | AG38: 844.6366609 | AH38: 247.4705335 | AI38: 4.612804288 | AJ38: 2060.091438 | AK38: 0 | AL38: 0 | AM38: 1396.673087 | AN38: 0 | AO38: 0 | AP38: 0 | AQ38: 0 | AR38: 0 | AS38: 0 | AT38: 0 | AV38: 0 | AW38: 393.088311 | AX38: 570.283128 | AY38: 844.6366609 | AZ38: 247.4705335 | BA38: 4.612804288 | BB38: 2060.091438 | BD38: 0 | BE38: 0 | BF38: 0 | BG38: 0 | BH38: 0 | BI38: 0 | BJ38: 0 | BL38: 0 | BM38: 393.088311 | BN38: 570.283128 | BO38: 844.6366609 | BP38: 247.4705335 | BQ38: 4.612804288 | BR38: 2060.091438 | BT38: 0 | BU38: 0 | BV38: 0 | BW38: 0 | BX38: 0 | BY38: 0 | BZ38: 0 | CA38: 0 | CC38: 0 | CD38: 393.088311 | CE38: 570.283128 | CF38: 844.6366609 | CG38: 247.4705335 | CH38: 4.612804288 | CI38: 2060.091438 | CJ38: =IF('Level 3'!$J$27=0,0,'L3 BaselineHatchery'!CU38*$CU$4) -> 0 | CK38: 0 | CL38: 0.1908110989 | CM38: 0.2768241824 | CN38: 0.4099995978 | CO38: 0.1201259949 | CP38: 0.002239125994 | CQ38: 1 | CS38: 1412.330668 | CT38: ='Level 3'!$J$29 -> 1 | CU38: =IF(CJ38>0,CJ38/(CJ38+CI38-MIN(CT38*'Level 3'!$J$28,CI38*0.3)),0) -> 0 | CV38: 1934 | CW38: 0.17 | CX38: 0.68 | CY38: 1.34 | CZ38: 1.63 | DA38: 1.23 | DB38: 0.51 | DC38: 0.44 | DD38: 1.54 | DE38: 1.25 | DF38: 2.1 | DG38: 1.63 | DH38: 1.67 | DI38: 1934 | DJ38: -1.1 | DR38: 0 | DV38: 4 | DW38: 1 | DX38: 0 | DY38: 95.84896438 | DZ38: 94.93987347 | EA38: 0.924665557 | EB38: Thetaw | EC38: 100 | EU38: 0.3987343654 | EV38: 0.5 | EW38: 0.6537339073 | EX38: 684.332977 | EY38: 0.2543841381 | EZ38: 0.75 | FA38: 0.3230306452 | FB38: 0.5 | FC38: 0.150516567 | FD38: 0.9 | FE38: 0.5805186599 | FF38: 1 | FG38: 0.6636146331 | FH38: 1 | FI38: 0.9319120262 | FJ38: 1 | FK38: 0.7639561334 | FL38: 1 | FM38: 0.7744258857 | FN38: 1 | FO38: 0.515621641 | FP38: 1 | FQ38: 0.5 | FR38: 342.1664885 | FS38: 256.6248664 | FT38: 128.3124332 | FU38: 115.4811899 | FV38: 115.4811899 | FW38: 115.4811899 | FX38: 115.4811899 | FY38: 115.4811899 | FZ38: 115.4811899 | GA38: 115.4811899 | GB38: 115.4811899 | GC38: 5000 | GD38: 1000000000 | GE38: 1000000000 | GF38: 3000000 | GG38: 1e+11 | GH38: 0 | GI38: 0 | GJ38: 0 | GK38: 0 | GL38: 0 | GM38: 0 | GN38: 0.7608617703 | GO38: 5000 | GP38: 3409997.018 | GQ38: 2550973.654 | GR38: 894976.5572 | GS38: 805472.4136 | GZ38: 805472.4136 | HA38: =MIN(CT38*'Level 3'!$J$28,CI38*$HA$1) -> 0 | HB38: =CI38+CJ38-MIN('Level 3'!$J$29*'Level 3'!$J$28,CI38*$HA$1) -> 2060.091438 | HC38: 2153.184267 | HD38: 2060.091438 | HE38: 2060.091438 | HF38: =IF('Level 3'!$C$15 <> "None",HE38*$EV38/(1+HE38*$EV38/$GC38),HE38*$EC$11/(1+HE38*$EC$11/$EF$11)) -> 854.094452 | HG38: =IF('Level 3'!$C$15 <> "None",HF38*$EX38/(1+HF38*$EX38/$GD38),HF38*$EC$12/(1+HF38*$EC$12/$EF$12)) -> 584143.5759 | HH38: =MAX(IF('Level 3'!$C$15 <> "None",IF($HI$8="Y",((RAND()-0.5)/SQRT(1/12))*SQRT((HG38*EZ38/(1+HG38*EZ38/GE38))*(1-EZ38/(1+HG38*EZ38/GE38))),0)+(HG38*EZ38/(1+HG38*EZ38/GE38)),HG38*$EC$13/(1+HG38*$EC$13/$EF$13)),0) -> 437915.8276 | HI38: =MAX(IF('Level 3'!$C$15 <> "None",IF($HI$8="Y",((RAND()-0.5)/SQRT(1/12))*SQRT((HH38*FB38/(1+HH38*FB38/GF38))*(1-FB38/(1+HH38*FB38/GF38))),0)+(HH38*FB38/(1+HH38*FB38/GF38)),HH38*$EC$14/(1+HH38*$EC$14/$EF$14)),0) -> 204064.0975 | HJ38: =MAX(IF('Level 3'!$C$15 <> "None",IF($HI$8="Y",((RAND()-0.5)/SQRT(1/12))*SQRT((HI38*FD38/(1+HI38*FD38/GG38))*(1-FD38/(1+HI38*FD38/GG38))),0)+(HI38*FD38/(1+HI38*FD38/GG38)),HI38*$EC$15/(1+HI38*$EC$15/$EF$15)),0) -> 183657.3504 | HK38: =MAX(IF('Level 3'!$C$15 <> "None",IF($HI$8="Y",((RAND()-0.5)/SQRT(1/12))*SQRT((HJ38*FF38/(1+HJ38*FF38/GH38))*(1-FF38/(1+HJ38*FF38/GH38))),0)+(HJ38*FF38/(1+HJ38*FF38/GH38)),HJ38*$EC$16/(1+HJ38*$EC$16/$EF$16)),0) ->  | HL38: =MAX(IF('Level 3'!$C$15 <> "None",IF($HI$8="Y",((RAND()-0.5)/SQRT(1/12))*SQRT((HK38*FH38/(1+HK38*FH38/GI38))*(1-FH38/(1+HK38*FH38/GI38))),0)+(HK38*FH38/(1+HK38*FH38/GI38)),HK38*$EC$17/(1+HK38*$EC$17/$EF$17)),0) ->  | HM38: =MAX(IF('Level 3'!$C$15 <> "None",IF($HI$8="Y",((RAND()-0.5)/SQRT(1/12))*SQRT((HL38*FJ38/(1+HL38*FJ38/GJ38))*(1-FJ38/(1+HL38*FJ38/GJ38))),0)+(HL38*FJ38/(1+HL38*FJ38/GJ38)),HL38*$EC$18/(1+HL38*$EC$18/$EF$18)),0) ->  | HN38: =MAX(IF('Level 3'!$C$15 <> "None",IF($HI$8="Y",((RAND()-0.5)/SQRT(1/12))*SQRT((HM38*FL38/(1+HM38*FL38/GK38))*(1-FL38/(1+HM38*FL38/GK38))),0)+(HM38*FL38/(1+HM38*FL38/GK38)),HM38*$EC$19/(1+HM38*$EC$19/$EF$19)),0) ->  | HO38: =MAX(IF('Level 3'!$C$15 <> "None",IF($HI$8="Y",((RAND()-0.5)/SQRT(1/12))*SQRT((HN38*FN38/(1+HN38*FN38/GL38))*(1-FN38/(1+HN38*FN38/GL38))),0)+(HN38*FN38/(1+HN38*FN38/GL38)),HN38*$EC$20/(1+HN38*$EC$20/$EF$20)),0) ->  | HP38: =MAX(IF('Level 3'!$C$15 <> "None",IF($HI$8="Y",((RAND()-0.5)/SQRT(1/12))*SQRT((HO38*FP38/(1+HO38*FP38/GM38))*(1-FP38/(1+HO38*FP38/GM38))),0)+(HO38*FP38/(1+HO38*FP38/GM38)),HO38*$EC$21/(1+HO38*$EC$21/$EF$21)),0) ->  | HQ38: =EA38*IF('Level 3'!$C$15="None",(HE38*$EJ$3)/(1+($EJ$3*HE38)/$EJ$4),HLOOKUP(1,$HF$9:$HP$132,ROW()-8,FALSE)) -> 169821.6262 | HR38: 183657.3504 | HS38: 0.008007909112 | HT38: 82.43402361 | HU38: 0.6601241689 | HW38: ='L3 BaselineHatchery'!HS38/'L3 BaselineNatural'!HS38 ->  | HX38: ='L3 BaselineHatchery'!HT38/'L3 BaselineNatural'!HT38 ->  | HY38: ='L3 BaselineHatchery'!HU38/'L3 BaselineNatural'!HU38 ->  | HZ38: 1 | IA38: 2060.091438 | IB38: 169821.6262 | IC38: 1396.673087 | IE38: ='L3 BaselineHatchery'!IA38/'L3 BaselineNatural'!IA38 ->  | IF38: ='L3 BaselineHatchery'!IB38/'L3 BaselineNatural'!IB38 ->  | IG38: ='L3 BaselineHatchery'!IC38/'L3 BaselineNatural'!IC38 -> 
A39: 1772.614233 | B39: 5 | C39: =IF('Level 3'!$C$15="Random",RAND(),IF('Level 3'!$C$15="None",0.5,RAND())) -> 0.5 | D39: 0 | E39: =IF('Level 3'!$AX$14="MR",$F$6,IF('Level 3'!$AX$14="FR", 'Level 3'!$C$5,IF('Level 3'!$AX$14="ME",IF(I39=0,0,MAX(0,('L3 BaselineNatural'!I39-'L3 BaselineNatural'!$F$5)/'L3 BaselineNatural'!I39)),IF(I39=0,0,MAX(0,('L3 BaselineNatural'!I39-'Level 3'!$C$7)/'L3 BaselineNatural'!I39))))) -> 0 | F39: 0 | G39: 1962.457336 | H39: 173651.0595 | I39: 1962.457336 | J39: 0 | K39: 1962.457336 | L39: 2085.615526 | M39: 0.1336811298 | N39: 0.02871570754 | O39: =IF('Level 3'!$C$15= "None", N$3, IF('Level 3'!$C$15 = "Random",N39, DN62)) -> 0.05 | P39: 0.3951707085 | Q39: =IF('Level 3'!$C$15= "None",P$3,P39) -> 0.4 | R39: 0.5951707085 | S39: =IF('Level 3'!$C$15= "None",R$3,R39) -> 0.6 | T39: 0.6951707085 | U39: =IF('Level 3'!$C$15= "None",T$3,T39) -> 0.7 | V39: 0.7951707085 | W39: =IF('Level 3'!$C$15= "None",V$3,V39) -> 0.8 | X39: 0.8951707085 | Y39: =IF('Level 3'!$C$15= "None",X$3,X39) -> 0.9 | Z39: 173651.0595 | AA39: 0.01020790911 | AB39: 81.07261574 | AC39: 173651.0595 | AD39: 0 | AE39: 387.4305409 | AF39: 496.148919 | AG39: 829.4110077 | AH39: 244.9214909 | AI39: 4.545377146 | AJ39: 1962.457336 | AK39: 0 | AL39: 0 | AM39: 1390.581902 | AN39: 0 | AO39: 0 | AP39: 0 | AQ39: 0 | AR39: 0 | AS39: 0 | AT39: 0 | AV39: 0 | AW39: 387.4305409 | AX39: 496.148919 | AY39: 829.4110077 | AZ39: 244.9214909 | BA39: 4.545377146 | BB39: 1962.457336 | BD39: 0 | BE39: 0 | BF39: 0 | BG39: 0 | BH39: 0 | BI39: 0 | BJ39: 0 | BL39: 0 | BM39: 387.4305409 | BN39: 496.148919 | BO39: 829.4110077 | BP39: 244.9214909 | BQ39: 4.545377146 | BR39: 1962.457336 | BT39: 0 | BU39: 0 | BV39: 0 | BW39: 0 | BX39: 0 | BY39: 0 | BZ39: 0 | CA39: 0 | CC39: 0 | CD39: 387.4305409 | CE39: 496.148919 | CF39: 829.4110077 | CG39: 244.9214909 | CH39: 4.545377146 | CI39: 1962.457336 | CJ39: =IF('Level 3'!$J$27=0,0,'L3 BaselineHatchery'!CU39*$CU$4) -> 0 | CK39: 0 | CL39: 0.197421128 | CM39: 0.2528202321 | CN39: 0.4226390009 | CO39: 0.1248034729 | CP39: 0.002316166096 | CQ39: 1 | CS39: 1402.519974 | CT39: ='Level 3'!$J$29 -> 1 | CU39: =IF(CJ39>0,CJ39/(CJ39+CI39-MIN(CT39*'Level 3'!$J$28,CI39*0.3)),0) -> 0 | CV39: 1935 | CW39: 1.01 | CX39: 0.79 | CY39: -0.11 | CZ39: 1.1 | DA39: 0.99 | DB39: 1.39 | DC39: 0.68 | DD39: 0.63 | DE39: 0.98 | DF39: 0.21 | DG39: 0.13 | DH39: 1.78 | DI39: 1935 | DJ39: -0.9616666667 | DR39: 0 | DV39: 5 | DW39: 1 | DX39: 0 | DY39: 96.03764782 | DZ39: 95.12855691 | EA39: 0.9311222465 | EB39: var | EC39: 10 | EU39: 0.08512790143 | EV39: 0.5 | EW39: 0.1220323257 | EX39: 684.332977 | EY39: 0.09548502744 | EZ39: 0.7499999999 | FA39: 0.2350298737 | FB39: 0.5 | FC39: 0.4392558472 | FD39: 0.8999999999 | FE39: 0.7164747131 | FF39: 1 | FG39: 0.04118634338 | FH39: 1 | FI39: 0.437344313 | FJ39: 1 | FK39: 0.4877393062 | FL39: 1 | FM39: 0.4299226544 | FN39: 1 | FO39: 0.9297275931 | FP39: 1 | FQ39: 0.5 | FR39: 342.1664885 | FS39: 256.6248663 | FT39: 128.3124332 | FU39: 115.4811898 | FV39: 115.4811898 | FW39: 115.4811898 | FX39: 115.4811898 | FY39: 115.4811898 | FZ39: 115.4811898 | GA39: 115.4811898 | GB39: 115.4811898 | GC39: 5000 | GD39: 1000000000 | GE39: 1000000000 | GF39: 3000000 | GG39: 1e+11 | GH39: 0 | GI39: 0 | GJ39: 0 | GK39: 0 | GL39: 0 | GM39: 0 | GN39: 0.2505382223 | GO39: 5000 | GP39: 3409997.018 | GQ39: 2550973.654 | GR39: 894976.5571 | GS39: 805472.4135 | GZ39: 805472.4135 | HA39: =MIN(CT39*'Level 3'!$J$28,CI39*$HA$1) -> 0 | HB39: =CI39+CJ39-MIN('Level 3'!$J$29*'Level 3'!$J$28,CI39*$HA$1) -> 1962.457336 | HC39: 2085.615526 | HD39: 1962.457336 | HE39: 1962.457336 | HF39: =IF('Level 3'!$C$15 <> "None",HE39*$EV39/(1+HE39*$EV39/$GC39),HE39*$EC$11/(1+HE39*$EC$11/$EF$11)) -> 820.2567753 | HG39: =IF('Level 3'!$C$15 <> "None",HF39*$EX39/(1+HF39*$EX39/$GD39),HF39*$EC$12/(1+HF39*$EC$12/$EF$12)) -> 561013.8478 | HH39: =MAX(IF('Level 3'!$C$15 <> "None",IF($HI$8="Y",((RAND()-0.5)/SQRT(1/12))*SQRT((HG39*EZ39/(1+HG39*EZ39/GE39))*(1-EZ39/(1+HG39*EZ39/GE39))),0)+(HG39*EZ39/(1+HG39*EZ39/GE39)),HG39*$EC$13/(1+HG39*$EC$13/$EF$13)),0) -> 420583.421 | HI39: =MAX(IF('Level 3'!$C$15 <> "None",IF($HI$8="Y",((RAND()-0.5)/SQRT(1/12))*SQRT((HH39*FB39/(1+HH39*FB39/GF39))*(1-FB39/(1+HH39*FB39/GF39))),0)+(HH39*FB39/(1+HH39*FB39/GF39)),HH39*$EC$14/(1+HH39*$EC$14/$EF$14)),0) -> 196516.4503 | HJ39: =MAX(IF('Level 3'!$C$15 <> "None",IF($HI$8="Y",((RAND()-0.5)/SQRT(1/12))*SQRT((HI39*FD39/(1+HI39*FD39/GG39))*(1-FD39/(1+HI39*FD39/GG39))),0)+(HI39*FD39/(1+HI39*FD39/GG39)),HI39*$EC$15/(1+HI39*$EC$15/$EF$15)),0) -> 176864.4925 | HK39: =MAX(IF('Level 3'!$C$15 <> "None",IF($HI$8="Y",((RAND()-0.5)/SQRT(1/12))*SQRT((HJ39*FF39/(1+HJ39*FF39/GH39))*(1-FF39/(1+HJ39*FF39/GH39))),0)+(HJ39*FF39/(1+HJ39*FF39/GH39)),HJ39*$EC$16/(1+HJ39*$EC$16/$EF$16)),0) ->  | HL39: =MAX(IF('Level 3'!$C$15 <> "None",IF($HI$8="Y",((RAND()-0.5)/SQRT(1/12))*SQRT((HK39*FH39/(1+HK39*FH39/GI39))*(1-FH39/(1+HK39*FH39/GI39))),0)+(HK39*FH39/(1+HK39*FH39/GI39)),HK39*$EC$17/(1+HK39*$EC$17/$EF$17)),0) ->  | HM39: =MAX(IF('Level 3'!$C$15 <> "None",IF($HI$8="Y",((RAND()-0.5)/SQRT(1/12))*SQRT((HL39*FJ39/(1+HL39*FJ39/GJ39))*(1-FJ39/(1+HL39*FJ39/GJ39))),0)+(HL39*FJ39/(1+HL39*FJ39/GJ39)),HL39*$EC$18/(1+HL39*$EC$18/$EF$18)),0) ->  | HN39: =MAX(IF('Level 3'!$C$15 <> "None",IF($HI$8="Y",((RAND()-0.5)/SQRT(1/12))*SQRT((HM39*FL39/(1+HM39*FL39/GK39))*(1-FL39/(1+HM39*FL39/GK39))),0)+(HM39*FL39/(1+HM39*FL39/GK39)),HM39*$EC$19/(1+HM39*$EC$19/$EF$19)),0) ->  | HO39: =MAX(IF('Level 3'!$C$15 <> "None",IF($HI$8="Y",((RAND()-0.5)/SQRT(1/12))*SQRT((HN39*FN39/(1+HN39*FN39/GL39))*(1-FN39/(1+HN39*FN39/GL39))),0)+(HN39*FN39/(1+HN39*FN39/GL39)),HN39*$EC$20/(1+HN39*$EC$20/$EF$20)),0) ->  | HP39: =MAX(IF('Level 3'!$C$15 <> "None",IF($HI$8="Y",((RAND()-0.5)/SQRT(1/12))*SQRT((HO39*FP39/(1+HO39*FP39/GM39))*(1-FP39/(1+HO39*FP39/GM39))),0)+(HO39*FP39/(1+HO39*FP39/GM39)),HO39*$EC$21/(1+HO39*$EC$21/$EF$21)),0) ->  | HQ39: =EA39*IF('Level 3'!$C$15="None",(HE39*$EJ$3)/(1+($EJ$3*HE39)/$EJ$4),HLOOKUP(1,$HF$9:$HP$132,ROW()-8,FALSE)) -> 164682.4636 | HR39: =HE39*GB39/(1+GB39*HE39/GZ39) -> 176864.4924 | HS39: 0.008007909112 | HT39: 83.91645544 | HU39: 0.6719953482 | HW39: ='L3 BaselineHatchery'!HS39/'L3 BaselineNatural'!HS39 ->  | HX39: ='L3 BaselineHatchery'!HT39/'L3 BaselineNatural'!HT39 ->  | HY39: ='L3 BaselineHatchery'!HU39/'L3 BaselineNatural'!HU39 ->  | HZ39: 1 | IA39: 1962.457336 | IB39: 164682.4636 | IC39: 1390.581902 | IE39: ='L3 BaselineHatchery'!IA39/'L3 BaselineNatural'!IA39 ->  | IF39: ='L3 BaselineHatchery'!IB39/'L3 BaselineNatural'!IB39 ->  | IG39: ='L3 BaselineHatchery'!IC39/'L3 BaselineNatural'!IC39 -> 
A40: 1733.523726 | B40: 6 | C40: =IF('Level 3'!$C$15="Random",RAND(),IF('Level 3'!$C$15="None",0.5,RAND())) -> 0.5 | D40: 0 | E40: =IF('Level 3'!$AX$14="MR",$F$6,IF('Level 3'!$AX$14="FR", 'Level 3'!$C$5,IF('Level 3'!$AX$14="ME",IF(I40=0,0,MAX(0,('L3 BaselineNatural'!I40-'L3 BaselineNatural'!$F$5)/'L3 BaselineNatural'!I40)),IF(I40=0,0,MAX(0,('L3 BaselineNatural'!I40-'Level 3'!$C$7)/'L3 BaselineNatural'!I40))))) -> 0 | F40: 0 | G40: 1839.309918 | H40: 169821.6262 | I40: 1839.309918 | J40: 0 | K40: 1839.309918 | L40: 2000.94468 | M40: 0.6691722635 | N40: 0.06223000933 | O40: =IF('Level 3'!$C$15= "None", N$3, IF('Level 3'!$C$15 = "Random",N40, DN63)) -> 0.05 | P40: 0.4018657792 | Q40: =IF('Level 3'!$C$15= "None",P$3,P40) -> 0.4 | R40: 0.6018657792 | S40: =IF('Level 3'!$C$15= "None",R$3,R40) -> 0.6 | T40: 0.7018657792 | U40: =IF('Level 3'!$C$15= "None",T$3,T40) -> 0.7 | V40: 0.8018657792 | W40: =IF('Level 3'!$C$15= "None",V$3,V40) -> 0.8 | X40: 0.9018657792 | Y40: =IF('Level 3'!$C$15= "None",X$3,X40) -> 0.9 | Z40: 169821.6262 | AA40: 0.01020790911 | AB40: 82.43402361 | AC40: 169821.6262 | AD40: 0 | AE40: 383.7057524 | AF40: 489.0077846 | AG40: 721.5913548 | AH40: 240.5064686 | AI40: 4.498557997 | AJ40: 1839.309918 | AK40: 0 | AL40: 0 | AM40: 1359.916148 | AN40: 0 | AO40: 0 | AP40: 0 | AQ40: 0 | AR40: 0 | AS40: 0 | AT40: 0 | AV40: 0 | AW40: 383.7057524 | AX40: 489.0077846 | AY40: 721.5913548 | AZ40: 240.5064686 | BA40: 4.498557997 | BB40: 1839.309918 | BD40: 0 | BE40: 0 | BF40: 0 | BG40: 0 | BH40: 0 | BI40: 0 | BJ40: 0 | BL40: 0 | BM40: 383.7057524 | BN40: 489.0077846 | BO40: 721.5913548 | BP40: 240.5064686 | BQ40: 4.498557997 | BR40: 1839.309918 | BT40: 0 | BU40: 0 | BV40: 0 | BW40: 0 | BX40: 0 | BY40: 0 | BZ40: 0 | CA40: 0 | CC40: 0 | CD40: 383.7057524 | CE40: 489.0077846 | CF40: 721.5913548 | CG40: 240.5064686 | CH40: 4.498557997 | CI40: 1839.309918 | CJ40: =IF('Level 3'!$J$27=0,0,'L3 BaselineHatchery'!CU40*$CU$4) -> 0 | CK40: 0 | CL40: 0.2086139745 | CM40: 0.2658648114 | CN40: 0.3923163506 | CO40: 0.1307590778 | CP40: 0.002445785755 | CQ40: 1 | CS40: 1385.317702 | CT40: ='Level 3'!$J$29 -> 1 | CU40: =IF(CJ40>0,CJ40/(CJ40+CI40-MIN(CT40*'Level 3'!$J$28,CI40*0.3)),0) -> 0 | CV40: 1936 | CW40: 1.79 | CX40: 1.75 | CY40: 1.36 | CZ40: 1.32 | DA40: 1.83 | DB40: 2.37 | DC40: 2.57 | DD40: 1.71 | DE40: 0.04 | DF40: 2.1 | DG40: 2.65 | DH40: 1.28 | DI40: 1936 | DJ40: -1.64 | DR40: 0 | DV40: 6 | DW40: 1 | DX40: 0 | DY40: 96.21775474 | DZ40: 95.30866383 | EA40: 0.9370445513 | EU40: 0.545828184 | EV40: 0.5 | EW40: 0.9003171093 | EX40: 684.332977 | EY40: 0.0838756975 | EZ40: 0.75 | FA40: 0.9212456515 | FB40: 0.5 | FC40: 0.1729561941 | FD40: 0.9 | FE40: 0.9269208179 | FF40: 1 | FG40: 0.3332127431 | FH40: 1 | FI40: 0.6688627947 | FJ40: 1 | FK40: 0.2298902208 | FL40: 1 | FM40: 0.3745297952 | FN40: 1 | FO40: 0.07237525361 | FP40: 1 | FQ40: 0.5 | FR40: 342.1664885 | FS40: 256.6248664 | FT40: 128.3124332 | FU40: 115.4811899 | FV40: 115.4811899 | FW40: 115.4811899 | FX40: 115.4811899 | FY40: 115.4811899 | FZ40: 115.4811899 | GA40: 115.4811899 | GB40: 115.4811899 | GC40: 5000 | GD40: 1000000000 | GE40: 1000000000 | GF40: 3000000 | GG40: 1e+11 | GH40: 0 | GI40: 0 | GJ40: 0 | GK40: 0 | GL40: 0 | GM40: 0 | GN40: 0.04028754468 | GO40: 5000 | GP40: 3409997.018 | GQ40: 2550973.654 | GR40: 894976.5572 | GS40: 805472.4136 | GZ40: 805472.4136 | HA40: =MIN(CT40*'Level 3'!$J$28,CI40*$HA$1) -> 0 | HB40: =CI40+CJ40-MIN('Level 3'!$J$29*'Level 3'!$J$28,CI40*$HA$1) -> 1839.309918 | HC40: 2000.94468 | HD40: 1839.309918 | HE40: 1839.309918 | HF40: =IF('Level 3'!$C$15 <> "None",HE40*$EV40/(1+HE40*$EV40/$GC40),HE40*$EC$11/(1+HE40*$EC$11/$EF$11)) -> 776.7808813 | HG40: =IF('Level 3'!$C$15 <> "None",HF40*$EX40/(1+HF40*$EX40/$GD40),HF40*$EC$12/(1+HF40*$EC$12/$EF$12)) -> 531294.3493 | HH40: =MAX(IF('Level 3'!$C$15 <> "None",IF($HI$8="Y",((RAND()-0.5)/SQRT(1/12))*SQRT((HG40*EZ40/(1+HG40*EZ40/GE40))*(1-EZ40/(1+HG40*EZ40/GE40))),0)+(HG40*EZ40/(1+HG40*EZ40/GE40)),HG40*$EC$13/(1+HG40*$EC$13/$EF$13)),0) -> 398312.0462 | HI40: =MAX(IF('Level 3'!$C$15 <> "None",IF($HI$8="Y",((RAND()-0.5)/SQRT(1/12))*SQRT((HH40*FB40/(1+HH40*FB40/GF40))*(1-FB40/(1+HH40*FB40/GF40))),0)+(HH40*FB40/(1+HH40*FB40/GF40)),HH40*$EC$14/(1+HH40*$EC$14/$EF$14)),0) -> 186758.0278 | HJ40: =MAX(IF('Level 3'!$C$15 <> "None",IF($HI$8="Y",((RAND()-0.5)/SQRT(1/12))*SQRT((HI40*FD40/(1+HI40*FD40/GG40))*(1-FD40/(1+HI40*FD40/GG40))),0)+(HI40*FD40/(1+HI40*FD40/GG40)),HI40*$EC$15/(1+HI40*$EC$15/$EF$15)),0) -> 168081.9425 | HK40: =MAX(IF('Level 3'!$C$15 <> "None",IF($HI$8="Y",((RAND()-0.5)/SQRT(1/12))*SQRT((HJ40*FF40/(1+HJ40*FF40/GH40))*(1-FF40/(1+HJ40*FF40/GH40))),0)+(HJ40*FF40/(1+HJ40*FF40/GH40)),HJ40*$EC$16/(1+HJ40*$EC$16/$EF$16)),0) ->  | HL40: =MAX(IF('Level 3'!$C$15 <> "None",IF($HI$8="Y",((RAND()-0.5)/SQRT(1/12))*SQRT((HK40*FH40/(1+HK40*FH40/GI40))*(1-FH40/(1+HK40*FH40/GI40))),0)+(HK40*FH40/(1+HK40*FH40/GI40)),HK40*$EC$17/(1+HK40*$EC$17/$EF$17)),0) ->  | HM40: =MAX(IF('Level 3'!$C$15 <> "None",IF($HI$8="Y",((RAND()-0.5)/SQRT(1/12))*SQRT((HL40*FJ40/(1+HL40*FJ40/GJ40))*(1-FJ40/(1+HL40*FJ40/GJ40))),0)+(HL40*FJ40/(1+HL40*FJ40/GJ40)),HL40*$EC$18/(1+HL40*$EC$18/$EF$18)),0) ->  | HN40: =MAX(IF('Level 3'!$C$15 <> "None",IF($HI$8="Y",((RAND()-0.5)/SQRT(1/12))*SQRT((HM40*FL40/(1+HM40*FL40/GK40))*(1-FL40/(1+HM40*FL40/GK40))),0)+(HM40*FL40/(1+HM40*FL40/GK40)),HM40*$EC$19/(1+HM40*$EC$19/$EF$19)),0) ->  | HO40: =MAX(IF('Level 3'!$C$15 <> "None",IF($HI$8="Y",((RAND()-0.5)/SQRT(1/12))*SQRT((HN40*FN40/(1+HN40*FN40/GL40))*(1-FN40/(1+HN40*FN40/GL40))),0)+(HN40*FN40/(1+HN40*FN40/GL40)),HN40*$EC$20/(1+HN40*$EC$20/$EF$20)),0) ->  | HP40: =MAX(IF('Level 3'!$C$15 <> "None",IF($HI$8="Y",((RAND()-0.5)/SQRT(1/12))*SQRT((HO40*FP40/(1+HO40*FP40/GM40))*(1-FP40/(1+HO40*FP40/GM40))),0)+(HO40*FP40/(1+HO40*FP40/GM40)),HO40*$EC$21/(1+HO40*$EC$21/$EF$21)),0) ->  | HQ40: =EA40*IF('Level 3'!$C$15="None",(HE40*$EJ$3)/(1+($EJ$3*HE40)/$EJ$4),HLOOKUP(1,$HF$9:$HP$132,ROW()-8,FALSE)) -> 157500.2684 | HR40: =HE40*GB40/(1+GB40*HE40/GZ40) -> 168081.9424 | HS40: 0.008007909112 | HT40: 85.63008702 | HU40: 0.6857179541 | HW40: ='L3 BaselineHatchery'!HS40/'L3 BaselineNatural'!HS40 ->  | HX40: ='L3 BaselineHatchery'!HT40/'L3 BaselineNatural'!HT40 ->  | HY40: ='L3 BaselineHatchery'!HU40/'L3 BaselineNatural'!HU40 ->  | HZ40: 1 | IA40: 1839.309918 | IB40: 157500.2684 | IC40: 1359.916148 | IE40: ='L3 BaselineHatchery'!IA40/'L3 BaselineNatural'!IA40 ->  | IF40: ='L3 BaselineHatchery'!IB40/'L3 BaselineNatural'!IB40 ->  | IG40: ='L3 BaselineHatchery'!IC40/'L3 BaselineNatural'!IC40 -> 
A41: 1681.06362 | B41: 7 | C41: =IF('Level 3'!$C$15="Random",RAND(),IF('Level 3'!$C$15="None",0.5,RAND())) -> 0.5 | D41: 0 | E41: =IF('Level 3'!$AX$14="MR",$F$6,IF('Level 3'!$AX$14="FR", 'Level 3'!$C$5,IF('Level 3'!$AX$14="ME",IF(I41=0,0,MAX(0,('L3 BaselineNatural'!I41-'L3 BaselineNatural'!$F$5)/'L3 BaselineNatural'!I41)),IF(I41=0,0,MAX(0,('L3 BaselineNatural'!I41-'Level 3'!$C$7)/'L3 BaselineNatural'!I41))))) -> 0 | F41: 0 | G41: 1791.203343 | H41: 164682.4636 | I41: 1791.203343 | J41: 0 | K41: 1791.203343 | L41: 1913.265509 | M41: 0.697383236 | N41: 0.06474571952 | O41: =IF('Level 3'!$C$15= "None", N$3, IF('Level 3'!$C$15 = "Random",N41, DN64)) -> 0.05 | P41: 0.4022203244 | Q41: =IF('Level 3'!$C$15= "None",P$3,P41) -> 0.4 | R41: 0.6022203244 | S41: =IF('Level 3'!$C$15= "None",R$3,R41) -> 0.6 | T41: 0.7022203244 | U41: =IF('Level 3'!$C$15= "None",T$3,T41) -> 0.7 | V41: 0.8022203244 | W41: =IF('Level 3'!$C$15= "None",V$3,V41) -> 0.8 | X41: 0.9022203244 | Y41: =IF('Level 3'!$C$15= "None",X$3,X41) -> 0.9 | Z41: 164682.4636 | AA41: 0.01020790911 | AB41: 83.91645544 | AC41: 164682.4636 | AD41: 0 | AE41: 382.032331 | AF41: 484.3064242 | AG41: 711.2053987 | AH41: 209.2417233 | AI41: 4.417465751 | AJ41: 1791.203343 | AK41: 0 | AL41: 0 | AM41: 1318.762201 | AN41: 0 | AO41: 0 | AP41: 0 | AQ41: 0 | AR41: 0 | AS41: 0 | AT41: 0 | AV41: 0 | AW41: 382.032331 | AX41: 484.3064242 | AY41: 711.2053987 | AZ41: 209.2417233 | BA41: 4.417465751 | BB41: 1791.203343 | BD41: 0 | BE41: 0 | BF41: 0 | BG41: 0 | BH41: 0 | BI41: 0 | BJ41: 0 | BL41: 0 | BM41: 382.032331 | BN41: 484.3064242 | BO41: 711.2053987 | BP41: 209.2417233 | BQ41: 4.417465751 | BR41: 1791.203343 | BT41: 0 | BU41: 0 | BV41: 0 | BW41: 0 | BX41: 0 | BY41: 0 | BZ41: 0 | CA41: 0 | CC41: =(BL41-BT41)*$AN$7 -> 0 | CD41: =(BM41-BU41)*$AN$7 -> 382.032331 | CE41: =(BN41-BV41)*$AN$7 -> 484.3064242 | CF41: =(BO41-BW41)*$AN$7 -> 711.2053987 | CG41: =(BP41-BX41)*$AN$7 -> 209.2417233 | CH41: =(BQ41-BY41)*$AN$7 -> 4.417465751 | CI41: 1791.203343 | CJ41: =IF('Level 3'!$J$27=0,0,'L3 BaselineHatchery'!CU41*$CU$4) -> 0 | CK41: 0 | CL41: 0.2132825022 | CM41: 0.2703804826 | CN41: 0.3970545284 | CO41: 0.1168162867 | CP41: 0.002466200037 | CQ41: 1 | CS41: 1373.204492 | CT41: ='Level 3'!$J$29 -> 1 | CU41: =IF(CJ41>0,CJ41/(CJ41+CI41-MIN(CT41*'Level 3'!$J$28,CI41*0.3)),0) -> 0 | CV41: 1937 | CW41: 0 | CX41: -0.49 | CY41: 0.38 | CZ41: 0.2 | DA41: 0.53 | DB41: 1.75 | DC41: 0.11 | DD41: -0.35 | DE41: 0.63 | DF41: 0.76 | DG41: -0.18 | DH41: 0.55 | DI41: 1937 | DJ41: -0.4783333333 | DR41: 0 | DV41: 7 | DW41: 1 | DX41: 0 | DY41: 96.38967497 | DZ41: 95.48058407 | EA41: 0.9424734919 | EU41: 0.9327923489 | EV41: 0.5 | EW41: 0.3321993367 | EX41: 684.332977 | EY41: 0.2484034957 | EZ41: 0.75 | FA41: 0.1084090457 | FB41: 0.5 | FC41: 0.7292237943 | FD41: 0.9 | FE41: 0.7740894905 | FF41: 1 | FG41: 0.917575252 | FH41: 1 | FI41: 0.7797361172 | FJ41: 1 | FK41: 0.3074736101 | FL41: 1 | FM41: 0.2252810511 | FN41: 1 | FO41: 0.5602631839 | FP41: 1 | FQ41: 0.5 | FR41: 342.1664885 | FS41: 256.6248664 | FT41: 128.3124332 | FU41: 115.4811899 | FV41: 115.4811899 | FW41: 115.4811899 | FX41: 115.4811899 | FY41: 115.4811899 | FZ41: 115.4811899 | GA41: 115.4811899 | GB41: 115.4811899 | GC41: 5000 | GD41: 1000000000 | GE41: 1000000000 | GF41: 3000000 | GG41: 1e+11 | GH41: 0 | GI41: 0 | GJ41: 0 | GK41: 0 | GL41: 0 | GM41: 0 | GN41: 0.1472358492 | GO41: 5000 | GP41: 3409997.018 | GQ41: 2550973.654 | GR41: 894976.5572 | GS41: 805472.4136 | GZ41: 805472.4136 | HA41: =MIN(CT41*'Level 3'!$J$28,CI41*$HA$1) -> 0 | HB41: =CI41+CJ41-MIN('Level 3'!$J$29*'Level 3'!$J$28,CI41*$HA$1) -> 1791.203343 | HC41: 1913.265509 | HD41: 1791.203343 | HE41: 1791.203343 | HF41: =IF('Level 3'!$C$15 <> "None",HE41*$EV41/(1+HE41*$EV41/$GC41),HE41*$EC$11/(1+HE41*$EC$11/$EF$11)) -> 759.5506967 | HG41: =IF('Level 3'!$C$15 <> "None",HF41*$EX41/(1+HF41*$EX41/$GD41),HF41*$EC$12/(1+HF41*$EC$12/$EF$12)) -> 519515.5528 | HH41: =MAX(IF('Level 3'!$C$15 <> "None",IF($HI$8="Y",((RAND()-0.5)/SQRT(1/12))*SQRT((HG41*EZ41/(1+HG41*EZ41/GE41))*(1-EZ41/(1+HG41*EZ41/GE41))),0)+(HG41*EZ41/(1+HG41*EZ41/GE41)),HG41*$EC$13/(1+HG41*$EC$13/$EF$13)),0) -> 389484.907 | HI41: =MAX(IF('Level 3'!$C$15 <> "None",IF($HI$8="Y",((RAND()-0.5)/SQRT(1/12))*SQRT((HH41*FB41/(1+HH41*FB41/GF41))*(1-FB41/(1+HH41*FB41/GF41))),0)+(HH41*FB41/(1+HH41*FB41/GF41)),HH41*$EC$14/(1+HH41*$EC$14/$EF$14)),0) -> 182871.505 | HJ41: =MAX(IF('Level 3'!$C$15 <> "None",IF($HI$8="Y",((RAND()-0.5)/SQRT(1/12))*SQRT((HI41*FD41/(1+HI41*FD41/GG41))*(1-FD41/(1+HI41*FD41/GG41))),0)+(HI41*FD41/(1+HI41*FD41/GG41)),HI41*$EC$15/(1+HI41*$EC$15/$EF$15)),0) -> 164584.0836 | HK41: =MAX(IF('Level 3'!$C$15 <> "None",IF($HI$8="Y",((RAND()-0.5)/SQRT(1/12))*SQRT((HJ41*FF41/(1+HJ41*FF41/GH41))*(1-FF41/(1+HJ41*FF41/GH41))),0)+(HJ41*FF41/(1+HJ41*FF41/GH41)),HJ41*$EC$16/(1+HJ41*$EC$16/$EF$16)),0) ->  | HL41: =MAX(IF('Level 3'!$C$15 <> "None",IF($HI$8="Y",((RAND()-0.5)/SQRT(1/12))*SQRT((HK41*FH41/(1+HK41*FH41/GI41))*(1-FH41/(1+HK41*FH41/GI41))),0)+(HK41*FH41/(1+HK41*FH41/GI41)),HK41*$EC$17/(1+HK41*$EC$17/$EF$17)),0) ->  | HM41: =MAX(IF('Level 3'!$C$15 <> "None",IF($HI$8="Y",((RAND()-0.5)/SQRT(1/12))*SQRT((HL41*FJ41/(1+HL41*FJ41/GJ41))*(1-FJ41/(1+HL41*FJ41/GJ41))),0)+(HL41*FJ41/(1+HL41*FJ41/GJ41)),HL41*$EC$18/(1+HL41*$EC$18/$EF$18)),0) ->  | HN41: =MAX(IF('Level 3'!$C$15 <> "None",IF($HI$8="Y",((RAND()-0.5)/SQRT(1/12))*SQRT((HM41*FL41/(1+HM41*FL41/GK41))*(1-FL41/(1+HM41*FL41/GK41))),0)+(HM41*FL41/(1+HM41*FL41/GK41)),HM41*$EC$19/(1+HM41*$EC$19/$EF$19)),0) ->  | HO41: =MAX(IF('Level 3'!$C$15 <> "None",IF($HI$8="Y",((RAND()-0.5)/SQRT(1/12))*SQRT((HN41*FN41/(1+HN41*FN41/GL41))*(1-FN41/(1+HN41*FN41/GL41))),0)+(HN41*FN41/(1+HN41*FN41/GL41)),HN41*$EC$20/(1+HN41*$EC$20/$EF$20)),0) ->  | HP41: =MAX(IF('Level 3'!$C$15 <> "None",IF($HI$8="Y",((RAND()-0.5)/SQRT(1/12))*SQRT((HO41*FP41/(1+HO41*FP41/GM41))*(1-FP41/(1+HO41*FP41/GM41))),0)+(HO41*FP41/(1+HO41*FP41/GM41)),HO41*$EC$21/(1+HO41*$EC$21/$EF$21)),0) ->  | HQ41: =EA41*IF('Level 3'!$C$15="None",(HE41*$EJ$3)/(1+($EJ$3*HE41)/$EJ$4),HLOOKUP(1,$HF$9:$HP$132,ROW()-8,FALSE)) -> 155116.136 | HR41: 164584.0836 | HS41: 0.008007909112 | HT41: 86.59884239 | HU41: 0.6934756591 | HW41: ='L3 BaselineHatchery'!HS41/'L3 BaselineNatural'!HS41 ->  | HX41: ='L3 BaselineHatchery'!HT41/'L3 BaselineNatural'!HT41 ->  | HY41: ='L3 BaselineHatchery'!HU41/'L3 BaselineNatural'!HU41 ->  | HZ41: 1 | IA41: 1791.203343 | IB41: 155116.136 | IC41: 1318.762201 | IE41: ='L3 BaselineHatchery'!IA41/'L3 BaselineNatural'!IA41 ->  | IF41: ='L3 BaselineHatchery'!IB41/'L3 BaselineNatural'!IB41 ->  | IG41: ='L3 BaselineHatchery'!IC41/'L3 BaselineNatural'!IC41 -> 
A42: 1607.748425 | B42: 8 | C42: =IF('Level 3'!$C$15="Random",RAND(),IF('Level 3'!$C$15="None",0.5,RAND())) -> 0.5 | D42: 0 | E42: =IF('Level 3'!$AX$14="MR",$F$6,IF('Level 3'!$AX$14="FR", 'Level 3'!$C$5,IF('Level 3'!$AX$14="ME",IF(I42=0,0,MAX(0,('L3 BaselineNatural'!I42-'L3 BaselineNatural'!$F$5)/'L3 BaselineNatural'!I42)),IF(I42=0,0,MAX(0,('L3 BaselineNatural'!I42-'Level 3'!$C$7)/'L3 BaselineNatural'!I42))))) -> 0 | F42: 0 | G42: 1770.242948 | H42: 157500.2684 | I42: 1770.242948 | J42: 0 | K42: 1770.242948 | L42: 1840.803386 | M42: 0.2433990084 | N42: 0.03531534963 | O42: =IF('Level 3'!$C$15= "None", N$3, IF('Level 3'!$C$15 = "Random",N42, DN65)) -> 0.05 | P42: 0.3969770912 | Q42: =IF('Level 3'!$C$15= "None",P$3,P42) -> 0.4 | R42: 0.5969770912 | S42: =IF('Level 3'!$C$15= "None",R$3,R42) -> 0.6 | T42: 0.6969770912 | U42: =IF('Level 3'!$C$15= "None",T$3,T42) -> 0.7 | V42: 0.7969770912 | W42: =IF('Level 3'!$C$15= "None",V$3,V42) -> 0.8 | X42: 0.8969770912 | Y42: =IF('Level 3'!$C$15= "None",X$3,X42) -> 0.9 | Z42: 157500.2684 | AA42: 0.01020790911 | AB42: 85.63008702 | AC42: 157500.2684 | AD42: 0 | AE42: 373.6075777 | AF42: 482.1942622 | AG42: 704.3678125 | AH42: 206.2300805 | AI42: 3.843215325 | AJ42: 1770.242948 | AK42: 0 | AL42: 0 | AM42: 1261.247834 | AN42: 0 | AO42: 0 | AP42: 0 | AQ42: 0 | AR42: 0 | AS42: 0 | AT42: 0 | AV42: 0 | AW42: 373.6075777 | AX42: 482.1942622 | AY42: 704.3678125 | AZ42: 206.2300805 | BA42: 3.843215325 | BB42: 1770.242948 | BD42: 0 | BE42: 0 | BF42: 0 | BG42: 0 | BH42: 0 | BI42: 0 | BJ42: 0 | BL42: 0 | BM42: 373.6075777 | BN42: 482.1942622 | BO42: 704.3678125 | BP42: 206.2300805 | BQ42: 3.843215325 | BR42: 1770.242948 | BT42: 0 | BU42: 0 | BV42: 0 | BW42: 0 | BX42: 0 | BY42: 0 | BZ42: 0 | CA42: 0 | CC42: 0 | CD42: 373.6075777 | CE42: 482.1942622 | CF42: 704.3678125 | CG42: 206.2300805 | CH42: 3.843215325 | CI42: 1770.242948 | CJ42: =IF('Level 3'!$J$27=0,0,'L3 BaselineHatchery'!CU42*$CU$4) -> 0 | CK42: 0 | CL42: 0.2110487592 | CM42: 0.272388749 | CN42: 0.3978933023 | CO42: 0.1164981794 | CP42: 0.002171010103 | CQ42: 1 | CS42: 1376.817866 | CT42: ='Level 3'!$J$29 -> 1 | CU42: =IF(CJ42>0,CJ42/(CJ42+CI42-MIN(CT42*'Level 3'!$J$28,CI42*0.3)),0) -> 0 | CV42: 1938 | CW42: 0.5 | CX42: 0.02 | CY42: 0.24 | CZ42: 0.27 | DA42: -0.25 | DB42: -0.2 | DC42: -0.21 | DD42: -0.45 | DE42: -0.01 | DF42: 0.07 | DG42: 0.48 | DH42: 1.4 | DI42: 1938 | DJ42: 0.1416666667 | DR42: 0 | DV42: 8 | DW42: 1 | DX42: 0 | DY42: 96.55378066 | DZ42: 95.64468975 | EA42: 0.9474474905 | EU42: 0.9799704365 | EV42: 0.5 | EW42: 0.5818416076 | EX42: 684.332977 | EY42: 0.803829883 | EZ42: 0.75 | FA42: 0.1993617126 | FB42: 0.5 | FC42: 0.0827689565 | FD42: 0.9 | FE42: 0.9981312317 | FF42: 1 | FG42: 0.09707861509 | FH42: 1 | FI42: 0.1699912392 | FJ42: 1 | FK42: 0.6872464523 | FL42: 1 | FM42: 0.6590744242 | FN42: 1 | FO42: 0.2620496942 | FP42: 1 | FQ42: 0.5 | FR42: 342.1664885 | FS42: 256.6248664 | FT42: 128.3124332 | FU42: 115.4811899 | FV42: 115.4811899 | FW42: 115.4811899 | FX42: 115.4811899 | FY42: 115.4811899 | FZ42: 115.4811899 | GA42: 115.4811899 | GB42: 115.4811899 | GC42: 5000 | GD42: 1000000000 | GE42: 1000000000 | GF42: 3000000 | GG42: 1e+11 | GH42: 0 | GI42: 0 | GJ42: 0 | GK42: 0 | GL42: 0 | GM42: 0 | GN42: 0.04814117184 | GO42: 5000 | GP42: 3409997.018 | GQ42: 2550973.654 | GR42: 894976.5572 | GS42: 805472.4136 | GZ42: 805472.4136 | HA42: =MIN(CT42*'Level 3'!$J$28,CI42*$HA$1) -> 0 | HB42: =CI42+CJ42-MIN('Level 3'!$J$29*'Level 3'!$J$28,CI42*$HA$1) -> 1770.242948 | HC42: 1840.803386 | HD42: 1770.242948 | HE42: 1770.242948 | HF42: =IF('Level 3'!$C$15 <> "None",HE42*$EV42/(1+HE42*$EV42/$GC42),HE42*$EC$11/(1+HE42*$EC$11/$EF$11)) -> 751.9993241 | HG42: =IF('Level 3'!$C$15 <> "None",HF42*$EX42/(1+HF42*$EX42/$GD42),HF42*$EC$12/(1+HF42*$EC$12/$EF$12)) -> 514353.2408 | HH42: =MAX(IF('Level 3'!$C$15 <> "None",IF($HI$8="Y",((RAND()-0.5)/SQRT(1/12))*SQRT((HG42*EZ42/(1+HG42*EZ42/GE42))*(1-EZ42/(1+HG42*EZ42/GE42))),0)+(HG42*EZ42/(1+HG42*EZ42/GE42)),HG42*$EC$13/(1+HG42*$EC$13/$EF$13)),0) -> 385616.1734 | HI42: =MAX(IF('Level 3'!$C$15 <> "None",IF($HI$8="Y",((RAND()-0.5)/SQRT(1/12))*SQRT((HH42*FB42/(1+HH42*FB42/GF42))*(1-FB42/(1+HH42*FB42/GF42))),0)+(HH42*FB42/(1+HH42*FB42/GF42)),HH42*$EC$14/(1+HH42*$EC$14/$EF$14)),0) -> 181164.7441 | HJ42: =MAX(IF('Level 3'!$C$15 <> "None",IF($HI$8="Y",((RAND()-0.5)/SQRT(1/12))*SQRT((HI42*FD42/(1+HI42*FD42/GG42))*(1-FD42/(1+HI42*FD42/GG42))),0)+(HI42*FD42/(1+HI42*FD42/GG42)),HI42*$EC$15/(1+HI42*$EC$15/$EF$15)),0) -> 163048.0039 | HK42: =MAX(IF('Level 3'!$C$15 <> "None",IF($HI$8="Y",((RAND()-0.5)/SQRT(1/12))*SQRT((HJ42*FF42/(1+HJ42*FF42/GH42))*(1-FF42/(1+HJ42*FF42/GH42))),0)+(HJ42*FF42/(1+HJ42*FF42/GH42)),HJ42*$EC$16/(1+HJ42*$EC$16/$EF$16)),0) ->  | HL42: =MAX(IF('Level 3'!$C$15 <> "None",IF($HI$8="Y",((RAND()-0.5)/SQRT(1/12))*SQRT((HK42*FH42/(1+HK42*FH42/GI42))*(1-FH42/(1+HK42*FH42/GI42))),0)+(HK42*FH42/(1+HK42*FH42/GI42)),HK42*$EC$17/(1+HK42*$EC$17/$EF$17)),0) ->  | HM42: =MAX(IF('Level 3'!$C$15 <> "None",IF($HI$8="Y",((RAND()-0.5)/SQRT(1/12))*SQRT((HL42*FJ42/(1+HL42*FJ42/GJ42))*(1-FJ42/(1+HL42*FJ42/GJ42))),0)+(HL42*FJ42/(1+HL42*FJ42/GJ42)),HL42*$EC$18/(1+HL42*$EC$18/$EF$18)),0) ->  | HN42: =MAX(IF('Level 3'!$C$15 <> "None",IF($HI$8="Y",((RAND()-0.5)/SQRT(1/12))*SQRT((HM42*FL42/(1+HM42*FL42/GK42))*(1-FL42/(1+HM42*FL42/GK42))),0)+(HM42*FL42/(1+HM42*FL42/GK42)),HM42*$EC$19/(1+HM42*$EC$19/$EF$19)),0) ->  | HO42: =MAX(IF('Level 3'!$C$15 <> "None",IF($HI$8="Y",((RAND()-0.5)/SQRT(1/12))*SQRT((HN42*FN42/(1+HN42*FN42/GL42))*(1-FN42/(1+HN42*FN42/GL42))),0)+(HN42*FN42/(1+HN42*FN42/GL42)),HN42*$EC$20/(1+HN42*$EC$20/$EF$20)),0) ->  | HP42: =MAX(IF('Level 3'!$C$15 <> "None",IF($HI$8="Y",((RAND()-0.5)/SQRT(1/12))*SQRT((HO42*FP42/(1+HO42*FP42/GM42))*(1-FP42/(1+HO42*FP42/GM42))),0)+(HO42*FP42/(1+HO42*FP42/GM42)),HO42*$EC$21/(1+HO42*$EC$21/$EF$21)),0) ->  | HQ42: =EA42*IF('Level 3'!$C$15="None",(HE42*$EJ$3)/(1+($EJ$3*HE42)/$EJ$4),HLOOKUP(1,$HF$9:$HP$132,ROW()-8,FALSE)) -> 154479.4221 | HR42: 163048.0039 | HS42: 0.008007909112 | HT42: 87.26453183 | HU42: 0.6988064396 | HW42: ='L3 BaselineHatchery'!HS42/'L3 BaselineNatural'!HS42 ->  | HX42: ='L3 BaselineHatchery'!HT42/'L3 BaselineNatural'!HT42 ->  | HY42: ='L3 BaselineHatchery'!HU42/'L3 BaselineNatural'!HU42 ->  | HZ42: 1 | IA42: 1770.242948 | IB42: 154479.4221 | IC42: 1261.247834 | IE42: ='L3 BaselineHatchery'!IA42/'L3 BaselineNatural'!IA42 ->  | IF42: ='L3 BaselineHatchery'!IB42/'L3 BaselineNatural'!IB42 ->  | IG42: ='L3 BaselineHatchery'!IC42/'L3 BaselineNatural'!IC42 -> 
